{"text_format":"1","workbook":"xlsx","n_sheets":15,"sheets":["0. Intro","1. Start","2. System Charts","3. Hardware Options","4. Custom Fabric","_ReferenceData","_Chart Formatting_WIP","_SpringData_L0","_SpringData_L1","_SpringData_L2","_FabricList","_Dictionary","_Parameters","_LiveData","_Notes"],"not_rendered":{"charts":2,"images":8,"macros":1,"external_links":0,"defined_names":401,"comments":8,"pivot_tables":0},"unopened":[],"bounds":{"document_bytes":16777216,"sheet_cells":100000,"rows_first":2000,"rows_last":500,"rows_between":2000,"halvings":0,"cell_chars":16384,"cell_head_chars":4096},"cells_cut":0,"cells_raw":0,"read":"whole","date_system":"1900"}

{"sheet":"0. Intro","index":0,"n_rows":26,"n_cols":20,"rows_kept":26,"cut":false,"hidden":false,"merged":[[22,19,24,32],[3,1,5,16]]}
[]
[null,"If the eBOM opens to this page first, it means Excel Macro's have not been enabled. "]
[]
[null,"Excel Macros provide improved functionality for this file, and it will not work properly unless they are enabled. "]
[]
[]
[]
[null,"This may be caused by one of the following warnings:",null,null,null,null,null,null,null,null,null,null,null,null,null,null,null,null,null,"Simply click 'Enable Content'"]
[null,null,"Follow the steps below each warning to enable Macros."]
[]
[]
[]
[]
[null,null,"Find out more here: ",null,"https://docs.microsoft.com/en-us/deployoffice/security/internet-macros-blocked#remove-mark-of-the-web-from-a-file"]
[]
[null,null,"1. Close the file"]
[null,null,"2. Right click on the Excel file and click 'Properties'"]
[null,null,"3. Tick 'Unblock' and click 'OK'"]
[null,null,"4. Re-open file"]
[]
[]
[]
[null,null,null,null,null,null,null,null,null,null,null,null,null,null,null,null,null,null,null,"This prompt is for the excel file to connect to our website to check if this version is the latest. A message will flag if the excel is not the latest version. "]
[]
[]
[null,null,null,null,null,null,null,null,null,null,null,null,null,null,null,null,null,null,null,"If 'cancel' is clicked, the workbook is still 100% functional. "]

{"sheet":"1. Start","index":1,"n_rows":51,"n_cols":22,"rows_kept":51,"cut":false,"hidden":false,"merged":[[27,2,27,11],[46,2,46,11],[3,6,3,8],[39,10,40,11],[6,2,6,8],[6,10,6,11],[12,10,13,10],[45,2,45,11],[31,10,32,10],[34,10,35,10],[4,6,4,8],[24,2,25,4]]}
[null,null,null,null,null,null,null,null,null,null,null,"Release"]
[]
[null,null,null,null,{"$f":"z_Title","v":"Roller Shade Calculator"},null,null,null,null,null,null,null,null,null,null,null,"UnitStorage:","Metric"]
[null,null,null,null,{"$f":"z_LastUpdate&\": \"&\"18-Apr-24\"","v":"Release: 18-Apr-24"},null,"NOTE: Macros MUST be enabled via the bar above when file opens."]
[null,null,null,null,null,null,{"$f":"IFERROR(IF(CurrentVersionReturn=TRUE(),\"Current Version.\",\"Please download the latest version from the Rollease Acmeda Document Library \"),\"\")","v":"Current Version."}]
[]
[null,null,{"$f":"z_Inputs","v":"INPUTS"},null,null,null,null,null,null,null,{"$f":"z_Outputs","v":"OUTPUTS"},null,null,null,null,null,{"$f":"z_Language","v":"Language"},{"$f":"z_NoteSelect","v":"Select from dropdown list."},"English"]
[null,null,{"$f":"z_Region","v":"Region"},{"$f":"z_NoteSelect","v":"Select from dropdown list."},"Global",null,{"$f":"z_Selectwb","v":"Select Weight Bar"},{"$f":"z_NoteSelect","v":"Select from dropdown list."},"D30 Medium Bottom Rail",null,{"$f":"z_fabricwbmass","v":"Fabric + Weight Bar Mass"},{"$f":"IFERROR(o_fabric_wb_mass*IF(i_units_Out=\"Metric\",1,INDEX(T_Units[Factor],MATCH(\"kg\",T_Units[Metric],0))),\"-\")","v":"-"}]
[null,null,{"$f":"z_Units","v":"Units"},{"$f":"z_NoteSelect","v":"Select from dropdown list."},"Metric",null,{"$f":"z_SelectBallast","v":"Select Ballast"},{"$f":"z_NoteSelect","v":"Select from dropdown list."},null,null,{"$f":"z_ControlCapacity","v":"Control Holding Capacity"},{"$f":"IFERROR(Control_BoosterCapacity_kg*IF(i_units_Out=\"Metric\",1,INDEX(T_Units[Factor],MATCH(\"kg\",T_Units[Metric],0))),\"\")","v":""}]
[null,null,"Tube Deflection Limit",null,0.105,null,{"$f":"z_wbBallastWeight","v":"Weight Bar + Ballast Total Weight"},null,{"$f":"IFERROR(wb_Ballast_UnitMass*1000*IF(i_units_Out=\"Metric\",1,INDEX(T_Units[Factor],MATCH(\"g/m\",T_Units[Metric],0))),\"\")","v":306},null,{"$f":"z_TubeRotations","v":"# Tube Rotations"},{"$f":"IFERROR(ROUND(Tube_Rotations,1)&\" \"&z_Turns,\"\")","v":""},null,null,null,null,null,null,null,"covered chain lookup",{"$f":"INDEX(T_Controls[ChainCoveredLength],MATCH(i_Control,T_Controls[Description],0))","v":{"$error":"#N/A"}},"mm"]
[null,null,"# Pre-wraps",null,1,null,{"$f":"z_CustomWeight","v":"Custom Weight"},{"$f":"IFERROR(z_EnterValue&\" (\"&INDEX(T_Units[],5,MATCH(i_units_Out,T_Units[#Headers],0))&\")\",\"\")","v":"Enter value (g/m)"},null,null,{"$f":"z_rollDiameter","v":"Fabric Roll Diameter"},{"$f":"IFERROR(((Tube_Rotations+i_pwa)*Fabric_Thickness*2+Tube_OD)*IF(i_units_Out=\"Metric\",1,INDEX(T_Units[Factor],MATCH(\"mm\",T_Units[Metric],0))),\"\")","v":""},null,null,null,null,null,null,null,"Chain clearance",15,"mm"]
[]
[null,null,{"$f":"z_inputWidth","v":"Input Width"},{"$f":"IFERROR(z_EnterValue&\" (\"&INDEX(T_Units[],1,MATCH(i_units_Out,T_Units[#Headers],0))&\")\",\"\")","v":"Enter value (mm)"},null,null,{"$f":"z_SelectTube","v":"Select Tube"},{"$f":"z_NoteSelect","v":"Select from dropdown list."},null,null,{"$f":"z_TubeDeflection","v":"Tube Deflection"},{"$f":"IFERROR(ROUND(Tube_Deflection_units,IF(i_units_Out=\"Metric\",1,2))&\" \"&INDEX(T_Units[],1,MATCH(i_units_Out,T_Units[#Headers],0))&\" (\"&ROUND(o_TubeDeflectionPct,4)*100&\"%)\",\"\")","v":""},null,null,null,null,null,null,null,null,{"$f":"Control_D*Control_Ratio*PI()*_xlfn.SINGLE(Tube_Rotations)+o_CoveredChainLookup+o_ChainClearance","v":{"$error":"#N/A"}}]
[null,null,{"$f":"z_InputDrop","v":"Input Drop"},{"$f":"IFERROR(z_EnterValue&\" (\"&INDEX(T_Units[],1,MATCH(i_units_Out,T_Units[#Headers],0))&\")\",\"\")","v":"Enter value (mm)"},null,null,{"$f":"z_RecTube","v":"Suggested Tube"},null,{"$f":"IF(OR(i_width=\"\",i_Drop=\"\",Fabric_Density=\"\",Fabric_Thickness=\"\",i_wb=\"\"),z_FinishInputs,o_RecTubeOptimised)","v":"Complete inputs for recommendation."},null,null,{"$f":"IFERROR(ROUND(Tube_Deflection_units,2),\"\")","v":""},null,null,null,null,null,null,null,null,{"$f":"U13/2","v":{"$error":"#N/A"}}]
[null,null,null,null,null,null,null,null,null,null,null,null,null,null,null,null,null,null,null,"=(0.5*(Control_D*Control_Ratio*PI()*@Tube_Rotations)-0.5*Control_D*PI()+Control_D)"]
[null,null,{"$f":"z_SelectFabric","v":"Select Fabric"},{"$f":"\"Type to filter list, DEL to reset\"","v":"Type to filter list, DEL to reset"},null,null,{"$f":"z_SelectControlType","v":"Select Control Type"},{"$f":"z_NoteSelect","v":"Select from dropdown list."},null,null,{"$f":"z_UserEffortLift","v":"User Effort (Lifting)"},{"$f":"IFERROR(IF(i_ControlType=\"Clutch\",MAX(_LiveData!X6:X93)*IF(i_units_Out=\"Metric\",1,INDEX(T_Units[Factor],MATCH(\"kg\",T_Units[Metric],0))),\"\"),\"\")","v":""},null,null,null,null,null,null,null,"need to indicate full ballast length with ESA selection"]
[null,null,{"$f":"z_FabricDensity","v":"Fabric Density"},null,{"$f":"IFERROR(ROUND(INDEX(INDIRECT(\"T_Fabric[Density_\"&i_units_Out&\"]\"),MATCH(i_Fabric,T_Fabric[Description],0)),IF(i_units_Out=\"Metric\",0,2)),\"\")","v":""},null,{"$f":"z_SelectControl","v":"Select Control"},{"$f":"IF(AND(i_Tube=\"\",i_ControlType<>\"\"),z_NoteSelectTube,z_NoteSelect)","v":"Select from dropdown list."},null,null,{"$f":"z_UserEffortLowering","v":"User Effort (Lowering)"},{"$f":"IFERROR(IF(i_ControlType=\"Clutch\",MAX(_LiveData!Y5:Y94)*IF(i_units_Out=\"Metric\",1,INDEX(T_Units[Factor],MATCH(\"kg\",T_Units[Metric],0))),\"\"),\"\")","v":""}]
[null,null,{"$f":"z_FabricThickness","v":"Fabric Thickness"},null,{"$f":"IFERROR(ROUND(INDEX(INDIRECT(\"T_Fabric[Thickness_\"&i_units_Out&\"]\"),MATCH(i_Fabric,T_Fabric[Description],0)),IF(i_units_Out=\"Metric\",2,3)),\"\")","v":""},null,{"$f":"z_TubeAdaptor","v":"Tube Adaptor"},null,{"$f":"o_Adaptor","v":""},null,{"$f":"z_ChainLength","v":"Min. Chain Length for Ball stop"},{"$f":"IFERROR(IF(i_units_Out=\"Metric\",ROUND(U13,0)&\" mm\",TEXT(U13/25.4,\"0\"&IF(ABS(U13/25.4-ROUND(U13/25.4,0))>1/32,\"-0/\"&CHOOSE(ROUND(MOD(U13/25.4,1)*16,0),16,8,16,4,16,8,16,2,16,8,16,4,16,8,16),))&CHAR(34)),\"\")","v":""},null,null,null,"TO DO:"]
[null,null,{"$f":"z_CustomFabDensity","v":"Custom Fabric Density"},{"$f":"IFERROR(z_EnterValue&\" (\"&INDEX(T_Units[],4,MATCH(i_units_Out,T_Units[#Headers],0))&\")\",\"\")","v":"Enter value (g/m²)"},null,null,{"$f":"z_MotorRPM","v":"Enter Custom Motor rpm"},{"$f":"IF(i_ControlType=z_Motor,Control_RPM_Default&\" rpm\",\"\")","v":""},null,null,{"$f":"z_ChainLoopLength","v":"Loop Length"},{"$f":"IFERROR(IF(i_units_Out=\"Metric\",ROUND(U14,0)&\" mm\",TEXT(U14/25.4,\"0\"&IF(ABS(U14/25.4-ROUND(U14/25.4,0))>1/32,\"-0/\"&CHOOSE(ROUND(MOD(U14/25.4,1)*16,0),16,8,16,4,16,8,16,2,16,8,16,4,16,8,16),))&CHAR(34)),\"\")","v":""},null,null,null,"need to validate user effort & preturns calculations, current data innaccurate "]
[null,null,{"$f":"z_CustomFabThickness","v":"Custom Fabric Thickness"},{"$f":"IFERROR(z_EnterValue&\" (\"&INDEX(T_Units[],1,MATCH(i_units_Out,T_Units[#Headers],0))&\")\",\"\")","v":"Enter value (mm)"},null,null,{"$f":"z_selectBooster","v":"Select Booster"},{"$f":"IF(o_BoosterListCount>=2,\"Select a Booster.\",\"No Booster options.\")","v":"No Booster options."},null,null,{"$f":"z_fabricwbtubemass","v":"Fabric + Weight Bar + Tube Mass"},{"$f":"IFERROR(o_fabric_wb_T_Mass_TOTAL*IF(i_units_Out=\"Metric\",1,INDEX(T_Units[Factor],MATCH(\"kg\",T_Units[Metric],0))),\"\")","v":""},null,null,null,"need to double check all regions for brackets options & ALL Hardware configurations."]
[null,null,null,null,null,null,{"$f":"z_BoosterPreturns","v":"Booster Pre-turns"},{"$f":"IFERROR(IF(ISTEXT(o_PreturnsEst),o_PreturnsEst,\"Estimated \"&ROUND(o_PreturnsEst,0)&\" turns (Enter this value)\"),\"\")","v":""},null,null,{"$f":"z_ShadeTorque","v":"Shade Torque"},{"$f":"IFERROR(o_tMax_Sum,\"\")","v":""}]
[null,null,"Can fabric be railroaded?",null,{"$f":"IFERROR(IF(i_Fabric<>\"\",INDEX(T_Fabric[RRYesNo],MATCH(i_Fabric,T_Fabric[Description],0)),\"-\"),\"\")","v":"-"},null,{"$f":"z_MaxBoosterPreturns","v":"Max Booster Pre-turns"},null,{"$f":"IFERROR(IF(OR(i_Booster=z_None,i_Booster=z_NoOptions,i_Booster=\"\",i_Booster=z_SelectaControl),\"\",ROUNDUP(Booster_MaxTurns-_xlfn.SINGLE(Tube_Rotations),0)&\" \"&z_Turns),\"\")","v":""},null,{"$f":"z_MotorDropS","v":"Motor Run Time for Drop"},{"$f":"IFERROR(IF(i_ControlType=z_Motor,ROUND(_xlfn.SINGLE(Tube_Rotations)/(Control_RPM/60),0)&\" \"&z_Seconds,\"\"),\"\")","v":""},null,null,null,"complete dictionary for languages"]
[null,null,{"$f":"z_FabricWidth","v":"Fabric roll width"},null,{"$f":"IFERROR(IF(i_Fabric<>\"\",INDEX(INDIRECT(\"T_Fabric[RollWidth_\"&i_units_Out&\"]\"),MATCH(i_Fabric,T_Fabric[Description],0)),\"-\"),z_NoData)","v":"-"},null,{"$f":"z_ESA_BoosterType","v":"Booster Type"},{"$f":"IF(AND(i_ControlType=\"Easy Spring Air\",NOT(ISERROR(L_CompatibleESABooster))),z_NoteSelect,\"\")","v":""},null,null,"BLANK. FREE TO USE","BLANK. FREE TO USE"]
[null,null,null,null,null,null,{"$f":"z_ESA_Position","v":"Booster Position"},null,{"$f":"o_BoosterPosition2","v":""},null,"BLANK. FREE TO USE","BLANK. FREE TO USE"]
[null,null,{"$f":"IF(Design_Width<=1.2,z_minSystemWidth,\"\")","v":"Refer to Product Spec for minimum System widths"},null,null,null,{"$f":"z_ESA_preTurn","v":"Booster Pre-turns"},null,{"$f":"IFERROR(ROUND(o_BoosterPreTurn2,0),\"\")","v":""},null,"BLANK. FREE TO USE","BLANK. FREE TO USE"]
[null,null,null,null,null,null,{"$f":"z_SelectBracket","v":"Select Top Hardware System"},{"$f":"z_NoteSelect","v":"Select from dropdown list."},null,null,{"$f":"z_BktRollDiameter","v":"Bracket Max Roll Diameter"},{"$f":"IFERROR(o_MaxRollDia_Units,\"\")","v":""}]
[]
[null,null,"FOR LINK SYSTEMS ONLY",null,null,null,null,null,null,null,null,null,null,null,null,"can the US infinite link be used with the 2\" tube? "]
[null,null,"Input Shade 2 Width",{"$f":"IFERROR(z_EnterValue&\" (\"&INDEX(T_Units[],1,MATCH(i_units_Out,T_Units[#Headers],0))&\")\",\"\")","v":"Enter value (mm)"},null,null,"Select Link System",{"$f":"IF(i_wb=\"\",\"Select Weight Bar.\",IF(i_Tube=\"\",\"Select Tube.\",z_NoteSelect))","v":"Select Tube."},null,null,"Link Torque Required",{"$f":"o_LinkTorqueReqd","v":""}]
[null,null,"Input shade 3 Width",{"$f":"IFERROR(z_EnterValue&\" (\"&INDEX(T_Units[],1,MATCH(i_units_Out,T_Units[#Headers],0))&\")\",\"\")","v":"Enter value (mm)"},null,null,null,null,null,null,"Link System Torque Capacity",{"$f":"IFERROR(INDEX(T_Links[Torque],MATCH(i_LinkSystem,T_Links[Description],0)),\"\")","v":""}]
[]
[null,null,null,null,null,null,null,null,null,null,"Tube Deflection for Shade 2",{"$f":"IFERROR(ROUND(Tube_Deflection2_Units,IF(i_units_Out=\"Metric\",1,2))&\" \"&INDEX(T_Units[],1,MATCH(i_units_Out,T_Units[#Headers],0))&\" (\"&ROUND(o_TubeDeflectionPct2,4)*100&\"%)\",\"\")","v":""}]
[null,null,null,null,null,null,null,null,null,null,null,{"$f":"IFERROR(ROUND(Tube_Deflection2_Units,2),\"\")","v":""}]
[]
[null,null,null,null,null,null,null,null,null,null,"Tube Deflection for Shade 3",{"$f":"IFERROR(ROUND(Tube_Deflection3_Units,IF(i_units_Out=\"Metric\",1,2))&\" \"&INDEX(T_Units[],1,MATCH(i_units_Out,T_Units[#Headers],0))&\" (\"&ROUND(o_TubeDeflectionPct3,4)*100&\"%)\",\"\")","v":""}]
[null,null,null,null,null,null,null,null,null,null,null,{"$f":"IFERROR(ROUND(Tube_Deflection3_Units,2),\"\")","v":""}]
[]
[]
[null,null,null,null,null,null,null,null,null,null,"Output String:",null,null,null,null,"total weight does not include bracket weight, or motor mass. "]
[null,null,"Import String:","(Double click & paste output string here)",null,null,null,null,null,null,{"$f":"_xlfn.TEXTJOIN(\";\",FALSE,i_Units,i_TubeDeflectionLimit,i_pwa,i_width,i_Drop,i_Fabric,i_Fdensity_Custom,i_FThickness_Custom,i_wb,i_Ballast,i_wbballast_Custom,i_Tube,i_ControlType,i_Control,i_Booster,i_bracket)","v":"Metric;0.105;1;;;;;;D30 Medium Bottom Rail;;;;;;;"},null,null,null,null,null,"Units;Width;Drop;Fabric;Density;Thickness;WeightBar;Ballast;CustomWeight;Tube;ControlType;Control;Booster;Brackets"]
[]
[null,null,"Note on Deflection Limit; 0.1% = 1 mm/m, 0.2% = 2 mm/m etc. "]
[]
[]
[]
[null,null,"NOTE: Microsoft Excel 2021 or Excel 365 required for complete functionality. MACROS MUST BE ENABLED."]
[null,null,"DISCLAIMER: Rollease Acmeda has used reasonable care in preparing the information included in this workbook, but makes no representations or warranties as to the completeness or accuracy of the information. Information is supplied upon the condition that the persons receiving the information will make their own determination as to is suitability for their purposes prior to use. Rollease Acmeda assumes no liability whatsoever for any damages incurred by you resulting from errors in or omissions from the information included herein. All output data is theoretical, any specific requirements should always be physically tested & validated. Rollease Acmeda reserves the right to make changes without further notice to any products to improve the reliability, function or design. "]
[]
[null,null,"Zip Thickness",null,1.45]
[null,null,"Zip Roll Diameter",null,{"$f":"IFERROR(((Tube_Rotations+IF(i_pwa=\"Yes\",1,0))*ZipThickness*2+Tube_OD)*IF(i_units_Out=\"Metric\",1,INDEX(T_Units[Factor],MATCH(\"mm\",T_Units[Metric],0))),\"\")","v":""}]
[null,null,"Tube Deflection (Zipscreen ONLY)",null,{"$f":"IFERROR(ROUND(Tube_Deflection_units,2),\"\")","v":""}]

{"sheet":"2. System Charts","index":2,"n_rows":32,"n_cols":60,"rows_kept":32,"cut":false,"hidden":false,"merged":[[2,2,2,5],[11,36,26,36],[11,9,26,9],[9,3,10,3],[9,5,10,5],[9,4,10,4],[9,10,9,32],[2,14,3,18],[9,37,9,59],[2,11,3,13],[4,11,4,13],[5,11,5,13],[6,11,6,13],[7,11,7,13],[8,38,8,58],[8,11,8,31]]}
[]
[]
[null,null,{"$f":"z_TableSetup","v":"TABLE SETUP"},null,null,null,null,null,null,null,null,{"$f":"z_Fabric","v":"Fabric"},null,null,{"$f":"IF(i_Fabric=\"\",z_SelectFabric,i_Fabric)","v":"Select Fabric"},null,null,null,null,{"$f":"IFERROR(z_Density&\": \"&ROUND(INDEX(INDIRECT(\"T_Fabric[Density_\"&i_Units&\"]\"),MATCH(i_Fabric,T_Fabric[Description],0)),IF(i_Units=\"Metric\",0,2))&\" \"&INDEX(INDIRECT(\"T_Units[\"&i_Units&\"]\"),MATCH(\"g/m²\",T_Units[Metric],0)),\"\")","v":""}]
[null,null,null,{"$f":"z_WidthStart","v":"Width Start"},0.6,"m",null,null,null,null,null,null,null,null,null,null,null,null,null,{"$f":"IFERROR(z_Thickness&\": \"&ROUND(INDEX(INDIRECT(\"T_Fabric[Thickness_\"&i_Units&\"]\"),MATCH(i_Fabric,T_Fabric[Description],0)),IF(i_Units=\"Metric\",2,3))&\" \"&INDEX(INDIRECT(\"T_Units[\"&i_Units&\"]\"),MATCH(\"mm\",T_Units[Metric],0)),\"\")","v":""}]
[null,null,null,{"$f":"z_WidthIncrement","v":"Width Increment"},0.2,"m",null,null,null,null,null,{"$f":"z_Tube","v":"Tube"},null,null,{"$f":"IF(i_Tube=\"\",z_SelectTube,i_Tube)","v":"Select Tube"}]
[null,null,null,{"$f":"z_DropStart","v":"Drop Start"},0.6,"m",null,null,null,null,null,{"$f":"z_WeightBar","v":"Weight Bar"},null,null,{"$f":"IF(i_wb=\"\",z_Selectwb,i_wb)","v":"D30 Medium Bottom Rail"}]
[null,null,null,{"$f":"z_DropIncrement","v":"Drop Increment"},0.2,"m",null,null,null,null,null,{"$f":"z_Ballast","v":"Ballast"},null,null,{"$f":"IF(i_Ballast<>0,i_Ballast,\"No Ballast\")","v":"No Ballast"}]
[null,null,null,null,null,null,null,null,null,null,null,{"$f":"z_Control","v":"Control"},null,null,{"$f":"IF(i_Control=\"\",z_SelectaControl,i_Control&\" \"&IF(AND(i_Booster<>\"\",i_Booster<>\"No suitable options.\"),\"w/ \"&i_Booster,\"\"))","v":"Select a Control."}]
[]
[null,null,null,{"$f":"z_TubeRotations","v":"# Tube Rotations"},{"$f":"z_rollDiameter&\" (\"&INDEX(INDIRECT(\"T_Units[\"&i_Units&\"]\"),MATCH(\"mm\",T_Units[Metric],0))&\")\"","v":"Fabric Roll Diameter (mm)"},"Motor Run Time (s)",null,null,null,null,{"$f":"z_Width","v":"WIDTH"},null,null,null,null,null,null,null,null,null,null,null,null,null,null,null,null,null,null,null,null,null,null,null,null,null,null,{"$f":"z_Width","v":"WIDTH"}]
[null,null,"m",null,null,null,"in",null,null,null,"m",{"$f":"ROUND(width_Start,2)","v":0.6},{"$f":"ROUND(L11+width_inc,2)","v":0.8},{"$f":"ROUND(M11+width_inc,2)","v":1},{"$f":"ROUND(N11+width_inc,2)","v":1.2},{"$f":"ROUND(O11+width_inc,2)","v":1.4},{"$f":"ROUND(P11+width_inc,2)","v":1.6},{"$f":"ROUND(Q11+width_inc,2)","v":1.8},{"$f":"ROUND(R11+width_inc,2)","v":2},{"$f":"ROUND(S11+width_inc,2)","v":2.2000000000000002},{"$f":"ROUND(T11+width_inc,2)","v":2.4},{"$f":"ROUND(U11+width_inc,2)","v":2.6},{"$f":"ROUND(V11+width_inc,2)","v":2.8},{"$f":"ROUND(W11+width_inc,2)","v":3},{"$f":"ROUND(X11+width_inc,2)","v":3.2},{"$f":"ROUND(Y11+width_inc,2)","v":3.4},{"$f":"ROUND(Z11+width_inc,2)","v":3.6},{"$f":"ROUND(AA11+width_inc,2)","v":3.8},{"$f":"ROUND(AB11+width_inc,2)","v":4},{"$f":"ROUND(AC11+width_inc,2)","v":4.2},{"$f":"ROUND(AD11+width_inc,2)","v":4.4000000000000004},{"$f":"ROUND(AE11+width_inc,2)","v":4.5999999999999996},null,null,null,null,null,"m",{"$f":"ROUND(width_Start,2)","v":0.6},{"$f":"ROUND(AM11+width_inc,2)","v":0.8},{"$f":"ROUND(AN11+width_inc,2)","v":1},{"$f":"ROUND(AO11+width_inc,2)","v":1.2},{"$f":"ROUND(AP11+width_inc,2)","v":1.4},{"$f":"ROUND(AQ11+width_inc,2)","v":1.6},{"$f":"ROUND(AR11+width_inc,2)","v":1.8},{"$f":"ROUND(AS11+width_inc,2)","v":2},{"$f":"ROUND(AT11+width_inc,2)","v":2.2000000000000002},{"$f":"ROUND(AU11+width_inc,2)","v":2.4},{"$f":"ROUND(AV11+width_inc,2)","v":2.6},{"$f":"ROUND(AW11+width_inc,2)","v":2.8},{"$f":"ROUND(AX11+width_inc,2)","v":3},{"$f":"ROUND(AY11+width_inc,2)","v":3.2},{"$f":"ROUND(AZ11+width_inc,2)","v":3.4},{"$f":"ROUND(BA11+width_inc,2)","v":3.6},{"$f":"ROUND(BB11+width_inc,2)","v":3.8},{"$f":"ROUND(BC11+width_inc,2)","v":4},{"$f":"ROUND(BD11+width_inc,2)","v":4.2},{"$f":"ROUND(BE11+width_inc,2)","v":4.4000000000000004},{"$f":"ROUND(BF11+width_inc,2)","v":4.5999999999999996}]
[null,null,{"$f":"ROUND(drop_start,2)","v":0.6},{"$f":"IFERROR((-Tube_OD+SQRT(Tube_OD^2-4*Fabric_Thickness*-K12*1000/PI()))/(2*Fabric_Thickness),\"\")","v":""},{"$f":"IFERROR((((-Tube_OD+SQRT(Tube_OD^2-4*Fabric_Thickness*-K12*1000/PI()))/(2*Fabric_Thickness)+i_pwa)*Fabric_Thickness*2+Tube_OD)*IF(i_Units=\"Metric\",1,INDEX(T_Units[Factor],MATCH(\"mm\",T_Units[Metric],0))),\"\")","v":""},{"$f":"IFERROR(D12/(Control_RPM/60),\"\")","v":""},{"$f":"ROUNDUP(C12/0.0254,0)","v":24},null,null,{"$f":"z_Drop","v":"DROP"},{"$f":"ROUND(drop_start,2)","v":0.6},{"$f":"IFERROR((5/384)*((g*(Fabric_Density*$K12+Tube_UnitMass+wb_UnitMass+Ballast_UnitMass)*L$11^4)/Tube_IE)*1000,\"\")","v":""},"","","","","","","","","",{"$f":"IFERROR((5/384)*((g*(Fabric_Density*$K12+Tube_UnitMass+wb_UnitMass+Ballast_UnitMass)*V$11^4)/Tube_IE)*1000,\"\")","v":""},"","","","","","","","","","",{"$f":"ROUNDUP(K12/0.0254,0)","v":24},null,null,null,{"$f":"z_Drop","v":"DROP"},{"$f":"ROUND(drop_start,2)","v":0.6},{"$f":"IFERROR(IF(($AL12*AM$11*Fabric_Density)+(AM$11*wb_Ballast_UnitMass)<Control_Capacity_kg,1,IF(($AL12*AM$11*Fabric_Density)+(AM$11*wb_Ballast_UnitMass)<Control_BoosterCapacity_kg,2,IF(($AL12*AM$11*Fabric_Density)+(AM$11*wb_Ballast_UnitMass)>Control_BoosterCapacity_kg,3,\"\"))),\"\")","v":""},"","","","","","","","","",{"$f":"IFERROR(IF(($AL12*AW$11*Fabric_Density)+(AW$11*wb_Ballast_UnitMass)<Control_Capacity_kg,1,IF(($AL12*AW$11*Fabric_Density)+(AW$11*wb_Ballast_UnitMass)<Control_BoosterCapacity_kg,2,IF(($AL12*AW$11*Fabric_Density)+(AW$11*wb_Ballast_UnitMass)>Control_BoosterCapacity_kg,3,\"\"))),\"\")","v":""},"","","","","","","","","","",{"$f":"ROUNDUP(AL12/0.0254,0)","v":24}]
[null,null,{"$f":"ROUND(C12+Drop_inc,2)","v":0.8},"",{"$f":"IFERROR((((-Tube_OD+SQRT(Tube_OD^2-4*Fabric_Thickness*-K13*1000/PI()))/(2*Fabric_Thickness)+i_pwa)*Fabric_Thickness*2+Tube_OD)*IF(i_Units=\"Metric\",1,INDEX(T_Units[Factor],MATCH(\"mm\",T_Units[Metric],0))),\"\")","v":""},"",32,null,null,null,{"$f":"ROUND(K12+Drop_inc,2)","v":0.8},"","","","","","","","","","","","","","","","","","","","","",32,null,null,null,null,{"$f":"ROUND(AL12+Drop_inc,2)","v":0.8},"","","","","","","","","","","","","","","","","","","","","",32]
[null,null,1,"",{"$f":"IFERROR((((-Tube_OD+SQRT(Tube_OD^2-4*Fabric_Thickness*-K14*1000/PI()))/(2*Fabric_Thickness)+i_pwa)*Fabric_Thickness*2+Tube_OD)*IF(i_Units=\"Metric\",1,INDEX(T_Units[Factor],MATCH(\"mm\",T_Units[Metric],0))),\"\")","v":""},"",40,null,null,null,1,"","","","","","","","","","","","","","","","","","","","","",40,null,null,null,null,1,"","","","","","","","","","","","","","","","","","","","","",40]
[null,null,1.2,"",{"$f":"IFERROR((((-Tube_OD+SQRT(Tube_OD^2-4*Fabric_Thickness*-K15*1000/PI()))/(2*Fabric_Thickness)+i_pwa)*Fabric_Thickness*2+Tube_OD)*IF(i_Units=\"Metric\",1,INDEX(T_Units[Factor],MATCH(\"mm\",T_Units[Metric],0))),\"\")","v":""},"",48,null,null,null,1.2,"","","","","","","","","","","","","","","","","","","","","",48,null,null,null,null,1.2,"","","","","","","","","","","","","","","","","","","","","",48]
[null,null,1.4,"",{"$f":"IFERROR((((-Tube_OD+SQRT(Tube_OD^2-4*Fabric_Thickness*-K16*1000/PI()))/(2*Fabric_Thickness)+i_pwa)*Fabric_Thickness*2+Tube_OD)*IF(i_Units=\"Metric\",1,INDEX(T_Units[Factor],MATCH(\"mm\",T_Units[Metric],0))),\"\")","v":""},"",56,null,null,null,1.4,"","","","","","","","","","","","","","","","","","","","","",56,null,null,null,null,1.4,"","","","","","","","","","","","","","","","","","","","","",56]
[null,null,1.6,"",{"$f":"IFERROR((((-Tube_OD+SQRT(Tube_OD^2-4*Fabric_Thickness*-K17*1000/PI()))/(2*Fabric_Thickness)+i_pwa)*Fabric_Thickness*2+Tube_OD)*IF(i_Units=\"Metric\",1,INDEX(T_Units[Factor],MATCH(\"mm\",T_Units[Metric],0))),\"\")","v":""},"",63,null,null,null,1.6,"","","","","","","","","","","","","","","","","","","","","",63,null,null,null,null,1.6,"","","","","","","","","","","","","","","","","","","","","",63]
[null,null,1.8,"",{"$f":"IFERROR((((-Tube_OD+SQRT(Tube_OD^2-4*Fabric_Thickness*-K18*1000/PI()))/(2*Fabric_Thickness)+i_pwa)*Fabric_Thickness*2+Tube_OD)*IF(i_Units=\"Metric\",1,INDEX(T_Units[Factor],MATCH(\"mm\",T_Units[Metric],0))),\"\")","v":""},"",71,null,null,null,1.8,"","","","","","","","","","","","","","","","","","","","","",71,null,null,null,null,1.8,"","","","","","","","","","","","","","","","","","","","","",71]
[null,null,2,"",{"$f":"IFERROR((((-Tube_OD+SQRT(Tube_OD^2-4*Fabric_Thickness*-K19*1000/PI()))/(2*Fabric_Thickness)+i_pwa)*Fabric_Thickness*2+Tube_OD)*IF(i_Units=\"Metric\",1,INDEX(T_Units[Factor],MATCH(\"mm\",T_Units[Metric],0))),\"\")","v":""},"",79,null,null,null,2,"","","","","","","","","","","","","","","","","","","","","",79,null,null,null,null,2,"","","","","","","","","","","","","","","","","","","","","",79]
[null,null,2.2000000000000002,"",{"$f":"IFERROR((((-Tube_OD+SQRT(Tube_OD^2-4*Fabric_Thickness*-K20*1000/PI()))/(2*Fabric_Thickness)+i_pwa)*Fabric_Thickness*2+Tube_OD)*IF(i_Units=\"Metric\",1,INDEX(T_Units[Factor],MATCH(\"mm\",T_Units[Metric],0))),\"\")","v":""},"",87,null,null,null,2.2000000000000002,"","","","","","","","","","","","","","","","","","","","","",87,null,null,null,null,2.2000000000000002,"","","","","","","","","","","","","","","","","","","","","",87]
[null,null,2.4,"",{"$f":"IFERROR((((-Tube_OD+SQRT(Tube_OD^2-4*Fabric_Thickness*-K21*1000/PI()))/(2*Fabric_Thickness)+i_pwa)*Fabric_Thickness*2+Tube_OD)*IF(i_Units=\"Metric\",1,INDEX(T_Units[Factor],MATCH(\"mm\",T_Units[Metric],0))),\"\")","v":""},"",95,null,null,null,2.4,"","","","","","","","","","","","","","","","","","","","","",95,null,null,null,null,2.4,"","","","","","","","","","","","","","","","","","","","","",95]
[null,null,2.6,"",{"$f":"IFERROR((((-Tube_OD+SQRT(Tube_OD^2-4*Fabric_Thickness*-K22*1000/PI()))/(2*Fabric_Thickness)+i_pwa)*Fabric_Thickness*2+Tube_OD)*IF(i_Units=\"Metric\",1,INDEX(T_Units[Factor],MATCH(\"mm\",T_Units[Metric],0))),\"\")","v":""},"",103,null,null,null,2.6,{"$f":"IFERROR((5/384)*((g*(Fabric_Density*$K22+Tube_UnitMass+wb_UnitMass+Ballast_UnitMass)*L$11^4)/Tube_IE)*1000,\"\")","v":""},"","","","","","","","","",{"$f":"IFERROR((5/384)*((g*(Fabric_Density*$K22+Tube_UnitMass+wb_UnitMass+Ballast_UnitMass)*V$11^4)/Tube_IE)*1000,\"\")","v":""},"","","","","","","","","","",103,null,null,null,null,2.6,{"$f":"IFERROR(IF(($AL22*AM$11*Fabric_Density)+(AM$11*wb_Ballast_UnitMass)<Control_Capacity_kg,1,IF(($AL22*AM$11*Fabric_Density)+(AM$11*wb_Ballast_UnitMass)<Control_BoosterCapacity_kg,2,IF(($AL22*AM$11*Fabric_Density)+(AM$11*wb_Ballast_UnitMass)>Control_BoosterCapacity_kg,3,\"\"))),\"\")","v":""},"","","","","","","","","",{"$f":"IFERROR(IF(($AL22*AW$11*Fabric_Density)+(AW$11*wb_Ballast_UnitMass)<Control_Capacity_kg,1,IF(($AL22*AW$11*Fabric_Density)+(AW$11*wb_Ballast_UnitMass)<Control_BoosterCapacity_kg,2,IF(($AL22*AW$11*Fabric_Density)+(AW$11*wb_Ballast_UnitMass)>Control_BoosterCapacity_kg,3,\"\"))),\"\")","v":""},"","","","","","","","","","",103]
[null,null,2.8,"",{"$f":"IFERROR((((-Tube_OD+SQRT(Tube_OD^2-4*Fabric_Thickness*-K23*1000/PI()))/(2*Fabric_Thickness)+i_pwa)*Fabric_Thickness*2+Tube_OD)*IF(i_Units=\"Metric\",1,INDEX(T_Units[Factor],MATCH(\"mm\",T_Units[Metric],0))),\"\")","v":""},"",111,null,null,null,2.8,"","","","","","","","","","","","","","","","","","","","","",111,null,null,null,null,2.8,"","","","","","","","","","","","","","","","","","","","","",111]
[null,null,3,"",{"$f":"IFERROR((((-Tube_OD+SQRT(Tube_OD^2-4*Fabric_Thickness*-K24*1000/PI()))/(2*Fabric_Thickness)+i_pwa)*Fabric_Thickness*2+Tube_OD)*IF(i_Units=\"Metric\",1,INDEX(T_Units[Factor],MATCH(\"mm\",T_Units[Metric],0))),\"\")","v":""},"",119,null,null,null,3,"","","","","","","","","","","","","","","","","","","","","",119,null,null,null,null,3,"","","","","","","","","","","","","","","","","","","","","",119]
[null,null,3.2,"",{"$f":"IFERROR((((-Tube_OD+SQRT(Tube_OD^2-4*Fabric_Thickness*-K25*1000/PI()))/(2*Fabric_Thickness)+i_pwa)*Fabric_Thickness*2+Tube_OD)*IF(i_Units=\"Metric\",1,INDEX(T_Units[Factor],MATCH(\"mm\",T_Units[Metric],0))),\"\")","v":""},"",126,null,null,null,3.2,"","","","","","","","","","","","","","","","","","","","","",126,null,null,null,null,3.2,"","","","","","","","","","","","","","","","","","","","","",126]
[null,null,3.4,"",{"$f":"IFERROR((((-Tube_OD+SQRT(Tube_OD^2-4*Fabric_Thickness*-K26*1000/PI()))/(2*Fabric_Thickness)+i_pwa)*Fabric_Thickness*2+Tube_OD)*IF(i_Units=\"Metric\",1,INDEX(T_Units[Factor],MATCH(\"mm\",T_Units[Metric],0))),\"\")","v":""},"",134,null,null,null,3.4,"","","","","","","","","","","","","","","","","","","","","",134,null,null,null,null,3.4,"","","","","","","","","","","","","","","","","","","","","",134]
[null,null,3.6,"",{"$f":"IFERROR((((-Tube_OD+SQRT(Tube_OD^2-4*Fabric_Thickness*-K27*1000/PI()))/(2*Fabric_Thickness)+i_pwa)*Fabric_Thickness*2+Tube_OD)*IF(i_Units=\"Metric\",1,INDEX(T_Units[Factor],MATCH(\"mm\",T_Units[Metric],0))),\"\")","v":""},"",142,null,null,null,3.6,"","","","","","","","","","","","","","","","","","","","","",142,null,null,null,null,3.6,"","","","","","","","","","","","","","","","","","","","","",142]
[null,null,null,null,null,null,null,null,null,null,null,{"$f":"ROUNDUP(L$11/0.0254,0)","v":24},{"$f":"ROUNDUP(M$11/0.0254,0)","v":32},40,48,56,63,71,79,87,95,103,111,119,126,134,142,150,158,166,174,182,"in",null,null,null,null,null,{"$f":"ROUNDUP(AM$11/0.0254,0)","v":24},{"$f":"ROUNDUP(AN$11/0.0254,0)","v":32},40,48,56,63,71,79,87,95,103,111,119,126,134,142,150,158,166,174,182,"in"]
[]
[null,null,null,null,null,null,null,null,null,null,null,null,null,null,{"$f":"z_ChartNote1","v":"Allowable tube deflection & within control capacity"},null,null,null,null,null,null,null,null,null,null,null,null,null,null,null,null,null,null,null,null,null,null,null,null,null,null,{"$f":"z_ChartNote3","v":"Control Capacity Only (excluding tube deflection, user effort & other factors)"}]
[]
[null,null,null,null,null,null,null,null,null,null,null,null,null,null,{"$f":"z_ChartNote2","v":"Allowable tube deflection outside of control capacity"},null,null,null,null,null,null,null,null,null,null,null,null,null,null,null,null,null,null,null,null,null,null,null,null,null,null,{"$f":"z_ChartNote4","v":"Control Capacity with spring assist (if selected)"}]

{"sheet":"3. Hardware Options","index":3,"n_rows":46,"n_cols":20,"rows_kept":46,"cut":false,"hidden":false,"merged":[]}
[null,null,null,null,"HIDE",null,null,null,null,"HIDE",null,null,null,null,"HIDE",null,null,null,null,"HIDE"]
[null,{"$f":"z_ProductOptionsText1","v":"Put an 'X' in the hide column to remove from dropdown options."}]
[]
[null,{"$f":"z_Tube","v":"Tube"},{"$f":"z_Show","v":"Show"},{"$f":"z_Hide","v":"Hide"},null,null,{"$f":"z_WeightBar","v":"Weight Bar"},{"$f":"z_Show","v":"Show"},{"$f":"z_Hide","v":"Hide"},null,null,{"$f":"z_Control","v":"Control"},{"$f":"z_Show","v":"Show"},{"$f":"z_Hide","v":"Hide"},null,null,{"$f":"z_TopHardware","v":"Top Hardware"},{"$f":"z_Show","v":"Show"},{"$f":"z_Hide","v":"Hide"}]
[null,{"$f":"T_Tubes[Description]","v":"1\""},{"$f":"IF(D5<>\"\",\"\",\"X\")","v":"X"},null,{"$f":"IF(D5<>\"\",\"Hide\",\"Show\")","v":"Show"},null,{"$f":"T_WeightBars[Description]","v":"_Custom Weight Bar Data"},{"$f":"IF(I5<>\"\",\"\",\"X\")","v":"X"},null,{"$f":"IF(I5<>\"\",\"Hide\",\"Show\")","v":"Show"},null,{"$f":"T_Controls[Description]","v":"G200"},{"$f":"IF(N5<>\"\",\"\",\"X\")","v":"X"},null,{"$f":"IF(N5<>\"\",\"Hide\",\"Show\")","v":"Show"},null,{"$f":"T_Brackets[Description]","v":"SLxx650xx Skyline Bracket | 32mm | 1-1/4\""},{"$f":"IF(S5<>\"\",\"\",\"X\")","v":"X"},null,{"$f":"IF(S5<>\"\",\"Hide\",\"Show\")","v":"Show"}]
[null,"1-1/8\"",{"$f":"IF(D6<>\"\",\"\",\"X\")","v":"X"},null,{"$f":"IF(D6<>\"\",\"Hide\",\"Show\")","v":"Show"},null,"Internal Hem Bar",{"$f":"IF(I6<>\"\",\"\",\"X\")","v":"X"},null,{"$f":"IF(I6<>\"\",\"Hide\",\"Show\")","v":"Show"},null,"G400",{"$f":"IF(N6<>\"\",\"\",\"X\")","v":"X"},null,{"$f":"IF(N6<>\"\",\"Hide\",\"Show\")","v":"Show"},null,"SLxx660xx Skyline Bracket | 38mm | 1-1/2\"","X",null,{"$f":"IF(S6<>\"\",\"Hide\",\"Show\")","v":"Show"}]
[null,"1-1/4\"","X",null,"Show",null,"External Hem Bar","X",null,"Show",null,"R8","X",null,"Show",null,"SLxx680xx Skyline Bracket | 50mm | 2\"","X",null,"Show"]
[null,"1-1/2\"","X",null,"Show",null,"Fabric Wrap Hem Bar","X",null,"Show",null,"R16","X",null,"Show",null,"SLxx690xx Skyline Bracket | 73mm | 2-1/2\"","X",null,"Show"]
[null,"2\"","X",null,"Show",null,"Mini Bottom Rail","X",null,"Show",null,"R24","X",null,"Show",null,"RB360 | 1-1/2\"\"","X",null,"Show"]
[null,"2-1/2\"","X",null,"Show",null,"Flat Bottom Rail","X",null,"Show",null,"RB08 | S35","X",null,"Show",null,"RB380 | 2\"",{"$f":"IF(S10<>\"\",\"\",\"X\")","v":"X"},null,"Show"]
[null,"3-1/4\"","X",null,"Show",null,"Round Bottom Rail","X",null,"Show",null,"RB07 | S45","X",null,"Show",null,"RB390 | 2-7/8\"","X",null,"Show"]
[null,"S35 STD","X",null,"Show",null,"Oval Bottom Rail","X",null,"Show",null,"RB08 | S40 & S45","X",null,"Show",null,"RB560 | 1-1/2\"","X",null,"Show"]
[null,"S35 HD","X",null,"Show",null,"D30 Medium Bottom Rail","X",null,"Show",null,"RB09 | S45","X",null,"Show",null,"RB580 | 2\"","X",null,"Show"]
[null,"S40 STD","X",null,"Show",null,"Bottom Up Weight Bar","X",null,"Show",null,"RB09 w/ Guide | S45","X",null,"Show",null,"RB590 | 2-7/8\"","X",null,"Show"]
[null,"S40 HD","X",null,"Show",null,"F4115 Heavy Duty Bottom Rail","X",null,"Show",null,"RB09 Geared | S45","X",null,"Show",null,"RBGAL ","X",null,"Show"]
[null,"S45 | LIGHT","X",null,"Show",null,"F56 HD Weight Bar",{"$f":"IF(I16<>\"\",\"\",\"X\")","v":"X"},null,{"$f":"IF(I16<>\"\",\"Hide\",\"Show\")","v":"Show"},null,"RB09 Geared w/ Guide | S45","X",null,"Show",null,"LX Bracket 30mm | S35","X",null,"Show"]
[null,"S45 | STD","X",null,"Show",null,"F72 HD Weight Bar","X",null,"Show",null,"RB10 | S60","X",null,"Show",null,"LX/VX/AX Bracket 40mm Proj.","X",null,"Show"]
[null,"S45 | HD","X",null,"Show",null,null,null,null,null,null,"SL10","X",null,"Show",null,"LX/VX/AX Bracket 55mm Proj.","X",null,"Show"]
[null,"S60 | 60 STD","X",null,"Show",null,null,null,null,null,null,"SL15","X",null,"Show",null,"Slimline-X Double Easy-Lock Bracket | S40/S45","X",null,"Show"]
[null,"S60 | 80 HD","X",null,"Show",null,null,null,null,null,null,"SL20","X",null,"Show",null,"Square-X Double Easy-Lock Bracket | S40/S45","X",null,"Show"]
[null,"63 STD Aluminium","X",null,"Show",null,null,null,null,null,null,"SL30","X",null,"Show",null,"Slim Profile Double Bracket | S40/S45","X",null,"Show"]
[null,"78 STD Aluminium","X",null,"Show",null,null,null,null,null,null,"Easy Spring Air | 1.5\"","X",null,"Show",null,"Skyline Bracket | Double Universal | 38mm","X",null,"Show"]
[null,"78 HD Aluminium","X",null,"Show",null,null,null,null,null,null,"Easy Spring Air | S45","X",null,"Show",null,"Skyline Bracket | Double Universal | 48mm","X",null,"Show"]
[null,"78 STEEL","X",null,"Show",null,null,null,null,null,null,"Easy Spring Air | 2\"","X",null,"Show",null,"Skyline Bracket | Double Vertical or Horizontal","X",null,"Show"]
[null,"S100 | 110 STD","X",null,"Show",null,null,null,null,null,null,"Automate | 0.5 Nm | 20 rpm","X",null,"Show",null,"60mm Bracket | S60","X",null,"Show"]
[null,"S100 | 130 HD","X",null,"Show",null,null,null,null,null,null,"Automate | 1.1 Nm | 20 rpm","X",null,"Show",null,"80mm Bracket | S60",{"$f":"IF(S26<>\"\",\"\",\"X\")","v":"X"},null,"Show"]
[null,"S100 | 160 XHD","X",null,"Show",null,null,null,null,null,null,"Automate | 2 Nm | 20 rpm","X",null,"Show",null,"Double Bracket | S60","X",null,"Show"]
[null,null,null,null,null,null,null,null,null,null,null,"Automate | 3 Nm | 28 rpm","X",null,"Show",null,"Extreme | Top/Face Bracket | S100","X",null,"Show"]
[null,null,null,null,null,null,null,null,null,null,null,"Automate | 6 Nm | 33 rpm","X",null,"Show",null,"Extreme | Recess Bracket | S100","X",null,"Show"]
[null,null,null,null,null,null,null,null,null,null,null,"Automate | 10 Nm | 9 rpm","X",null,"Show",null,"External Open Bracket | Round","X",null,"Show"]
[null,null,null,null,null,null,null,null,null,null,null,"Automate | 15 Nm | 15 rpm","X",null,"Show",null,"External Open Bracket | Square","X",null,"Show"]
[null,null,null,null,null,null,null,null,null,null,null,"Automate | 30 Nm | 15 rpm","X",null,"Show",null,"Box 120","X",null,"Show"]
[null,null,null,null,null,null,null,null,null,null,null,"Automate | 50 Nm | 12 rpm","X",null,"Show",null,"Extreme | Box 190 Cassette","X",null,"Show"]
[null,null,null,null,null,null,null,null,null,null,null,null,null,null,null,null,"Extreme | Zipscreen Open Bracket","X",null,"Show"]
[null,null,null,null,null,null,null,null,null,null,null,null,null,null,null,null,"Cassette 80","X",null,"Show"]
[null,null,null,null,null,null,null,null,null,null,null,null,null,null,null,null,"Cassette 100","X",null,"Show"]
[null,null,null,null,null,null,null,null,null,null,null,null,null,null,null,null,"Cassette 120","X",null,"Show"]
[null,null,null,null,null,null,null,null,null,null,null,null,null,null,null,null,"Square Cassette 110","X",null,"Show"]
[null,null,null,null,null,null,null,null,null,null,null,null,null,null,null,null,"3\" Fascia","X",null,"Show"]
[null,null,null,null,null,null,null,null,null,null,null,null,null,null,null,null,"4\" Fascia","X",null,"Show"]
[null,null,null,null,null,null,null,null,null,null,null,null,null,null,null,null,"5\" Fascia - Single Roll","X",null,"Show"]
[null,null,null,null,null,null,null,null,null,null,null,null,null,null,null,null,"5\" Fascia - Double Roll","X",null,"Show"]
[null,null,null,null,null,null,null,null,null,null,null,null,null,null,null,null,"P95",{"$f":"IF(S43<>\"\",\"\",\"X\")","v":"X"},null,"Show"]
[null,null,null,null,null,null,null,null,null,null,null,null,null,null,null,null,"FRS100","X",null,"Show"]
[null,null,null,null,null,null,null,null,null,null,null,null,null,null,null,null,"FRS120","X",null,"Show"]
[null,null,null,null,null,null,null,null,null,null,null,null,null,null,null,null,"CF90",{"$f":"IF(S46<>\"\",\"\",\"X\")","v":"X"},null,{"$f":"IF(S46<>\"\",\"Hide\",\"Show\")","v":"Show"}]

{"sheet":"4. Custom Fabric","index":4,"n_rows":18,"n_cols":7,"rows_kept":18,"cut":false,"hidden":false,"merged":[[1,3,1,4],[1,5,1,6],[1,2,2,2]]}
[]
[null,null,"Fabric Description","METRIC",null,"IMPERIAL"]
[null,null,null,"Thickness (mm)","Density (gsm)","Thickness (in)","Density (oz/yd²)"]
[null,1]
[null,2]
[null,3]
[null,4]
[null,5]
[null,6]
[null,7]
[null,8]
[null,9]
[null,10]
[null,11]
[null,12]
[null,13]
[null,14]
[null,15]

{"sheet":"_ReferenceData","index":5,"n_rows":283,"n_cols":48,"rows_kept":283,"cut":false,"hidden":true,"merged":[[11,41,11,45],[41,2,41,5],[151,2,151,5],[138,2,138,5],[73,2,73,5],[93,2,93,5],[127,2,127,5],[264,2,264,4],[254,2,254,4],[8,16,8,17],[2,2,2,5],[3,2,3,5],[4,2,4,5],[6,2,6,5],[5,2,5,5],[251,3,251,4],[250,3,250,4],[229,2,229,3],[202,2,202,5]]}
[]
[]
[null,null,"Material Data",null,null,null,"kg/m³","GPa",null,null,null,null,null,null,null,null,null,null,null,null,null,null,null,null,null,null,null,null,null,null,null,null,null,null,null,null,"Include Control Check if selected",null,{"$f":"i_ControlType","v":0}]
[null,null,"Material",null,null,null,"Density","Young's Modulus"]
[null,null,"Aluminium",null,null,null,2710,{"$f":"68*10^9","v":68000000000},null,null,null,null,null,null,null,null,null,null,null,null,null,null,{"$f":"INDEX(Tube_Description,MATCH(TRUE,$S$15:$S$37<Deflection_limit*$S$7,0))","v":{"$error":"#N/A"}},null,null,null,null,null,null,null,null,null,null,null,null,null,null,null,{"$f":"IF(i_ControlType<>\"\",MATCH(i_ControlType,$E$96:$E$125,0),\"\")","v":""}]
[null,null,"Steel",null,null,null,7860,{"$f":"200*10^9","v":200000000000},null,null,null,null,null,null,null,null,null,null,"rec start factor"]
[null,null,null,null,null,null,null,null,null,null,null,null,null,null,null,null,null,null,{"$f":"IF(U11=1,1,0.8)","v":0.8}]
[null,null,null,null,null,null,null,null,null,null,null,null,null,null,null,null,null,null,null,null,null,null,null,null,null,null,null,null,null,null,"turn target"]
[null,null,null,null,null,null,null,null,null,null,null,null,null,null,null,null,"WEIGHT FACTORED",null,null,"includes width vs tube length check",null,null,null,null,null,null,null,null,null,null,18]
[null,null,null,null,null,null,null,null,null,null,null,null,null,"Width input (m)",null,"OPTIONS Show On/Off",{"$f":"IFERROR(INDEX(Tube_Description,MATCH(SMALL($Q$15:$Q$37,Tube_Count-$U$11+1),$Q$15:$Q$37,0)),IF(AND(i_Tube=\"\",U11>0),\"Select a tube.\",\"No suitable options.\"))","v":"No suitable options."},null,null,null,"COUNT","Recommended Tube",{"$f":"IFERROR(INDEX(Tube_Description,MATCH(SMALL($T$15:$T$37,Tube_Count-$U$11+1),$T$15:$T$37,0)),IF(AND(i_Tube=\"\",U11>0),\"Select a tube.\",\"No suitable options.\"))","v":"No suitable options."},"old rec"]
[null,null,null,null,null,null,null,"MUST UPDATE CONTROL vs. TUBE COMPATIBILITY HEADERS",null,null,null,null,null,{"$f":"Design_Width_MAX","v":0},null,null,"(Span/Def) * Weight",null,"limit is: (mm)","tube on/off here",{"$f":"COUNTIF($T$15:$T$37,\">0\")","v":0},null,"=IFERROR(INDEX(Tube_Description,MATCH(1,$T$15:$T$37,0)),\"No suitable options.\")",null,null,null,null,null,null,null,null,null,null,null,null,null,null,null,null,"new rec"]
[null,null,{"$f":"i_Category","v":"Internal"},null,{"$f":"i_Region","v":"Global"},null,null,null,null,null,null,null,null,null,null,null,"Tube Outputs",null,{"$f":"Design_Width*Deflection_limit","v":0},null,null,null,null,null,null,null,null,null,null,{"$f":"IFERROR(INDEX(Tube_Description,MATCH($Y15,$AD$15:$AD$37,0)),z_NoOptions)","v":"No suitable options."},"# turns dif","ascending","ascending",null,"ascending",null,null,null,null,{"$f":"IFERROR(AN15,IF(AND(i_Tube=\"\",U11>0),\"Select a tube.\",\"No suitable options.\"))","v":"No suitable options."},null,"LINK COMPATIBILITY."]
[null,null,"Tubes",null,null,null,null,null,"mm","kg/m","(mm⁴)","(Nm²)","m²","m","N",null,null,null,"mm",{"$f":"COUNT($T$15:$T$37)","v":0},null,null,null,null,null,null,null,"weight factor only list"]
[null,null,"ESA Check","System OnOff","Region","Region OnOff","Codes","Description","Tube OD","Mass/m","I_min","EI","Max Area","MaxLength","NumTurns",null,null,null,"Deflection","Span/Def.","TUBE RANK",null,"OUTPUT LIST",null,"#",null,null,null,null,null,null,"RANK # TURNS","RANK DEFLECTION","tube weights of OK deflection","RANK WEIGHT",null,"new ranks",null,null,null,null,"S60 Multi-Link","Easy-Link Skyline","Easy-Link","Easy-Link Uni-Joint","Infinite Link"]
[null,null,{"$f":"IF(i_ControlType=\"Easy Spring Air\",0,1)","v":1},1,"US",{"$f":"IF(i_Region=\"Global\",1,IF(OR(i_Region=E15,E15=\"Global\"),1,0))","v":1},"RTEA1","1\"",26.7,0.28000000000000003,8191,{"$f":"(K15*10^-12)*AL_E","v":556.98800000000006},null,3.6579999999999999,{"$f":"(-T_Tubes[[#This Row],[Tube OD]]+SQRT(T_Tubes[[#This Row],[Tube OD]]^2+4*Fabric_Thickness*Design_Drop*1000/PI()))/(2*Fabric_Thickness)","v":{"$error":"#VALUE!"}},{"$f":"IF(INDEX('3. Hardware Options'!$E$5:$E$27,MATCH(T_Tubes[[#This Row],[Description]],'3. Hardware Options'!$B$5:$B$27,0))=\"Show\",1*SUMPRODUCT(D15,F15,C15),0)","v":1},{"$f":"((Design_Width_MAX/S15)*IFERROR(SUMPRODUCT(D15,F15,P15),\"-\")*IF((S15>Design_Width_MAX*Deflection_limit),0,1)*IF(T_Tubes[[#This Row],[MaxLength]]>=Design_Width_MAX,1,0))*T_Tubes[[#This Row],[Mass/m]]","v":{"$error":"#VALUE!"}},{"$f":"IF($Q15,1+(COUNTIF($Q$15:$Q$37,\"<\"&$Q15)-COUNTIF($Q$15:$Q$37,\"<0.00001\")),IF(SheetStatus=\"Release - FFA\",999-COUNTIF($T$15:$T15,\"=0\")+1,\"\"))","v":{"$error":"#VALUE!"}},{"$f":"(5/384)*((g*(Fabric_Density*Design_Drop+$J15+wb_UnitMass+Ballast_UnitMass)*Design_Width_MAX^4)/$L15)*1000","v":{"$error":"#VALUE!"}},{"$f":"((Design_Width_MAX/S15)*IFERROR(SUMPRODUCT(D15,F15,P15),\"-\")*IF((S15>Design_Width_MAX*Deflection_limit),0,1)*IF(T_Tubes[[#This Row],[MaxLength]]>=Design_Width_MAX,1,0))","v":{"$error":"#VALUE!"}},{"$f":"IF($T15,1+(COUNTIF($T$15:$T$37,\"<\"&$T15)-COUNTIF($T$15:$T$37,\"<0.00001\")),IF(SheetStatus=\"Release - FFA\",999-COUNTIF($T$15:$T15,\"=0\")+1,\"\"))","v":{"$error":"#VALUE!"}},null,{"$f":"IFERROR(INDEX(Tube_Description,MATCH($Y15,$U$15:$U$37,0)),z_NoOptions)","v":"No suitable options."},null,1,null,null,{"$f":"IFERROR(INDEX(Tube_Description,MATCH($Y15,$R$15:$R$37,0)),z_NoOptions)","v":"No suitable options."},{"$f":"((Design_Width_MAX/S15)*IFERROR(SUMPRODUCT(D15,F15,P15,C15),\"-\")*IF((S15>Design_Width_MAX*Deflection_limit*$S$7),0,1)*IF(T_Tubes[[#This Row],[MaxLength]]>=Design_Width_MAX,1,0))","v":{"$error":"#VALUE!"}},{"$f":"IF($AC15,1+(COUNTIF($AC$15:$AC$37,\"<\"&$AC15)-COUNTIF($AC$15:$AC$37,\"<0.00001\")),IF(SheetStatus=\"Release - FFA\",999-COUNTIF($T$15:$T15,\"=0\")+1,\"\"))","v":{"$error":"#VALUE!"}},{"$f":"IF(T15<>0,ABS(T_Tubes[[#This Row],[NumTurns]]-$AE$9),\"\")","v":{"$error":"#VALUE!"}},{"$f":"IFERROR(_xlfn.RANK.AVG(AE15,$AE$15:$AE$37,1),\"\")","v":""},{"$f":"IF($AC15,1+(COUNTIF($AC$15:$AC$37,\"<\"&$AC15)-COUNTIF($AC$15:$AC$37,\"<0.00001\")),IF(SheetStatus=\"Release - FFA\",999-COUNTIF($AC$15:$AC15,\"=0\")+1,\"0\"))","v":{"$error":"#VALUE!"}},{"$f":"IF(AC15<>0,T_Tubes[[#This Row],[Mass/m]],\"\")","v":{"$error":"#VALUE!"}},{"$f":"IFERROR(_xlfn.RANK.AVG(AH15,$AH$15:$AH$37,1),\"\")","v":""},{"$f":"IFERROR(IF(AF15*AG15*AI15=0,\"\",(AF15^2*AG15*SQRT(AI15))+RAND()),\"\")","v":""},{"$f":"IFERROR(_xlfn.RANK.AVG(AJ15,$AJ$15:$AJ$37,1),\"\")","v":""},null,null,{"$f":"IFERROR(INDEX(Tube_Description,MATCH($Y15,$AK$15:$AK$37,0)),z_NoOptions)","v":"No suitable options."}]
[null,null,{"$f":"IF(i_ControlType=\"Easy Spring Air\",0,1)","v":1},1,"US",1,"RTEA2","1-1/8\"",29.5,0.3,11101,754.86799999999994,null,4.8780000000000001,{"$f":"(-T_Tubes[[#This Row],[Tube OD]]+SQRT(T_Tubes[[#This Row],[Tube OD]]^2+4*Fabric_Thickness*Design_Drop*1000/PI()))/(2*Fabric_Thickness)","v":{"$error":"#VALUE!"}},{"$f":"IF(INDEX('3. Hardware Options'!$E$5:$E$27,MATCH(T_Tubes[[#This Row],[Description]],'3. Hardware Options'!$B$5:$B$27,0))=\"Show\",1*SUMPRODUCT(D16,F16,C16),0)","v":1},{"$f":"((Design_Width_MAX/S16)*IFERROR(SUMPRODUCT(D16,F16,P16),\"-\")*IF((S16>Design_Width_MAX*Deflection_limit),0,1)*IF(T_Tubes[[#This Row],[MaxLength]]>=Design_Width_MAX,1,0))*T_Tubes[[#This Row],[Mass/m]]","v":{"$error":"#VALUE!"}},{"$f":"IF($Q16,1+(COUNTIF($Q$15:$Q$37,\"<\"&$Q16)-COUNTIF($Q$15:$Q$37,\"<0.00001\")),IF(SheetStatus=\"Release - FFA\",999-COUNTIF($T$15:$T16,\"=0\")+1,\"\"))","v":{"$error":"#VALUE!"}},{"$error":"#VALUE!"},{"$f":"((Design_Width_MAX/S16)*IFERROR(SUMPRODUCT(D16,F16,P16),\"-\")*IF((S16>Design_Width_MAX*Deflection_limit),0,1)*IF(T_Tubes[[#This Row],[MaxLength]]>=Design_Width_MAX,1,0))","v":{"$error":"#VALUE!"}},{"$f":"IF($T16,1+(COUNTIF($T$15:$T$37,\"<\"&$T16)-COUNTIF($T$15:$T$37,\"<0.00001\")),IF(SheetStatus=\"Release - FFA\",999-COUNTIF($T$15:$T16,\"=0\")+1,\"\"))","v":{"$error":"#VALUE!"}},null,{"$f":"IFERROR(INDEX(Tube_Description,MATCH($Y16,$U$15:$U$37,0)),\"\")","v":""},null,{"$f":"IF(Y15+1<=$U$11,Y15+1,999-COUNT($Y$15:Y15)+$U$11)","v":998},null,null,{"$f":"IFERROR(INDEX(Tube_Description,MATCH($Y16,$R$15:$R$37,0)),\"\")","v":""},{"$f":"((Design_Width_MAX/S16)*IFERROR(SUMPRODUCT(D16,F16,P16,C16),\"-\")*IF((S16>Design_Width_MAX*Deflection_limit*$S$7),0,1)*IF(T_Tubes[[#This Row],[MaxLength]]>=Design_Width_MAX,1,0))","v":{"$error":"#VALUE!"}},{"$f":"IF($AC16,1+(COUNTIF($AC$15:$AC$37,\"<\"&$AC16)-COUNTIF($AC$15:$AC$37,\"<0.00001\")),IF(SheetStatus=\"Release - FFA\",999-COUNTIF($T$15:$T16,\"=0\")+1,\"\"))","v":{"$error":"#VALUE!"}},{"$f":"IF(T16<>0,ABS(T_Tubes[[#This Row],[NumTurns]]-$AE$9),\"\")","v":{"$error":"#VALUE!"}},"",{"$f":"IF($AC16,1+(COUNTIF($AC$15:$AC$37,\"<\"&$AC16)-COUNTIF($AC$15:$AC$37,\"<0.00001\")),IF(SheetStatus=\"Release - FFA\",999-COUNTIF($AC$15:$AC16,\"=0\")+1,\"0\"))","v":{"$error":"#VALUE!"}},{"$f":"IF(AC16<>0,T_Tubes[[#This Row],[Mass/m]],\"\")","v":{"$error":"#VALUE!"}},"",{"$f":"IFERROR(IF(AF16*AG16*AI16=0,\"\",(AF16^2*AG16*SQRT(AI16))+RAND()),\"\")","v":""},"",null,null,{"$f":"IFERROR(INDEX(Tube_Description,MATCH($Y16,$AK$15:$AK$37,0)),\"\")","v":""}]
[null,null,{"$f":"IF(i_ControlType=\"Easy Spring Air\",0,1)","v":1},1,"US",1,"RTEA3","1-1/4\"",32.76,0.35560000000000003,15608.7,1061.3916000000002,null,4.8780000000000001,{"$f":"(-T_Tubes[[#This Row],[Tube OD]]+SQRT(T_Tubes[[#This Row],[Tube OD]]^2+4*Fabric_Thickness*Design_Drop*1000/PI()))/(2*Fabric_Thickness)","v":{"$error":"#VALUE!"}},{"$f":"IF(INDEX('3. Hardware Options'!$E$5:$E$27,MATCH(T_Tubes[[#This Row],[Description]],'3. Hardware Options'!$B$5:$B$27,0))=\"Show\",1*SUMPRODUCT(D17,F17,C17),0)","v":1},{"$f":"((Design_Width_MAX/S17)*IFERROR(SUMPRODUCT(D17,F17,P17),\"-\")*IF((S17>Design_Width_MAX*Deflection_limit),0,1)*IF(T_Tubes[[#This Row],[MaxLength]]>=Design_Width_MAX,1,0))*T_Tubes[[#This Row],[Mass/m]]","v":{"$error":"#VALUE!"}},{"$f":"IF($Q17,1+(COUNTIF($Q$15:$Q$37,\"<\"&$Q17)-COUNTIF($Q$15:$Q$37,\"<0.00001\")),IF(SheetStatus=\"Release - FFA\",999-COUNTIF($T$15:$T17,\"=0\")+1,\"\"))","v":{"$error":"#VALUE!"}},{"$error":"#VALUE!"},{"$f":"((Design_Width_MAX/S17)*IFERROR(SUMPRODUCT(D17,F17,P17),\"-\")*IF((S17>Design_Width_MAX*Deflection_limit),0,1)*IF(T_Tubes[[#This Row],[MaxLength]]>=Design_Width_MAX,1,0))","v":{"$error":"#VALUE!"}},{"$f":"IF($T17,1+(COUNTIF($T$15:$T$37,\"<\"&$T17)-COUNTIF($T$15:$T$37,\"<0.00001\")),IF(SheetStatus=\"Release - FFA\",999-COUNTIF($T$15:$T17,\"=0\")+1,\"\"))","v":{"$error":"#VALUE!"}},null,"",null,{"$f":"IF(Y16+1<=$U$11,Y16+1,999-COUNT($Y$15:Y16)+$U$11)","v":997},null,null,"",{"$f":"((Design_Width_MAX/S17)*IFERROR(SUMPRODUCT(D17,F17,P17,C17),\"-\")*IF((S17>Design_Width_MAX*Deflection_limit*$S$7),0,1)*IF(T_Tubes[[#This Row],[MaxLength]]>=Design_Width_MAX,1,0))","v":{"$error":"#VALUE!"}},{"$f":"IF($AC17,1+(COUNTIF($AC$15:$AC$37,\"<\"&$AC17)-COUNTIF($AC$15:$AC$37,\"<0.00001\")),IF(SheetStatus=\"Release - FFA\",999-COUNTIF($T$15:$T17,\"=0\")+1,\"\"))","v":{"$error":"#VALUE!"}},{"$f":"IF(T17<>0,ABS(T_Tubes[[#This Row],[NumTurns]]-$AE$9),\"\")","v":{"$error":"#VALUE!"}},"",{"$f":"IF($AC17,1+(COUNTIF($AC$15:$AC$37,\"<\"&$AC17)-COUNTIF($AC$15:$AC$37,\"<0.00001\")),IF(SheetStatus=\"Release - FFA\",999-COUNTIF($AC$15:$AC17,\"=0\")+1,\"0\"))","v":{"$error":"#VALUE!"}},{"$f":"IF(AC17<>0,T_Tubes[[#This Row],[Mass/m]],\"\")","v":{"$error":"#VALUE!"}},"","","",null,null,""]
[null,null,{"$f":"IF(i_Region=\"AU\",0,1)","v":1},1,"Global",1,"RTEA4","1-1/2\"",38.6,0.42499999999999999,26222.6,{"$f":"(K18*10^-12)*AL_E","v":1783.1367999999998},null,4.8780000000000001,{"$f":"(-T_Tubes[[#This Row],[Tube OD]]+SQRT(T_Tubes[[#This Row],[Tube OD]]^2+4*Fabric_Thickness*Design_Drop*1000/PI()))/(2*Fabric_Thickness)","v":{"$error":"#VALUE!"}},{"$f":"IF(INDEX('3. Hardware Options'!$E$5:$E$27,MATCH(T_Tubes[[#This Row],[Description]],'3. Hardware Options'!$B$5:$B$27,0))=\"Show\",1*SUMPRODUCT(D18,F18,C18),0)","v":1},{"$f":"((Design_Width_MAX/S18)*IFERROR(SUMPRODUCT(D18,F18,P18),\"-\")*IF((S18>Design_Width_MAX*Deflection_limit),0,1)*IF(T_Tubes[[#This Row],[MaxLength]]>=Design_Width_MAX,1,0))*T_Tubes[[#This Row],[Mass/m]]","v":{"$error":"#VALUE!"}},{"$f":"IF($Q18,1+(COUNTIF($Q$15:$Q$37,\"<\"&$Q18)-COUNTIF($Q$15:$Q$37,\"<0.00001\")),IF(SheetStatus=\"Release - FFA\",999-COUNTIF($T$15:$T18,\"=0\")+1,\"\"))","v":{"$error":"#VALUE!"}},{"$error":"#VALUE!"},{"$f":"((Design_Width_MAX/S18)*IFERROR(SUMPRODUCT(D18,F18,P18),\"-\")*IF((S18>Design_Width_MAX*Deflection_limit),0,1)*IF(T_Tubes[[#This Row],[MaxLength]]>=Design_Width_MAX,1,0))","v":{"$error":"#VALUE!"}},{"$f":"IF($T18,1+(COUNTIF($T$15:$T$37,\"<\"&$T18)-COUNTIF($T$15:$T$37,\"<0.00001\")),IF(SheetStatus=\"Release - FFA\",999-COUNTIF($T$15:$T18,\"=0\")+1,\"\"))","v":{"$error":"#VALUE!"}},null,"",null,{"$f":"IF(Y17+1<=$U$11,Y17+1,999-COUNT($Y$15:Y17)+$U$11)","v":996},null,null,"",{"$f":"((Design_Width_MAX/S18)*IFERROR(SUMPRODUCT(D18,F18,P18,C18),\"-\")*IF((S18>Design_Width_MAX*Deflection_limit*$S$7),0,1)*IF(T_Tubes[[#This Row],[MaxLength]]>=Design_Width_MAX,1,0))","v":{"$error":"#VALUE!"}},{"$f":"IF($AC18,1+(COUNTIF($AC$15:$AC$37,\"<\"&$AC18)-COUNTIF($AC$15:$AC$37,\"<0.00001\")),IF(SheetStatus=\"Release - FFA\",999-COUNTIF($T$15:$T18,\"=0\")+1,\"\"))","v":{"$error":"#VALUE!"}},{"$f":"IF(T18<>0,ABS(T_Tubes[[#This Row],[NumTurns]]-$AE$9),\"\")","v":{"$error":"#VALUE!"}},"",{"$f":"IF($AC18,1+(COUNTIF($AC$15:$AC$37,\"<\"&$AC18)-COUNTIF($AC$15:$AC$37,\"<0.00001\")),IF(SheetStatus=\"Release - FFA\",999-COUNTIF($AC$15:$AC18,\"=0\")+1,\"0\"))","v":{"$error":"#VALUE!"}},{"$f":"IF(AC18<>0,T_Tubes[[#This Row],[Mass/m]],\"\")","v":{"$error":"#VALUE!"}},"","","",null,null,"",null,null,1,1,1,1]
[null,null,{"$f":"IF(i_Region=\"AU\",0,1)","v":1},1,"Global",1,"RTEA5","2\"",50.8,0.73599999999999999,74380.600000000006,5057.8807999999999,null,4.8780000000000001,{"$f":"(-T_Tubes[[#This Row],[Tube OD]]+SQRT(T_Tubes[[#This Row],[Tube OD]]^2+4*Fabric_Thickness*Design_Drop*1000/PI()))/(2*Fabric_Thickness)","v":{"$error":"#VALUE!"}},{"$f":"IF(INDEX('3. Hardware Options'!$E$5:$E$27,MATCH(T_Tubes[[#This Row],[Description]],'3. Hardware Options'!$B$5:$B$27,0))=\"Show\",1*SUMPRODUCT(D19,F19,C19),0)","v":1},{"$f":"((Design_Width_MAX/S19)*IFERROR(SUMPRODUCT(D19,F19,P19),\"-\")*IF((S19>Design_Width_MAX*Deflection_limit),0,1)*IF(T_Tubes[[#This Row],[MaxLength]]>=Design_Width_MAX,1,0))*T_Tubes[[#This Row],[Mass/m]]","v":{"$error":"#VALUE!"}},{"$f":"IF($Q19,1+(COUNTIF($Q$15:$Q$37,\"<\"&$Q19)-COUNTIF($Q$15:$Q$37,\"<0.00001\")),IF(SheetStatus=\"Release - FFA\",999-COUNTIF($T$15:$T19,\"=0\")+1,\"\"))","v":{"$error":"#VALUE!"}},{"$error":"#VALUE!"},{"$f":"((Design_Width_MAX/S19)*IFERROR(SUMPRODUCT(D19,F19,P19),\"-\")*IF((S19>Design_Width_MAX*Deflection_limit),0,1)*IF(T_Tubes[[#This Row],[MaxLength]]>=Design_Width_MAX,1,0))","v":{"$error":"#VALUE!"}},{"$f":"IF($T19,1+(COUNTIF($T$15:$T$37,\"<\"&$T19)-COUNTIF($T$15:$T$37,\"<0.00001\")),IF(SheetStatus=\"Release - FFA\",999-COUNTIF($T$15:$T19,\"=0\")+1,\"\"))","v":{"$error":"#VALUE!"}},null,"",null,{"$f":"IF(Y18+1<=$U$11,Y18+1,999-COUNT($Y$15:Y18)+$U$11)","v":995},null,null,"",{"$f":"((Design_Width_MAX/S19)*IFERROR(SUMPRODUCT(D19,F19,P19,C19),\"-\")*IF((S19>Design_Width_MAX*Deflection_limit*$S$7),0,1)*IF(T_Tubes[[#This Row],[MaxLength]]>=Design_Width_MAX,1,0))","v":{"$error":"#VALUE!"}},{"$f":"IF($AC19,1+(COUNTIF($AC$15:$AC$37,\"<\"&$AC19)-COUNTIF($AC$15:$AC$37,\"<0.00001\")),IF(SheetStatus=\"Release - FFA\",999-COUNTIF($T$15:$T19,\"=0\")+1,\"\"))","v":{"$error":"#VALUE!"}},{"$f":"IF(T19<>0,ABS(T_Tubes[[#This Row],[NumTurns]]-$AE$9),\"\")","v":{"$error":"#VALUE!"}},"",{"$f":"IF($AC19,1+(COUNTIF($AC$15:$AC$37,\"<\"&$AC19)-COUNTIF($AC$15:$AC$37,\"<0.00001\")),IF(SheetStatus=\"Release - FFA\",999-COUNTIF($AC$15:$AC19,\"=0\")+1,\"0\"))","v":{"$error":"#VALUE!"}},{"$f":"IF(AC19<>0,T_Tubes[[#This Row],[Mass/m]],\"\")","v":{"$error":"#VALUE!"}},"","","",null,null,"",null,null,1]
[null,null,{"$f":"IF(i_ControlType=\"Easy Spring Air\",0,1)","v":1},1,"Global",1,"RTEA6","2-1/2\"",65.2,1.31,224028,15233.904,null,4.8780000000000001,{"$f":"(-T_Tubes[[#This Row],[Tube OD]]+SQRT(T_Tubes[[#This Row],[Tube OD]]^2+4*Fabric_Thickness*Design_Drop*1000/PI()))/(2*Fabric_Thickness)","v":{"$error":"#VALUE!"}},{"$f":"IF(INDEX('3. Hardware Options'!$E$5:$E$27,MATCH(T_Tubes[[#This Row],[Description]],'3. Hardware Options'!$B$5:$B$27,0))=\"Show\",1*SUMPRODUCT(D20,F20,C20),0)","v":1},{"$f":"((Design_Width_MAX/S20)*IFERROR(SUMPRODUCT(D20,F20,P20),\"-\")*IF((S20>Design_Width_MAX*Deflection_limit),0,1)*IF(T_Tubes[[#This Row],[MaxLength]]>=Design_Width_MAX,1,0))*T_Tubes[[#This Row],[Mass/m]]","v":{"$error":"#VALUE!"}},{"$f":"IF($Q20,1+(COUNTIF($Q$15:$Q$37,\"<\"&$Q20)-COUNTIF($Q$15:$Q$37,\"<0.00001\")),IF(SheetStatus=\"Release - FFA\",999-COUNTIF($T$15:$T20,\"=0\")+1,\"\"))","v":{"$error":"#VALUE!"}},{"$error":"#VALUE!"},{"$f":"((Design_Width_MAX/S20)*IFERROR(SUMPRODUCT(D20,F20,P20),\"-\")*IF((S20>Design_Width_MAX*Deflection_limit),0,1)*IF(T_Tubes[[#This Row],[MaxLength]]>=Design_Width_MAX,1,0))","v":{"$error":"#VALUE!"}},{"$f":"IF($T20,1+(COUNTIF($T$15:$T$37,\"<\"&$T20)-COUNTIF($T$15:$T$37,\"<0.00001\")),IF(SheetStatus=\"Release - FFA\",999-COUNTIF($T$15:$T20,\"=0\")+1,\"\"))","v":{"$error":"#VALUE!"}},null,"",null,{"$f":"IF(Y19+1<=$U$11,Y19+1,999-COUNT($Y$15:Y19)+$U$11)","v":994},null,null,"",{"$f":"((Design_Width_MAX/S20)*IFERROR(SUMPRODUCT(D20,F20,P20,C20),\"-\")*IF((S20>Design_Width_MAX*Deflection_limit*$S$7),0,1)*IF(T_Tubes[[#This Row],[MaxLength]]>=Design_Width_MAX,1,0))","v":{"$error":"#VALUE!"}},{"$f":"IF($AC20,1+(COUNTIF($AC$15:$AC$37,\"<\"&$AC20)-COUNTIF($AC$15:$AC$37,\"<0.00001\")),IF(SheetStatus=\"Release - FFA\",999-COUNTIF($T$15:$T20,\"=0\")+1,\"\"))","v":{"$error":"#VALUE!"}},{"$f":"IF(T20<>0,ABS(T_Tubes[[#This Row],[NumTurns]]-$AE$9),\"\")","v":{"$error":"#VALUE!"}},"",{"$f":"IF($AC20,1+(COUNTIF($AC$15:$AC$37,\"<\"&$AC20)-COUNTIF($AC$15:$AC$37,\"<0.00001\")),IF(SheetStatus=\"Release - FFA\",999-COUNTIF($AC$15:$AC20,\"=0\")+1,\"0\"))","v":{"$error":"#VALUE!"}},{"$f":"IF(AC20<>0,T_Tubes[[#This Row],[Mass/m]],\"\")","v":{"$error":"#VALUE!"}},"","","",null,null,"",null,null,1]
[null,null,1,1,"US",1,"RTEA7","3-1/4\"",83.1,3.08,798623,54306.363999999994,null,4.8780000000000001,{"$f":"(-T_Tubes[[#This Row],[Tube OD]]+SQRT(T_Tubes[[#This Row],[Tube OD]]^2+4*Fabric_Thickness*Design_Drop*1000/PI()))/(2*Fabric_Thickness)","v":{"$error":"#VALUE!"}},{"$f":"IF(INDEX('3. Hardware Options'!$E$5:$E$27,MATCH(T_Tubes[[#This Row],[Description]],'3. Hardware Options'!$B$5:$B$27,0))=\"Show\",1*SUMPRODUCT(D21,F21,C21),0)","v":1},{"$f":"((Design_Width_MAX/S21)*IFERROR(SUMPRODUCT(D21,F21,P21),\"-\")*IF((S21>Design_Width_MAX*Deflection_limit),0,1)*IF(T_Tubes[[#This Row],[MaxLength]]>=Design_Width_MAX,1,0))*T_Tubes[[#This Row],[Mass/m]]","v":{"$error":"#VALUE!"}},{"$f":"IF($Q21,1+(COUNTIF($Q$15:$Q$37,\"<\"&$Q21)-COUNTIF($Q$15:$Q$37,\"<0.00001\")),IF(SheetStatus=\"Release - FFA\",999-COUNTIF($T$15:$T21,\"=0\")+1,\"\"))","v":{"$error":"#VALUE!"}},{"$error":"#VALUE!"},{"$f":"((Design_Width_MAX/S21)*IFERROR(SUMPRODUCT(D21,F21,P21),\"-\")*IF((S21>Design_Width_MAX*Deflection_limit),0,1)*IF(T_Tubes[[#This Row],[MaxLength]]>=Design_Width_MAX,1,0))","v":{"$error":"#VALUE!"}},{"$f":"IF($T21,1+(COUNTIF($T$15:$T$37,\"<\"&$T21)-COUNTIF($T$15:$T$37,\"<0.00001\")),IF(SheetStatus=\"Release - FFA\",999-COUNTIF($T$15:$T21,\"=0\")+1,\"\"))","v":{"$error":"#VALUE!"}},null,"",null,{"$f":"IF(Y20+1<=$U$11,Y20+1,999-COUNT($Y$15:Y20)+$U$11)","v":993},null,null,"",{"$f":"((Design_Width_MAX/S21)*IFERROR(SUMPRODUCT(D21,F21,P21,C21),\"-\")*IF((S21>Design_Width_MAX*Deflection_limit*$S$7),0,1)*IF(T_Tubes[[#This Row],[MaxLength]]>=Design_Width_MAX,1,0))","v":{"$error":"#VALUE!"}},{"$f":"IF($AC21,1+(COUNTIF($AC$15:$AC$37,\"<\"&$AC21)-COUNTIF($AC$15:$AC$37,\"<0.00001\")),IF(SheetStatus=\"Release - FFA\",999-COUNTIF($T$15:$T21,\"=0\")+1,\"\"))","v":{"$error":"#VALUE!"}},{"$f":"IF(T21<>0,ABS(T_Tubes[[#This Row],[NumTurns]]-$AE$9),\"\")","v":{"$error":"#VALUE!"}},"",{"$f":"IF($AC21,1+(COUNTIF($AC$15:$AC$37,\"<\"&$AC21)-COUNTIF($AC$15:$AC$37,\"<0.00001\")),IF(SheetStatus=\"Release - FFA\",999-COUNTIF($AC$15:$AC21,\"=0\")+1,\"0\"))","v":{"$error":"#VALUE!"}},{"$f":"IF(AC21<>0,T_Tubes[[#This Row],[Mass/m]],\"\")","v":{"$error":"#VALUE!"}},"","","",null,null,""]
[null,null,1,1,"AU",1,"RB93-0333","S35 STD",32.9,0.31,14029,953.97199999999998,null,5.8,{"$f":"(-T_Tubes[[#This Row],[Tube OD]]+SQRT(T_Tubes[[#This Row],[Tube OD]]^2+4*Fabric_Thickness*Design_Drop*1000/PI()))/(2*Fabric_Thickness)","v":{"$error":"#VALUE!"}},{"$f":"IF(INDEX('3. Hardware Options'!$E$5:$E$27,MATCH(T_Tubes[[#This Row],[Description]],'3. Hardware Options'!$B$5:$B$27,0))=\"Show\",1*SUMPRODUCT(D22,F22,C22),0)","v":1},{"$f":"((Design_Width_MAX/S22)*IFERROR(SUMPRODUCT(D22,F22,P22),\"-\")*IF((S22>Design_Width_MAX*Deflection_limit),0,1)*IF(T_Tubes[[#This Row],[MaxLength]]>=Design_Width_MAX,1,0))*T_Tubes[[#This Row],[Mass/m]]","v":{"$error":"#VALUE!"}},{"$f":"IF($Q22,1+(COUNTIF($Q$15:$Q$37,\"<\"&$Q22)-COUNTIF($Q$15:$Q$37,\"<0.00001\")),IF(SheetStatus=\"Release - FFA\",999-COUNTIF($T$15:$T22,\"=0\")+1,\"\"))","v":{"$error":"#VALUE!"}},{"$error":"#VALUE!"},{"$f":"((Design_Width_MAX/S22)*IFERROR(SUMPRODUCT(D22,F22,P22),\"-\")*IF((S22>Design_Width_MAX*Deflection_limit),0,1)*IF(T_Tubes[[#This Row],[MaxLength]]>=Design_Width_MAX,1,0))","v":{"$error":"#VALUE!"}},{"$f":"IF($T22,1+(COUNTIF($T$15:$T$37,\"<\"&$T22)-COUNTIF($T$15:$T$37,\"<0.00001\")),IF(SheetStatus=\"Release - FFA\",999-COUNTIF($T$15:$T22,\"=0\")+1,\"\"))","v":{"$error":"#VALUE!"}},null,"",null,{"$f":"IF(Y21+1<=$U$11,Y21+1,999-COUNT($Y$15:Y21)+$U$11)","v":992},null,null,"",{"$f":"((Design_Width_MAX/S22)*IFERROR(SUMPRODUCT(D22,F22,P22,C22),\"-\")*IF((S22>Design_Width_MAX*Deflection_limit*$S$7),0,1)*IF(T_Tubes[[#This Row],[MaxLength]]>=Design_Width_MAX,1,0))","v":{"$error":"#VALUE!"}},{"$f":"IF($AC22,1+(COUNTIF($AC$15:$AC$37,\"<\"&$AC22)-COUNTIF($AC$15:$AC$37,\"<0.00001\")),IF(SheetStatus=\"Release - FFA\",999-COUNTIF($T$15:$T22,\"=0\")+1,\"\"))","v":{"$error":"#VALUE!"}},{"$f":"IF(T22<>0,ABS(T_Tubes[[#This Row],[NumTurns]]-$AE$9),\"\")","v":{"$error":"#VALUE!"}},"",{"$f":"IF($AC22,1+(COUNTIF($AC$15:$AC$37,\"<\"&$AC22)-COUNTIF($AC$15:$AC$37,\"<0.00001\")),IF(SheetStatus=\"Release - FFA\",999-COUNTIF($AC$15:$AC22,\"=0\")+1,\"0\"))","v":{"$error":"#VALUE!"}},{"$f":"IF(AC22<>0,T_Tubes[[#This Row],[Mass/m]],\"\")","v":{"$error":"#VALUE!"}},"","","",null,null,""]
[null,null,1,1,"AU",1,"RB93-0335","S35 HD",34,0.46,21925,1490.8999999999999,null,5.8,{"$f":"(-T_Tubes[[#This Row],[Tube OD]]+SQRT(T_Tubes[[#This Row],[Tube OD]]^2+4*Fabric_Thickness*Design_Drop*1000/PI()))/(2*Fabric_Thickness)","v":{"$error":"#VALUE!"}},{"$f":"IF(INDEX('3. Hardware Options'!$E$5:$E$27,MATCH(T_Tubes[[#This Row],[Description]],'3. Hardware Options'!$B$5:$B$27,0))=\"Show\",1*SUMPRODUCT(D23,F23,C23),0)","v":1},{"$f":"((Design_Width_MAX/S23)*IFERROR(SUMPRODUCT(D23,F23,P23),\"-\")*IF((S23>Design_Width_MAX*Deflection_limit),0,1)*IF(T_Tubes[[#This Row],[MaxLength]]>=Design_Width_MAX,1,0))*T_Tubes[[#This Row],[Mass/m]]","v":{"$error":"#VALUE!"}},{"$f":"IF($Q23,1+(COUNTIF($Q$15:$Q$37,\"<\"&$Q23)-COUNTIF($Q$15:$Q$37,\"<0.00001\")),IF(SheetStatus=\"Release - FFA\",999-COUNTIF($T$15:$T23,\"=0\")+1,\"\"))","v":{"$error":"#VALUE!"}},{"$error":"#VALUE!"},{"$f":"((Design_Width_MAX/S23)*IFERROR(SUMPRODUCT(D23,F23,P23),\"-\")*IF((S23>Design_Width_MAX*Deflection_limit),0,1)*IF(T_Tubes[[#This Row],[MaxLength]]>=Design_Width_MAX,1,0))","v":{"$error":"#VALUE!"}},{"$f":"IF($T23,1+(COUNTIF($T$15:$T$37,\"<\"&$T23)-COUNTIF($T$15:$T$37,\"<0.00001\")),IF(SheetStatus=\"Release - FFA\",999-COUNTIF($T$15:$T23,\"=0\")+1,\"\"))","v":{"$error":"#VALUE!"}},null,"",null,{"$f":"IF(Y22+1<=$U$11,Y22+1,999-COUNT($Y$15:Y22)+$U$11)","v":991},null,null,"",{"$f":"((Design_Width_MAX/S23)*IFERROR(SUMPRODUCT(D23,F23,P23,C23),\"-\")*IF((S23>Design_Width_MAX*Deflection_limit*$S$7),0,1)*IF(T_Tubes[[#This Row],[MaxLength]]>=Design_Width_MAX,1,0))","v":{"$error":"#VALUE!"}},{"$f":"IF($AC23,1+(COUNTIF($AC$15:$AC$37,\"<\"&$AC23)-COUNTIF($AC$15:$AC$37,\"<0.00001\")),IF(SheetStatus=\"Release - FFA\",999-COUNTIF($T$15:$T23,\"=0\")+1,\"\"))","v":{"$error":"#VALUE!"}},{"$f":"IF(T23<>0,ABS(T_Tubes[[#This Row],[NumTurns]]-$AE$9),\"\")","v":{"$error":"#VALUE!"}},"",{"$f":"IF($AC23,1+(COUNTIF($AC$15:$AC$37,\"<\"&$AC23)-COUNTIF($AC$15:$AC$37,\"<0.00001\")),IF(SheetStatus=\"Release - FFA\",999-COUNTIF($AC$15:$AC23,\"=0\")+1,\"0\"))","v":{"$error":"#VALUE!"}},{"$f":"IF(AC23<>0,T_Tubes[[#This Row],[Mass/m]],\"\")","v":{"$error":"#VALUE!"}},"","","",null,null,""]
[null,null,1,1,"AU",1,"RB93-0440","S40 STD",39.4,0.35,22294,1515.992,null,5.8,{"$f":"(-T_Tubes[[#This Row],[Tube OD]]+SQRT(T_Tubes[[#This Row],[Tube OD]]^2+4*Fabric_Thickness*Design_Drop*1000/PI()))/(2*Fabric_Thickness)","v":{"$error":"#VALUE!"}},{"$f":"IF(INDEX('3. Hardware Options'!$E$5:$E$27,MATCH(T_Tubes[[#This Row],[Description]],'3. Hardware Options'!$B$5:$B$27,0))=\"Show\",1*SUMPRODUCT(D24,F24,C24),0)","v":1},{"$f":"((Design_Width_MAX/S24)*IFERROR(SUMPRODUCT(D24,F24,P24),\"-\")*IF((S24>Design_Width_MAX*Deflection_limit),0,1)*IF(T_Tubes[[#This Row],[MaxLength]]>=Design_Width_MAX,1,0))*T_Tubes[[#This Row],[Mass/m]]","v":{"$error":"#VALUE!"}},{"$f":"IF($Q24,1+(COUNTIF($Q$15:$Q$37,\"<\"&$Q24)-COUNTIF($Q$15:$Q$37,\"<0.00001\")),IF(SheetStatus=\"Release - FFA\",999-COUNTIF($T$15:$T24,\"=0\")+1,\"\"))","v":{"$error":"#VALUE!"}},{"$error":"#VALUE!"},{"$f":"((Design_Width_MAX/S24)*IFERROR(SUMPRODUCT(D24,F24,P24),\"-\")*IF((S24>Design_Width_MAX*Deflection_limit),0,1)*IF(T_Tubes[[#This Row],[MaxLength]]>=Design_Width_MAX,1,0))","v":{"$error":"#VALUE!"}},{"$f":"IF($T24,1+(COUNTIF($T$15:$T$37,\"<\"&$T24)-COUNTIF($T$15:$T$37,\"<0.00001\")),IF(SheetStatus=\"Release - FFA\",999-COUNTIF($T$15:$T24,\"=0\")+1,\"\"))","v":{"$error":"#VALUE!"}},null,"",null,{"$f":"IF(Y23+1<=$U$11,Y23+1,999-COUNT($Y$15:Y23)+$U$11)","v":990},null,null,"",{"$f":"((Design_Width_MAX/S24)*IFERROR(SUMPRODUCT(D24,F24,P24,C24),\"-\")*IF((S24>Design_Width_MAX*Deflection_limit*$S$7),0,1)*IF(T_Tubes[[#This Row],[MaxLength]]>=Design_Width_MAX,1,0))","v":{"$error":"#VALUE!"}},{"$f":"IF($AC24,1+(COUNTIF($AC$15:$AC$37,\"<\"&$AC24)-COUNTIF($AC$15:$AC$37,\"<0.00001\")),IF(SheetStatus=\"Release - FFA\",999-COUNTIF($T$15:$T24,\"=0\")+1,\"\"))","v":{"$error":"#VALUE!"}},{"$f":"IF(T24<>0,ABS(T_Tubes[[#This Row],[NumTurns]]-$AE$9),\"\")","v":{"$error":"#VALUE!"}},"",{"$f":"IF($AC24,1+(COUNTIF($AC$15:$AC$37,\"<\"&$AC24)-COUNTIF($AC$15:$AC$37,\"<0.00001\")),IF(SheetStatus=\"Release - FFA\",999-COUNTIF($AC$15:$AC24,\"=0\")+1,\"0\"))","v":{"$error":"#VALUE!"}},{"$f":"IF(AC24<>0,T_Tubes[[#This Row],[Mass/m]],\"\")","v":{"$error":"#VALUE!"}},"","","",null,null,"",null,null,null,1,1]
[null,null,1,1,"AU",1,"RB91-024x","S40 HD",39.9,0.54,32347,2199.596,null,5.8,{"$f":"(-T_Tubes[[#This Row],[Tube OD]]+SQRT(T_Tubes[[#This Row],[Tube OD]]^2+4*Fabric_Thickness*Design_Drop*1000/PI()))/(2*Fabric_Thickness)","v":{"$error":"#VALUE!"}},{"$f":"IF(INDEX('3. Hardware Options'!$E$5:$E$27,MATCH(T_Tubes[[#This Row],[Description]],'3. Hardware Options'!$B$5:$B$27,0))=\"Show\",1*SUMPRODUCT(D25,F25,C25),0)","v":1},{"$f":"((Design_Width_MAX/S25)*IFERROR(SUMPRODUCT(D25,F25,P25),\"-\")*IF((S25>Design_Width_MAX*Deflection_limit),0,1)*IF(T_Tubes[[#This Row],[MaxLength]]>=Design_Width_MAX,1,0))*T_Tubes[[#This Row],[Mass/m]]","v":{"$error":"#VALUE!"}},{"$f":"IF($Q25,1+(COUNTIF($Q$15:$Q$37,\"<\"&$Q25)-COUNTIF($Q$15:$Q$37,\"<0.00001\")),IF(SheetStatus=\"Release - FFA\",999-COUNTIF($T$15:$T25,\"=0\")+1,\"\"))","v":{"$error":"#VALUE!"}},{"$error":"#VALUE!"},{"$f":"((Design_Width_MAX/S25)*IFERROR(SUMPRODUCT(D25,F25,P25),\"-\")*IF((S25>Design_Width_MAX*Deflection_limit),0,1)*IF(T_Tubes[[#This Row],[MaxLength]]>=Design_Width_MAX,1,0))","v":{"$error":"#VALUE!"}},{"$f":"IF($T25,1+(COUNTIF($T$15:$T$37,\"<\"&$T25)-COUNTIF($T$15:$T$37,\"<0.00001\")),IF(SheetStatus=\"Release - FFA\",999-COUNTIF($T$15:$T25,\"=0\")+1,\"\"))","v":{"$error":"#VALUE!"}},null,"",null,{"$f":"IF(Y24+1<=$U$11,Y24+1,999-COUNT($Y$15:Y24)+$U$11)","v":989},null,null,"",{"$f":"((Design_Width_MAX/S25)*IFERROR(SUMPRODUCT(D25,F25,P25,C25),\"-\")*IF((S25>Design_Width_MAX*Deflection_limit*$S$7),0,1)*IF(T_Tubes[[#This Row],[MaxLength]]>=Design_Width_MAX,1,0))","v":{"$error":"#VALUE!"}},{"$f":"IF($AC25,1+(COUNTIF($AC$15:$AC$37,\"<\"&$AC25)-COUNTIF($AC$15:$AC$37,\"<0.00001\")),IF(SheetStatus=\"Release - FFA\",999-COUNTIF($T$15:$T25,\"=0\")+1,\"\"))","v":{"$error":"#VALUE!"}},{"$f":"IF(T25<>0,ABS(T_Tubes[[#This Row],[NumTurns]]-$AE$9),\"\")","v":{"$error":"#VALUE!"}},"",{"$f":"IF($AC25,1+(COUNTIF($AC$15:$AC$37,\"<\"&$AC25)-COUNTIF($AC$15:$AC$37,\"<0.00001\")),IF(SheetStatus=\"Release - FFA\",999-COUNTIF($AC$15:$AC25,\"=0\")+1,\"0\"))","v":{"$error":"#VALUE!"}},{"$f":"IF(AC25<>0,T_Tubes[[#This Row],[Mass/m]],\"\")","v":{"$error":"#VALUE!"}},"","","",null,null,"",null,null,null,1,1]
[null,null,1,1,"Global",1,"RB93-0443","S45 | LIGHT",43.25,0.4138,33442.06,2274.0600799999997,null,5.8,{"$f":"(-T_Tubes[[#This Row],[Tube OD]]+SQRT(T_Tubes[[#This Row],[Tube OD]]^2+4*Fabric_Thickness*Design_Drop*1000/PI()))/(2*Fabric_Thickness)","v":{"$error":"#VALUE!"}},{"$f":"IF(INDEX('3. Hardware Options'!$E$5:$E$27,MATCH(T_Tubes[[#This Row],[Description]],'3. Hardware Options'!$B$5:$B$27,0))=\"Show\",1*SUMPRODUCT(D26,F26,C26),0)","v":1},{"$f":"((Design_Width_MAX/S26)*IFERROR(SUMPRODUCT(D26,F26,P26),\"-\")*IF((S26>Design_Width_MAX*Deflection_limit),0,1)*IF(T_Tubes[[#This Row],[MaxLength]]>=Design_Width_MAX,1,0))*T_Tubes[[#This Row],[Mass/m]]","v":{"$error":"#VALUE!"}},{"$f":"IF($Q26,1+(COUNTIF($Q$15:$Q$37,\"<\"&$Q26)-COUNTIF($Q$15:$Q$37,\"<0.00001\")),IF(SheetStatus=\"Release - FFA\",999-COUNTIF($T$15:$T26,\"=0\")+1,\"\"))","v":{"$error":"#VALUE!"}},{"$error":"#VALUE!"},{"$f":"((Design_Width_MAX/S26)*IFERROR(SUMPRODUCT(D26,F26,P26),\"-\")*IF((S26>Design_Width_MAX*Deflection_limit),0,1)*IF(T_Tubes[[#This Row],[MaxLength]]>=Design_Width_MAX,1,0))","v":{"$error":"#VALUE!"}},{"$f":"IF($T26,1+(COUNTIF($T$15:$T$37,\"<\"&$T26)-COUNTIF($T$15:$T$37,\"<0.00001\")),IF(SheetStatus=\"Release - FFA\",999-COUNTIF($T$15:$T26,\"=0\")+1,\"\"))","v":{"$error":"#VALUE!"}},null,"",null,{"$f":"IF(Y25+1<=$U$11,Y25+1,999-COUNT($Y$15:Y25)+$U$11)","v":988},null,null,"",{"$f":"((Design_Width_MAX/S26)*IFERROR(SUMPRODUCT(D26,F26,P26,C26),\"-\")*IF((S26>Design_Width_MAX*Deflection_limit*$S$7),0,1)*IF(T_Tubes[[#This Row],[MaxLength]]>=Design_Width_MAX,1,0))","v":{"$error":"#VALUE!"}},{"$f":"IF($AC26,1+(COUNTIF($AC$15:$AC$37,\"<\"&$AC26)-COUNTIF($AC$15:$AC$37,\"<0.00001\")),IF(SheetStatus=\"Release - FFA\",999-COUNTIF($T$15:$T26,\"=0\")+1,\"\"))","v":{"$error":"#VALUE!"}},{"$f":"IF(T26<>0,ABS(T_Tubes[[#This Row],[NumTurns]]-$AE$9),\"\")","v":{"$error":"#VALUE!"}},"",{"$f":"IF($AC26,1+(COUNTIF($AC$15:$AC$37,\"<\"&$AC26)-COUNTIF($AC$15:$AC$37,\"<0.00001\")),IF(SheetStatus=\"Release - FFA\",999-COUNTIF($AC$15:$AC26,\"=0\")+1,\"0\"))","v":{"$error":"#VALUE!"}},{"$f":"IF(AC26<>0,T_Tubes[[#This Row],[Mass/m]],\"\")","v":{"$error":"#VALUE!"}},"","","",null,null,"",null,null,null,1,1]
[null,null,1,1,"Global",1,"RB93-0444","S45 | STD",44.15,0.60189999999999999,49036.01,3334.44868,null,5.8,{"$f":"(-T_Tubes[[#This Row],[Tube OD]]+SQRT(T_Tubes[[#This Row],[Tube OD]]^2+4*Fabric_Thickness*Design_Drop*1000/PI()))/(2*Fabric_Thickness)","v":{"$error":"#VALUE!"}},{"$f":"IF(INDEX('3. Hardware Options'!$E$5:$E$27,MATCH(T_Tubes[[#This Row],[Description]],'3. Hardware Options'!$B$5:$B$27,0))=\"Show\",1*SUMPRODUCT(D27,F27,C27),0)","v":1},{"$f":"((Design_Width_MAX/S27)*IFERROR(SUMPRODUCT(D27,F27,P27),\"-\")*IF((S27>Design_Width_MAX*Deflection_limit),0,1)*IF(T_Tubes[[#This Row],[MaxLength]]>=Design_Width_MAX,1,0))*T_Tubes[[#This Row],[Mass/m]]","v":{"$error":"#VALUE!"}},{"$f":"IF($Q27,1+(COUNTIF($Q$15:$Q$37,\"<\"&$Q27)-COUNTIF($Q$15:$Q$37,\"<0.00001\")),IF(SheetStatus=\"Release - FFA\",999-COUNTIF($T$15:$T27,\"=0\")+1,\"\"))","v":{"$error":"#VALUE!"}},{"$error":"#VALUE!"},{"$f":"((Design_Width_MAX/S27)*IFERROR(SUMPRODUCT(D27,F27,P27),\"-\")*IF((S27>Design_Width_MAX*Deflection_limit),0,1)*IF(T_Tubes[[#This Row],[MaxLength]]>=Design_Width_MAX,1,0))","v":{"$error":"#VALUE!"}},{"$f":"IF($T27,1+(COUNTIF($T$15:$T$37,\"<\"&$T27)-COUNTIF($T$15:$T$37,\"<0.00001\")),IF(SheetStatus=\"Release - FFA\",999-COUNTIF($T$15:$T27,\"=0\")+1,\"\"))","v":{"$error":"#VALUE!"}},null,"",null,{"$f":"IF(Y26+1<=$U$11,Y26+1,999-COUNT($Y$15:Y26)+$U$11)","v":987},null,null,"",{"$f":"((Design_Width_MAX/S27)*IFERROR(SUMPRODUCT(D27,F27,P27,C27),\"-\")*IF((S27>Design_Width_MAX*Deflection_limit*$S$7),0,1)*IF(T_Tubes[[#This Row],[MaxLength]]>=Design_Width_MAX,1,0))","v":{"$error":"#VALUE!"}},{"$f":"IF($AC27,1+(COUNTIF($AC$15:$AC$37,\"<\"&$AC27)-COUNTIF($AC$15:$AC$37,\"<0.00001\")),IF(SheetStatus=\"Release - FFA\",999-COUNTIF($T$15:$T27,\"=0\")+1,\"\"))","v":{"$error":"#VALUE!"}},{"$f":"IF(T27<>0,ABS(T_Tubes[[#This Row],[NumTurns]]-$AE$9),\"\")","v":{"$error":"#VALUE!"}},"",{"$f":"IF($AC27,1+(COUNTIF($AC$15:$AC$37,\"<\"&$AC27)-COUNTIF($AC$15:$AC$37,\"<0.00001\")),IF(SheetStatus=\"Release - FFA\",999-COUNTIF($AC$15:$AC27,\"=0\")+1,\"0\"))","v":{"$error":"#VALUE!"}},{"$f":"IF(AC27<>0,T_Tubes[[#This Row],[Mass/m]],\"\")","v":{"$error":"#VALUE!"}},"","","",null,null,"",null,null,null,1,1]
[null,null,1,1,"Global",1,"RB93-0449","S45 | HD",49,1.0462,100660.56,6844.9180799999995,null,5.8,{"$f":"(-T_Tubes[[#This Row],[Tube OD]]+SQRT(T_Tubes[[#This Row],[Tube OD]]^2+4*Fabric_Thickness*Design_Drop*1000/PI()))/(2*Fabric_Thickness)","v":{"$error":"#VALUE!"}},{"$f":"IF(INDEX('3. Hardware Options'!$E$5:$E$27,MATCH(T_Tubes[[#This Row],[Description]],'3. Hardware Options'!$B$5:$B$27,0))=\"Show\",1*SUMPRODUCT(D28,F28,C28),0)","v":1},{"$f":"((Design_Width_MAX/S28)*IFERROR(SUMPRODUCT(D28,F28,P28),\"-\")*IF((S28>Design_Width_MAX*Deflection_limit),0,1)*IF(T_Tubes[[#This Row],[MaxLength]]>=Design_Width_MAX,1,0))*T_Tubes[[#This Row],[Mass/m]]","v":{"$error":"#VALUE!"}},{"$f":"IF($Q28,1+(COUNTIF($Q$15:$Q$37,\"<\"&$Q28)-COUNTIF($Q$15:$Q$37,\"<0.00001\")),IF(SheetStatus=\"Release - FFA\",999-COUNTIF($T$15:$T28,\"=0\")+1,\"\"))","v":{"$error":"#VALUE!"}},{"$error":"#VALUE!"},{"$f":"((Design_Width_MAX/S28)*IFERROR(SUMPRODUCT(D28,F28,P28),\"-\")*IF((S28>Design_Width_MAX*Deflection_limit),0,1)*IF(T_Tubes[[#This Row],[MaxLength]]>=Design_Width_MAX,1,0))","v":{"$error":"#VALUE!"}},{"$f":"IF($T28,1+(COUNTIF($T$15:$T$37,\"<\"&$T28)-COUNTIF($T$15:$T$37,\"<0.00001\")),IF(SheetStatus=\"Release - FFA\",999-COUNTIF($T$15:$T28,\"=0\")+1,\"\"))","v":{"$error":"#VALUE!"}},null,"",null,{"$f":"IF(Y27+1<=$U$11,Y27+1,999-COUNT($Y$15:Y27)+$U$11)","v":986},null,null,"",{"$f":"((Design_Width_MAX/S28)*IFERROR(SUMPRODUCT(D28,F28,P28,C28),\"-\")*IF((S28>Design_Width_MAX*Deflection_limit*$S$7),0,1)*IF(T_Tubes[[#This Row],[MaxLength]]>=Design_Width_MAX,1,0))","v":{"$error":"#VALUE!"}},{"$f":"IF($AC28,1+(COUNTIF($AC$15:$AC$37,\"<\"&$AC28)-COUNTIF($AC$15:$AC$37,\"<0.00001\")),IF(SheetStatus=\"Release - FFA\",999-COUNTIF($T$15:$T28,\"=0\")+1,\"\"))","v":{"$error":"#VALUE!"}},{"$f":"IF(T28<>0,ABS(T_Tubes[[#This Row],[NumTurns]]-$AE$9),\"\")","v":{"$error":"#VALUE!"}},"",{"$f":"IF($AC28,1+(COUNTIF($AC$15:$AC$37,\"<\"&$AC28)-COUNTIF($AC$15:$AC$37,\"<0.00001\")),IF(SheetStatus=\"Release - FFA\",999-COUNTIF($AC$15:$AC28,\"=0\")+1,\"0\"))","v":{"$error":"#VALUE!"}},{"$f":"IF(AC28<>0,T_Tubes[[#This Row],[Mass/m]],\"\")","v":{"$error":"#VALUE!"}},"","","",null,null,"",null,null,null,1,1]
[null,null,{"$f":"IF(i_ControlType=\"Easy Spring Air\",0,1)","v":1},1,"Global",1,"RB91-0260","S60 | 60 STD",60,1.19,174117,11839.956,null,5.8,{"$f":"(-T_Tubes[[#This Row],[Tube OD]]+SQRT(T_Tubes[[#This Row],[Tube OD]]^2+4*Fabric_Thickness*Design_Drop*1000/PI()))/(2*Fabric_Thickness)","v":{"$error":"#VALUE!"}},{"$f":"IF(INDEX('3. Hardware Options'!$E$5:$E$27,MATCH(T_Tubes[[#This Row],[Description]],'3. Hardware Options'!$B$5:$B$27,0))=\"Show\",1*SUMPRODUCT(D29,F29,C29),0)","v":1},{"$f":"((Design_Width_MAX/S29)*IFERROR(SUMPRODUCT(D29,F29,P29),\"-\")*IF((S29>Design_Width_MAX*Deflection_limit),0,1)*IF(T_Tubes[[#This Row],[MaxLength]]>=Design_Width_MAX,1,0))*T_Tubes[[#This Row],[Mass/m]]","v":{"$error":"#VALUE!"}},{"$f":"IF($Q29,1+(COUNTIF($Q$15:$Q$37,\"<\"&$Q29)-COUNTIF($Q$15:$Q$37,\"<0.00001\")),IF(SheetStatus=\"Release - FFA\",999-COUNTIF($T$15:$T29,\"=0\")+1,\"\"))","v":{"$error":"#VALUE!"}},{"$error":"#VALUE!"},{"$f":"((Design_Width_MAX/S29)*IFERROR(SUMPRODUCT(D29,F29,P29),\"-\")*IF((S29>Design_Width_MAX*Deflection_limit),0,1)*IF(T_Tubes[[#This Row],[MaxLength]]>=Design_Width_MAX,1,0))","v":{"$error":"#VALUE!"}},{"$f":"IF($T29,1+(COUNTIF($T$15:$T$37,\"<\"&$T29)-COUNTIF($T$15:$T$37,\"<0.00001\")),IF(SheetStatus=\"Release - FFA\",999-COUNTIF($T$15:$T29,\"=0\")+1,\"\"))","v":{"$error":"#VALUE!"}},null,"",null,{"$f":"IF(Y28+1<=$U$11,Y28+1,999-COUNT($Y$15:Y28)+$U$11)","v":985},null,null,"",{"$f":"((Design_Width_MAX/S29)*IFERROR(SUMPRODUCT(D29,F29,P29,C29),\"-\")*IF((S29>Design_Width_MAX*Deflection_limit*$S$7),0,1)*IF(T_Tubes[[#This Row],[MaxLength]]>=Design_Width_MAX,1,0))","v":{"$error":"#VALUE!"}},{"$f":"IF($AC29,1+(COUNTIF($AC$15:$AC$37,\"<\"&$AC29)-COUNTIF($AC$15:$AC$37,\"<0.00001\")),IF(SheetStatus=\"Release - FFA\",999-COUNTIF($T$15:$T29,\"=0\")+1,\"\"))","v":{"$error":"#VALUE!"}},{"$f":"IF(T29<>0,ABS(T_Tubes[[#This Row],[NumTurns]]-$AE$9),\"\")","v":{"$error":"#VALUE!"}},"",{"$f":"IF($AC29,1+(COUNTIF($AC$15:$AC$37,\"<\"&$AC29)-COUNTIF($AC$15:$AC$37,\"<0.00001\")),IF(SheetStatus=\"Release - FFA\",999-COUNTIF($AC$15:$AC29,\"=0\")+1,\"0\"))","v":{"$error":"#VALUE!"}},{"$f":"IF(AC29<>0,T_Tubes[[#This Row],[Mass/m]],\"\")","v":{"$error":"#VALUE!"}},"","","",null,null,"",null,{"$f":"IF(i_Control=RB09_S45,,1)","v":1}]
[null,null,1,1,"Global",1,"RB91-0280","S60 | 80 HD",80,2.04,486059,{"$f":"(K30*10^-12)*AL_E","v":33052.012000000002},null,5.8,{"$f":"(-T_Tubes[[#This Row],[Tube OD]]+SQRT(T_Tubes[[#This Row],[Tube OD]]^2+4*Fabric_Thickness*Design_Drop*1000/PI()))/(2*Fabric_Thickness)","v":{"$error":"#VALUE!"}},{"$f":"IF(INDEX('3. Hardware Options'!$E$5:$E$27,MATCH(T_Tubes[[#This Row],[Description]],'3. Hardware Options'!$B$5:$B$27,0))=\"Show\",1*SUMPRODUCT(D30,F30,C30),0)","v":1},{"$f":"((Design_Width_MAX/S30)*IFERROR(SUMPRODUCT(D30,F30,P30),\"-\")*IF((S30>Design_Width_MAX*Deflection_limit),0,1)*IF(T_Tubes[[#This Row],[MaxLength]]>=Design_Width_MAX,1,0))*T_Tubes[[#This Row],[Mass/m]]","v":{"$error":"#VALUE!"}},{"$f":"IF($Q30,1+(COUNTIF($Q$15:$Q$37,\"<\"&$Q30)-COUNTIF($Q$15:$Q$37,\"<0.00001\")),IF(SheetStatus=\"Release - FFA\",999-COUNTIF($T$15:$T30,\"=0\")+1,\"\"))","v":{"$error":"#VALUE!"}},{"$error":"#VALUE!"},{"$f":"((Design_Width_MAX/S30)*IFERROR(SUMPRODUCT(D30,F30,P30),\"-\")*IF((S30>Design_Width_MAX*Deflection_limit),0,1)*IF(T_Tubes[[#This Row],[MaxLength]]>=Design_Width_MAX,1,0))","v":{"$error":"#VALUE!"}},{"$f":"IF($T30,1+(COUNTIF($T$15:$T$37,\"<\"&$T30)-COUNTIF($T$15:$T$37,\"<0.00001\")),IF(SheetStatus=\"Release - FFA\",999-COUNTIF($T$15:$T30,\"=0\")+1,\"\"))","v":{"$error":"#VALUE!"}},null,"",null,{"$f":"IF(Y29+1<=$U$11,Y29+1,999-COUNT($Y$15:Y29)+$U$11)","v":984},null,null,"",{"$f":"((Design_Width_MAX/S30)*IFERROR(SUMPRODUCT(D30,F30,P30,C30),\"-\")*IF((S30>Design_Width_MAX*Deflection_limit*$S$7),0,1)*IF(T_Tubes[[#This Row],[MaxLength]]>=Design_Width_MAX,1,0))","v":{"$error":"#VALUE!"}},{"$f":"IF($AC30,1+(COUNTIF($AC$15:$AC$37,\"<\"&$AC30)-COUNTIF($AC$15:$AC$37,\"<0.00001\")),IF(SheetStatus=\"Release - FFA\",999-COUNTIF($T$15:$T30,\"=0\")+1,\"\"))","v":{"$error":"#VALUE!"}},{"$f":"IF(T30<>0,ABS(T_Tubes[[#This Row],[NumTurns]]-$AE$9),\"\")","v":{"$error":"#VALUE!"}},"",{"$f":"IF($AC30,1+(COUNTIF($AC$15:$AC$37,\"<\"&$AC30)-COUNTIF($AC$15:$AC$37,\"<0.00001\")),IF(SheetStatus=\"Release - FFA\",999-COUNTIF($AC$15:$AC30,\"=0\")+1,\"0\"))","v":{"$error":"#VALUE!"}},{"$f":"IF(AC30<>0,T_Tubes[[#This Row],[Mass/m]],\"\")","v":{"$error":"#VALUE!"}},"","","",null,null,"",null,1]
[null,null,1,1,"Global",1,"RE01-0363","63 STD Aluminium",65,1.073,179064,{"$f":"(K31*10^-12)*AL_E","v":12176.351999999999},12,5.8,{"$f":"(-T_Tubes[[#This Row],[Tube OD]]+SQRT(T_Tubes[[#This Row],[Tube OD]]^2+4*Fabric_Thickness*Design_Drop*1000/PI()))/(2*Fabric_Thickness)","v":{"$error":"#VALUE!"}},{"$f":"IF(INDEX('3. Hardware Options'!$E$5:$E$27,MATCH(T_Tubes[[#This Row],[Description]],'3. Hardware Options'!$B$5:$B$27,0))=\"Show\",1*SUMPRODUCT(D31,F31,C31),0)","v":1},{"$f":"((Design_Width_MAX/S31)*IFERROR(SUMPRODUCT(D31,F31,P31),\"-\")*IF((S31>Design_Width_MAX*Deflection_limit),0,1)*IF(T_Tubes[[#This Row],[MaxLength]]>=Design_Width_MAX,1,0))*T_Tubes[[#This Row],[Mass/m]]","v":{"$error":"#VALUE!"}},{"$f":"IF($Q31,1+(COUNTIF($Q$15:$Q$37,\"<\"&$Q31)-COUNTIF($Q$15:$Q$37,\"<0.00001\")),IF(SheetStatus=\"Release - FFA\",999-COUNTIF($T$15:$T31,\"=0\")+1,\"\"))","v":{"$error":"#VALUE!"}},{"$f":"(5/384)*((g*(Fabric_Density*Design_Drop+$J31+wb_UnitMass+Ballast_UnitMass)*Design_Width_MAX^4)/$L31)*1000","v":{"$error":"#VALUE!"}},{"$f":"((Design_Width_MAX/S31)*IFERROR(SUMPRODUCT(D31,F31,P31),\"-\")*IF((S31>Design_Width_MAX*Deflection_limit),0,1)*IF(T_Tubes[[#This Row],[MaxLength]]>=Design_Width_MAX,1,0))","v":{"$error":"#VALUE!"}},{"$f":"IF($T31,1+(COUNTIF($T$15:$T$37,\"<\"&$T31)-COUNTIF($T$15:$T$37,\"<0.00001\")),IF(SheetStatus=\"Release - FFA\",999-COUNTIF($T$15:$T31,\"=0\")+1,\"\"))","v":{"$error":"#VALUE!"}},null,"",null,{"$f":"IF(Y30+1<=$U$11,Y30+1,999-COUNT($Y$15:Y30)+$U$11)","v":983},null,null,"",{"$f":"((Design_Width_MAX/S31)*IFERROR(SUMPRODUCT(D31,F31,P31,C31),\"-\")*IF((S31>Design_Width_MAX*Deflection_limit*$S$7),0,1)*IF(T_Tubes[[#This Row],[MaxLength]]>=Design_Width_MAX,1,0))","v":{"$error":"#VALUE!"}},{"$f":"IF($AC31,1+(COUNTIF($AC$15:$AC$37,\"<\"&$AC31)-COUNTIF($AC$15:$AC$37,\"<0.00001\")),IF(SheetStatus=\"Release - FFA\",999-COUNTIF($T$15:$T31,\"=0\")+1,\"\"))","v":{"$error":"#VALUE!"}},{"$f":"IF(T31<>0,ABS(T_Tubes[[#This Row],[NumTurns]]-$AE$9),\"\")","v":{"$error":"#VALUE!"}},"",{"$f":"IF($AC31,1+(COUNTIF($AC$15:$AC$37,\"<\"&$AC31)-COUNTIF($AC$15:$AC$37,\"<0.00001\")),IF(SheetStatus=\"Release - FFA\",999-COUNTIF($AC$15:$AC31,\"=0\")+1,\"0\"))","v":{"$error":"#VALUE!"}},{"$f":"IF(AC31<>0,T_Tubes[[#This Row],[Mass/m]],\"\")","v":{"$error":"#VALUE!"}},"","","",null,null,""]
[null,null,1,1,"Global",1,"RE01-0378","78 STD Aluminium",80,1.4836,373912,25426.016,12,5.8,{"$f":"(-T_Tubes[[#This Row],[Tube OD]]+SQRT(T_Tubes[[#This Row],[Tube OD]]^2+4*Fabric_Thickness*Design_Drop*1000/PI()))/(2*Fabric_Thickness)","v":{"$error":"#VALUE!"}},{"$f":"IF(INDEX('3. Hardware Options'!$E$5:$E$27,MATCH(T_Tubes[[#This Row],[Description]],'3. Hardware Options'!$B$5:$B$27,0))=\"Show\",1*SUMPRODUCT(D32,F32,C32),0)","v":1},{"$f":"((Design_Width_MAX/S32)*IFERROR(SUMPRODUCT(D32,F32,P32),\"-\")*IF((S32>Design_Width_MAX*Deflection_limit),0,1)*IF(T_Tubes[[#This Row],[MaxLength]]>=Design_Width_MAX,1,0))*T_Tubes[[#This Row],[Mass/m]]","v":{"$error":"#VALUE!"}},{"$f":"IF($Q32,1+(COUNTIF($Q$15:$Q$37,\"<\"&$Q32)-COUNTIF($Q$15:$Q$37,\"<0.00001\")),IF(SheetStatus=\"Release - FFA\",999-COUNTIF($T$15:$T32,\"=0\")+1,\"\"))","v":{"$error":"#VALUE!"}},{"$error":"#VALUE!"},{"$f":"((Design_Width_MAX/S32)*IFERROR(SUMPRODUCT(D32,F32,P32),\"-\")*IF((S32>Design_Width_MAX*Deflection_limit),0,1)*IF(T_Tubes[[#This Row],[MaxLength]]>=Design_Width_MAX,1,0))","v":{"$error":"#VALUE!"}},{"$f":"IF($T32,1+(COUNTIF($T$15:$T$37,\"<\"&$T32)-COUNTIF($T$15:$T$37,\"<0.00001\")),IF(SheetStatus=\"Release - FFA\",999-COUNTIF($T$15:$T32,\"=0\")+1,\"\"))","v":{"$error":"#VALUE!"}},null,"",null,{"$f":"IF(Y31+1<=$U$11,Y31+1,999-COUNT($Y$15:Y31)+$U$11)","v":982},null,null,"",{"$f":"((Design_Width_MAX/S32)*IFERROR(SUMPRODUCT(D32,F32,P32,C32),\"-\")*IF((S32>Design_Width_MAX*Deflection_limit*$S$7),0,1)*IF(T_Tubes[[#This Row],[MaxLength]]>=Design_Width_MAX,1,0))","v":{"$error":"#VALUE!"}},{"$f":"IF($AC32,1+(COUNTIF($AC$15:$AC$37,\"<\"&$AC32)-COUNTIF($AC$15:$AC$37,\"<0.00001\")),IF(SheetStatus=\"Release - FFA\",999-COUNTIF($T$15:$T32,\"=0\")+1,\"\"))","v":{"$error":"#VALUE!"}},{"$f":"IF(T32<>0,ABS(T_Tubes[[#This Row],[NumTurns]]-$AE$9),\"\")","v":{"$error":"#VALUE!"}},"",{"$f":"IF($AC32,1+(COUNTIF($AC$15:$AC$37,\"<\"&$AC32)-COUNTIF($AC$15:$AC$37,\"<0.00001\")),IF(SheetStatus=\"Release - FFA\",999-COUNTIF($AC$15:$AC32,\"=0\")+1,\"0\"))","v":{"$error":"#VALUE!"}},{"$f":"IF(AC32<>0,T_Tubes[[#This Row],[Mass/m]],\"\")","v":{"$error":"#VALUE!"}},"","","",null,null,""]
[null,null,1,1,"Global",1,"RE01-0379","78 HD Aluminium",81.599999999999994,2.0390000000000001,563190,{"$f":"(K33*10^-12)*AL_E","v":38296.92},14,5.8,{"$f":"(-T_Tubes[[#This Row],[Tube OD]]+SQRT(T_Tubes[[#This Row],[Tube OD]]^2+4*Fabric_Thickness*Design_Drop*1000/PI()))/(2*Fabric_Thickness)","v":{"$error":"#VALUE!"}},{"$f":"IF(INDEX('3. Hardware Options'!$E$5:$E$27,MATCH(T_Tubes[[#This Row],[Description]],'3. Hardware Options'!$B$5:$B$27,0))=\"Show\",1*SUMPRODUCT(D33,F33,C33),0)","v":1},{"$f":"((Design_Width_MAX/S33)*IFERROR(SUMPRODUCT(D33,F33,P33),\"-\")*IF((S33>Design_Width_MAX*Deflection_limit),0,1)*IF(T_Tubes[[#This Row],[MaxLength]]>=Design_Width_MAX,1,0))*T_Tubes[[#This Row],[Mass/m]]","v":{"$error":"#VALUE!"}},{"$f":"IF($Q33,1+(COUNTIF($Q$15:$Q$37,\"<\"&$Q33)-COUNTIF($Q$15:$Q$37,\"<0.00001\")),IF(SheetStatus=\"Release - FFA\",999-COUNTIF($T$15:$T33,\"=0\")+1,\"\"))","v":{"$error":"#VALUE!"}},{"$error":"#VALUE!"},{"$f":"((Design_Width_MAX/S33)*IFERROR(SUMPRODUCT(D33,F33,P33),\"-\")*IF((S33>Design_Width_MAX*Deflection_limit),0,1)*IF(T_Tubes[[#This Row],[MaxLength]]>=Design_Width_MAX,1,0))","v":{"$error":"#VALUE!"}},{"$f":"IF($T33,1+(COUNTIF($T$15:$T$37,\"<\"&$T33)-COUNTIF($T$15:$T$37,\"<0.00001\")),IF(SheetStatus=\"Release - FFA\",999-COUNTIF($T$15:$T33,\"=0\")+1,\"\"))","v":{"$error":"#VALUE!"}},null,"",null,{"$f":"IF(Y32+1<=$U$11,Y32+1,999-COUNT($Y$15:Y32)+$U$11)","v":981},null,null,"",{"$f":"((Design_Width_MAX/S33)*IFERROR(SUMPRODUCT(D33,F33,P33,C33),\"-\")*IF((S33>Design_Width_MAX*Deflection_limit*$S$7),0,1)*IF(T_Tubes[[#This Row],[MaxLength]]>=Design_Width_MAX,1,0))","v":{"$error":"#VALUE!"}},{"$f":"IF($AC33,1+(COUNTIF($AC$15:$AC$37,\"<\"&$AC33)-COUNTIF($AC$15:$AC$37,\"<0.00001\")),IF(SheetStatus=\"Release - FFA\",999-COUNTIF($T$15:$T33,\"=0\")+1,\"\"))","v":{"$error":"#VALUE!"}},{"$f":"IF(T33<>0,ABS(T_Tubes[[#This Row],[NumTurns]]-$AE$9),\"\")","v":{"$error":"#VALUE!"}},"",{"$f":"IF($AC33,1+(COUNTIF($AC$15:$AC$37,\"<\"&$AC33)-COUNTIF($AC$15:$AC$37,\"<0.00001\")),IF(SheetStatus=\"Release - FFA\",999-COUNTIF($AC$15:$AC33,\"=0\")+1,\"0\"))","v":{"$error":"#VALUE!"}},{"$f":"IF(AC33<>0,T_Tubes[[#This Row],[Mass/m]],\"\")","v":{"$error":"#VALUE!"}},"","","",null,null,""]
[null,null,1,1,"Global",1,"AW92-0901","78 STEEL",78,2.3477000000000001,180026,{"$f":"(K34*10^-12)*Steel_E","v":36005.199999999997},12,5.8,{"$f":"(-T_Tubes[[#This Row],[Tube OD]]+SQRT(T_Tubes[[#This Row],[Tube OD]]^2+4*Fabric_Thickness*Design_Drop*1000/PI()))/(2*Fabric_Thickness)","v":{"$error":"#VALUE!"}},{"$f":"IF(INDEX('3. Hardware Options'!$E$5:$E$27,MATCH(T_Tubes[[#This Row],[Description]],'3. Hardware Options'!$B$5:$B$27,0))=\"Show\",1*SUMPRODUCT(D34,F34,C34),0)","v":1},{"$f":"((Design_Width_MAX/S34)*IFERROR(SUMPRODUCT(D34,F34,P34),\"-\")*IF((S34>Design_Width_MAX*Deflection_limit),0,1)*IF(T_Tubes[[#This Row],[MaxLength]]>=Design_Width_MAX,1,0))*T_Tubes[[#This Row],[Mass/m]]","v":{"$error":"#VALUE!"}},{"$f":"IF($Q34,1+(COUNTIF($Q$15:$Q$37,\"<\"&$Q34)-COUNTIF($Q$15:$Q$37,\"<0.00001\")),IF(SheetStatus=\"Release - FFA\",999-COUNTIF($T$15:$T34,\"=0\")+1,\"\"))","v":{"$error":"#VALUE!"}},{"$error":"#VALUE!"},{"$f":"((Design_Width_MAX/S34)*IFERROR(SUMPRODUCT(D34,F34,P34),\"-\")*IF((S34>Design_Width_MAX*Deflection_limit),0,1)*IF(T_Tubes[[#This Row],[MaxLength]]>=Design_Width_MAX,1,0))","v":{"$error":"#VALUE!"}},{"$f":"IF($T34,1+(COUNTIF($T$15:$T$37,\"<\"&$T34)-COUNTIF($T$15:$T$37,\"<0.00001\")),IF(SheetStatus=\"Release - FFA\",999-COUNTIF($T$15:$T34,\"=0\")+1,\"\"))","v":{"$error":"#VALUE!"}},null,"",null,{"$f":"IF(Y33+1<=$U$11,Y33+1,999-COUNT($Y$15:Y33)+$U$11)","v":980},null,null,"",{"$f":"((Design_Width_MAX/S34)*IFERROR(SUMPRODUCT(D34,F34,P34,C34),\"-\")*IF((S34>Design_Width_MAX*Deflection_limit*$S$7),0,1)*IF(T_Tubes[[#This Row],[MaxLength]]>=Design_Width_MAX,1,0))","v":{"$error":"#VALUE!"}},{"$f":"IF($AC34,1+(COUNTIF($AC$15:$AC$37,\"<\"&$AC34)-COUNTIF($AC$15:$AC$37,\"<0.00001\")),IF(SheetStatus=\"Release - FFA\",999-COUNTIF($T$15:$T34,\"=0\")+1,\"\"))","v":{"$error":"#VALUE!"}},{"$f":"IF(T34<>0,ABS(T_Tubes[[#This Row],[NumTurns]]-$AE$9),\"\")","v":{"$error":"#VALUE!"}},"",{"$f":"IF($AC34,1+(COUNTIF($AC$15:$AC$37,\"<\"&$AC34)-COUNTIF($AC$15:$AC$37,\"<0.00001\")),IF(SheetStatus=\"Release - FFA\",999-COUNTIF($AC$15:$AC34,\"=0\")+1,\"0\"))","v":{"$error":"#VALUE!"}},{"$f":"IF(AC34<>0,T_Tubes[[#This Row],[Mass/m]],\"\")","v":{"$error":"#VALUE!"}},"","","",null,null,""]
[null,null,1,1,"Global",1,"RB93-0110","S100 | 110 STD",110,2.9984000000000002,1445059.06,98264.016080000001,200,6,{"$f":"(-T_Tubes[[#This Row],[Tube OD]]+SQRT(T_Tubes[[#This Row],[Tube OD]]^2+4*Fabric_Thickness*Design_Drop*1000/PI()))/(2*Fabric_Thickness)","v":{"$error":"#VALUE!"}},{"$f":"IF(INDEX('3. Hardware Options'!$E$5:$E$27,MATCH(T_Tubes[[#This Row],[Description]],'3. Hardware Options'!$B$5:$B$27,0))=\"Show\",1*SUMPRODUCT(D35,F35,C35),0)","v":1},{"$f":"((Design_Width_MAX/S35)*IFERROR(SUMPRODUCT(D35,F35,P35),\"-\")*IF((S35>Design_Width_MAX*Deflection_limit),0,1)*IF(T_Tubes[[#This Row],[MaxLength]]>=Design_Width_MAX,1,0))*T_Tubes[[#This Row],[Mass/m]]","v":{"$error":"#VALUE!"}},{"$f":"IF($Q35,1+(COUNTIF($Q$15:$Q$37,\"<\"&$Q35)-COUNTIF($Q$15:$Q$37,\"<0.00001\")),IF(SheetStatus=\"Release - FFA\",999-COUNTIF($T$15:$T35,\"=0\")+1,\"\"))","v":{"$error":"#VALUE!"}},{"$error":"#VALUE!"},{"$f":"((Design_Width_MAX/S35)*IFERROR(SUMPRODUCT(D35,F35,P35),\"-\")*IF((S35>Design_Width_MAX*Deflection_limit),0,1)*IF(T_Tubes[[#This Row],[MaxLength]]>=Design_Width_MAX,1,0))","v":{"$error":"#VALUE!"}},{"$f":"IF($T35,1+(COUNTIF($T$15:$T$37,\"<\"&$T35)-COUNTIF($T$15:$T$37,\"<0.00001\")),IF(SheetStatus=\"Release - FFA\",999-COUNTIF($T$15:$T35,\"=0\")+1,\"\"))","v":{"$error":"#VALUE!"}},null,"",null,{"$f":"IF(Y34+1<=$U$11,Y34+1,999-COUNT($Y$15:Y34)+$U$11)","v":979},null,null,"",{"$f":"((Design_Width_MAX/S35)*IFERROR(SUMPRODUCT(D35,F35,P35,C35),\"-\")*IF((S35>Design_Width_MAX*Deflection_limit*$S$7),0,1)*IF(T_Tubes[[#This Row],[MaxLength]]>=Design_Width_MAX,1,0))","v":{"$error":"#VALUE!"}},{"$f":"IF($AC35,1+(COUNTIF($AC$15:$AC$37,\"<\"&$AC35)-COUNTIF($AC$15:$AC$37,\"<0.00001\")),IF(SheetStatus=\"Release - FFA\",999-COUNTIF($T$15:$T35,\"=0\")+1,\"\"))","v":{"$error":"#VALUE!"}},{"$f":"IF(T35<>0,ABS(T_Tubes[[#This Row],[NumTurns]]-$AE$9),\"\")","v":{"$error":"#VALUE!"}},"",{"$f":"IF($AC35,1+(COUNTIF($AC$15:$AC$37,\"<\"&$AC35)-COUNTIF($AC$15:$AC$37,\"<0.00001\")),IF(SheetStatus=\"Release - FFA\",999-COUNTIF($AC$15:$AC35,\"=0\")+1,\"0\"))","v":{"$error":"#VALUE!"}},{"$f":"IF(AC35<>0,T_Tubes[[#This Row],[Mass/m]],\"\")","v":{"$error":"#VALUE!"}},"","","",null,null,""]
[null,null,1,1,"Global",1,"RB93-0130","S100 | 130 HD",130,5.0403000000000002,3288498.77,223617.91636,200,7,{"$f":"(-T_Tubes[[#This Row],[Tube OD]]+SQRT(T_Tubes[[#This Row],[Tube OD]]^2+4*Fabric_Thickness*Design_Drop*1000/PI()))/(2*Fabric_Thickness)","v":{"$error":"#VALUE!"}},{"$f":"IF(INDEX('3. Hardware Options'!$E$5:$E$27,MATCH(T_Tubes[[#This Row],[Description]],'3. Hardware Options'!$B$5:$B$27,0))=\"Show\",1*SUMPRODUCT(D36,F36,C36),0)","v":1},{"$f":"((Design_Width_MAX/S36)*IFERROR(SUMPRODUCT(D36,F36,P36),\"-\")*IF((S36>Design_Width_MAX*Deflection_limit),0,1)*IF(T_Tubes[[#This Row],[MaxLength]]>=Design_Width_MAX,1,0))*T_Tubes[[#This Row],[Mass/m]]","v":{"$error":"#VALUE!"}},{"$f":"IF($Q36,1+(COUNTIF($Q$15:$Q$37,\"<\"&$Q36)-COUNTIF($Q$15:$Q$37,\"<0.00001\")),IF(SheetStatus=\"Release - FFA\",999-COUNTIF($T$15:$T36,\"=0\")+1,\"\"))","v":{"$error":"#VALUE!"}},{"$error":"#VALUE!"},{"$f":"((Design_Width_MAX/S36)*IFERROR(SUMPRODUCT(D36,F36,P36),\"-\")*IF((S36>Design_Width_MAX*Deflection_limit),0,1)*IF(T_Tubes[[#This Row],[MaxLength]]>=Design_Width_MAX,1,0))","v":{"$error":"#VALUE!"}},{"$f":"IF($T36,1+(COUNTIF($T$15:$T$37,\"<\"&$T36)-COUNTIF($T$15:$T$37,\"<0.00001\")),IF(SheetStatus=\"Release - FFA\",999-COUNTIF($T$15:$T36,\"=0\")+1,\"\"))","v":{"$error":"#VALUE!"}},null,"",null,{"$f":"IF(Y35+1<=$U$11,Y35+1,999-COUNT($Y$15:Y35)+$U$11)","v":978},null,null,"",{"$f":"((Design_Width_MAX/S36)*IFERROR(SUMPRODUCT(D36,F36,P36,C36),\"-\")*IF((S36>Design_Width_MAX*Deflection_limit*$S$7),0,1)*IF(T_Tubes[[#This Row],[MaxLength]]>=Design_Width_MAX,1,0))","v":{"$error":"#VALUE!"}},{"$f":"IF($AC36,1+(COUNTIF($AC$15:$AC$37,\"<\"&$AC36)-COUNTIF($AC$15:$AC$37,\"<0.00001\")),IF(SheetStatus=\"Release - FFA\",999-COUNTIF($T$15:$T36,\"=0\")+1,\"\"))","v":{"$error":"#VALUE!"}},{"$f":"IF(T36<>0,ABS(T_Tubes[[#This Row],[NumTurns]]-$AE$9),\"\")","v":{"$error":"#VALUE!"}},"",{"$f":"IF($AC36,1+(COUNTIF($AC$15:$AC$37,\"<\"&$AC36)-COUNTIF($AC$15:$AC$37,\"<0.00001\")),IF(SheetStatus=\"Release - FFA\",999-COUNTIF($AC$15:$AC36,\"=0\")+1,\"0\"))","v":{"$error":"#VALUE!"}},{"$f":"IF(AC36<>0,T_Tubes[[#This Row],[Mass/m]],\"\")","v":{"$error":"#VALUE!"}},"","","",null,null,""]
[null,null,1,1,"Global",1,"RB93-0160","S100 | 160 XHD",160,5.3699000000000003,5628857.2000000002,382762.28960000002,200,7,{"$f":"(-T_Tubes[[#This Row],[Tube OD]]+SQRT(T_Tubes[[#This Row],[Tube OD]]^2+4*Fabric_Thickness*Design_Drop*1000/PI()))/(2*Fabric_Thickness)","v":{"$error":"#VALUE!"}},{"$f":"IF(INDEX('3. Hardware Options'!$E$5:$E$27,MATCH(T_Tubes[[#This Row],[Description]],'3. Hardware Options'!$B$5:$B$27,0))=\"Show\",1*SUMPRODUCT(D37,F37,C37),0)","v":1},{"$f":"((Design_Width_MAX/S37)*IFERROR(SUMPRODUCT(D37,F37,P37),\"-\")*IF((S37>Design_Width_MAX*Deflection_limit),0,1)*IF(T_Tubes[[#This Row],[MaxLength]]>=Design_Width_MAX,1,0))*T_Tubes[[#This Row],[Mass/m]]","v":{"$error":"#VALUE!"}},{"$f":"IF($Q37,1+(COUNTIF($Q$15:$Q$37,\"<\"&$Q37)-COUNTIF($Q$15:$Q$37,\"<0.00001\")),IF(SheetStatus=\"Release - FFA\",999-COUNTIF($T$15:$T37,\"=0\")+1,\"\"))","v":{"$error":"#VALUE!"}},{"$error":"#VALUE!"},{"$f":"((Design_Width_MAX/S37)*IFERROR(SUMPRODUCT(D37,F37,P37),\"-\")*IF((S37>Design_Width_MAX*Deflection_limit),0,1)*IF(T_Tubes[[#This Row],[MaxLength]]>=Design_Width_MAX,1,0))","v":{"$error":"#VALUE!"}},{"$f":"IF($T37,1+(COUNTIF($T$15:$T$37,\"<\"&$T37)-COUNTIF($T$15:$T$37,\"<0.00001\")),IF(SheetStatus=\"Release - FFA\",999-COUNTIF($T$15:$T37,\"=0\")+1,\"\"))","v":{"$error":"#VALUE!"}},null,"",null,{"$f":"IF(Y36+1<=$U$11,Y36+1,999-COUNT($Y$15:Y36)+$U$11)","v":977},null,null,"",{"$f":"((Design_Width_MAX/S37)*IFERROR(SUMPRODUCT(D37,F37,P37,C37),\"-\")*IF((S37>Design_Width_MAX*Deflection_limit*$S$7),0,1)*IF(T_Tubes[[#This Row],[MaxLength]]>=Design_Width_MAX,1,0))","v":{"$error":"#VALUE!"}},{"$f":"IF($AC37,1+(COUNTIF($AC$15:$AC$37,\"<\"&$AC37)-COUNTIF($AC$15:$AC$37,\"<0.00001\")),IF(SheetStatus=\"Release - FFA\",999-COUNTIF($T$15:$T37,\"=0\")+1,\"\"))","v":{"$error":"#VALUE!"}},{"$f":"IF(T37<>0,ABS(T_Tubes[[#This Row],[NumTurns]]-$AE$9),\"\")","v":{"$error":"#VALUE!"}},"",{"$f":"IF($AC37,1+(COUNTIF($AC$15:$AC$37,\"<\"&$AC37)-COUNTIF($AC$15:$AC$37,\"<0.00001\")),IF(SheetStatus=\"Release - FFA\",999-COUNTIF($AC$15:$AC37,\"=0\")+1,\"0\"))","v":{"$error":"#VALUE!"}},{"$f":"IF(AC37<>0,T_Tubes[[#This Row],[Mass/m]],\"\")","v":{"$error":"#VALUE!"}},"","","",null,null,""]
[]
[]
[null,null,null,null,null,null,null,null,null,null,{"$f":"i_Control","v":0},null,"Count",null,"R24 has a spring assist","G200","G400",null,null,"R24","RB08 | S35","RB07 | S45","RB08 | S40 & S45","RB09 | S45","RB10 | S60"]
[null,null,null,null,null,null,null,null,null,null,null,null,{"$f":"SUM(L44:L69)","v":1},null,"Clutch Compatibility -> "]
[null,null,"Boosters",null,null,null,"(Nm/Turn)",null,"(Nm)","mm"]
[null,null,"System",null,"Codes","Description","Spring Rate","Max Turns","T_Max","Length","BoosterCount","Compat on/off",null,"Booster LIST",null,"G200","G400","R24","RB07 | S45","RB08 | S40 & S45","RB09 | S45","RB09 w/ Guide | S45","RB09 Geared | S45","RB09 Geared w/ Guide | S45","RB10 | S60"]
[null,null,null,null,null,{"$f":"z_None","v":"None"},1.0000000000000001E-9,1E-4,{"$f":"H44*G44","v":1.0000000000000002E-13},null,0,{"$f":"IFERROR(IF(o_BoosterRequired=\"Yes\",0,1),1)","v":1},null,{"$f":"IFERROR(IF(i_ControlType=z_Motor,\"\",IF(i_Control=\"\",z_SelectaControl,_xlfn._xlws.FILTER($F$44:$F$69,L44:L69))),z_NoOptions)","v":"Select a Control."},null,1,1,1,1,1,1,1,1,1,1]
[null,null,null,null,null,"Spring Assist 36\"",2.3E-2,56,{"$f":"H45*G45","v":1.288},null,1,{"$f":"IFERROR(IF(SheetStatus=\"Release - FFA\",1,INDEX($P45:$Y45,MATCH(i_Control,$P$43:$Y$43,0))),\"\")","v":""},null,null,null,1,1,1]
[null,null,null,null,null,"Spring Assist 45\"",4.4999999999999998E-2,56,2.52,null,1,"",null,null,null,1,1,1]
[null,null,null,null,"RB12-4501-SHORT","Easy Spring Ultra - Short",1.7999999999999999E-2,26,{"$f":"H47*G47","v":0.46799999999999997},null,1,""]
[null,null,null,null,"RB12-4501-LITE","Easy Spring Ultra - Light",1.4999999999999999E-2,40,{"$f":"H48*G48","v":0.6},null,1,""]
[null,null,null,null,"RB12-4501-STD","Easy Spring Ultra - STD",2.6700000000000002E-2,40,{"$f":"H49*G49","v":1.0680000000000001},null,1,""]
[null,null,null,null,"RB12-4501-HD","Easy Spring Ultra - HD",4.6699999999999998E-2,38,{"$f":"H50*G50","v":1.7746},null,1,""]
[null,null,null,null,"RB04-3512-xxx100","Easy-Lift Retro-Fit Spring Assist | S35",1.77E-2,35,{"$f":"H51*G51","v":0.61950000000000005},null,1,""]
[null,null,null,null,"RB04-4091-xxx001/2","Standard Easy-Lift Retrofit Booster | S40",2.06E-2,45,0.92700000000000005,null,1,"",null,null,null,null,null,null,1,1]
[null,null,null,null,"RB04-4092-xxx001/2","Heavy Duty Easy-Lift Retrofit Booster | S40",4.8099999999999997E-2,38,1.8277999999999999,null,1,"",null,null,null,null,null,null,1,1]
[null,null,null,null,"RB04-4391-xxx001/2","Standard Easy-Lift Retro-Fit Booster | S45",2.06E-2,45,{"$f":"H54*G54","v":0.92700000000000005},null,1,"",null,null,null,null,null,null,1,1,1,1,1,1]
[null,null,null,null,"RB04-4392-xxx001/2","Heavy Duty Easy-Lift Retro-Fit Booster | S45",4.8099999999999997E-2,38,{"$f":"H55*G55","v":1.8277999999999999},null,1,"",null,null,null,null,null,null,1,1,1,1,1,1]
[null,null,null,null,"RB10-6040-xxx011/2","Light RB10 Retro-Fit Booster | S60",4.9500000000000002E-2,40,{"$f":"H56*G56","v":1.98},null,1,"",null,null,null,null,null,null,null,null,null,null,null,null,1]
[null,null,null,null,"RB10-6040-xxx031/2","Standard RB10 Retro-Fit Booster | S60",8.3900000000000002E-2,38,{"$f":"H57*G57","v":3.1882000000000001},null,1,"",null,null,null,null,null,null,null,null,null,null,null,null,1]
[null,null,null,null,"RB10-6040-xxx041/2","Heavy Duty RB10 Retro-Fit Booster | S60",0.14419999999999999,31,{"$f":"H58*G58","v":4.4702000000000002},null,1,"",null,null,null,null,null,null,null,null,null,null,null,null,1]
[null,null,null,null,"RB10-6040-xxx051","Extra Heavy Duty RB10 Retro-Fit Booster | S60",0.25340000000000001,25,6.335,null,1,""]
[null,null,null,null,null,"COMPACT RE01 Spring",5.5E-2,25,{"$f":"H60*G60","v":1.375},null,1,""]
[null,null,null,null,null,"Short RE01 Spring",8.3199999999999996E-2,25,2.08,null,1,""]
[null,null,null,null,null,"X-Light RE01 Spring",2.8799999999999999E-2,57,1.6415999999999999,null,1,""]
[null,null,null,null,null,"Light RE01 Spring",4.9500000000000002E-2,40,1.98,null,1,""]
[null,null,null,null,null,"Medium Light RE01 Spring",6.1129999999999997E-2,43,2.62859,null,1,""]
[null,null,null,null,"RB10-6040-xxx031/2","Standard RE01 Spring",8.3900000000000002E-2,38,3.1882000000000001,null,1,""]
[null,null,null,null,"RB10-6040-xxx041/2","Heavy Duty RE01 Spring",0.14419999999999999,31,4.4702000000000002,null,1,""]
[null,null,null,null,null,"X-Heavy RE01 Spring",0.25340000000000001,25,6.335,null,1,""]
[null,null,null,null,null,"Dual Heavy RE01 Springs",{"$f":"0.1442*2","v":0.28839999999999999},31,8.9404000000000003,null,2,""]
[null,null,null,null,null,"Dual X-Heavy RE01 Springs",{"$f":"G67*2","v":0.50680000000000003},{"$f":"H67","v":25},12.67,null,2,""]
[]
[]
[null,null,null,null,null,null,null,null,null,null,null,null,"COUNT"]
[null,null,null,null,null,null,null,null,null,null,null,null,{"$f":"SUM($L$76:$L$89)","v":13}]
[null,null,"Weight Bar",null,null,null,"(mm²)","g/m",null,"Region","OPTIONS ","TOTAL"]
[null,null,"Column1","Region","Codes","Description","CSA","Mass/m",null,"on/off","on/off","on/off","Weight Bar LIST"]
[null,null,null,"Global","All",{"$f":"z_CustomWBData","v":"_Custom Weight Bar Data"},null,{"$f":"IFERROR(IF(i_wbballast_Custom>0,i_wbballast_Custom/IF(i_Units=\"Metric\",1,INDEX(T_Units[Factor],MATCH(\"g/m\",T_Units[Metric],0))),\"-\"),\"-\")","v":"-"},null,{"$f":"IF(i_Region=\"Global\",1,IF(OR(i_Region=D76,D76=\"Global\"),1,0))","v":1},{"$f":"IF(INDEX('3. Hardware Options'!$J$5:$J$27,MATCH(T_WeightBars[[#This Row],[Description]],'3. Hardware Options'!$G$5:$G$27,0))=\"Show\",1,0)","v":1},{"$f":"SUMPRODUCT(J76,K76)","v":1},{"$f":"_xlfn._xlws.FILTER($F$76:$F$88,$L$76:$L$88)","v":"_Custom Weight Bar Data"}]
[null,null,null,"US","Internal","Internal Hem Bar",null,186,null,1,{"$f":"IF(INDEX('3. Hardware Options'!$J$5:$J$27,MATCH(T_WeightBars[[#This Row],[Description]],'3. Hardware Options'!$G$5:$G$27,0))=\"Show\",1,0)","v":1},{"$f":"SUMPRODUCT(J77,K77)","v":1},"Internal Hem Bar"]
[null,null,null,"US","Internal","External Hem Bar",null,250,null,{"$f":"IF(i_Region=\"Global\",1,IF(OR(i_Region=D78,D78=\"Global\"),1,0))","v":1},{"$f":"IF(INDEX('3. Hardware Options'!$J$5:$J$27,MATCH(T_WeightBars[[#This Row],[Description]],'3. Hardware Options'!$G$5:$G$27,0))=\"Show\",1,0)","v":1},{"$f":"SUMPRODUCT(J78,K78)","v":1},"External Hem Bar"]
[null,null,null,"US","Internal","Fabric Wrap Hem Bar",null,235,null,{"$f":"IF(i_Region=\"Global\",1,IF(OR(i_Region=D79,D79=\"Global\"),1,0))","v":1},{"$f":"IF(INDEX('3. Hardware Options'!$J$5:$J$27,MATCH(T_WeightBars[[#This Row],[Description]],'3. Hardware Options'!$G$5:$G$27,0))=\"Show\",1,0)","v":1},{"$f":"SUMPRODUCT(J79,K79)","v":1},"Fabric Wrap Hem Bar"]
[null,null,null,"AU","Internal","Mini Bottom Rail",null,190,null,1,{"$f":"IF(INDEX('3. Hardware Options'!$J$5:$J$27,MATCH(T_WeightBars[[#This Row],[Description]],'3. Hardware Options'!$G$5:$G$27,0))=\"Show\",1,0)","v":1},1,"Mini Bottom Rail"]
[null,null,null,"AU","Internal","Flat Bottom Rail",89,240,null,1,{"$f":"IF(INDEX('3. Hardware Options'!$J$5:$J$27,MATCH(T_WeightBars[[#This Row],[Description]],'3. Hardware Options'!$G$5:$G$27,0))=\"Show\",1,0)","v":1},1,"Flat Bottom Rail"]
[null,null,null,"AU","Internal","Round Bottom Rail",98,260,null,1,{"$f":"IF(INDEX('3. Hardware Options'!$J$5:$J$27,MATCH(T_WeightBars[[#This Row],[Description]],'3. Hardware Options'!$G$5:$G$27,0))=\"Show\",1,0)","v":1},1,"Round Bottom Rail"]
[null,null,null,"AU","Internal","Oval Bottom Rail",105,280,null,1,{"$f":"IF(INDEX('3. Hardware Options'!$J$5:$J$27,MATCH(T_WeightBars[[#This Row],[Description]],'3. Hardware Options'!$G$5:$G$27,0))=\"Show\",1,0)","v":1},1,"Oval Bottom Rail"]
[null,null,null,"Global","Internal","D30 Medium Bottom Rail",107,306,null,1,{"$f":"IF(INDEX('3. Hardware Options'!$J$5:$J$27,MATCH(T_WeightBars[[#This Row],[Description]],'3. Hardware Options'!$G$5:$G$27,0))=\"Show\",1,0)","v":1},1,"D30 Medium Bottom Rail"]
[null,null,null,"Global","Internal","Bottom Up Weight Bar",160,433,null,1,{"$f":"IF(INDEX('3. Hardware Options'!$J$5:$J$27,MATCH(T_WeightBars[[#This Row],[Description]],'3. Hardware Options'!$G$5:$G$27,0))=\"Show\",1,0)","v":1},1,"Bottom Up Weight Bar"]
[null,null,null,"Global","Internal","F4115 Heavy Duty Bottom Rail",206,540,null,1,{"$f":"IF(INDEX('3. Hardware Options'!$J$5:$J$27,MATCH(T_WeightBars[[#This Row],[Description]],'3. Hardware Options'!$G$5:$G$27,0))=\"Show\",1,0)","v":1},1,"F4115 Heavy Duty Bottom Rail"]
[null,null,null,"Global","Internal","F56 HD Weight Bar",null,1295,null,1,{"$f":"IF(INDEX('3. Hardware Options'!$J$5:$J$27,MATCH(T_WeightBars[[#This Row],[Description]],'3. Hardware Options'!$G$5:$G$27,0))=\"Show\",1,0)","v":1},1,"F56 HD Weight Bar"]
[null,null,null,"Global","Internal","F72 HD Weight Bar",null,2012,null,1,{"$f":"IF(INDEX('3. Hardware Options'!$J$5:$J$27,MATCH(T_WeightBars[[#This Row],[Description]],'3. Hardware Options'!$G$5:$G$27,0))=\"Show\",1,0)","v":1},1,"F72 HD Weight Bar"]
[null,null,null,null,null,null,null,null,null,null,null,null,null,null,null,null,"OLD =IF(T_Controls[@[Capacity (kg)]]>o_fabric_wb_mass,1,0)"]
[null,null,null,null,null,null,null,null,null,null,null,null,null,null,null,null,null,null,"Adaptor?"]
[null,null,null,null,null,null,null,null,null,null,null,{"$f":"o_tMax_Sum","v":""},"Nm (required holding capacity)",null,null,null,null,null,{"$f":"IFERROR(IF(i_ControlType=\"Motor\",z_ReferCatalogue,INDEX(T_Adaptors[Adaptor Code],MATCH(INDEX($T$96:$T$112,MATCH(i_Control,$F$96:$F$112,0)),T_Adaptors[ID],0))),\"\")","v":""}]
[null,null,null,null,null,"**if changing descriptions here, MUST update the descriptions in the bracket & springs compatibility lookup table header",null,null,null,null,null,{"$f":"o_fabric_wb_mass","v":{"$error":"#VALUE!"}},"kg"]
[null,null,null,null,null,null,null,null,null,null,"selected tube",{"$f":"i_Tube","v":0},null,null,null,null,null,"List Length",{"$f":"IF(SUM($T$96:$T$124)=0,1,COUNTIF($T$96:$T$124,\">0\"))","v":{"$error":"#N/A"}},null,null,"CONTROL vs. TUBE COMPATIBILITY"]
[null,null,"T_Controls",null,null,null,"(mm)","(Nm)","(Nm)","(Nm)","Default",null,"OPTIONS","(mm)",null,null,null,null,null,null,null,1,2,3,4,5,6,7]
[null,null,"Region",null,"Control Type","Description","Diameter","Holding Capacity","Holding Capacity MAX","Gear Ratio","Friction","rpm","Capacity (kg)","ChainCoveredLength","Control OnOff","Type OnOff","Tube OnOff","Region OnOff","holding OK?","TOTAL","CONTROL LIST",null,"1\"","1-1/8\"","1-1/4\"","1-1/2\"","2\"","2-1/2\"","3-1/4\"","S35 STD","S35 HD","S40 STD","S40 HD","S45 | LIGHT","S45 | STD","S45 | HD","S60 | 60 STD","S60 | 80 HD","63 STD Aluminium","78 STD Aluminium","78 HD Aluminium","78 STEEL","S100 | 110 STD","S100 | 130 HD","S100 | 160 XHD"]
[null,null,"Global","Skyline",{"$f":"z_Clutch","v":"Clutch"},"G200",58.42,2.04,{"$f":"G200_Capacity+$I$46","v":4.5600000000000005},1.77,0.23,null,{"$f":"IFERROR(IF($H96<>\"\",(($H96)/((Tube_OD/2/1000)))/g,\"\"),\"-\")","v":"-"},172,{"$f":"IF(INDEX('3. Hardware Options'!$O$5:$O$53,MATCH(T_Controls[[#This Row],[Description]],'3. Hardware Options'!$L$5:$L$49,0))=\"Show\",1,0)","v":1},{"$f":"IF(i_ControlType=T_Controls[[#This Row],[Control Type]],1,0)","v":0},{"$f":"INDEX(W96:AS96,,MATCH(i_Tube,$W$95:$AS$95,0))","v":{"$error":"#N/A"}},{"$f":"IF(i_Region=\"Global\",1,IF(OR(i_Region=C96,C96=\"Global\"),1,0))","v":1},{"$f":"IF(T_Controls[Holding Capacity MAX]>o_tMax_Sum,1,0)","v":0},{"$f":"IF(AND(i_ControlType=T_Controls[[#This Row],[Control Type]],SheetStatus=\"Release - FFA\"),1,SUMPRODUCT(P96,Q96,S96,O96,R96))","v":{"$error":"#N/A"}},{"$f":"IFERROR(IF(i_ControlType=\"\",\"\",IF(SUM($T$96:$T$124)=0,z_NoOptions,_xlfn._xlws.FILTER(T_Controls[Description],$T$96:$T$124))),\"\")","v":""},null,null,null,null,1,2,3]
[null,null,"Global","Skyline","Clutch","G400",81.28,4.5,{"$f":"G400_Capacity+$I$46","v":7.02},1.77,0.23,null,"-",228,{"$f":"IF(INDEX('3. Hardware Options'!$O$5:$O$53,MATCH(T_Controls[[#This Row],[Description]],'3. Hardware Options'!$L$5:$L$49,0))=\"Show\",1,0)","v":1},{"$f":"IF(i_ControlType=T_Controls[[#This Row],[Control Type]],1,0)","v":0},{"$f":"INDEX(W97:AS97,,MATCH(i_Tube,$W$95:$AS$95,0))","v":{"$error":"#N/A"}},1,0,{"$f":"IF(AND(i_ControlType=T_Controls[[#This Row],[Control Type]],SheetStatus=\"Release - FFA\"),1,SUMPRODUCT(P97,Q97,S97,O97,R97))","v":{"$error":"#N/A"}},null,null,null,null,null,1,2,3,3]
[null,null,"US","R-Series","Clutch","R8",40.64,0.5,{"$f":"T_Controls[[#This Row],[Holding Capacity]]","v":0.5},1,0.23,null,"-",120,{"$f":"IF(INDEX('3. Hardware Options'!$O$5:$O$53,MATCH(T_Controls[[#This Row],[Description]],'3. Hardware Options'!$L$5:$L$49,0))=\"Show\",1,0)","v":1},{"$f":"IF(i_ControlType=T_Controls[[#This Row],[Control Type]],1,0)","v":0},{"$f":"INDEX(W98:AS98,,MATCH(i_Tube,$W$95:$AS$95,0))","v":{"$error":"#N/A"}},1,0,{"$f":"IF(AND(i_ControlType=T_Controls[[#This Row],[Control Type]],SheetStatus=\"Release - FFA\"),1,SUMPRODUCT(P98,Q98,S98,O98,R98))","v":{"$error":"#N/A"}},null,null,1,1,1,1]
[null,null,"US","R-Series","Clutch","R16",58.42,1.36,{"$f":"T_Controls[[#This Row],[Holding Capacity]]","v":1.36},1,0.23,null,"-",178,{"$f":"IF(INDEX('3. Hardware Options'!$O$5:$O$53,MATCH(T_Controls[[#This Row],[Description]],'3. Hardware Options'!$L$5:$L$49,0))=\"Show\",1,0)","v":1},{"$f":"IF(i_ControlType=T_Controls[[#This Row],[Control Type]],1,0)","v":0},{"$f":"INDEX(W99:AS99,,MATCH(i_Tube,$W$95:$AS$95,0))","v":{"$error":"#N/A"}},1,0,{"$f":"IF(AND(i_ControlType=T_Controls[[#This Row],[Control Type]],SheetStatus=\"Release - FFA\"),1,SUMPRODUCT(P99,Q99,S99,O99,R99))","v":{"$error":"#N/A"}},null,null,null,null,null,1,2,3]
[null,null,"US","R-Series","Clutch","R24",81.58,2.04,{"$f":"T_Controls[[#This Row],[Holding Capacity]]+$I$46","v":4.5600000000000005},1,0.23,null,"-",229,{"$f":"IF(INDEX('3. Hardware Options'!$O$5:$O$53,MATCH(T_Controls[[#This Row],[Description]],'3. Hardware Options'!$L$5:$L$49,0))=\"Show\",1,0)","v":1},{"$f":"IF(i_ControlType=T_Controls[[#This Row],[Control Type]],1,0)","v":0},{"$f":"INDEX(W100:AS100,,MATCH(i_Tube,$W$95:$AS$95,0))","v":{"$error":"#N/A"}},1,0,{"$f":"IF(AND(i_ControlType=T_Controls[[#This Row],[Control Type]],SheetStatus=\"Release - FFA\"),1,SUMPRODUCT(P100,Q100,S100,O100,R100))","v":{"$error":"#N/A"}},null,null,null,null,null,1,2,3]
[null,null,"AU",null,"Clutch","RB08 | S35",37.9,1,{"$f":"T_Controls[[#This Row],[Holding Capacity]]","v":1},1,0.2,null,"-",50,{"$f":"IF(INDEX('3. Hardware Options'!$O$5:$O$53,MATCH(T_Controls[[#This Row],[Description]],'3. Hardware Options'!$L$5:$L$49,0))=\"Show\",1,0)","v":1},{"$f":"IF(i_ControlType=T_Controls[[#This Row],[Control Type]],1,0)","v":0},{"$f":"INDEX(W101:AS101,,MATCH(i_Tube,$W$95:$AS$95,0))","v":{"$error":"#N/A"}},1,0,{"$f":"IF(AND(i_ControlType=T_Controls[[#This Row],[Control Type]],SheetStatus=\"Release - FFA\"),1,SUMPRODUCT(P101,Q101,S101,O101,R101))","v":{"$error":"#N/A"}},null,null,null,null,null,null,null,null,null,1,1,1,1]
[null,null,"AU",null,"Clutch","RB07 | S45",45.6,1,{"$f":"T_Controls[[#This Row],[Holding Capacity]]+$I$55","v":2.8277999999999999},1,0.2,null,"-",136,{"$f":"IF(INDEX('3. Hardware Options'!$O$5:$O$53,MATCH(T_Controls[[#This Row],[Description]],'3. Hardware Options'!$L$5:$L$49,0))=\"Show\",1,0)","v":1},{"$f":"IF(i_ControlType=T_Controls[[#This Row],[Control Type]],1,0)","v":0},{"$f":"INDEX(W102:AS102,,MATCH(i_Tube,$W$95:$AS$95,0))","v":{"$error":"#N/A"}},1,0,{"$f":"IF(AND(i_ControlType=T_Controls[[#This Row],[Control Type]],SheetStatus=\"Release - FFA\"),1,SUMPRODUCT(P102,Q102,S102,O102,R102))","v":{"$error":"#N/A"}},null,null,null,null,null,null,null,null,null,null,null,null,null,1,1,1]
[null,null,"AU",null,"Clutch","RB08 | S40 & S45",45.6,1,{"$f":"T_Controls[[#This Row],[Holding Capacity]]+$I$55","v":2.8277999999999999},1,0.2,null,"-",58,{"$f":"IF(INDEX('3. Hardware Options'!$O$5:$O$53,MATCH(T_Controls[[#This Row],[Description]],'3. Hardware Options'!$L$5:$L$49,0))=\"Show\",1,0)","v":1},{"$f":"IF(i_ControlType=T_Controls[[#This Row],[Control Type]],1,0)","v":0},{"$f":"INDEX(W103:AS103,,MATCH(i_Tube,$W$95:$AS$95,0))","v":{"$error":"#N/A"}},1,0,{"$f":"IF(AND(i_ControlType=T_Controls[[#This Row],[Control Type]],SheetStatus=\"Release - FFA\"),1,SUMPRODUCT(P103,Q103,S103,O103,R103))","v":{"$error":"#N/A"}},null,null,null,null,null,null,null,null,null,null,null,1,1,1,1,1]
[null,null,"Global",null,"Clutch","RB09 | S45",46,1,{"$f":"T_Controls[[#This Row],[Holding Capacity]]+$I$55","v":2.8277999999999999},1,0.2,null,"-",59,{"$f":"IF(INDEX('3. Hardware Options'!$O$5:$O$53,MATCH(T_Controls[[#This Row],[Description]],'3. Hardware Options'!$L$5:$L$49,0))=\"Show\",1,0)","v":1},{"$f":"IF(i_ControlType=T_Controls[[#This Row],[Control Type]],1,0)","v":0},{"$f":"INDEX(W104:AS104,,MATCH(i_Tube,$W$95:$AS$95,0))","v":{"$error":"#N/A"}},1,0,{"$f":"IF(AND(i_ControlType=T_Controls[[#This Row],[Control Type]],SheetStatus=\"Release - FFA\"),1,SUMPRODUCT(P104,Q104,S104,O104,R104))","v":{"$error":"#N/A"}},null,null,null,null,null,null,null,null,null,null,null,null,null,1,1,1,9]
[null,null,"Global",null,"Clutch","RB09 w/ Guide | S45",46,1,{"$f":"T_Controls[[#This Row],[Holding Capacity]]+$I$55","v":2.8277999999999999},1,0.2,null,"-",135,{"$f":"IF(INDEX('3. Hardware Options'!$O$5:$O$53,MATCH(T_Controls[[#This Row],[Description]],'3. Hardware Options'!$L$5:$L$49,0))=\"Show\",1,0)","v":1},{"$f":"IF(i_ControlType=T_Controls[[#This Row],[Control Type]],1,0)","v":0},{"$f":"INDEX(W105:AS105,,MATCH(i_Tube,$W$95:$AS$95,0))","v":{"$error":"#N/A"}},{"$f":"IF(i_Region=\"Global\",1,IF(OR(i_Region=C105,C105=\"Global\"),1,0))","v":1},0,{"$f":"IF(AND(i_ControlType=T_Controls[[#This Row],[Control Type]],SheetStatus=\"Release - FFA\"),1,SUMPRODUCT(P105,Q105,S105,O105,R105))","v":{"$error":"#N/A"}},null,null,null,null,null,null,null,null,null,null,null,null,null,1,1,1,9]
[null,null,"AU",null,"Clutch","RB09 Geared | S45",46,1.2,{"$f":"T_Controls[[#This Row],[Holding Capacity]]+$I$55","v":3.0278},1.6,0.2,null,"-",59,{"$f":"IF(INDEX('3. Hardware Options'!$O$5:$O$53,MATCH(T_Controls[[#This Row],[Description]],'3. Hardware Options'!$L$5:$L$49,0))=\"Show\",1,0)","v":1},{"$f":"IF(i_ControlType=T_Controls[[#This Row],[Control Type]],1,0)","v":0},{"$f":"INDEX(W106:AS106,,MATCH(i_Tube,$W$95:$AS$95,0))","v":{"$error":"#N/A"}},1,0,{"$f":"IF(AND(i_ControlType=T_Controls[[#This Row],[Control Type]],SheetStatus=\"Release - FFA\"),1,SUMPRODUCT(P106,Q106,S106,O106,R106))","v":{"$error":"#N/A"}},null,null,null,null,null,null,null,null,null,null,null,null,null,1,1,1,9]
[null,null,"AU",null,"Clutch","RB09 Geared w/ Guide | S45",46,1.2,{"$f":"T_Controls[[#This Row],[Holding Capacity]]+$I$55","v":3.0278},1.6,0.2,null,"-",135,{"$f":"IF(INDEX('3. Hardware Options'!$O$5:$O$53,MATCH(T_Controls[[#This Row],[Description]],'3. Hardware Options'!$L$5:$L$49,0))=\"Show\",1,0)","v":1},{"$f":"IF(i_ControlType=T_Controls[[#This Row],[Control Type]],1,0)","v":0},{"$f":"INDEX(W107:AS107,,MATCH(i_Tube,$W$95:$AS$95,0))","v":{"$error":"#N/A"}},{"$f":"IF(i_Region=\"Global\",1,IF(OR(i_Region=C107,C107=\"Global\"),1,0))","v":1},0,{"$f":"IF(AND(i_ControlType=T_Controls[[#This Row],[Control Type]],SheetStatus=\"Release - FFA\"),1,SUMPRODUCT(P107,Q107,S107,O107,R107))","v":{"$error":"#N/A"}},null,null,null,null,null,null,null,null,null,null,null,null,null,1,1,1,9]
[null,null,"AU",null,"Clutch","RB10 | S60",46,1,{"$f":"T_Controls[[#This Row],[Holding Capacity]]+$I$58","v":5.4702000000000002},1,0.2,null,"-",121,{"$f":"IF(INDEX('3. Hardware Options'!$O$5:$O$53,MATCH(T_Controls[[#This Row],[Description]],'3. Hardware Options'!$L$5:$L$49,0))=\"Show\",1,0)","v":1},{"$f":"IF(i_ControlType=T_Controls[[#This Row],[Control Type]],1,0)","v":0},{"$f":"INDEX(W108:AS108,,MATCH(i_Tube,$W$95:$AS$95,0))","v":{"$error":"#N/A"}},1,0,{"$f":"IF(AND(i_ControlType=T_Controls[[#This Row],[Control Type]],SheetStatus=\"Release - FFA\"),1,SUMPRODUCT(P108,Q108,S108,O108,R108))","v":{"$error":"#N/A"}},null,null,null,null,null,null,null,null,null,null,null,null,null,null,null,null,8,8]
[null,null,"Global","Skyline","Clutch","SL10",39.369999999999997,0.71,{"$f":"T_Controls[[#This Row],[Holding Capacity]]","v":0.71},1,0.23,null,"-",118,{"$f":"IF(INDEX('3. Hardware Options'!$O$5:$O$53,MATCH(T_Controls[[#This Row],[Description]],'3. Hardware Options'!$L$5:$L$49,0))=\"Show\",1,0)","v":1},{"$f":"IF(i_ControlType=T_Controls[[#This Row],[Control Type]],1,0)","v":0},{"$f":"INDEX(W108:AS108,,MATCH(i_Tube,$W$95:$AS$95,0))","v":{"$error":"#N/A"}},1,0,{"$f":"IF(AND(i_ControlType=T_Controls[[#This Row],[Control Type]],SheetStatus=\"Release - FFA\"),1,SUMPRODUCT(P109,Q109,S109,O109,R109))","v":{"$error":"#N/A"}},null,null,1,1,4,7,null,null,null,null,null,5,5,6,6,6]
[null,null,"Global","Skyline","Clutch","SL15",46.61,1.06,{"$f":"T_Controls[[#This Row],[Holding Capacity]]","v":1.06},1,0.23,null,"-",135,{"$f":"IF(INDEX('3. Hardware Options'!$O$5:$O$53,MATCH(T_Controls[[#This Row],[Description]],'3. Hardware Options'!$L$5:$L$49,0))=\"Show\",1,0)","v":1},{"$f":"IF(i_ControlType=T_Controls[[#This Row],[Control Type]],1,0)","v":0},{"$f":"INDEX(W110:AS110,,MATCH(i_Tube,$W$95:$AS$95,0))","v":{"$error":"#N/A"}},1,0,{"$f":"IF(AND(i_ControlType=T_Controls[[#This Row],[Control Type]],SheetStatus=\"Release - FFA\"),1,SUMPRODUCT(P110,Q110,S110,O110,R110))","v":{"$error":"#N/A"}},null,null,null,1,4,7,null,null,null,null,null,5,5,6,6,6]
[null,null,"Global","Skyline","Clutch","SL20",57.15,1.69,{"$f":"T_Controls[[#This Row],[Holding Capacity]]","v":1.69},1,0.23,null,"-",169,{"$f":"IF(INDEX('3. Hardware Options'!$O$5:$O$53,MATCH(T_Controls[[#This Row],[Description]],'3. Hardware Options'!$L$5:$L$49,0))=\"Show\",1,0)","v":1},{"$f":"IF(i_ControlType=T_Controls[[#This Row],[Control Type]],1,0)","v":0},{"$f":"INDEX(W111:AS111,,MATCH(i_Tube,$W$95:$AS$95,0))","v":{"$error":"#N/A"}},1,0,{"$f":"IF(AND(i_ControlType=T_Controls[[#This Row],[Control Type]],SheetStatus=\"Release - FFA\"),1,SUMPRODUCT(P111,Q111,S111,O111,R111))","v":{"$error":"#N/A"}},null,null,null,null,null,1,2,3]
[null,null,"Global","Skyline","Clutch","SL30",81.28,2.54,{"$f":"T_Controls[[#This Row],[Holding Capacity]]","v":2.54},1,0.23,null,"-",228,{"$f":"IF(INDEX('3. Hardware Options'!$O$5:$O$53,MATCH(T_Controls[[#This Row],[Description]],'3. Hardware Options'!$L$5:$L$49,0))=\"Show\",1,0)","v":1},{"$f":"IF(i_ControlType=T_Controls[[#This Row],[Control Type]],1,0)","v":0},{"$f":"INDEX(W112:AS112,,MATCH(i_Tube,$W$95:$AS$95,0))","v":{"$error":"#N/A"}},1,0,{"$f":"IF(AND(i_ControlType=T_Controls[[#This Row],[Control Type]],SheetStatus=\"Release - FFA\"),1,SUMPRODUCT(P112,Q112,S112,O112,R112))","v":{"$error":"#N/A"}},null,null,null,null,null,1,2,3,3]
[null,null,"US",null,"Easy Spring Air","Easy Spring Air | 1.5\"",null,{"$f":"_SpringData_L0!$O$2","v":1.5719062500000005},{"$f":"_SpringData_L0!$O$2","v":1.5719062500000005},1,null,null,{"$f":"IFERROR(IF($H113<>\"\",(($H113)/((Tube_OD/2/1000)))/g,\"\"),\"-\")","v":"-"},null,{"$f":"IF(INDEX('3. Hardware Options'!$O$5:$O$53,MATCH(T_Controls[[#This Row],[Description]],'3. Hardware Options'!$L$5:$L$49,0))=\"Show\",1,0)","v":1},{"$f":"IF(i_ControlType=T_Controls[[#This Row],[Control Type]],1,0)","v":0},{"$f":"INDEX(W113:AS113,,MATCH(i_Tube,$W$95:$AS$95,0))","v":{"$error":"#N/A"}},1,0,{"$f":"IF(AND(i_ControlType=T_Controls[[#This Row],[Control Type]],SheetStatus=\"Release - FFA\"),1,SUMPRODUCT(P113,Q113,S113,O113,R113))","v":{"$error":"#N/A"}},null,null,null,null,null,1]
[null,null,"Global",null,"Easy Spring Air","Easy Spring Air | S45",null,{"$f":"_SpringData_L0!$O$2","v":1.5719062500000005},{"$f":"_SpringData_L0!$O$2","v":1.5719062500000005},1,null,null,{"$f":"IFERROR(IF($H114<>\"\",(($H114)/((Tube_OD/2/1000)))/g,\"\"),\"-\")","v":"-"},null,{"$f":"IF(INDEX('3. Hardware Options'!$O$5:$O$53,MATCH(T_Controls[[#This Row],[Description]],'3. Hardware Options'!$L$5:$L$49,0))=\"Show\",1,0)","v":1},{"$f":"IF(i_ControlType=T_Controls[[#This Row],[Control Type]],1,0)","v":0},{"$f":"INDEX(W114:AS114,,MATCH(i_Tube,$W$95:$AS$95,0))","v":{"$error":"#N/A"}},1,0,{"$f":"IF(AND(i_ControlType=T_Controls[[#This Row],[Control Type]],SheetStatus=\"Release - FFA\"),1,SUMPRODUCT(P114,Q114,S114,O114,R114))","v":{"$error":"#N/A"}},null,null,null,null,null,null,null,null,null,null,null,null,null,1,1,1]
[null,null,"US",null,"Easy Spring Air","Easy Spring Air | 2\"",null,{"$f":"_SpringData_L0!$O$2","v":1.5719062500000005},{"$f":"_SpringData_L0!$O$2","v":1.5719062500000005},1,null,null,{"$f":"IFERROR(IF($H115<>\"\",(($H115)/((Tube_OD/2/1000)))/g,\"\"),\"-\")","v":"-"},null,{"$f":"IF(INDEX('3. Hardware Options'!$O$5:$O$53,MATCH(T_Controls[[#This Row],[Description]],'3. Hardware Options'!$L$5:$L$49,0))=\"Show\",1,0)","v":1},{"$f":"IF(i_ControlType=T_Controls[[#This Row],[Control Type]],1,0)","v":0},{"$f":"INDEX(W115:AS115,,MATCH(i_Tube,$W$95:$AS$95,0))","v":{"$error":"#N/A"}},1,0,{"$f":"IF(AND(i_ControlType=T_Controls[[#This Row],[Control Type]],SheetStatus=\"Release - FFA\"),1,SUMPRODUCT(P115,Q115,S115,O115,R115))","v":{"$error":"#N/A"}},null,null,null,null,null,null,1]
[null,null,"US",null,{"$f":"z_Motor","v":"Motor"},"Automate | 0.5 Nm | 20 rpm",{"$f":"Tube_OD","v":{"$error":"#N/A"}},0.5,{"$f":"T_Controls[[#This Row],[Holding Capacity]]","v":0.5},1,1.0000000000000001E-5,20,"-",null,{"$f":"IF(INDEX('3. Hardware Options'!$O$5:$O$53,MATCH(T_Controls[[#This Row],[Description]],'3. Hardware Options'!$L$5:$L$49,0))=\"Show\",1,0)","v":1},{"$f":"IF(i_ControlType=T_Controls[[#This Row],[Control Type]],1,0)","v":0},{"$f":"INDEX(W116:AS116,,MATCH(i_Tube,$W$95:$AS$95,0))","v":{"$error":"#N/A"}},1,0,{"$f":"IF(AND(i_ControlType=T_Controls[[#This Row],[Control Type]],SheetStatus=\"Release - FFA\"),1,SUMPRODUCT(P116,Q116,S116,O116,R116))","v":{"$error":"#N/A"}},null,null,1,1,1,1,null,null,null,1]
[null,null,"Global",null,"Motor","Automate | 1.1 Nm | 20 rpm",{"$error":"#N/A"},1.1000000000000001,{"$f":"T_Controls[[#This Row],[Holding Capacity]]","v":1.1000000000000001},1,1.0000000000000001E-5,20,"-",null,{"$f":"IF(INDEX('3. Hardware Options'!$O$5:$O$53,MATCH(T_Controls[[#This Row],[Description]],'3. Hardware Options'!$L$5:$L$49,0))=\"Show\",1,0)","v":1},{"$f":"IF(i_ControlType=T_Controls[[#This Row],[Control Type]],1,0)","v":0},{"$f":"INDEX(W117:AS117,,MATCH(i_Tube,$W$95:$AS$95,0))","v":{"$error":"#N/A"}},1,0,{"$f":"IF(AND(i_ControlType=T_Controls[[#This Row],[Control Type]],SheetStatus=\"Release - FFA\"),1,SUMPRODUCT(P117,Q117,S117,O117,R117))","v":{"$error":"#N/A"}},null,null,null,null,1,1,null,null,null,1,1,1,1,1,1,1]
[null,null,"Global",null,"Motor","Automate | 2 Nm | 20 rpm",{"$error":"#N/A"},2,{"$f":"T_Controls[[#This Row],[Holding Capacity]]","v":2},1,1.0000000000000001E-5,20,"-",null,{"$f":"IF(INDEX('3. Hardware Options'!$O$5:$O$53,MATCH(T_Controls[[#This Row],[Description]],'3. Hardware Options'!$L$5:$L$49,0))=\"Show\",1,0)","v":1},{"$f":"IF(i_ControlType=T_Controls[[#This Row],[Control Type]],1,0)","v":0},{"$f":"INDEX(W118:AS118,,MATCH(i_Tube,$W$95:$AS$95,0))","v":{"$error":"#N/A"}},1,0,{"$f":"IF(AND(i_ControlType=T_Controls[[#This Row],[Control Type]],SheetStatus=\"Release - FFA\"),1,SUMPRODUCT(P118,Q118,S118,O118,R118))","v":{"$error":"#N/A"}},null,null,null,null,null,1,1,null,null,null,null,null,null,1,1,1]
[null,null,"Global",null,"Motor","Automate | 3 Nm | 28 rpm",{"$error":"#N/A"},3,{"$f":"T_Controls[[#This Row],[Holding Capacity]]","v":3},1,1.0000000000000001E-5,28,"-",null,{"$f":"IF(INDEX('3. Hardware Options'!$O$5:$O$53,MATCH(T_Controls[[#This Row],[Description]],'3. Hardware Options'!$L$5:$L$49,0))=\"Show\",1,0)","v":1},{"$f":"IF(i_ControlType=T_Controls[[#This Row],[Control Type]],1,0)","v":0},{"$f":"INDEX(W119:AS119,,MATCH(i_Tube,$W$95:$AS$95,0))","v":{"$error":"#N/A"}},1,0,{"$f":"IF(AND(i_ControlType=T_Controls[[#This Row],[Control Type]],SheetStatus=\"Release - FFA\"),1,SUMPRODUCT(P119,Q119,S119,O119,R119))","v":{"$error":"#N/A"}},null,null,null,null,null,null,1,1,null,null,null,null,null,1,1,1,1,1]
[null,null,"Global",null,"Motor","Automate | 6 Nm | 33 rpm",{"$error":"#N/A"},6,{"$f":"T_Controls[[#This Row],[Holding Capacity]]","v":6},1,1.0000000000000001E-5,33,"-",null,{"$f":"IF(INDEX('3. Hardware Options'!$O$5:$O$53,MATCH(T_Controls[[#This Row],[Description]],'3. Hardware Options'!$L$5:$L$49,0))=\"Show\",1,0)","v":1},{"$f":"IF(i_ControlType=T_Controls[[#This Row],[Control Type]],1,0)","v":0},{"$f":"INDEX(W120:AS120,,MATCH(i_Tube,$W$95:$AS$95,0))","v":{"$error":"#N/A"}},1,0,{"$f":"IF(AND(i_ControlType=T_Controls[[#This Row],[Control Type]],SheetStatus=\"Release - FFA\"),1,SUMPRODUCT(P120,Q120,S120,O120,R120))","v":{"$error":"#N/A"}},null,null,null,null,null,null,1,1,null,null,null,null,null,1,1,1,1,1]
[null,null,"Global",null,"Motor","Automate | 10 Nm | 9 rpm",{"$error":"#N/A"},10,{"$f":"T_Controls[[#This Row],[Holding Capacity]]","v":10},1,0,9,"-",null,{"$f":"IF(INDEX('3. Hardware Options'!$O$5:$O$53,MATCH(T_Controls[[#This Row],[Description]],'3. Hardware Options'!$L$5:$L$49,0))=\"Show\",1,0)","v":1},{"$f":"IF(i_ControlType=T_Controls[[#This Row],[Control Type]],1,0)","v":0},{"$f":"INDEX(W121:AS121,,MATCH(i_Tube,$W$95:$AS$95,0))","v":{"$error":"#N/A"}},1,0,{"$f":"IF(AND(i_ControlType=T_Controls[[#This Row],[Control Type]],SheetStatus=\"Release - FFA\"),1,SUMPRODUCT(P121,Q121,S121,O121,R121))","v":{"$error":"#N/A"}},null,null,null,null,null,null,null,1,1,null,null,null,null,null,null,null,1,1,{"$f":"IFERROR(IF(FIND(\"S60\",i_bracket)>0,0,1),\"\")","v":""},1,1,1]
[null,null,"Global",null,"Motor","Automate | 15 Nm | 15 rpm",{"$error":"#N/A"},15,{"$f":"T_Controls[[#This Row],[Holding Capacity]]","v":15},1,1.0000000000000001E-5,15,"-",null,{"$f":"IF(INDEX('3. Hardware Options'!$O$5:$O$53,MATCH(T_Controls[[#This Row],[Description]],'3. Hardware Options'!$L$5:$L$49,0))=\"Show\",1,0)","v":1},{"$f":"IF(i_ControlType=T_Controls[[#This Row],[Control Type]],1,0)","v":0},{"$f":"INDEX(W122:AS122,,MATCH(i_Tube,$W$95:$AS$95,0))","v":{"$error":"#N/A"}},1,0,{"$f":"IF(AND(i_ControlType=T_Controls[[#This Row],[Control Type]],SheetStatus=\"Release - FFA\"),1,SUMPRODUCT(P122,Q122,S122,O122,R122))","v":{"$error":"#N/A"}},null,null,null,null,null,null,null,1,1,null,null,null,null,null,null,null,1,1,{"$f":"IFERROR(IF(FIND(\"S60\",i_bracket)>0,0,1),1)","v":1},1,1,1]
[null,null,"Global",null,"Motor","Automate | 30 Nm | 15 rpm",{"$error":"#N/A"},30,{"$f":"T_Controls[[#This Row],[Holding Capacity]]","v":30},1,1.0000000000000001E-5,15,"-",null,{"$f":"IF(INDEX('3. Hardware Options'!$O$5:$O$53,MATCH(T_Controls[[#This Row],[Description]],'3. Hardware Options'!$L$5:$L$49,0))=\"Show\",1,0)","v":1},{"$f":"IF(i_ControlType=T_Controls[[#This Row],[Control Type]],1,0)","v":0},{"$f":"INDEX(W123:AS123,,MATCH(i_Tube,$W$95:$AS$95,0))","v":{"$error":"#N/A"}},1,0,{"$f":"IF(AND(i_ControlType=T_Controls[[#This Row],[Control Type]],SheetStatus=\"Release - FFA\"),1,SUMPRODUCT(P123,Q123,S123,O123,R123))","v":{"$error":"#N/A"}},null,null,null,null,null,null,null,null,null,null,null,null,null,null,null,null,null,null,null,null,null,null,1,1,1]
[null,null,"Global",null,"Motor","Automate | 50 Nm | 12 rpm",{"$error":"#N/A"},50,{"$f":"T_Controls[[#This Row],[Holding Capacity]]","v":50},1,1.0000000000000001E-5,12,"-",null,{"$f":"IF(INDEX('3. Hardware Options'!$O$5:$O$53,MATCH(T_Controls[[#This Row],[Description]],'3. Hardware Options'!$L$5:$L$49,0))=\"Show\",1,0)","v":1},{"$f":"IF(i_ControlType=T_Controls[[#This Row],[Control Type]],1,0)","v":0},{"$f":"INDEX(W124:AS124,,MATCH(i_Tube,$W$95:$AS$95,0))","v":{"$error":"#N/A"}},1,0,{"$f":"IF(AND(i_ControlType=T_Controls[[#This Row],[Control Type]],SheetStatus=\"Release - FFA\"),1,SUMPRODUCT(P124,Q124,S124,O124,R124))","v":{"$error":"#N/A"}},null,null,null,null,null,null,null,null,null,null,null,null,null,null,null,null,null,null,null,null,null,null,1,1,1]
[null,null,null,null,null,null,null,null,null,null,null,null,null,null,null,null,null,null,null,null,null,null,"List of Compatible Tube if Control is Selected"]
[null,null,null,null,null,null,null,null,null,null,null,null,null,null,null,null,null,null,null,null,null,null,{"$f":"_xlfn._xlws.FILTER(Tube_ControlCompatibility,Tube_ControlCompatibility_Check=1,\"\")","v":{"$error":"#N/A"}}]
[]
[null,null,"Spools",null,null,null,"(mm)"]
[null,null,"System",null,"Codes","Description","OD"]
[null,null,"1-1/4\"",null,null,"Rollease - 1-1/4\"",36.96]
[null,null,"1-1/2\"",null,null,"Rollease - 1-1/2\"",42.67]
[null,null,"2\"",null,null,"Rollease - 2\"",55.88]
[]
[]
[null,null,null,null,null,"if selected weight bar is less than 500g/m, add 1x ballast",null,null,"custom rules per row"]
[null,null,null,null,null,{"$f":"wb_UnitMass","v":0.30599999999999999}]
[null,null,null,null,null,null,null,null,{"$f":"i_Ballast","v":0}]
[null,null,null,"=IF(AND(i_ControlType=\"Easy Spring Air\",wb_UnitMass<0.5,i_wb<>z_CustomWBData),0,1)",null,null,null,null,null,"list length",{"$f":"IF(SUM($I$141:$I$147)=0,1,COUNTIF($I$141:$I$147,\">0\"))","v":3}]
[null,null,"Ballast",null,null,null,"(kg/m)"]
[null,null,"Weight Bar","ESA Check","Codes","Description","Mass/m",null,"on/off",null,"BALLAST LIST"]
[null,null,null,1,null,"No Ballast",0,null,{"$f":"IF(i_wb<>z_CustomEntry,1*T_Ballast[[#This Row],[ESA Check]],0)","v":1},null,{"$f":"IFERROR(_xlfn._xlws.FILTER(Ballast_Description,$I$141:$I$147),\"\")","v":"No Ballast"}]
[null,null,{"$f":"IF(AND(i_wb<>\"\",i_wb<>$F$87,i_wb<>$F$88,i_wb<>$F$77),i_wb,\"\")","v":"D30 Medium Bottom Rail"},{"$f":"IF(OR(i_wb=T_Ballast[[#This Row],[Weight Bar]],AND(i_ControlType=\"Easy Spring Air\",wb_UnitMass<0.5,i_wb<>z_CustomWBData)),1,0)","v":1},"VB05-0301","Tiltrod Metal O Style (x1)",0.23,null,{"$f":"IF(i_wb=T_Ballast[[#This Row],[Weight Bar]],1*T_Ballast[[#This Row],[ESA Check]],0)","v":1},null,"Tiltrod Metal O Style (x1)"]
[null,null,{"$f":"IF(AND(i_wb<>\"\",i_wb<>$F$87,i_wb<>$F$88,i_wb<>$F$77),i_wb,\"\")","v":"D30 Medium Bottom Rail"},{"$f":"IF(AND(i_ControlType=\"Easy Spring Air\",wb_UnitMass<0.5,i_wb<>z_CustomWBData),0,1)","v":1},"VB05-0301","Tiltrod Metal O Style (x2)",{"$f":"G142*2","v":0.46},null,{"$f":"IF(i_wb=T_Ballast[[#This Row],[Weight Bar]],1*T_Ballast[[#This Row],[ESA Check]],0)","v":1},null,"Tiltrod Metal O Style (x2)"]
[null,null,"F56 HD Weight Bar",{"$f":"IF(AND(i_ControlType=\"Easy Spring Air\",wb_UnitMass<0.5,i_wb<>z_CustomWBData),0,1)","v":1},null,"20mm x 5mm Flat Bar (x1)",0.8,null,{"$f":"IF(i_wb=T_Ballast[[#This Row],[Weight Bar]],1,0)","v":0}]
[null,null,"F56 HD Weight Bar",{"$f":"IF(AND(i_ControlType=\"Easy Spring Air\",wb_UnitMass<0.5,i_wb<>z_CustomWBData),0,1)","v":1},null,"20mm x 5mm Flat Bar (x2)",1.6,null,{"$f":"IF(i_wb=T_Ballast[[#This Row],[Weight Bar]],1,0)","v":0}]
[null,null,"F72 HD Weight Bar",{"$f":"IF(AND(i_ControlType=\"Easy Spring Air\",wb_UnitMass<0.5,i_wb<>z_CustomWBData),0,1)","v":1},null,"25mm x 8mm Flat Bar (x1)",1.6,null,{"$f":"IF(i_wb=T_Ballast[[#This Row],[Weight Bar]],1,0)","v":0}]
[null,null,"F72 HD Weight Bar",{"$f":"IF(AND(i_ControlType=\"Easy Spring Air\",wb_UnitMass<0.5,i_wb<>z_CustomWBData),0,1)","v":1},null,"25mm x 8mm Flat Bar (x2)",3.2,null,{"$f":"IF(i_wb=T_Ballast[[#This Row],[Weight Bar]],1,0)","v":0}]
[]
[]
[null,null,null,null,null,null,null,null,null,null,null,null,null,null,"list length"]
[null,null,null,null,null,null,null,null,null,null,null,null,null,null,{"$f":"IF(SUM(O154:O195)=0,1,SUM(O154:O195))","v":1}]
[null,null,"Brackets",null,null,null,"mm","mm",null,null,"OPTIONS"]
[null,null,"Column2","Column1","Region","Codes","Description","Pitch","Max Roll Diameter",null,"ShowHide Check","RegionCheck","Roll Diameter Check","Clutch Check","TOTAL","BRACKET LIST","G200","G400","R3","R8","R16","R24","Easy Spring Air | 1.5\"","Easy Spring Air | S45","Easy Spring Air | 2\"","RB08 | S35","RB07 | S45","RB08 | S40 & S45","RB09 | S45","RB09 w/ Guide | S45","RB09 Geared | S45","RB09 Geared w/ Guide | S45","RB10 | S60","SL10","SL15","SL20","SL30","Automate | 0.5 Nm | 20 rpm","Automate | 1.1 Nm | 20 rpm","Automate | 2 Nm | 20 rpm","Automate | 3 Nm | 28 rpm","Automate | 6 Nm | 33 rpm","Automate | 10 Nm | 9 rpm","Automate | 15 Nm | 15 rpm","Automate | 30 Nm | 15 rpm","Automate | 50 Nm | 12 rpm",null,"# options"]
[null,null,"Bracket","Skyline","US","SLxx650xx","SLxx650xx Skyline Bracket | 32mm | 1-1/4\"",null,59,null,{"$f":"IF(INDEX(HO_TH_Show,MATCH(T_Brackets[[#This Row],[Description]],HO_TH_Desc,0))=\"Show\",1,0)","v":1},{"$f":"IF(i_Region=\"Global\",1,IF(OR(i_Region=E154,E154=\"Global\"),1,0))","v":1},{"$f":"IFERROR(IF(INDIRECT(\"o_\"&T_Brackets[[#This Row],[Column2]]&\"ActualRoll_mm\")<T_Brackets[[#This Row],[Max Roll Diameter]],1,0),0)","v":0},{"$f":"IFERROR(INDEX($Q154:$AT154,,MATCH(i_Control,$Q$153:$AT$153,0)),0)","v":0},{"$f":"IF(AND(K154<>0,SheetStatus=\"Release - FFA\"),1,SUMPRODUCT(M154,N154,K154,L154))","v":0},{"$f":"IFERROR(IF(i_Control=\"\",z_SelectaControl,_xlfn._xlws.FILTER($G$154:$G$195,$O$154:$O$195)),z_NoOptions)","v":"Select a Control."},null,null,null,null,null,null,1,1,1,null,null,null,null,null,null,null,null,1,null,null,null,null,null,null,null,null,null,null,null,null,null,{"$f":"SUM(Q154:AT154)","v":4}]
[null,null,"Bracket","Skyline","Global","SLxx660xx","SLxx660xx Skyline Bracket | 38mm | 1-1/2\"",null,76.2,null,{"$f":"IF(INDEX(HO_TH_Show,MATCH(T_Brackets[[#This Row],[Description]],HO_TH_Desc,0))=\"Show\",1,0)","v":1},1,{"$f":"IFERROR(IF(INDIRECT(\"o_\"&T_Brackets[[#This Row],[Column2]]&\"ActualRoll_mm\")<T_Brackets[[#This Row],[Max Roll Diameter]],1,0),0)","v":0},{"$f":"IFERROR(INDEX($Q155:$AT155,,MATCH(i_Control,$Q$153:$AT$153,0)),0)","v":0},0,null,1,null,null,null,null,null,1,1,1,null,null,null,null,null,null,null,null,1,1,1,null,1,1,1,null,null,null,null,null,null,null,10]
[null,null,"Bracket","Skyline","Global","SLxx680xx","SLxx680xx Skyline Bracket | 50mm | 2\"",null,101.6,null,{"$f":"IF(INDEX(HO_TH_Show,MATCH(T_Brackets[[#This Row],[Description]],HO_TH_Desc,0))=\"Show\",1,0)","v":1},1,{"$f":"IFERROR(IF(INDIRECT(\"o_\"&T_Brackets[[#This Row],[Column2]]&\"ActualRoll_mm\")<T_Brackets[[#This Row],[Max Roll Diameter]],1,0),0)","v":0},{"$f":"IFERROR(INDEX($Q156:$AT156,,MATCH(i_Control,$Q$153:$AT$153,0)),0)","v":0},0,null,1,1,null,null,null,null,1,1,1,null,null,null,null,null,null,null,null,1,1,1,1,1,1,1,null,null,null,null,null,null,null,12]
[null,null,"Bracket","Skyline","Global","SLxx690xx","SLxx690xx Skyline Bracket | 73mm | 2-1/2\"",null,127.5,null,{"$f":"IF(INDEX(HO_TH_Show,MATCH(T_Brackets[[#This Row],[Description]],HO_TH_Desc,0))=\"Show\",1,0)","v":1},1,{"$f":"IFERROR(IF(INDIRECT(\"o_\"&T_Brackets[[#This Row],[Column2]]&\"ActualRoll_mm\")<T_Brackets[[#This Row],[Max Roll Diameter]],1,0),0)","v":0},{"$f":"IFERROR(INDEX($Q157:$AT157,,MATCH(i_Control,$Q$153:$AT$153,0)),0)","v":0},0,null,1,1,null,null,null,null,1,1,1,null,null,null,null,null,null,null,null,1,1,1,1,1,1,1,null,null,null,null,null,null,null,12]
[null,null,"Bracket","R-Series","US",null,"RB360 | 1-1/2\"\"",null,69,null,{"$f":"IF(INDEX(HO_TH_Show,MATCH(T_Brackets[[#This Row],[Description]],HO_TH_Desc,0))=\"Show\",1,0)","v":1},1,{"$f":"IFERROR(IF(INDIRECT(\"o_\"&T_Brackets[[#This Row],[Column2]]&\"ActualRoll_mm\")<T_Brackets[[#This Row],[Max Roll Diameter]],1,0),0)","v":0},{"$f":"IFERROR(INDEX($Q158:$AT158,,MATCH(i_Control,$Q$153:$AT$153,0)),0)","v":0},0,null,null,null,1,1,null,null,null,null,null,null,null,null,null,null,null,null,null,null,null,null,null,null,null,null,null,null,null,null,null,null,null,2]
[null,null,"Bracket","R-Series","US",null,"RB380 | 2\"",null,92,null,{"$f":"IF(INDEX(HO_TH_Show,MATCH(T_Brackets[[#This Row],[Description]],HO_TH_Desc,0))=\"Show\",1,0)","v":1},1,{"$f":"IFERROR(IF(INDIRECT(\"o_\"&T_Brackets[[#This Row],[Column2]]&\"ActualRoll_mm\")<T_Brackets[[#This Row],[Max Roll Diameter]],1,0),0)","v":0},{"$f":"IFERROR(INDEX($Q159:$AT159,,MATCH(i_Control,$Q$153:$AT$153,0)),0)","v":0},0,null,null,null,1,1,null,null,null,null,null,null,null,null,null,null,null,null,null,null,null,null,null,null,null,null,null,null,null,null,null,null,null,2]
[null,null,"Bracket","R-Series","US",null,"RB390 | 2-7/8\"",null,101,null,{"$f":"IF(INDEX(HO_TH_Show,MATCH(T_Brackets[[#This Row],[Description]],HO_TH_Desc,0))=\"Show\",1,0)","v":1},1,{"$f":"IFERROR(IF(INDIRECT(\"o_\"&T_Brackets[[#This Row],[Column2]]&\"ActualRoll_mm\")<T_Brackets[[#This Row],[Max Roll Diameter]],1,0),0)","v":0},{"$f":"IFERROR(INDEX($Q160:$AT160,,MATCH(i_Control,$Q$153:$AT$153,0)),0)","v":0},0,null,null,null,1,1,null,null,null,null,null,null,null,null,null,null,null,null,null,null,null,null,null,null,null,null,null,null,null,null,null,null,null,2]
[null,null,"Bracket","R-Series","US",null,"RB560 | 1-1/2\"",null,76,null,{"$f":"IF(INDEX(HO_TH_Show,MATCH(T_Brackets[[#This Row],[Description]],HO_TH_Desc,0))=\"Show\",1,0)","v":1},1,{"$f":"IFERROR(IF(INDIRECT(\"o_\"&T_Brackets[[#This Row],[Column2]]&\"ActualRoll_mm\")<T_Brackets[[#This Row],[Max Roll Diameter]],1,0),0)","v":0},{"$f":"IFERROR(INDEX($Q161:$AT161,,MATCH(i_Control,$Q$153:$AT$153,0)),0)","v":0},0,null,null,null,null,null,1,null,null,null,null,null,null,null,null,null,null,null,null,null,null,null,null,null,null,null,null,null,null,null,null,null,null,1]
[null,null,"Bracket","R-Series","US",null,"RB580 | 2\"",null,101,null,{"$f":"IF(INDEX(HO_TH_Show,MATCH(T_Brackets[[#This Row],[Description]],HO_TH_Desc,0))=\"Show\",1,0)","v":1},1,{"$f":"IFERROR(IF(INDIRECT(\"o_\"&T_Brackets[[#This Row],[Column2]]&\"ActualRoll_mm\")<T_Brackets[[#This Row],[Max Roll Diameter]],1,0),0)","v":0},{"$f":"IFERROR(INDEX($Q162:$AT162,,MATCH(i_Control,$Q$153:$AT$153,0)),0)","v":0},0,null,null,null,null,null,1,1,null,null,null,null,null,null,null,null,null,null,null,null,null,null,null,null,null,null,null,null,null,null,null,null,null,2]
[null,null,"Bracket","R-Series","US",null,"RB590 | 2-7/8\"",null,139,null,{"$f":"IF(INDEX(HO_TH_Show,MATCH(T_Brackets[[#This Row],[Description]],HO_TH_Desc,0))=\"Show\",1,0)","v":1},1,{"$f":"IFERROR(IF(INDIRECT(\"o_\"&T_Brackets[[#This Row],[Column2]]&\"ActualRoll_mm\")<T_Brackets[[#This Row],[Max Roll Diameter]],1,0),0)","v":0},{"$f":"IFERROR(INDEX($Q163:$AT163,,MATCH(i_Control,$Q$153:$AT$153,0)),0)","v":0},0,null,null,null,null,null,1,1,null,null,null,null,null,null,null,null,null,null,null,null,null,null,null,null,null,null,null,null,null,null,null,null,null,2]
[null,null,"Bracket","R-Series","US",null,"RBGAL ",null,101,null,{"$f":"IF(INDEX(HO_TH_Show,MATCH(T_Brackets[[#This Row],[Description]],HO_TH_Desc,0))=\"Show\",1,0)","v":1},1,{"$f":"IFERROR(IF(INDIRECT(\"o_\"&T_Brackets[[#This Row],[Column2]]&\"ActualRoll_mm\")<T_Brackets[[#This Row],[Max Roll Diameter]],1,0),0)","v":0},{"$f":"IFERROR(INDEX($Q164:$AT164,,MATCH(i_Control,$Q$153:$AT$153,0)),0)","v":0},0,null,null,null,null,null,1,1,null,null,null,null,null,null,null,null,null,null,null,null,null,null,null,null,null,null,null,null,null,null,null,null,null,2]
[null,null,"Bracket",null,"AU","RB08-8345","LX Bracket 30mm | S35",null,57,null,{"$f":"IF(INDEX(HO_TH_Show,MATCH(T_Brackets[[#This Row],[Description]],HO_TH_Desc,0))=\"Show\",1,0)","v":1},1,{"$f":"IFERROR(IF(INDIRECT(\"o_\"&T_Brackets[[#This Row],[Column2]]&\"ActualRoll_mm\")<T_Brackets[[#This Row],[Max Roll Diameter]],1,0),0)","v":0},{"$f":"IFERROR(INDEX($Q165:$AT165,,MATCH(i_Control,$Q$153:$AT$153,0)),0)","v":0},0,null,null,null,null,null,null,null,null,null,null,1,null,null,null,null,null,null,null,null,null,null,null,1,1,1,null,null,null,null,null,null,null,4]
[null,null,"Bracket",null,"Global",null,"LX/VX/AX Bracket 40mm Proj.",null,77,null,{"$f":"IF(INDEX(HO_TH_Show,MATCH(T_Brackets[[#This Row],[Description]],HO_TH_Desc,0))=\"Show\",1,0)","v":1},1,{"$f":"IFERROR(IF(INDIRECT(\"o_\"&T_Brackets[[#This Row],[Column2]]&\"ActualRoll_mm\")<T_Brackets[[#This Row],[Max Roll Diameter]],1,0),0)","v":0},{"$f":"IFERROR(INDEX($Q166:$AT166,,MATCH(i_Control,$Q$153:$AT$153,0)),0)","v":0},0,null,1,null,null,null,null,null,1,1,1,null,1,1,{"$f":"IF(i_Tube=S60_STD,\"\",1)","v":1},{"$f":"IF(i_Tube=S60_STD,\"\",1)","v":1},{"$f":"IF(i_Tube=S60_STD,\"\",1)","v":1},{"$f":"IF(i_Tube=S60_STD,\"\",1)","v":1},null,1,1,1,null,1,1,1,1,1,null,null,null,null,null,18]
[null,null,"Bracket",null,"Global",null,"LX/VX/AX Bracket 55mm Proj.",null,105,null,{"$f":"IF(INDEX(HO_TH_Show,MATCH(T_Brackets[[#This Row],[Description]],HO_TH_Desc,0))=\"Show\",1,0)","v":1},1,{"$f":"IFERROR(IF(INDIRECT(\"o_\"&T_Brackets[[#This Row],[Column2]]&\"ActualRoll_mm\")<T_Brackets[[#This Row],[Max Roll Diameter]],1,0),0)","v":0},{"$f":"IFERROR(INDEX($Q167:$AT167,,MATCH(i_Control,$Q$153:$AT$153,0)),0)","v":0},0,null,1,1,null,null,null,null,1,1,1,null,1,1,1,1,1,1,null,1,1,1,1,1,1,1,1,1,null,null,null,null,null,20]
[null,null,"Bracket",null,"Global","RB0x-8380-xxx115","Slimline-X Double Easy-Lock Bracket | S40/S45",null,65,null,{"$f":"IF(INDEX(HO_TH_Show,MATCH(T_Brackets[[#This Row],[Description]],HO_TH_Desc,0))=\"Show\",1,0)","v":1},1,{"$f":"IFERROR(IF(INDIRECT(\"o_\"&T_Brackets[[#This Row],[Column2]]&\"ActualRoll_mm\")<T_Brackets[[#This Row],[Max Roll Diameter]],1,0),0)","v":0},{"$f":"IFERROR(INDEX($Q168:$AT168,,MATCH(i_Control,$Q$153:$AT$153,0)),0)","v":0},0,null,null,null,null,null,null,null,null,null,null,null,null,1,1,1,1,1,null,null,null,null,null,null,1,1,null,null,null,null,null,null,null,7]
[null,null,"Bracket",null,"Global","RB0x-8384-xxx122","Square-X Double Easy-Lock Bracket | S40/S45",null,70,null,{"$f":"IF(INDEX(HO_TH_Show,MATCH(T_Brackets[[#This Row],[Description]],HO_TH_Desc,0))=\"Show\",1,0)","v":1},1,{"$f":"IFERROR(IF(INDIRECT(\"o_\"&T_Brackets[[#This Row],[Column2]]&\"ActualRoll_mm\")<T_Brackets[[#This Row],[Max Roll Diameter]],1,0),0)","v":0},{"$f":"IFERROR(INDEX($Q169:$AT169,,MATCH(i_Control,$Q$153:$AT$153,0)),0)","v":0},0,null,null,null,null,null,null,null,null,null,null,null,null,1,1,1,1,1,null,null,null,null,null,null,1,1,null,null,null,null,null,null,null,7]
[null,null,"Bracket",null,"Global","RB08-83xx | RB09-83xx","Slim Profile Double Bracket | S40/S45",null,70,null,{"$f":"IF(INDEX(HO_TH_Show,MATCH(T_Brackets[[#This Row],[Description]],HO_TH_Desc,0))=\"Show\",1,0)","v":1},1,{"$f":"IFERROR(IF(INDIRECT(\"o_\"&T_Brackets[[#This Row],[Column2]]&\"ActualRoll_mm\")<T_Brackets[[#This Row],[Max Roll Diameter]],1,0),0)","v":0},{"$f":"IFERROR(INDEX($Q170:$AT170,,MATCH(i_Control,$Q$153:$AT$153,0)),0)","v":0},0,null,null,null,null,null,null,null,null,null,null,null,null,1,1,1,1,1,null,null,null,null,null,null,1,1,null,null,null,null,null,null,null,7]
[null,null,"Bracket","Skyline","Global",null,"Skyline Bracket | Double Universal | 38mm",null,60,null,{"$f":"IF(INDEX(HO_TH_Show,MATCH(T_Brackets[[#This Row],[Description]],HO_TH_Desc,0))=\"Show\",1,0)","v":1},1,{"$f":"IFERROR(IF(INDIRECT(\"o_\"&T_Brackets[[#This Row],[Column2]]&\"ActualRoll_mm\")<T_Brackets[[#This Row],[Max Roll Diameter]],1,0),0)","v":0},{"$f":"IFERROR(INDEX($Q171:$AT171,,MATCH(i_Control,$Q$153:$AT$153,0)),0)","v":0},0,null,null,null,null,null,null,null,1,1,1,null,null,null,null,null,null,null,null,null,null,null,null,1,1,1,null,null,null,null,null,null,null,6]
[null,null,"Bracket","Skyline","Global",null,"Skyline Bracket | Double Universal | 48mm",null,68,null,{"$f":"IF(INDEX(HO_TH_Show,MATCH(T_Brackets[[#This Row],[Description]],HO_TH_Desc,0))=\"Show\",1,0)","v":1},1,{"$f":"IFERROR(IF(INDIRECT(\"o_\"&T_Brackets[[#This Row],[Column2]]&\"ActualRoll_mm\")<T_Brackets[[#This Row],[Max Roll Diameter]],1,0),0)","v":0},{"$f":"IFERROR(INDEX($Q172:$AT172,,MATCH(i_Control,$Q$153:$AT$153,0)),0)","v":0},0,null,null,null,null,null,null,null,1,1,1,null,null,null,null,null,null,null,null,null,null,null,null,1,1,1,null,null,null,null,null,null,null,6]
[null,null,"Bracket","Skyline","Global",null,"Skyline Bracket | Double Vertical or Horizontal",null,76,null,{"$f":"IF(INDEX(HO_TH_Show,MATCH(T_Brackets[[#This Row],[Description]],HO_TH_Desc,0))=\"Show\",1,0)","v":1},1,{"$f":"IFERROR(IF(INDIRECT(\"o_\"&T_Brackets[[#This Row],[Column2]]&\"ActualRoll_mm\")<T_Brackets[[#This Row],[Max Roll Diameter]],1,0),0)","v":0},{"$f":"IFERROR(INDEX($Q173:$AT173,,MATCH(i_Control,$Q$153:$AT$153,0)),0)","v":0},0,null,null,null,null,null,null,null,1,1,1,null,null,null,null,null,null,null,null,null,null,null,null,1,1,1,null,null,null,null,null,null,null,6]
[null,null,"Bracket",null,"Global",null,"60mm Bracket | S60",null,104,null,{"$f":"IF(INDEX(HO_TH_Show,MATCH(T_Brackets[[#This Row],[Description]],HO_TH_Desc,0))=\"Show\",1,0)","v":1},1,{"$f":"IFERROR(IF(INDIRECT(\"o_\"&T_Brackets[[#This Row],[Column2]]&\"ActualRoll_mm\")<T_Brackets[[#This Row],[Max Roll Diameter]],1,0),0)","v":0},{"$f":"IFERROR(INDEX($Q174:$AT174,,MATCH(i_Control,$Q$153:$AT$153,0)),0)","v":0},0,null,null,null,null,null,null,null,null,null,null,null,null,null,null,null,null,null,1,null,null,null,null,null,null,null,null,null,1,{"$f":"IFERROR(IF(FIND(\"63 STD\",i_Tube)>0,0,1),1)","v":1},null,null,null,3]
[null,null,"Bracket",null,"Global",null,"80mm Bracket | S60",null,168,null,{"$f":"IF(INDEX(HO_TH_Show,MATCH(T_Brackets[[#This Row],[Description]],HO_TH_Desc,0))=\"Show\",1,0)","v":1},1,{"$f":"IFERROR(IF(INDIRECT(\"o_\"&T_Brackets[[#This Row],[Column2]]&\"ActualRoll_mm\")<T_Brackets[[#This Row],[Max Roll Diameter]],1,0),0)","v":0},{"$f":"IFERROR(INDEX($Q175:$AT175,,MATCH(i_Control,$Q$153:$AT$153,0)),0)","v":0},0,null,null,null,null,null,null,null,null,null,null,null,null,null,null,null,null,null,null,null,null,null,null,null,null,null,null,null,1,{"$f":"IFERROR(IF(FIND(\"63 STD\",i_Tube)>0,0,1),1)","v":1},null,null,null,2]
[null,null,"Bracket",null,"Global","RB56-732x","Double Bracket | S60",null,90,null,{"$f":"IF(INDEX(HO_TH_Show,MATCH(T_Brackets[[#This Row],[Description]],HO_TH_Desc,0))=\"Show\",1,0)","v":1},1,{"$f":"IFERROR(IF(INDIRECT(\"o_\"&T_Brackets[[#This Row],[Column2]]&\"ActualRoll_mm\")<T_Brackets[[#This Row],[Max Roll Diameter]],1,0),0)","v":0},{"$f":"IFERROR(INDEX($Q176:$AT176,,MATCH(i_Control,$Q$153:$AT$153,0)),0)","v":0},0,null,null,null,null,null,null,null,null,null,null,null,null,null,null,null,null,null,null,null,null,null,null,null,null,null,null,null,1,{"$f":"IFERROR(IF(FIND(\"63 STD\",i_Tube)>0,0,1),1)","v":1},null,null,null,2]
[null,null,"Bracket",null,"Global","RB80-1201","Extreme | Top/Face Bracket | S100",null,180,null,{"$f":"IF(INDEX(HO_TH_Show,MATCH(T_Brackets[[#This Row],[Description]],HO_TH_Desc,0))=\"Show\",1,0)","v":1},1,{"$f":"IFERROR(IF(INDIRECT(\"o_\"&T_Brackets[[#This Row],[Column2]]&\"ActualRoll_mm\")<T_Brackets[[#This Row],[Max Roll Diameter]],1,0),0)","v":0},{"$f":"IFERROR(INDEX($Q177:$AT177,,MATCH(i_Control,$Q$153:$AT$153,0)),0)","v":0},0,null,null,null,null,null,null,null,null,null,null,null,null,null,null,null,null,null,null,null,null,null,null,null,null,null,null,null,null,null,1,1,null,2]
[null,null,"Bracket",null,"Global","RB80-0478","Extreme | Recess Bracket | S100",null,190,null,{"$f":"IF(INDEX(HO_TH_Show,MATCH(T_Brackets[[#This Row],[Description]],HO_TH_Desc,0))=\"Show\",1,0)","v":1},1,{"$f":"IFERROR(IF(INDIRECT(\"o_\"&T_Brackets[[#This Row],[Column2]]&\"ActualRoll_mm\")<T_Brackets[[#This Row],[Max Roll Diameter]],1,0),0)","v":0},{"$f":"IFERROR(INDEX($Q178:$AT178,,MATCH(i_Control,$Q$153:$AT$153,0)),0)","v":0},0,null,null,null,null,null,null,null,null,null,null,null,null,null,null,null,null,null,null,null,null,null,null,null,null,null,null,null,null,null,1,1,null,2]
[null,null,"Bracket",null,"Global","RE01-3020","External Open Bracket | Round",null,130,null,{"$f":"IF(INDEX(HO_TH_Show,MATCH(T_Brackets[[#This Row],[Description]],HO_TH_Desc,0))=\"Show\",1,0)","v":1},1,{"$f":"IFERROR(IF(INDIRECT(\"o_\"&T_Brackets[[#This Row],[Column2]]&\"ActualRoll_mm\")<T_Brackets[[#This Row],[Max Roll Diameter]],1,0),0)","v":0},{"$f":"IFERROR(INDEX($Q179:$AT179,,MATCH(i_Control,$Q$153:$AT$153,0)),0)","v":0},0,null,null,null,null,null,null,null,null,null,null,null,null,null,null,null,null,null,null,null,null,null,null,null,null,null,null,null,null,{"$f":"IFERROR(IF(FIND(\"S60\",i_Tube)>0,0,1),1)","v":1},null,null,null,1]
[null,null,"Bracket",null,"Global","RE01-3030","External Open Bracket | Square",null,130,null,{"$f":"IF(INDEX(HO_TH_Show,MATCH(T_Brackets[[#This Row],[Description]],HO_TH_Desc,0))=\"Show\",1,0)","v":1},1,{"$f":"IFERROR(IF(INDIRECT(\"o_\"&T_Brackets[[#This Row],[Column2]]&\"ActualRoll_mm\")<T_Brackets[[#This Row],[Max Roll Diameter]],1,0),0)","v":0},{"$f":"IFERROR(INDEX($Q180:$AT180,,MATCH(i_Control,$Q$153:$AT$153,0)),0)","v":0},0,null,null,null,null,null,null,null,null,null,null,null,null,null,null,null,null,null,null,null,null,null,null,null,null,null,null,null,null,{"$f":"IFERROR(IF(FIND(\"S60\",i_Tube)>0,0,1),1)","v":1},null,null,null,1]
[null,null,"Cassette",null,"Global","RE01-1101","Box 120",null,110,null,{"$f":"IF(INDEX(HO_TH_Show,MATCH(T_Brackets[[#This Row],[Description]],HO_TH_Desc,0))=\"Show\",1,0)","v":1},1,{"$f":"IFERROR(IF(INDIRECT(\"o_\"&T_Brackets[[#This Row],[Column2]]&\"ActualRoll_mm\")<T_Brackets[[#This Row],[Max Roll Diameter]],1,0),0)","v":0},{"$f":"IFERROR(INDEX($Q181:$AT181,,MATCH(i_Control,$Q$153:$AT$153,0)),0)","v":0},0,null,null,null,null,null,null,null,null,null,null,null,null,null,null,null,null,null,null,null,null,null,null,null,null,null,null,null,null,{"$f":"IFERROR(IF(FIND(\"S60\",i_Tube)>0,0,1),1)","v":1},null,null,null,1]
[null,null,"Cassette",null,"Global","RE01-1105","Extreme | Box 190 Cassette",null,155,null,{"$f":"IF(INDEX(HO_TH_Show,MATCH(T_Brackets[[#This Row],[Description]],HO_TH_Desc,0))=\"Show\",1,0)","v":1},1,{"$f":"IFERROR(IF(INDIRECT(\"o_\"&T_Brackets[[#This Row],[Column2]]&\"ActualRoll_mm\")<T_Brackets[[#This Row],[Max Roll Diameter]],1,0),0)","v":0},{"$f":"IFERROR(INDEX($Q182:$AT182,,MATCH(i_Control,$Q$153:$AT$153,0)),0)","v":0},0,null,null,null,null,null,null,null,null,null,null,null,null,null,null,null,null,null,null,null,null,null,null,null,null,null,null,null,null,null,1,1,null,2]
[null,null,"Cassette",null,"Global","SB05-1301","Extreme | Zipscreen Open Bracket",null,170,null,{"$f":"IF(INDEX(HO_TH_Show,MATCH(T_Brackets[[#This Row],[Description]],HO_TH_Desc,0))=\"Show\",1,0)","v":1},1,{"$f":"IFERROR(IF(INDIRECT(\"o_\"&T_Brackets[[#This Row],[Column2]]&\"ActualRoll_mm\")<T_Brackets[[#This Row],[Max Roll Diameter]],1,0),0)","v":0},{"$f":"IFERROR(INDEX($Q183:$AT183,,MATCH(i_Control,$Q$153:$AT$153,0)),0)","v":0},0,null,null,null,null,null,null,null,null,null,null,null,null,null,null,null,null,null,null,null,null,null,null,null,null,null,null,null,null,null,1,1,null,2]
[null,null,"Cassette",null,"US",null,"Cassette 80",null,41,null,{"$f":"IF(INDEX(HO_TH_Show,MATCH(T_Brackets[[#This Row],[Description]],HO_TH_Desc,0))=\"Show\",1,0)","v":1},1,{"$f":"IFERROR(IF(INDIRECT(\"o_\"&T_Brackets[[#This Row],[Column2]]&\"ActualRoll_mm\")<T_Brackets[[#This Row],[Max Roll Diameter]],1,0),0)","v":0},{"$f":"IFERROR(INDEX($Q184:$AT184,,MATCH(i_Control,$Q$153:$AT$153,0)),0)","v":0},0,null,null,null,1,1,null,null,1,1,1,null,null,null,null,null,null,null,null,1,null,null,null,1,1,null,null,null,null,null,null,null,null,8]
[null,null,"Cassette",null,"US",null,"Cassette 100",null,64,null,{"$f":"IF(INDEX(HO_TH_Show,MATCH(T_Brackets[[#This Row],[Description]],HO_TH_Desc,0))=\"Show\",1,0)","v":1},1,{"$f":"IFERROR(IF(INDIRECT(\"o_\"&T_Brackets[[#This Row],[Column2]]&\"ActualRoll_mm\")<T_Brackets[[#This Row],[Max Roll Diameter]],1,0),0)","v":0},{"$f":"IFERROR(INDEX($Q185:$AT185,,MATCH(i_Control,$Q$153:$AT$153,0)),0)","v":0},0,null,1,null,null,1,1,null,1,1,1,null,null,null,null,null,null,null,null,1,1,null,null,1,1,null,null,null,null,null,null,null,null,10]
[null,null,"Cassette",null,"US",null,"Cassette 120",null,73,null,{"$f":"IF(INDEX(HO_TH_Show,MATCH(T_Brackets[[#This Row],[Description]],HO_TH_Desc,0))=\"Show\",1,0)","v":1},1,{"$f":"IFERROR(IF(INDIRECT(\"o_\"&T_Brackets[[#This Row],[Column2]]&\"ActualRoll_mm\")<T_Brackets[[#This Row],[Max Roll Diameter]],1,0),0)","v":0},{"$f":"IFERROR(INDEX($Q186:$AT186,,MATCH(i_Control,$Q$153:$AT$153,0)),0)","v":0},0,null,1,null,null,1,1,null,1,1,1,null,null,null,null,null,null,null,null,1,1,1,null,1,1,null,null,null,null,null,null,null,null,11]
[null,null,"Cassette",null,"US",null,"Square Cassette 110",null,73,null,{"$f":"IF(INDEX(HO_TH_Show,MATCH(T_Brackets[[#This Row],[Description]],HO_TH_Desc,0))=\"Show\",1,0)","v":1},1,{"$f":"IFERROR(IF(INDIRECT(\"o_\"&T_Brackets[[#This Row],[Column2]]&\"ActualRoll_mm\")<T_Brackets[[#This Row],[Max Roll Diameter]],1,0),0)","v":0},{"$f":"IFERROR(INDEX($Q187:$AT187,,MATCH(i_Control,$Q$153:$AT$153,0)),0)","v":0},0,null,1,null,null,null,null,null,1,1,1,null,null,null,null,null,null,null,null,1,1,1,null,1,1,1,1,1,1,null,null,null,null,13]
[null,null,"Cassette",null,"US",null,"3\" Fascia",null,70,null,{"$f":"IF(INDEX(HO_TH_Show,MATCH(T_Brackets[[#This Row],[Description]],HO_TH_Desc,0))=\"Show\",1,0)","v":1},1,{"$f":"IFERROR(IF(INDIRECT(\"o_\"&T_Brackets[[#This Row],[Column2]]&\"ActualRoll_mm\")<T_Brackets[[#This Row],[Max Roll Diameter]],1,0),0)","v":0},{"$f":"IFERROR(INDEX($Q188:$AT188,,MATCH(i_Control,$Q$153:$AT$153,0)),0)","v":0},0,null,null,null,null,1,1,null,1,1,1,null,null,null,null,null,null,null,null,null,null,null,null,1,1,1,1,1,null,null,null,null,null,10]
[null,null,"Cassette",null,"US",null,"4\" Fascia",null,95,null,{"$f":"IF(INDEX(HO_TH_Show,MATCH(T_Brackets[[#This Row],[Description]],HO_TH_Desc,0))=\"Show\",1,0)","v":1},1,{"$f":"IFERROR(IF(INDIRECT(\"o_\"&T_Brackets[[#This Row],[Column2]]&\"ActualRoll_mm\")<T_Brackets[[#This Row],[Max Roll Diameter]],1,0),0)","v":0},{"$f":"IFERROR(INDEX($Q189:$AT189,,MATCH(i_Control,$Q$153:$AT$153,0)),0)","v":0},0,null,1,null,null,null,1,1,1,1,1,null,null,null,null,null,null,null,null,null,null,null,null,1,1,1,1,1,null,null,null,null,null,11]
[null,null,"Cassette",null,"US",null,"5\" Fascia - Single Roll",null,120.7,null,{"$f":"IF(INDEX(HO_TH_Show,MATCH(T_Brackets[[#This Row],[Description]],HO_TH_Desc,0))=\"Show\",1,0)","v":1},1,{"$f":"IFERROR(IF(INDIRECT(\"o_\"&T_Brackets[[#This Row],[Column2]]&\"ActualRoll_mm\")<T_Brackets[[#This Row],[Max Roll Diameter]],1,0),0)","v":0},{"$f":"IFERROR(INDEX($Q190:$AT190,,MATCH(i_Control,$Q$153:$AT$153,0)),0)","v":0},0,null,1,1,null,null,1,1,1,1,1,null,null,null,null,null,null,null,null,null,1,1,1,null,null,1,1,1,null,null,null,null,null,13]
[null,null,"Cassette",null,"US",null,"5\" Fascia - Double Roll",null,70,null,{"$f":"IF(INDEX(HO_TH_Show,MATCH(T_Brackets[[#This Row],[Description]],HO_TH_Desc,0))=\"Show\",1,0)","v":1},1,{"$f":"IFERROR(IF(INDIRECT(\"o_\"&T_Brackets[[#This Row],[Column2]]&\"ActualRoll_mm\")<T_Brackets[[#This Row],[Max Roll Diameter]],1,0),0)","v":0},{"$f":"IFERROR(INDEX($Q191:$AT191,,MATCH(i_Control,$Q$153:$AT$153,0)),0)","v":0},0,null,null,null,null,null,null,null,1,1,1,null,null,null,null,null,null,null,null,null,null,null,null,null,null,1,1,1,null,null,null,null,null,6]
[null,null,"Cassette",null,"Global",null,"P95",null,78,null,{"$f":"IF(INDEX(HO_TH_Show,MATCH(T_Brackets[[#This Row],[Description]],HO_TH_Desc,0))=\"Show\",1,0)","v":1},1,{"$f":"IFERROR(IF(INDIRECT(\"o_\"&T_Brackets[[#This Row],[Column2]]&\"ActualRoll_mm\")<T_Brackets[[#This Row],[Max Roll Diameter]],1,0),0)","v":0},{"$f":"IFERROR(INDEX($Q192:$AT192,,MATCH(i_Control,$Q$153:$AT$153,0)),0)","v":0},0,null,null,null,null,null,null,null,1,1,1,null,null,null,null,null,null,null,null,1,1,null,null,1,1,1,1,1,null,null,null,null,null,10]
[null,null,"Cassette",null,"AU",null,"FRS100",null,107,null,{"$f":"IF(INDEX(HO_TH_Show,MATCH(T_Brackets[[#This Row],[Description]],HO_TH_Desc,0))=\"Show\",1,0)","v":1},1,{"$f":"IFERROR(IF(INDIRECT(\"o_\"&T_Brackets[[#This Row],[Column2]]&\"ActualRoll_mm\")<T_Brackets[[#This Row],[Max Roll Diameter]],1,0),0)","v":0},{"$f":"IFERROR(INDEX($Q193:$AT193,,MATCH(i_Control,$Q$153:$AT$153,0)),0)","v":0},0,null,null,null,null,null,null,null,1,1,1,null,1,1,{"$f":"IF(i_Tube=S60_STD,\"\",1)","v":1},{"$f":"IF(i_Tube=S60_STD,\"\",1)","v":1},{"$f":"IF(i_Tube=S60_STD,\"\",1)","v":1},{"$f":"IF(i_Tube=S60_STD,\"\",1)","v":1},null,null,null,null,null,null,1,1,null,null,null,null,null,null,null,11]
[null,null,"Cassette",null,"AU",null,"FRS120",null,105,null,{"$f":"IF(INDEX(HO_TH_Show,MATCH(T_Brackets[[#This Row],[Description]],HO_TH_Desc,0))=\"Show\",1,0)","v":1},1,{"$f":"IFERROR(IF(INDIRECT(\"o_\"&T_Brackets[[#This Row],[Column2]]&\"ActualRoll_mm\")<T_Brackets[[#This Row],[Max Roll Diameter]],1,0),0)","v":0},{"$f":"IFERROR(INDEX($Q194:$AT194,,MATCH(i_Control,$Q$153:$AT$153,0)),0)","v":0},0,null,null,null,null,null,null,null,1,1,1,null,null,null,null,null,null,null,1,null,null,null,null,null,1,1,null,null,null,null,null,null,null,6]
[null,null,"Cassette",null,"Global",null,"CF90",null,77,null,{"$f":"IF(INDEX(HO_TH_Show,MATCH(T_Brackets[[#This Row],[Description]],HO_TH_Desc,0))=\"Show\",1,0)","v":1},1,{"$f":"IFERROR(IF(INDIRECT(\"o_\"&T_Brackets[[#This Row],[Column2]]&\"ActualRoll_mm\")<T_Brackets[[#This Row],[Max Roll Diameter]],1,0),0)","v":0},{"$f":"IFERROR(INDEX($Q195:$AT195,,MATCH(i_Control,$Q$153:$AT$153,0)),0)","v":0},0,null,null,null,null,null,null,null,1,1,1,null,1,1,1,1,1,1,null,null,null,null,null,1,1,1,1,1,null,null,null,null,null,14]
[]
[]
[]
[]
[null,null,null,null,null,"Link Selection Active?",{"$f":"o_LinkActive","v":"No"},"Link Torque Required",null,"o_tmax_sum"]
[null,null,null,null,null,"i_Tube",{"$f":"i_Tube","v":0},{"$f":"o_LinkTorqueReqd","v":""},"Nm",{"$f":"o_tMax_Sum","v":""},"Nm",null,null,"List Length"]
[null,null,null,null,null,null,null,null,null,null,null,null,null,{"$f":"IF(SUM($L$205:$L$210)=0,1,COUNTIF($L$205:$L$210,\">0\"))","v":{"$error":"#N/A"}}]
[null,null,"LINK OPTIONS",null,null,null,"(N/m)"]
[null,null,"Column2","Column1","Column3","Description","Torque","TubeCompatibility",null,"Link Torque Check",null,"on/off",null,"Output LIST"]
[null,null,null,null,null,"No Link System Compatible","-",1,null,{"$f":"IF(SUM(L206:L210)=0,1,0)","v":{"$error":"#N/A"}},null,{"$f":"PRODUCT((H205:J205))","v":{"$error":"#N/A"}},null,{"$f":"IFERROR(IF(o_LinkActive=\"Yes\",_xlfn._xlws.FILTER($F$205:$F$210,$L$205:$L$210),\"\"),\"\")","v":""}]
[null,null,null,null,null,"Infinite Link",2,{"$f":"INDEX(T_LinkTubeCompat[],MATCH(i_Tube,Tube_Description,0),MATCH(T_Links[[#This Row],[Description]],T_LinkTubeCompat[#Headers],0))","v":{"$error":"#N/A"}},null,{"$f":"IF(G206:G210>o_LinkTorqueReqd,1,0)","v":0},null,{"$f":"PRODUCT((H206:J206))","v":{"$error":"#N/A"}}]
[null,null,null,null,null,"Easy-Link Skyline",2,{"$f":"INDEX(T_LinkTubeCompat[],MATCH(i_Tube,Tube_Description,0),MATCH(T_Links[[#This Row],[Description]],T_LinkTubeCompat[#Headers],0))","v":{"$error":"#N/A"}},null,0,null,{"$error":"#N/A"}]
[null,null,null,null,null,"Easy-Link",3,{"$f":"INDEX(T_LinkTubeCompat[],MATCH(i_Tube,Tube_Description,0),MATCH(T_Links[[#This Row],[Description]],T_LinkTubeCompat[#Headers],0))","v":{"$error":"#N/A"}},null,0,null,{"$error":"#N/A"}]
[null,null,null,null,null,"Easy-Link Uni-Joint",2.5,{"$f":"INDEX(T_LinkTubeCompat[],MATCH(i_Tube,Tube_Description,0),MATCH(T_Links[[#This Row],[Description]],T_LinkTubeCompat[#Headers],0))","v":{"$error":"#N/A"}},null,0,null,{"$error":"#N/A"}]
[null,null,null,null,null,"S60 Multi-Link",14,{"$f":"INDEX(T_LinkTubeCompat[],MATCH(i_Tube,Tube_Description,0),MATCH(T_Links[[#This Row],[Description]],T_LinkTubeCompat[#Headers],0))","v":{"$error":"#N/A"}},null,0,null,{"$error":"#N/A"}]
[]
[]
[]
[null,null,null,null,null,null,null,"todo: error check for no compatible tubes. "]
[]
[]
[null,null,"Adaptor Code","ID"]
[null,null,"No Adaptor Required",1]
[null,null,"RA2",2]
[null,null,"RA25",3]
[null,null,"SLA03",4]
[null,null,"SLA40",5]
[null,null,"SLA43",6]
[null,null,"SLA53",7]
[null,null,"RB10-6000",8]
[null,null,"S45 to S60",9]
[]
[]
[]
[null,null,"CONTROL TYPE LIST BY REGION",null,null,"User Selected Region",{"$f":"i_Region","v":"Global"}]
[null,null,null,null,null,"Number of Controls",{"$f":"COUNTA(C233:C237)","v":3}]
[null,null,"CONTROL TYPE","AU","US","PROVISION FOR EXTRA REGION","Global","on/off",null,"CONTROL TYPE LIST","list length"]
[null,null,{"$f":"z_Motor","v":"Motor"},1,1,null,1,{"$f":"OFFSET(C232,1,MATCH(G230,D232:G232,0),G231)","v":1},null,{"$f":"IFERROR(_xlfn._xlws.FILTER(L_mainControlType,$H$233:$H$237),\"\")","v":"Motor"},{"$f":"IF(SUM($H$233:$H$237)=0,1,COUNTIF($H$233:$H$237,\">0\"))","v":3}]
[null,null,{"$f":"z_Clutch","v":"Clutch"},1,1,null,1,1,null,"Clutch"]
[null,null,{"$f":"z_ESA","v":"Easy Spring Air"},1,1,null,1,1,null,"Easy Spring Air"]
[]
[]
[]
[]
[]
[]
[null,null,"ESA Error Check"]
[null,null,"Parameter","Value","Error Check"]
[null,null,"Control Type",{"$f":"i_ControlType","v":0},{"$f":"IF(D244=\"Easy Spring Air\",1,0)","v":0},"1 = data completed"]
[null,null,"Tube",{"$f":"i_Tube","v":0},{"$f":"IF(D245=0,0,1)","v":0}]
[null,null,"Fabric Type",{"$f":"i_Fabric","v":0},{"$f":"IF(D246=\"_Custom Fabric Data\",1,0)","v":0}]
[null,null,"Custom Fabric Thickness",{"$f":"i_FThickness_Custom","v":0},{"$f":"IF(D247<>0,1,0)","v":0}]
[null,null,"Custom Fabric Density",{"$f":"i_Fdensity_Custom","v":0},{"$f":"IF(D248<>0,1,0)","v":0}]
[null,null,"Booster Output",{"$f":"o_BoosterType","v":"No suitable options."},{"$f":"IF(D249=\"No Suitable Options.\",0,1)","v":0},"0 = no options = bad"]
[]
[null,null,"Error State",{"$f":"IF(AND(PRODUCT(E244:E248)=1,E249=0),1,0)","v":0},null,"1 = triggers warning"]
[null,null,"Error Message","There are no ESA springs that will achieve a balanced system. \n\nIf you have included ballast, try removing it.\n\nOtherwise, you may need to adjust the system parameters."]
[]
[]
[null,null,"Idler Modifier"]
[null,null,"Tube","Region","Description","mm","Column1"]
[null,null,"S45/1.5\"","Global","Limiter - STD",{"$f":"F261-$F$150","v":0}]
[null,null,"S45/1.5\"","US","Skyline HD Pin End (US Only)",-51]
[null,null,"1.5\"","US","Skyline Pin End (US Only)",-97]
[]
[]
[null,null,null,null,null,null,null,"Source:"]
[null,null,null,null,null,"Select Idler Type","Skyline Pin End (US Only)","C:\\RA Vault\\Projects Library\\Rollers\\NPD-22062 - RisingSun Springs w  S45 & LX brackets\\Reports\\NPD-22062 ESA S45 min blind width with limiters.xlsx"]
[]
[null,null,"Minimum Blind Width",null,null,"mm"]
[null,null,"System","Description","Limiter - STD","Skyline Pin End (US Only)","Skyline HD Pin End (US Only)"]
[null,null,null,"MICRO",498,400,447]
[null,null,null,"SMALL",700,600,649]
[null,null,null,"MINI",498,400,447]
[null,null,null,"LIGHT",700,600,649]
[null,null,null,"MEDIUM",1010,913,959]
[null,null,null,"HEAVY",1110,1013,1059]
[]
[]
[]
[]
[null,null,null,null,null,"Min width(mm)\n for STD limiter","Min width(mm)\n for Idler(max)","Min width(mm)\nfor HD Idler(max)"]
[null,null,null,null,null,498,400,447]
[null,null,null,null,null,700,600,649]
[null,null,null,null,null,498,400,447]
[null,null,null,null,null,700,600,649]
[null,null,null,null,null,1010,913,959]
[null,null,null,null,null,1110,1013,1059]

{"sheet":"_Chart Formatting_WIP","index":6,"n_rows":27,"n_cols":80,"rows_kept":27,"cut":false,"hidden":true,"merged":[]}
[]
[]
[]
[]
[]
[]
[null,null,null,null,null,null,null,null,null,null,"Tube",{"$f":"i_Tube","v":0}]
[]
[]
[null,null,null,null,null,null,null,null,null,null,"Tube Border (0 = No border, 1 = Right, 2 = Bottom, 3 = Right & Bottom)",null,null,null,null,null,null,null,null,null,null,null,null,null,null,null,null,null,null,null,null,null,null,null,"Tube Compatibility (1 = Within Tube Deflection, 0 = Outside Tube Deflection)",null,null,null,null,null,null,null,null,null,null,null,null,null,null,null,null,null,null,null,null,null,null,null,"Tube Deflection (From generated system charts)"]
[null,null,null,null,null,null,null,null,null,null,{"$f":"AI11","v":"m"},{"$f":"AJ11","v":0.6},{"$f":"AK11","v":0.8},1,1.2,1.4,1.6,1.8,2,2.2000000000000002,2.4,2.6,2.8,3,3.2,3.4,3.6,3.8,4,4.2,4.4000000000000004,4.5999999999999996,null,null,{"$f":"BG11","v":"m"},{"$f":"BH11","v":0.6},0.8,1,1.2,1.4,1.6,1.8,2,2.2000000000000002,2.4,2.6,2.8,3,3.2,3.4,3.6,3.8,4,4.2,4.4000000000000004,4.5999999999999996,null,null,{"$f":"'2. System Charts'!K11","v":"m"},{"$f":"'2. System Charts'!L11","v":0.6},{"$f":"'2. System Charts'!M11","v":0.8},{"$f":"'2. System Charts'!N11","v":1},{"$f":"'2. System Charts'!O11","v":1.2},{"$f":"'2. System Charts'!P11","v":1.4},{"$f":"'2. System Charts'!Q11","v":1.6},{"$f":"'2. System Charts'!R11","v":1.8},{"$f":"'2. System Charts'!S11","v":2},{"$f":"'2. System Charts'!T11","v":2.2000000000000002},{"$f":"'2. System Charts'!U11","v":2.4},{"$f":"'2. System Charts'!V11","v":2.6},{"$f":"'2. System Charts'!W11","v":2.8},{"$f":"'2. System Charts'!X11","v":3},{"$f":"'2. System Charts'!Y11","v":3.2},{"$f":"'2. System Charts'!Z11","v":3.4},{"$f":"'2. System Charts'!AA11","v":3.6},{"$f":"'2. System Charts'!AB11","v":3.8},{"$f":"'2. System Charts'!AC11","v":4},{"$f":"'2. System Charts'!AD11","v":4.2},{"$f":"'2. System Charts'!AE11","v":4.4000000000000004},{"$f":"'2. System Charts'!AF11","v":4.5999999999999996}]
[null,null,null,null,null,null,null,null,null,null,0.6,{"$f":"IF(AND(AJ12=AK12,AJ12=AJ13),0,IF(AND(AJ12<>AK12,AJ12=AJ13),1,IF(AND(AJ12=AK12,AJ12<>AJ13),2,IF(AND(AJ12<>AK12,AJ12<>AK13),3,\"\"))))","v":0},{"$f":"IF(AND(AK12=AL12,AK12=AK13),0,IF(AND(AK12<>AL12,AK12=AK13),1,IF(AND(AK12=AL12,AK12<>AK13),2,IF(AND(AK12<>AL12,AK12<>AL13),3,\"\"))))","v":0},{"$f":"IF(AND(AL12=AM12,AL12=AL13),0,IF(AND(AL12<>AM12,AL12=AL13),1,IF(AND(AL12=AM12,AL12<>AL13),2,IF(AND(AL12<>AM12,AL12<>AM13),3,\"\"))))","v":0},{"$f":"IF(AND(AM12=AN12,AM12=AM13),0,IF(AND(AM12<>AN12,AM12=AM13),1,IF(AND(AM12=AN12,AM12<>AM13),2,IF(AND(AM12<>AN12,AM12<>AN13),3,\"\"))))","v":0},{"$f":"IF(AND(AN12=AO12,AN12=AN13),0,IF(AND(AN12<>AO12,AN12=AN13),1,IF(AND(AN12=AO12,AN12<>AN13),2,IF(AND(AN12<>AO12,AN12<>AO13),3,\"\"))))","v":0},{"$f":"IF(AND(AO12=AP12,AO12=AO13),0,IF(AND(AO12<>AP12,AO12=AO13),1,IF(AND(AO12=AP12,AO12<>AO13),2,IF(AND(AO12<>AP12,AO12<>AP13),3,\"\"))))","v":0},{"$f":"IF(AND(AP12=AQ12,AP12=AP13),0,IF(AND(AP12<>AQ12,AP12=AP13),1,IF(AND(AP12=AQ12,AP12<>AP13),2,IF(AND(AP12<>AQ12,AP12<>AQ13),3,\"\"))))","v":0},{"$f":"IF(AND(AQ12=AR12,AQ12=AQ13),0,IF(AND(AQ12<>AR12,AQ12=AQ13),1,IF(AND(AQ12=AR12,AQ12<>AQ13),2,IF(AND(AQ12<>AR12,AQ12<>AR13),3,\"\"))))","v":0},{"$f":"IF(AND(AR12=AS12,AR12=AR13),0,IF(AND(AR12<>AS12,AR12=AR13),1,IF(AND(AR12=AS12,AR12<>AR13),2,IF(AND(AR12<>AS12,AR12<>AS13),3,\"\"))))","v":0},{"$f":"IF(AND(AS12=AT12,AS12=AS13),0,IF(AND(AS12<>AT12,AS12=AS13),1,IF(AND(AS12=AT12,AS12<>AS13),2,IF(AND(AS12<>AT12,AS12<>AT13),3,\"\"))))","v":0},{"$f":"IF(AND(AT12=AU12,AT12=AT13),0,IF(AND(AT12<>AU12,AT12=AT13),1,IF(AND(AT12=AU12,AT12<>AT13),2,IF(AND(AT12<>AU12,AT12<>AU13),3,\"\"))))","v":0},{"$f":"IF(AND(AU12=AV12,AU12=AU13),0,IF(AND(AU12<>AV12,AU12=AU13),1,IF(AND(AU12=AV12,AU12<>AU13),2,IF(AND(AU12<>AV12,AU12<>AV13),3,\"\"))))","v":0},{"$f":"IF(AND(AV12=AW12,AV12=AV13),0,IF(AND(AV12<>AW12,AV12=AV13),1,IF(AND(AV12=AW12,AV12<>AV13),2,IF(AND(AV12<>AW12,AV12<>AW13),3,\"\"))))","v":0},{"$f":"IF(AND(AW12=AX12,AW12=AW13),0,IF(AND(AW12<>AX12,AW12=AW13),1,IF(AND(AW12=AX12,AW12<>AW13),2,IF(AND(AW12<>AX12,AW12<>AX13),3,\"\"))))","v":0},{"$f":"IF(AND(AX12=AY12,AX12=AX13),0,IF(AND(AX12<>AY12,AX12=AX13),1,IF(AND(AX12=AY12,AX12<>AX13),2,IF(AND(AX12<>AY12,AX12<>AY13),3,\"\"))))","v":0},{"$f":"IF(AND(AY12=AZ12,AY12=AY13),0,IF(AND(AY12<>AZ12,AY12=AY13),1,IF(AND(AY12=AZ12,AY12<>AY13),2,IF(AND(AY12<>AZ12,AY12<>AZ13),3,\"\"))))","v":0},{"$f":"IF(AND(AZ12=BA12,AZ12=AZ13),0,IF(AND(AZ12<>BA12,AZ12=AZ13),1,IF(AND(AZ12=BA12,AZ12<>AZ13),2,IF(AND(AZ12<>BA12,AZ12<>BA13),3,\"\"))))","v":0},{"$f":"IF(AND(BA12=BB12,BA12=BA13),0,IF(AND(BA12<>BB12,BA12=BA13),1,IF(AND(BA12=BB12,BA12<>BA13),2,IF(AND(BA12<>BB12,BA12<>BB13),3,\"\"))))","v":0},{"$f":"IF(AND(BB12=BC12,BB12=BB13),0,IF(AND(BB12<>BC12,BB12=BB13),1,IF(AND(BB12=BC12,BB12<>BB13),2,IF(AND(BB12<>BC12,BB12<>BC13),3,\"\"))))","v":0},{"$f":"IF(AND(BC12=BD12,BC12=BC13),0,IF(AND(BC12<>BD12,BC12=BC13),1,IF(AND(BC12=BD12,BC12<>BC13),2,IF(AND(BC12<>BD12,BC12<>BD13),3,\"\"))))","v":0},{"$f":"IF(AND(BD12=BE12,BD12=BD13),0,IF(AND(BD12<>BE12,BD12=BD13),1,IF(AND(BD12=BE12,BD12<>BD13),2,IF(AND(BD12<>BE12,BD12<>BE13),3,\"\"))))","v":0},null,null,{"$f":"BG12","v":0.6},{"$f":"IF(BH12<=BH$11/(1/Deflection_Limit2),1,0)","v":0},{"$f":"IF(BI12<=BI$11/(1/Deflection_Limit2),1,0)","v":0},{"$f":"IF(BJ12<=BJ$11/(1/Deflection_Limit2),1,0)","v":0},{"$f":"IF(BK12<=BK$11/(1/Deflection_Limit2),1,0)","v":0},{"$f":"IF(BL12<=BL$11/(1/Deflection_Limit2),1,0)","v":0},{"$f":"IF(BM12<=BM$11/(1/Deflection_Limit2),1,0)","v":0},{"$f":"IF(BN12<=BN$11/(1/Deflection_Limit2),1,0)","v":0},{"$f":"IF(BO12<=BO$11/(1/Deflection_Limit2),1,0)","v":0},{"$f":"IF(BP12<=BP$11/(1/Deflection_Limit2),1,0)","v":0},{"$f":"IF(BQ12<=BQ$11/(1/Deflection_Limit2),1,0)","v":0},{"$f":"IF(BR12<=BR$11/(1/Deflection_Limit2),1,0)","v":0},{"$f":"IF(BS12<=BS$11/(1/Deflection_Limit2),1,0)","v":0},{"$f":"IF(BT12<=BT$11/(1/Deflection_Limit2),1,0)","v":0},{"$f":"IF(BU12<=BU$11/(1/Deflection_Limit2),1,0)","v":0},{"$f":"IF(BV12<=BV$11/(1/Deflection_Limit2),1,0)","v":0},{"$f":"IF(BW12<=BW$11/(1/Deflection_Limit2),1,0)","v":0},{"$f":"IF(BX12<=BX$11/(1/Deflection_Limit2),1,0)","v":0},{"$f":"IF(BY12<=BY$11/(1/Deflection_Limit2),1,0)","v":0},{"$f":"IF(BZ12<=BZ$11/(1/Deflection_Limit2),1,0)","v":0},{"$f":"IF(CA12<=CA$11/(1/Deflection_Limit2),1,0)","v":0},{"$f":"IF(CB12<=CB$11/(1/Deflection_Limit2),1,0)","v":0},null,null,{"$f":"'2. System Charts'!K12","v":0.6},{"$f":"'2. System Charts'!L12","v":""},{"$f":"'2. System Charts'!M12","v":""},{"$f":"'2. System Charts'!N12","v":""},{"$f":"'2. System Charts'!O12","v":""},{"$f":"'2. System Charts'!P12","v":""},{"$f":"'2. System Charts'!Q12","v":""},{"$f":"'2. System Charts'!R12","v":""},{"$f":"'2. System Charts'!S12","v":""},{"$f":"'2. System Charts'!T12","v":""},{"$f":"'2. System Charts'!U12","v":""},{"$f":"'2. System Charts'!V12","v":""},{"$f":"'2. System Charts'!W12","v":""},{"$f":"'2. System Charts'!X12","v":""},{"$f":"'2. System Charts'!Y12","v":""},{"$f":"'2. System Charts'!Z12","v":""},{"$f":"'2. System Charts'!AA12","v":""},{"$f":"'2. System Charts'!AB12","v":""},{"$f":"'2. System Charts'!AC12","v":""},{"$f":"'2. System Charts'!AD12","v":""},{"$f":"'2. System Charts'!AE12","v":""},{"$f":"'2. System Charts'!AF12","v":""}]
[null,null,null,null,null,null,null,null,null,null,0.8,{"$f":"IF(AND(AJ13=AK13,AJ13=AJ14),0,IF(AND(AJ13<>AK13,AJ13=AJ14),1,IF(AND(AJ13=AK13,AJ13<>AJ14),2,IF(AND(AJ13<>AK13,AJ13<>AK14),3,\"\"))))","v":0},0,0,0,0,0,0,0,0,0,0,0,0,0,0,0,0,0,0,0,0,null,null,0.8,0,0,0,0,0,0,0,0,0,0,0,0,0,0,0,0,0,0,0,0,0,null,null,{"$f":"'2. System Charts'!K13","v":0.8},{"$f":"'2. System Charts'!L13","v":""},{"$f":"'2. System Charts'!M13","v":""},{"$f":"'2. System Charts'!N13","v":""},{"$f":"'2. System Charts'!O13","v":""},{"$f":"'2. System Charts'!P13","v":""},{"$f":"'2. System Charts'!Q13","v":""},{"$f":"'2. System Charts'!R13","v":""},{"$f":"'2. System Charts'!S13","v":""},{"$f":"'2. System Charts'!T13","v":""},{"$f":"'2. System Charts'!U13","v":""},{"$f":"'2. System Charts'!V13","v":""},{"$f":"'2. System Charts'!W13","v":""},{"$f":"'2. System Charts'!X13","v":""},{"$f":"'2. System Charts'!Y13","v":""},{"$f":"'2. System Charts'!Z13","v":""},{"$f":"'2. System Charts'!AA13","v":""},{"$f":"'2. System Charts'!AB13","v":""},{"$f":"'2. System Charts'!AC13","v":""},{"$f":"'2. System Charts'!AD13","v":""},{"$f":"'2. System Charts'!AE13","v":""},{"$f":"'2. System Charts'!AF13","v":""}]
[null,null,null,null,null,null,null,null,null,null,1,0,0,0,0,0,0,0,0,0,0,0,0,0,0,0,0,0,0,0,0,0,null,null,1,0,0,0,0,0,0,0,0,0,0,0,0,0,0,0,0,0,0,0,0,0,null,null,{"$f":"'2. System Charts'!K14","v":1},{"$f":"'2. System Charts'!L14","v":""},{"$f":"'2. System Charts'!M14","v":""},{"$f":"'2. System Charts'!N14","v":""},{"$f":"'2. System Charts'!O14","v":""},{"$f":"'2. System Charts'!P14","v":""},{"$f":"'2. System Charts'!Q14","v":""},{"$f":"'2. System Charts'!R14","v":""},{"$f":"'2. System Charts'!S14","v":""},{"$f":"'2. System Charts'!T14","v":""},{"$f":"'2. System Charts'!U14","v":""},{"$f":"'2. System Charts'!V14","v":""},{"$f":"'2. System Charts'!W14","v":""},{"$f":"'2. System Charts'!X14","v":""},{"$f":"'2. System Charts'!Y14","v":""},{"$f":"'2. System Charts'!Z14","v":""},{"$f":"'2. System Charts'!AA14","v":""},{"$f":"'2. System Charts'!AB14","v":""},{"$f":"'2. System Charts'!AC14","v":""},{"$f":"'2. System Charts'!AD14","v":""},{"$f":"'2. System Charts'!AE14","v":""},{"$f":"'2. System Charts'!AF14","v":""}]
[null,null,null,null,null,null,null,null,null,null,1.2,0,0,0,0,0,0,0,0,0,0,0,0,0,0,0,0,0,0,0,0,0,null,null,1.2,0,0,0,0,0,0,0,0,0,0,0,0,0,0,0,0,0,0,0,0,0,null,null,{"$f":"'2. System Charts'!K15","v":1.2},{"$f":"'2. System Charts'!L15","v":""},{"$f":"'2. System Charts'!M15","v":""},{"$f":"'2. System Charts'!N15","v":""},{"$f":"'2. System Charts'!O15","v":""},{"$f":"'2. System Charts'!P15","v":""},{"$f":"'2. System Charts'!Q15","v":""},{"$f":"'2. System Charts'!R15","v":""},{"$f":"'2. System Charts'!S15","v":""},{"$f":"'2. System Charts'!T15","v":""},{"$f":"'2. System Charts'!U15","v":""},{"$f":"'2. System Charts'!V15","v":""},{"$f":"'2. System Charts'!W15","v":""},{"$f":"'2. System Charts'!X15","v":""},{"$f":"'2. System Charts'!Y15","v":""},{"$f":"'2. System Charts'!Z15","v":""},{"$f":"'2. System Charts'!AA15","v":""},{"$f":"'2. System Charts'!AB15","v":""},{"$f":"'2. System Charts'!AC15","v":""},{"$f":"'2. System Charts'!AD15","v":""},{"$f":"'2. System Charts'!AE15","v":""},{"$f":"'2. System Charts'!AF15","v":""}]
[null,null,null,null,null,null,null,null,null,null,1.4,0,0,0,0,0,0,0,0,0,0,0,0,0,0,0,0,0,0,0,0,0,null,null,1.4,0,0,0,0,0,0,0,0,0,0,0,0,0,0,0,0,0,0,0,0,0,null,null,{"$f":"'2. System Charts'!K16","v":1.4},{"$f":"'2. System Charts'!L16","v":""},{"$f":"'2. System Charts'!M16","v":""},{"$f":"'2. System Charts'!N16","v":""},{"$f":"'2. System Charts'!O16","v":""},{"$f":"'2. System Charts'!P16","v":""},{"$f":"'2. System Charts'!Q16","v":""},{"$f":"'2. System Charts'!R16","v":""},{"$f":"'2. System Charts'!S16","v":""},{"$f":"'2. System Charts'!T16","v":""},{"$f":"'2. System Charts'!U16","v":""},{"$f":"'2. System Charts'!V16","v":""},{"$f":"'2. System Charts'!W16","v":""},{"$f":"'2. System Charts'!X16","v":""},{"$f":"'2. System Charts'!Y16","v":""},{"$f":"'2. System Charts'!Z16","v":""},{"$f":"'2. System Charts'!AA16","v":""},{"$f":"'2. System Charts'!AB16","v":""},{"$f":"'2. System Charts'!AC16","v":""},{"$f":"'2. System Charts'!AD16","v":""},{"$f":"'2. System Charts'!AE16","v":""},{"$f":"'2. System Charts'!AF16","v":""}]
[null,null,null,null,null,null,null,null,null,null,1.6,0,0,0,0,0,0,0,0,0,0,0,0,0,0,0,0,0,0,0,0,0,null,null,1.6,0,0,0,0,0,0,0,0,0,0,0,0,0,0,0,0,0,0,0,0,0,null,null,{"$f":"'2. System Charts'!K17","v":1.6},{"$f":"'2. System Charts'!L17","v":""},{"$f":"'2. System Charts'!M17","v":""},{"$f":"'2. System Charts'!N17","v":""},{"$f":"'2. System Charts'!O17","v":""},{"$f":"'2. System Charts'!P17","v":""},{"$f":"'2. System Charts'!Q17","v":""},{"$f":"'2. System Charts'!R17","v":""},{"$f":"'2. System Charts'!S17","v":""},{"$f":"'2. System Charts'!T17","v":""},{"$f":"'2. System Charts'!U17","v":""},{"$f":"'2. System Charts'!V17","v":""},{"$f":"'2. System Charts'!W17","v":""},{"$f":"'2. System Charts'!X17","v":""},{"$f":"'2. System Charts'!Y17","v":""},{"$f":"'2. System Charts'!Z17","v":""},{"$f":"'2. System Charts'!AA17","v":""},{"$f":"'2. System Charts'!AB17","v":""},{"$f":"'2. System Charts'!AC17","v":""},{"$f":"'2. System Charts'!AD17","v":""},{"$f":"'2. System Charts'!AE17","v":""},{"$f":"'2. System Charts'!AF17","v":""}]
[null,null,null,null,null,null,null,null,null,null,1.8,0,0,0,0,0,0,0,0,0,0,0,0,0,0,0,0,0,0,0,0,0,null,null,1.8,0,0,0,0,0,0,0,0,0,0,0,0,0,0,0,0,0,0,0,0,0,null,null,{"$f":"'2. System Charts'!K18","v":1.8},{"$f":"'2. System Charts'!L18","v":""},{"$f":"'2. System Charts'!M18","v":""},{"$f":"'2. System Charts'!N18","v":""},{"$f":"'2. System Charts'!O18","v":""},{"$f":"'2. System Charts'!P18","v":""},{"$f":"'2. System Charts'!Q18","v":""},{"$f":"'2. System Charts'!R18","v":""},{"$f":"'2. System Charts'!S18","v":""},{"$f":"'2. System Charts'!T18","v":""},{"$f":"'2. System Charts'!U18","v":""},{"$f":"'2. System Charts'!V18","v":""},{"$f":"'2. System Charts'!W18","v":""},{"$f":"'2. System Charts'!X18","v":""},{"$f":"'2. System Charts'!Y18","v":""},{"$f":"'2. System Charts'!Z18","v":""},{"$f":"'2. System Charts'!AA18","v":""},{"$f":"'2. System Charts'!AB18","v":""},{"$f":"'2. System Charts'!AC18","v":""},{"$f":"'2. System Charts'!AD18","v":""},{"$f":"'2. System Charts'!AE18","v":""},{"$f":"'2. System Charts'!AF18","v":""}]
[null,null,null,null,null,null,null,null,null,null,2,0,0,0,0,0,0,0,0,0,0,0,0,0,0,0,0,0,0,0,0,0,null,null,2,0,0,0,0,0,0,0,0,0,0,0,0,0,0,0,0,0,0,0,0,0,null,null,{"$f":"'2. System Charts'!K19","v":2},{"$f":"'2. System Charts'!L19","v":""},{"$f":"'2. System Charts'!M19","v":""},{"$f":"'2. System Charts'!N19","v":""},{"$f":"'2. System Charts'!O19","v":""},{"$f":"'2. System Charts'!P19","v":""},{"$f":"'2. System Charts'!Q19","v":""},{"$f":"'2. System Charts'!R19","v":""},{"$f":"'2. System Charts'!S19","v":""},{"$f":"'2. System Charts'!T19","v":""},{"$f":"'2. System Charts'!U19","v":""},{"$f":"'2. System Charts'!V19","v":""},{"$f":"'2. System Charts'!W19","v":""},{"$f":"'2. System Charts'!X19","v":""},{"$f":"'2. System Charts'!Y19","v":""},{"$f":"'2. System Charts'!Z19","v":""},{"$f":"'2. System Charts'!AA19","v":""},{"$f":"'2. System Charts'!AB19","v":""},{"$f":"'2. System Charts'!AC19","v":""},{"$f":"'2. System Charts'!AD19","v":""},{"$f":"'2. System Charts'!AE19","v":""},{"$f":"'2. System Charts'!AF19","v":""}]
[null,null,null,null,null,null,null,null,null,null,2.2000000000000002,0,0,0,0,0,0,0,0,0,0,0,0,0,0,0,0,0,0,0,0,0,null,null,2.2000000000000002,0,0,0,0,0,0,0,0,0,0,0,0,0,0,0,0,0,0,0,0,0,null,null,{"$f":"'2. System Charts'!K20","v":2.2000000000000002},{"$f":"'2. System Charts'!L20","v":""},{"$f":"'2. System Charts'!M20","v":""},{"$f":"'2. System Charts'!N20","v":""},{"$f":"'2. System Charts'!O20","v":""},{"$f":"'2. System Charts'!P20","v":""},{"$f":"'2. System Charts'!Q20","v":""},{"$f":"'2. System Charts'!R20","v":""},{"$f":"'2. System Charts'!S20","v":""},{"$f":"'2. System Charts'!T20","v":""},{"$f":"'2. System Charts'!U20","v":""},{"$f":"'2. System Charts'!V20","v":""},{"$f":"'2. System Charts'!W20","v":""},{"$f":"'2. System Charts'!X20","v":""},{"$f":"'2. System Charts'!Y20","v":""},{"$f":"'2. System Charts'!Z20","v":""},{"$f":"'2. System Charts'!AA20","v":""},{"$f":"'2. System Charts'!AB20","v":""},{"$f":"'2. System Charts'!AC20","v":""},{"$f":"'2. System Charts'!AD20","v":""},{"$f":"'2. System Charts'!AE20","v":""},{"$f":"'2. System Charts'!AF20","v":""}]
[null,null,null,null,null,null,null,null,null,null,2.4,0,0,0,0,0,0,0,0,0,0,0,0,0,0,0,0,0,0,0,0,0,null,null,2.4,0,0,0,0,0,0,0,0,0,0,0,0,0,0,0,0,0,0,0,0,0,null,null,{"$f":"'2. System Charts'!K21","v":2.4},{"$f":"'2. System Charts'!L21","v":""},{"$f":"'2. System Charts'!M21","v":""},{"$f":"'2. System Charts'!N21","v":""},{"$f":"'2. System Charts'!O21","v":""},{"$f":"'2. System Charts'!P21","v":""},{"$f":"'2. System Charts'!Q21","v":""},{"$f":"'2. System Charts'!R21","v":""},{"$f":"'2. System Charts'!S21","v":""},{"$f":"'2. System Charts'!T21","v":""},{"$f":"'2. System Charts'!U21","v":""},{"$f":"'2. System Charts'!V21","v":""},{"$f":"'2. System Charts'!W21","v":""},{"$f":"'2. System Charts'!X21","v":""},{"$f":"'2. System Charts'!Y21","v":""},{"$f":"'2. System Charts'!Z21","v":""},{"$f":"'2. System Charts'!AA21","v":""},{"$f":"'2. System Charts'!AB21","v":""},{"$f":"'2. System Charts'!AC21","v":""},{"$f":"'2. System Charts'!AD21","v":""},{"$f":"'2. System Charts'!AE21","v":""},{"$f":"'2. System Charts'!AF21","v":""}]
[null,null,null,null,null,null,null,null,null,null,2.6,0,0,0,0,0,0,0,0,0,0,0,0,0,0,0,0,0,0,0,0,0,null,null,2.6,0,0,0,0,0,0,0,0,0,0,0,0,0,0,0,0,0,0,0,0,0,null,null,{"$f":"'2. System Charts'!K22","v":2.6},{"$f":"'2. System Charts'!L22","v":""},{"$f":"'2. System Charts'!M22","v":""},{"$f":"'2. System Charts'!N22","v":""},{"$f":"'2. System Charts'!O22","v":""},{"$f":"'2. System Charts'!P22","v":""},{"$f":"'2. System Charts'!Q22","v":""},{"$f":"'2. System Charts'!R22","v":""},{"$f":"'2. System Charts'!S22","v":""},{"$f":"'2. System Charts'!T22","v":""},{"$f":"'2. System Charts'!U22","v":""},{"$f":"'2. System Charts'!V22","v":""},{"$f":"'2. System Charts'!W22","v":""},{"$f":"'2. System Charts'!X22","v":""},{"$f":"'2. System Charts'!Y22","v":""},{"$f":"'2. System Charts'!Z22","v":""},{"$f":"'2. System Charts'!AA22","v":""},{"$f":"'2. System Charts'!AB22","v":""},{"$f":"'2. System Charts'!AC22","v":""},{"$f":"'2. System Charts'!AD22","v":""},{"$f":"'2. System Charts'!AE22","v":""},{"$f":"'2. System Charts'!AF22","v":""}]
[null,null,null,null,null,null,null,null,null,null,2.8,0,0,0,0,0,0,0,0,0,0,0,0,0,0,0,0,0,0,0,0,0,null,null,2.8,0,0,0,0,0,0,0,0,0,0,0,0,0,0,0,0,0,0,0,0,0,null,null,{"$f":"'2. System Charts'!K23","v":2.8},{"$f":"'2. System Charts'!L23","v":""},{"$f":"'2. System Charts'!M23","v":""},{"$f":"'2. System Charts'!N23","v":""},{"$f":"'2. System Charts'!O23","v":""},{"$f":"'2. System Charts'!P23","v":""},{"$f":"'2. System Charts'!Q23","v":""},{"$f":"'2. System Charts'!R23","v":""},{"$f":"'2. System Charts'!S23","v":""},{"$f":"'2. System Charts'!T23","v":""},{"$f":"'2. System Charts'!U23","v":""},{"$f":"'2. System Charts'!V23","v":""},{"$f":"'2. System Charts'!W23","v":""},{"$f":"'2. System Charts'!X23","v":""},{"$f":"'2. System Charts'!Y23","v":""},{"$f":"'2. System Charts'!Z23","v":""},{"$f":"'2. System Charts'!AA23","v":""},{"$f":"'2. System Charts'!AB23","v":""},{"$f":"'2. System Charts'!AC23","v":""},{"$f":"'2. System Charts'!AD23","v":""},{"$f":"'2. System Charts'!AE23","v":""},{"$f":"'2. System Charts'!AF23","v":""}]
[null,null,null,null,null,null,null,null,null,null,3,0,0,0,0,0,0,0,0,0,0,0,0,0,0,0,0,0,0,0,0,0,null,null,3,0,0,0,0,0,0,0,0,0,0,0,0,0,0,0,0,0,0,0,0,0,null,null,{"$f":"'2. System Charts'!K24","v":3},{"$f":"'2. System Charts'!L24","v":""},{"$f":"'2. System Charts'!M24","v":""},{"$f":"'2. System Charts'!N24","v":""},{"$f":"'2. System Charts'!O24","v":""},{"$f":"'2. System Charts'!P24","v":""},{"$f":"'2. System Charts'!Q24","v":""},{"$f":"'2. System Charts'!R24","v":""},{"$f":"'2. System Charts'!S24","v":""},{"$f":"'2. System Charts'!T24","v":""},{"$f":"'2. System Charts'!U24","v":""},{"$f":"'2. System Charts'!V24","v":""},{"$f":"'2. System Charts'!W24","v":""},{"$f":"'2. System Charts'!X24","v":""},{"$f":"'2. System Charts'!Y24","v":""},{"$f":"'2. System Charts'!Z24","v":""},{"$f":"'2. System Charts'!AA24","v":""},{"$f":"'2. System Charts'!AB24","v":""},{"$f":"'2. System Charts'!AC24","v":""},{"$f":"'2. System Charts'!AD24","v":""},{"$f":"'2. System Charts'!AE24","v":""},{"$f":"'2. System Charts'!AF24","v":""}]
[null,null,null,null,null,null,null,null,null,null,3.2,0,0,0,0,0,0,0,0,0,0,0,0,0,0,0,0,0,0,0,0,0,null,null,3.2,0,0,0,0,0,0,0,0,0,0,0,0,0,0,0,0,0,0,0,0,0,null,null,{"$f":"'2. System Charts'!K25","v":3.2},{"$f":"'2. System Charts'!L25","v":""},{"$f":"'2. System Charts'!M25","v":""},{"$f":"'2. System Charts'!N25","v":""},{"$f":"'2. System Charts'!O25","v":""},{"$f":"'2. System Charts'!P25","v":""},{"$f":"'2. System Charts'!Q25","v":""},{"$f":"'2. System Charts'!R25","v":""},{"$f":"'2. System Charts'!S25","v":""},{"$f":"'2. System Charts'!T25","v":""},{"$f":"'2. System Charts'!U25","v":""},{"$f":"'2. System Charts'!V25","v":""},{"$f":"'2. System Charts'!W25","v":""},{"$f":"'2. System Charts'!X25","v":""},{"$f":"'2. System Charts'!Y25","v":""},{"$f":"'2. System Charts'!Z25","v":""},{"$f":"'2. System Charts'!AA25","v":""},{"$f":"'2. System Charts'!AB25","v":""},{"$f":"'2. System Charts'!AC25","v":""},{"$f":"'2. System Charts'!AD25","v":""},{"$f":"'2. System Charts'!AE25","v":""},{"$f":"'2. System Charts'!AF25","v":""}]
[null,null,null,null,null,null,null,null,null,null,3.4,0,0,0,0,0,0,0,0,0,0,0,0,0,0,0,0,0,0,0,0,0,null,null,3.4,0,0,0,0,0,0,0,0,0,0,0,0,0,0,0,0,0,0,0,0,0,null,null,{"$f":"'2. System Charts'!K26","v":3.4},{"$f":"'2. System Charts'!L26","v":""},{"$f":"'2. System Charts'!M26","v":""},{"$f":"'2. System Charts'!N26","v":""},{"$f":"'2. System Charts'!O26","v":""},{"$f":"'2. System Charts'!P26","v":""},{"$f":"'2. System Charts'!Q26","v":""},{"$f":"'2. System Charts'!R26","v":""},{"$f":"'2. System Charts'!S26","v":""},{"$f":"'2. System Charts'!T26","v":""},{"$f":"'2. System Charts'!U26","v":""},{"$f":"'2. System Charts'!V26","v":""},{"$f":"'2. System Charts'!W26","v":""},{"$f":"'2. System Charts'!X26","v":""},{"$f":"'2. System Charts'!Y26","v":""},{"$f":"'2. System Charts'!Z26","v":""},{"$f":"'2. System Charts'!AA26","v":""},{"$f":"'2. System Charts'!AB26","v":""},{"$f":"'2. System Charts'!AC26","v":""},{"$f":"'2. System Charts'!AD26","v":""},{"$f":"'2. System Charts'!AE26","v":""},{"$f":"'2. System Charts'!AF26","v":""}]
[null,null,null,null,null,null,null,null,null,null,3.6,0,0,0,0,0,0,0,0,0,0,0,0,0,0,0,0,0,0,0,0,0,null,null,3.6,0,0,0,0,0,0,0,0,0,0,0,0,0,0,0,0,0,0,0,0,0,null,null,{"$f":"'2. System Charts'!K27","v":3.6},{"$f":"'2. System Charts'!L27","v":""},{"$f":"'2. System Charts'!M27","v":""},{"$f":"'2. System Charts'!N27","v":""},{"$f":"'2. System Charts'!O27","v":""},{"$f":"'2. System Charts'!P27","v":""},{"$f":"'2. System Charts'!Q27","v":""},{"$f":"'2. System Charts'!R27","v":""},{"$f":"'2. System Charts'!S27","v":""},{"$f":"'2. System Charts'!T27","v":""},{"$f":"'2. System Charts'!U27","v":""},{"$f":"'2. System Charts'!V27","v":""},{"$f":"'2. System Charts'!W27","v":""},{"$f":"'2. System Charts'!X27","v":""},{"$f":"'2. System Charts'!Y27","v":""},{"$f":"'2. System Charts'!Z27","v":""},{"$f":"'2. System Charts'!AA27","v":""},{"$f":"'2. System Charts'!AB27","v":""},{"$f":"'2. System Charts'!AC27","v":""},{"$f":"'2. System Charts'!AD27","v":""},{"$f":"'2. System Charts'!AE27","v":""},{"$f":"'2. System Charts'!AF27","v":""}]

{"sheet":"_SpringData_L0","index":7,"n_rows":110,"n_cols":27,"rows_kept":110,"cut":false,"hidden":true,"merged":[]}
[null,null,null,"Ideal Rate",{"$f":"ESA_IdealSpringRate","v":{"$error":"#DIV/0!"}},null,null,"RAW SPRING DATA"]
[null,null,null,null,null,null,"Check Ideal Rate is above LL",null,null,null,null,null,null,null,{"$f":"MAX(O4:O110)","v":1.5719062500000005}]
[null,null,null,"LL Spring Rate","UL Spring Rate","Local Switch","Booster Rate Check","Options","Booster","Wire ø (mm)","mean coil ID","Position","Number of coils","Max Turns","T_Max","Nom. Spring Rate","Bending stress (Mpa)","Min blind width w idler(TBC) mm","Min. Width (m)",38.6,"Rate Var %","Spring Flag","mod of Elast",207000,null,"internal coil ID",19]
[null,null,null,{"$f":"IF(input_BlindWidth=0.4,B8,B7)","v":1.1510032737375672E-3},2.6386167577458841E-3,{"$f":"IF(G4<>\"\",IF(islandFilter_option=\"yes\",IF(AND(MATCH(I4,list_boosterDescription,0)>=MATCH(islandfilter_colMax,list_boosterIndex,0),MATCH(I4,list_boosterDescription,0)>=MATCH(islandfilter_rowMax,list_boosterIndex,0)),\"y\",\"\"),\"y\"),\"\")","v":{"$error":"#DIV/0!"}},{"$f":"IF(P4<>\"\",IF(OR(input_idealSpringRate>_SpringData_L0!E4,input_idealSpringRate<_SpringData_L0!$D$4),\"n\",IF(AND(input_idealSpringRate<_SpringData_L0!E4,input_idealSpringRate>_SpringData_L0!D4*$B$12),\"y\",\"n\")),\"\")","v":{"$error":"#DIV/0!"}},205,"Micro",0.8,{"$f":"J4+$AA$3","v":19.8},5,167.5,35,{"$f":"IFERROR(($X$3*$J4^4*$N4)/(10.8*$M4*$K4*1000),\"\")","v":8.2850394492185564E-2},{"$f":"IFERROR(O4/N4,\"\")","v":2.3671541283481591E-3},{"$f":"32000*$O4/(PI()*$J4^3)","v":1648.2562275681087},{"$f":"_xlfn.XLOOKUP(I4,T_minESABlindWidth[Description],INDIRECT(_xlfn.CONCAT(\"T_minESABlindWidth[\",i_idler,\"]\")))","v":400},{"$f":"R4*0.001","v":0.4},null,{"$f":"IFERROR(ABS((P4-$E$1)/$E$1),\"\")","v":""},"y"]
[null,null,null,{"$f":"IF(LEN(E4)>0,E4*$B$11,\"\")","v":9.2351586521105934E-4},{"$f":"IF(P5<>\"\",IF(AND(P5<>\"\",P5=\"\"),P6*2,AVERAGE(P5:P6)),\"\")","v":3.4028716718915875E-3},{"$error":"#DIV/0!"},{"$f":"IF(P5<>\"\",IF(OR(input_idealSpringRate>_SpringData_L0!E5,input_idealSpringRate<_SpringData_L0!$D$4),\"n\",IF(AND(input_idealSpringRate<_SpringData_L0!E5,input_idealSpringRate>_SpringData_L0!D5*$B$12),\"y\",\"n\")),\"\")","v":{"$error":"#DIV/0!"}},204,"Micro",0.8,19.8,4,136.25,35,{"$f":"IFERROR(($X$3*$J5^4*$N5)/(10.8*$M5*$K5*1000),\"\")","v":0.10185277855002631},{"$f":"IFERROR(O5/N5,\"\")","v":2.9100793871436087E-3},2026.2966467351064,{"$f":"_xlfn.XLOOKUP(I5,T_minESABlindWidth[Description],INDIRECT(_xlfn.CONCAT(\"T_minESABlindWidth[\",i_idler,\"]\")))","v":400},0.4,null,"","y"]
["LOWER LIMITS",null,null,1.1910050851620555E-3,4.0494401654542862E-3,{"$error":"#DIV/0!"},{"$f":"IF(P6<>\"\",IF(OR(input_idealSpringRate>_SpringData_L0!E6,input_idealSpringRate<_SpringData_L0!$D$4),\"n\",IF(AND(input_idealSpringRate<_SpringData_L0!E6,input_idealSpringRate>_SpringData_L0!D6*$B$12),\"y\",\"n\")),\"\")","v":{"$error":"#DIV/0!"}},107,"Small",1,20,13,246,54,0.21036585365853658,3.8956639566395663E-3,2142.7689899201519,{"$f":"_xlfn.XLOOKUP(I6,T_minESABlindWidth[Description],INDIRECT(_xlfn.CONCAT(\"T_minESABlindWidth[\",i_idler,\"]\")))","v":600},0.6,null,"","y"]
["Blind Width = 0.4",{"$f":"E4-(E5-D5)*0.6","v":1.1510032737375672E-3},null,1.4173040579090002E-3,4.3833542188805343E-3,{"$error":"#DIV/0!"},{"$f":"IF(P7<>\"\",IF(OR(input_idealSpringRate>_SpringData_L0!E7,input_idealSpringRate<_SpringData_L0!$D$4),\"n\",IF(AND(input_idealSpringRate<_SpringData_L0!E7,input_idealSpringRate>_SpringData_L0!D7*$B$12),\"y\",\"n\")),\"\")","v":{"$error":"#DIV/0!"}},106,"Small",1,20,12,228,51,0.21436403508771928,4.2032163742690056E-3,2183.4941315414412,{"$f":"_xlfn.XLOOKUP(I7,T_minESABlindWidth[Description],INDIRECT(_xlfn.CONCAT(\"T_minESABlindWidth[\",i_idler,\"]\")))","v":600},0.6,null,"","y"]
["Blind Width <> 0.4",8.9999999999999998E-4,null,1.5341739766081869E-3,4.7774057539682535E-3,{"$error":"#DIV/0!"},{"$f":"IF(P8<>\"\",IF(OR(input_idealSpringRate>_SpringData_L0!E8,input_idealSpringRate<_SpringData_L0!$D$4),\"n\",IF(AND(input_idealSpringRate<_SpringData_L0!E8,input_idealSpringRate>_SpringData_L0!D8*$B$12),\"y\",\"n\")),\"\")","v":{"$error":"#DIV/0!"}},105,"Small",1,20,11,210,47,0.21448412698412697,4.5634920634920629E-3,2184.7173775535093,{"$f":"_xlfn.XLOOKUP(I8,T_minESABlindWidth[Description],INDIRECT(_xlfn.CONCAT(\"T_minESABlindWidth[\",i_idler,\"]\")))","v":600},0.6,null,"","y"]
[null,null,null,1.6720920138888885E-3,5.2494911398467438E-3,{"$error":"#DIV/0!"},{"$f":"IF(P9<>\"\",IF(OR(input_idealSpringRate>_SpringData_L0!E9,input_idealSpringRate<_SpringData_L0!$D$4),\"n\",IF(AND(input_idealSpringRate<_SpringData_L0!E9,input_idealSpringRate>_SpringData_L0!D9*$B$12),\"y\",\"n\")),\"\")","v":{"$error":"#DIV/0!"}},104,"Small",1,20,10,192,43,0.21462673611111108,4.9913194444444441E-3,2186.1699821928401,{"$f":"_xlfn.XLOOKUP(I9,T_minESABlindWidth[Description],INDIRECT(_xlfn.CONCAT(\"T_minESABlindWidth[\",i_idler,\"]\")))","v":600},0.6,null,"","y"]
["FOR LL Check",null,null,1.8373218989463601E-3,5.8254126142057178E-3,{"$error":"#DIV/0!"},{"$f":"IF(P10<>\"\",IF(OR(input_idealSpringRate>_SpringData_L0!E10,input_idealSpringRate<_SpringData_L0!$D$4),\"n\",IF(AND(input_idealSpringRate<_SpringData_L0!E10,input_idealSpringRate>_SpringData_L0!D10*$B$12),\"y\",\"n\")),\"\")","v":{"$error":"#DIV/0!"}},103,"Small",1,20,9,174,39,0.21479885057471265,5.5076628352490426E-3,2187.9231257230672,{"$f":"_xlfn.XLOOKUP(I10,T_minESABlindWidth[Description],INDIRECT(_xlfn.CONCAT(\"T_minESABlindWidth[\",i_idler,\"]\")))","v":600},0.6,null,"","y"]
["LL Fudge",0.35,null,2.0388944149720011E-3,6.5438034188034198E-3,{"$error":"#DIV/0!"},{"$f":"IF(P11<>\"\",IF(OR(input_idealSpringRate>_SpringData_L0!E11,input_idealSpringRate<_SpringData_L0!$D$4),\"n\",IF(AND(input_idealSpringRate<_SpringData_L0!E11,input_idealSpringRate>_SpringData_L0!D11*$B$12),\"y\",\"n\")),\"\")","v":{"$error":"#DIV/0!"}},102,"Small",1,20,8,156,35,0.21501068376068377,6.1431623931623939E-3,2190.0808408371927,{"$f":"_xlfn.XLOOKUP(I11,T_minESABlindWidth[Description],INDIRECT(_xlfn.CONCAT(\"T_minESABlindWidth[\",i_idler,\"]\")))","v":600},0.6,null,"","y"]
["Check for LL (0 = OFF, 1 = ON)",1,null,2.2903311965811967E-3,7.465277777777779E-3,{"$error":"#DIV/0!"},{"$f":"IF(P12<>\"\",IF(OR(input_idealSpringRate>_SpringData_L0!E12,input_idealSpringRate<_SpringData_L0!$D$4),\"n\",IF(AND(input_idealSpringRate<_SpringData_L0!E12,input_idealSpringRate>_SpringData_L0!D12*$B$12),\"y\",\"n\")),\"\")","v":{"$error":"#DIV/0!"}},101,"Small",1,20,7,138,31,0.21527777777777779,6.9444444444444449E-3,2192.8014381550029,{"$f":"_xlfn.XLOOKUP(I12,T_minESABlindWidth[Description],INDIRECT(_xlfn.CONCAT(\"T_minESABlindWidth[\",i_idler,\"]\")))","v":600},0.6,null,"","y"]
[null,null,null,2.6128472222222226E-3,8.1092161255874526E-3,{"$error":"#DIV/0!"},{"$f":"IF(P13<>\"\",IF(OR(input_idealSpringRate>_SpringData_L0!E13,input_idealSpringRate<_SpringData_L0!$D$4),\"n\",IF(AND(input_idealSpringRate<_SpringData_L0!E13,input_idealSpringRate>_SpringData_L0!D13*$B$12),\"y\",\"n\")),\"\")","v":{"$error":"#DIV/0!"}},100,"Small",1,20,6,120,27,0.21562500000000001,7.9861111111111122E-3,2196.3382146681556,{"$f":"_xlfn.XLOOKUP(I13,T_minESABlindWidth[Description],INDIRECT(_xlfn.CONCAT(\"T_minESABlindWidth[\",i_idler,\"]\")))","v":600},0.6,null,"","y"]
["FOR ISLAND FILTER",null,null,2.8382256439556082E-3,8.567574037170466E-3,{"$error":"#DIV/0!"},{"$f":"IF(P14<>\"\",IF(OR(input_idealSpringRate>_SpringData_L0!E14,input_idealSpringRate<_SpringData_L0!$D$4),\"n\",IF(AND(input_idealSpringRate<_SpringData_L0!E14,input_idealSpringRate>_SpringData_L0!D14*$B$12),\"y\",\"n\")),\"\")","v":{"$error":"#DIV/0!"}},18,"Light",1.2,20.2,13,239,44,0.36222213016280697,8.2323211400637947E-3,2135.1645375069133,{"$f":"_xlfn.XLOOKUP(I14,T_minESABlindWidth[Description],INDIRECT(_xlfn.CONCAT(\"T_minESABlindWidth[\",i_idler,\"]\")))","v":600},0.6,1.9131484218958497,{"$f":"IFERROR(ABS((P14-$E$1)/$E$1),\"\")","v":""},"y"]
["Column Max",{"$f":"IF(INDEX(islandFilter_columns,,MATCH(input_BlindWidth,header_chartCol,0))<>\"\",INDEX(islandFilter_columns,,MATCH(input_BlindWidth,header_chartCol,0)),INDEX(list_boosterIndex,1))","v":{"$error":"#NAME?"}},null,2.9986509130096629E-3,9.1491258854392212E-3,{"$error":"#DIV/0!"},{"$f":"IF(P15<>\"\",IF(OR(input_idealSpringRate>_SpringData_L0!E15,input_idealSpringRate<_SpringData_L0!$D$4),\"n\",IF(AND(input_idealSpringRate<_SpringData_L0!E15,input_idealSpringRate>_SpringData_L0!D15*$B$12),\"y\",\"n\")),\"\")","v":{"$error":"#DIV/0!"}},17,"Light",1.2,20.2,12,221,43,0.38282155817391689,8.9028269342771374E-3,2256.5904927970537,{"$f":"_xlfn.XLOOKUP(I15,T_minESABlindWidth[Description],INDIRECT(_xlfn.CONCAT(\"T_minESABlindWidth[\",i_idler,\"]\")))","v":600},0.6,2.0219484092784503,"","y"]
["Row Max",{"$f":"IF(INDEX(islandFilter_rows,MATCH(input_BlindDrop,header_chartRow,0))<>\"\",INDEX(islandFilter_rows,MATCH(input_BlindDrop,header_chartRow,0),),INDEX(list_boosterIndex,1))","v":{"$error":"#NAME?"}},null,3.2021940599037272E-3,9.5200770077007689E-3,{"$error":"#DIV/0!"},{"$f":"IF(P16<>\"\",IF(OR(input_idealSpringRate>_SpringData_L0!E16,input_idealSpringRate<_SpringData_L0!$D$4),\"n\",IF(AND(input_idealSpringRate<_SpringData_L0!E16,input_idealSpringRate>_SpringData_L0!D16*$B$12),\"y\",\"n\")),\"\")","v":{"$error":"#DIV/0!"}},5,"Mini",1,20,5,102,24,0.22549019607843132,9.395424836601305E-3,2296.8242767771558,{"$f":"_xlfn.XLOOKUP(I16,T_minESABlindWidth[Description],INDIRECT(_xlfn.CONCAT(\"T_minESABlindWidth[\",i_idler,\"]\")))","v":400},0.4,1.1909714422653805,"","y"]
[null,null,null,3.3320269526952691E-3,1.0111409622935726E-2,{"$error":"#DIV/0!"},{"$f":"IF(P17<>\"\",IF(OR(input_idealSpringRate>_SpringData_L0!E17,input_idealSpringRate<_SpringData_L0!$D$4),\"n\",IF(AND(input_idealSpringRate<_SpringData_L0!E17,input_idealSpringRate>_SpringData_L0!D17*$B$12),\"y\",\"n\")),\"\")","v":{"$error":"#DIV/0!"}},16,"Light",1.2,20.2,11,204,41,0.39543389633080944,9.644729178800231E-3,2330.9355284124599,{"$f":"_xlfn.XLOOKUP(I17,T_minESABlindWidth[Description],INDIRECT(_xlfn.CONCAT(\"T_minESABlindWidth[\",i_idler,\"]\")))","v":600},0.6,2.0885629886539028,"","y"]
[null,null,null,3.5389933680275037E-3,1.0993410112900691E-2,{"$error":"#DIV/0!"},{"$f":"IF(P18<>\"\",IF(OR(input_idealSpringRate>_SpringData_L0!E18,input_idealSpringRate<_SpringData_L0!$D$4),\"n\",IF(AND(input_idealSpringRate<_SpringData_L0!E18,input_idealSpringRate>_SpringData_L0!D18*$B$12),\"y\",\"n\")),\"\")","v":{"$error":"#DIV/0!"}},15,"Light",1.2,{"$f":"J18+$AA$3","v":20.2},10,186,37,{"$f":"IFERROR(($X$3*$J18^4*$N18)/(10.8*$M18*$K18*1000),\"\")","v":0.39138933248163521},{"$f":"IFERROR(O18/N18,\"\")","v":1.0578090067071222E-2},{"$f":"32000*$O18/(PI()*$J18^3)","v":2307.0943310329467},{"$f":"_xlfn.XLOOKUP(I18,T_minESABlindWidth[Description],INDIRECT(_xlfn.CONCAT(\"T_minESABlindWidth[\",i_idler,\"]\")))","v":600},{"$f":"R18*0.001","v":0.6},2.0672008180382457,"","y"]
["O_YesNo",null,null,3.8476935395152416E-3,1.1525444228700131E-2,{"$f":"IF(G19<>\"\",IF(islandFilter_option=\"yes\",IF(AND(MATCH(I19,list_boosterDescription,0)>=MATCH(islandfilter_colMax,list_boosterIndex,0),MATCH(I19,list_boosterDescription,0)>=MATCH(islandfilter_rowMax,list_boosterIndex,0)),\"y\",\"\"),\"y\"),\"\")","v":{"$error":"#DIV/0!"}},{"$f":"IF(P19<>\"\",IF(OR(input_idealSpringRate>_SpringData_L0!E19,input_idealSpringRate<_SpringData_L0!$D$4),\"n\",IF(AND(input_idealSpringRate<_SpringData_L0!E19,input_idealSpringRate>_SpringData_L0!D19*$B$12),\"y\",\"n\")),\"\")","v":{"$error":"#DIV/0!"}},4,"Mini",1,20,4,84,21,0.23958333333333334,1.140873015873016E-2,2440.3757940757287,{"$f":"_xlfn.XLOOKUP(I19,T_minESABlindWidth[Description],INDIRECT(_xlfn.CONCAT(\"T_minESABlindWidth[\",i_idler,\"]\")))","v":400},0.4,1.2654071574069672,"","y"]
["Yes",null,null,4.0339054800450453E-3,1.2336061773425274E-2,{"$error":"#DIV/0!"},{"$f":"IF(P20<>\"\",IF(OR(input_idealSpringRate>_SpringData_L0!E20,input_idealSpringRate<_SpringData_L0!$D$4),\"n\",IF(AND(input_idealSpringRate<_SpringData_L0!E20,input_idealSpringRate>_SpringData_L0!D20*$B$12),\"y\",\"n\")),\"\")","v":{"$error":"#DIV/0!"}},14,"Light",1.2,20.2,9,169,34,0.39583338215478348,1.1642158298670102E-2,2333.2903485450752,{"$f":"_xlfn.XLOOKUP(I20,T_minESABlindWidth[Description],INDIRECT(_xlfn.CONCAT(\"T_minESABlindWidth[\",i_idler,\"]\")))","v":600},0.6,2.0906729527065191,"","y"]
["No",null,null,4.3176216206988454E-3,1.3775083634191231E-2,{"$error":"#DIV/0!"},{"$f":"IF(P21<>\"\",IF(OR(input_idealSpringRate>_SpringData_L0!E21,input_idealSpringRate<_SpringData_L0!$D$4),\"n\",IF(AND(input_idealSpringRate<_SpringData_L0!E21,input_idealSpringRate>_SpringData_L0!D21*$B$12),\"y\",\"n\")),\"\")","v":{"$error":"#DIV/0!"}},13,"Light",1.2,20.2,8,151,30,0.39089895744541331,1.3029965248180444E-2,2304.2037528483697,{"$f":"_xlfn.XLOOKUP(I21,T_minESABlindWidth[Description],INDIRECT(_xlfn.CONCAT(\"T_minESABlindWidth[\",i_idler,\"]\")))","v":600},0.6,2.0646108044842326,"","y"]
[null,null,null,4.8212792719669302E-3,1.4656810605872615E-2,{"$error":"#DIV/0!"},{"$f":"IF(P22<>\"\",IF(OR(input_idealSpringRate>_SpringData_L0!E22,input_idealSpringRate<_SpringData_L0!$D$4),\"n\",IF(AND(input_idealSpringRate<_SpringData_L0!E22,input_idealSpringRate>_SpringData_L0!D22*$B$12),\"y\",\"n\")),\"\")","v":{"$error":"#DIV/0!"}},3,"Mini",1,20,3,66,17,0.24684343434343431,1.4520202020202018E-2,2514.3265757143868,{"$f":"_xlfn.XLOOKUP(I22,T_minESABlindWidth[Description],INDIRECT(_xlfn.CONCAT(\"T_minESABlindWidth[\",i_idler,\"]\")))","v":400},0.4,1.3037528288435418,"","y"]
[null,null,null,5.1298837120554146E-3,1.587741973575112E-2,{"$error":"#DIV/0!"},{"$f":"IF(P23<>\"\",IF(OR(input_idealSpringRate>_SpringData_L0!E23,input_idealSpringRate<_SpringData_L0!$D$4),\"n\",IF(AND(input_idealSpringRate<_SpringData_L0!E23,input_idealSpringRate>_SpringData_L0!D23*$B$12),\"y\",\"n\")),\"\")","v":{"$error":"#DIV/0!"}},12,"Light",1.2,20.2,7,133,26,0.38462889898012348,1.479341919154321E-2,2267.2440936548119,{"$f":"_xlfn.XLOOKUP(I23,T_minESABlindWidth[Description],INDIRECT(_xlfn.CONCAT(\"T_minESABlindWidth[\",i_idler,\"]\")))","v":600},0.6,2.0314942402017793,"","y"]
["O_CalcChart",null,null,5.5570969075128913E-3,1.7093146832060771E-2,{"$error":"#DIV/0!"},{"$f":"IF(P24<>\"\",IF(OR(input_idealSpringRate>_SpringData_L0!E24,input_idealSpringRate<_SpringData_L0!$D$4),\"n\",IF(AND(input_idealSpringRate<_SpringData_L0!E24,input_idealSpringRate>_SpringData_L0!D24*$B$12),\"y\",\"n\")),\"\")","v":{"$error":"#DIV/0!"}},11,"Light",1.2,20.2,6,116,21,0.35618982587913961,1.696142027995903E-2,2099.6063506557994,{"$f":"_xlfn.XLOOKUP(I24,T_minESABlindWidth[Description],INDIRECT(_xlfn.CONCAT(\"T_minESABlindWidth[\",i_idler,\"]\")))","v":600},0.6,1.8812876037412369,"","y"]
["Calculator",null,null,{"$f":"IF(LEN(E24)>0,E24*$B$11,\"\")","v":5.9826013912212695E-3},{"$f":"IF(P25<>\"\",IF(AND(P25<>\"\",P25=\"\"),P26*2,AVERAGE(P25:P26)),\"\")","v":1.7579503130307032E-2},{"$f":"IF(G25<>\"\",IF(islandFilter_option=\"yes\",IF(AND(MATCH(I25,list_boosterDescription,0)>=MATCH(islandfilter_colMax,list_boosterIndex,0),MATCH(I25,list_boosterDescription,0)>=MATCH(islandfilter_rowMax,list_boosterIndex,0)),\"y\",\"\"),\"y\"),\"\")","v":{"$error":"#DIV/0!"}},{"$f":"IF(P25<>\"\",IF(OR(input_idealSpringRate>_SpringData_L0!E25,input_idealSpringRate<_SpringData_L0!$D$4),\"n\",IF(AND(input_idealSpringRate<_SpringData_L0!E25,input_idealSpringRate>_SpringData_L0!D25*$B$12),\"y\",\"n\")),\"\")","v":{"$error":"#DIV/0!"}},43,"Medium",1.6,20.6,25,354,45,0.77511930228731307,1.7224873384162512E-2,1927.5635694526079,{"$f":"_xlfn.XLOOKUP(I25,T_minESABlindWidth[Description],INDIRECT(_xlfn.CONCAT(\"T_minESABlindWidth[\",i_idler,\"]\")))","v":913},0.91300000000000003,4.0939471845231044,"","y"]
["Chart",null,null,6.1528260956074613E-3,1.831922161919745E-2,{"$f":"IF(G26<>\"\",IF(islandFilter_option=\"yes\",IF(AND(MATCH(I26,list_boosterDescription,0)>=MATCH(islandfilter_colMax,list_boosterIndex,0),MATCH(I26,list_boosterDescription,0)>=MATCH(islandfilter_rowMax,list_boosterIndex,0)),\"y\",\"\"),\"y\"),\"\")","v":{"$error":"#DIV/0!"}},{"$f":"IF(P26<>\"\",IF(OR(input_idealSpringRate>_SpringData_L0!E26,input_idealSpringRate<_SpringData_L0!$D$4),\"n\",IF(AND(input_idealSpringRate<_SpringData_L0!E26,input_idealSpringRate>_SpringData_L0!D26*$B$12),\"y\",\"n\")),\"\")","v":{"$error":"#DIV/0!"}},42,"Medium",1.6,20.6,24,340,42,0.75323358081096536,1.7934132876451556E-2,1873.1382451386519,{"$f":"_xlfn.XLOOKUP(I26,T_minESABlindWidth[Description],INDIRECT(_xlfn.CONCAT(\"T_minESABlindWidth[\",i_idler,\"]\")))","v":913},0.91300000000000003,3.9783533816659817,"","y"]
[null,null,null,6.4117275667191073E-3,1.9092738532399036E-2,{"$error":"#DIV/0!"},{"$f":"IF(P27<>\"\",IF(OR(input_idealSpringRate>_SpringData_L0!E27,input_idealSpringRate<_SpringData_L0!$D$4),\"n\",IF(AND(input_idealSpringRate<_SpringData_L0!E27,input_idealSpringRate>_SpringData_L0!D27*$B$12),\"y\",\"n\")),\"\")","v":{"$error":"#DIV/0!"}},41,"Medium",1.6,20.6,23,326,40,0.74817241447773375,1.8704310361943345E-2,1860.5521570176502,{"$f":"_xlfn.XLOOKUP(I27,T_minESABlindWidth[Description],INDIRECT(_xlfn.CONCAT(\"T_minESABlindWidth[\",i_idler,\"]\")))","v":913},0.91300000000000003,3.9516218222799702,"","y"]
["O_TrueFalse",null,null,6.6824584863396626E-3,1.9937247528674068E-2,{"$error":"#DIV/0!"},{"$f":"IF(P28<>\"\",IF(OR(input_idealSpringRate>_SpringData_L0!E28,input_idealSpringRate<_SpringData_L0!$D$4),\"n\",IF(AND(input_idealSpringRate<_SpringData_L0!E28,input_idealSpringRate>_SpringData_L0!D28*$B$12),\"y\",\"n\")),\"\")","v":{"$error":"#DIV/0!"}},40,"Medium",1.6,20.6,22,313,37,0.72080316800562494,1.9481166702854727E-2,1792.4904247561419,{"$f":"_xlfn.XLOOKUP(I28,T_minESABlindWidth[Description],INDIRECT(_xlfn.CONCAT(\"T_minESABlindWidth[\",i_idler,\"]\")))","v":913},0.91300000000000003,3.8070656885256393,"","y"]
[true,null,null,6.9780366350359231E-3,2.0894217121095005E-2,{"$error":"#DIV/0!"},{"$f":"IF(P29<>\"\",IF(OR(input_idealSpringRate>_SpringData_L0!E29,input_idealSpringRate<_SpringData_L0!$D$4),\"n\",IF(AND(input_idealSpringRate<_SpringData_L0!E29,input_idealSpringRate>_SpringData_L0!D29*$B$12),\"y\",\"n\")),\"\")","v":{"$error":"#DIV/0!"}},39,"Medium",1.6,20.6,21,299,35,0.71376649240726942,2.0393328354493413E-2,1774.9916481246983,{"$f":"_xlfn.XLOOKUP(I29,T_minESABlindWidth[Description],INDIRECT(_xlfn.CONCAT(\"T_minESABlindWidth[\",i_idler,\"]\")))","v":913},0.91300000000000003,3.769900082961076,"","y"]
[false,null,null,7.3129759923832513E-3,2.1947746999186918E-2,{"$error":"#DIV/0!"},{"$f":"IF(P30<>\"\",IF(OR(input_idealSpringRate>_SpringData_L0!E30,input_idealSpringRate<_SpringData_L0!$D$4),\"n\",IF(AND(input_idealSpringRate<_SpringData_L0!E30,input_idealSpringRate>_SpringData_L0!D30*$B$12),\"y\",\"n\")),\"\")","v":{"$error":"#DIV/0!"}},38,"Medium",1.6,20.6,20,285,45,0.96277976494634687,2.1395105887696598E-2,2394.2368546885027,{"$f":"_xlfn.XLOOKUP(I30,T_minESABlindWidth[Description],INDIRECT(_xlfn.CONCAT(\"T_minESABlindWidth[\",i_idler,\"]\")))","v":913},0.91300000000000003,5.0851133449865937,"","y"]
[null,null,null,7.6817114497154211E-3,2.3113239148711242E-2,{"$error":"#DIV/0!"},{"$f":"IF(P31<>\"\",IF(OR(input_idealSpringRate>_SpringData_L0!E31,input_idealSpringRate<_SpringData_L0!$D$4),\"n\",IF(AND(input_idealSpringRate<_SpringData_L0!E31,input_idealSpringRate>_SpringData_L0!D31*$B$12),\"y\",\"n\")),\"\")","v":{"$error":"#DIV/0!"}},37,"Medium",1.6,20.6,19,271,42,0.94501630064844377,2.2500388110677234E-2,2350.0627429783826,{"$f":"_xlfn.XLOOKUP(I31,T_minESABlindWidth[Description],INDIRECT(_xlfn.CONCAT(\"T_minESABlindWidth[\",i_idler,\"]\")))","v":913},0.91300000000000003,4.9912920655587962,"","y"]
[null,null,null,8.0896337020489335E-3,2.4409557805293469E-2,{"$error":"#DIV/0!"},{"$f":"IF(P32<>\"\",IF(OR(input_idealSpringRate>_SpringData_L0!E32,input_idealSpringRate<_SpringData_L0!$D$4),\"n\",IF(AND(input_idealSpringRate<_SpringData_L0!E32,input_idealSpringRate>_SpringData_L0!D32*$B$12),\"y\",\"n\")),\"\")","v":{"$error":"#DIV/0!"}},36,"Medium",1.6,20.6,18,257,41,0.9727696976565553,2.3726090186745249E-2,2419.0797792507697,{"$f":"_xlfn.XLOOKUP(I32,T_minESABlindWidth[Description],INDIRECT(_xlfn.CONCAT(\"T_minESABlindWidth[\",i_idler,\"]\")))","v":913},0.91300000000000003,5.1378771669838601,"","y"]
[null,null,null,8.5433452318527132E-3,2.5802176142341558E-2,{"$error":"#DIV/0!"},{"$f":"IF(P33<>\"\",IF(OR(input_idealSpringRate>_SpringData_L0!E33,input_idealSpringRate<_SpringData_L0!$D$4),\"n\",IF(AND(input_idealSpringRate<_SpringData_L0!E33,input_idealSpringRate>_SpringData_L0!D33*$B$12),\"y\",\"n\")),\"\")","v":{"$error":"#DIV/0!"}},35,"Medium",1.6,20.6,17,243,38,0.95353496610598398,2.5093025423841685E-2,2371.2469260426597,{"$f":"_xlfn.XLOOKUP(I33,T_minESABlindWidth[Description],INDIRECT(_xlfn.CONCAT(\"T_minESABlindWidth[\",i_idler,\"]\")))","v":913},0.91300000000000003,5.0362850961321266,"","y"]
[null,null,null,9.0307616498195454E-3,2.7114215336966896E-2,{"$error":"#DIV/0!"},{"$f":"IF(P34<>\"\",IF(OR(input_idealSpringRate>_SpringData_L0!E34,input_idealSpringRate<_SpringData_L0!$D$4),\"n\",IF(AND(input_idealSpringRate<_SpringData_L0!E34,input_idealSpringRate>_SpringData_L0!D34*$B$12),\"y\",\"n\")),\"\")","v":{"$error":"#DIV/0!"}},34,"Medium",1.6,20.6,16,230,37,0.98091909385113307,2.6511326860841435E-2,2439.3456649942282,{"$f":"_xlfn.XLOOKUP(I34,T_minESABlindWidth[Description],INDIRECT(_xlfn.CONCAT(\"T_minESABlindWidth[\",i_idler,\"]\")))","v":913},0.91300000000000003,5.1809198282979354,"","y"]
[null,null,null,9.4899753679384136E-3,2.7973378707457124E-2,{"$error":"#DIV/0!"},{"$f":"IF(P35<>\"\",IF(OR(input_idealSpringRate>_SpringData_L0!E35,input_idealSpringRate<_SpringData_L0!$D$4),\"n\",IF(AND(input_idealSpringRate<_SpringData_L0!E35,input_idealSpringRate>_SpringData_L0!D35*$B$12),\"y\",\"n\")),\"\")","v":{"$error":"#DIV/0!"}},72,"Heavy",1.8,20.8,29,349,38,1.0532499448975094,2.7717103813092354E-2,1839.5603296757754,{"$f":"_xlfn.XLOOKUP(I35,T_minESABlindWidth[Description],INDIRECT(_xlfn.CONCAT(\"T_minESABlindWidth[\",i_idler,\"]\")))","v":1013},1.0130000000000001,5.5629496437362178,"","y",null,56,38]
[null,null,null,9.7906825476099923E-3,2.8466858300568561E-2,{"$error":"#DIV/0!"},{"$f":"IF(P36<>\"\",IF(OR(input_idealSpringRate>_SpringData_L0!E36,input_idealSpringRate<_SpringData_L0!$D$4),\"n\",IF(AND(input_idealSpringRate<_SpringData_L0!E36,input_idealSpringRate>_SpringData_L0!D36*$B$12),\"y\",\"n\")),\"\")","v":{"$error":"#DIV/0!"}},33,"Medium",1.6,20.6,15,216,35,0.98803787606376636,2.8229653601821895E-2,2457.0486240244663,{"$f":"_xlfn.XLOOKUP(I36,T_minESABlindWidth[Description],INDIRECT(_xlfn.CONCAT(\"T_minESABlindWidth[\",i_idler,\"]\")))","v":913},0.91300000000000003,5.2185190963211179,"","y"]
[null,null,null,9.9634004051989949E-3,2.923398416237951E-2,{"$error":"#DIV/0!"},{"$f":"IF(P37<>\"\",IF(OR(input_idealSpringRate>_SpringData_L0!E37,input_idealSpringRate<_SpringData_L0!$D$4),\"n\",IF(AND(input_idealSpringRate<_SpringData_L0!E37,input_idealSpringRate>_SpringData_L0!D37*$B$12),\"y\",\"n\")),\"\")","v":{"$error":"#DIV/0!"}},71,"Heavy",1.8,20.8,28,337,48,1.3777950239671308,2.8704062999315227E-2,2406.396583064859,{"$f":"_xlfn.XLOOKUP(I37,T_minESABlindWidth[Description],INDIRECT(_xlfn.CONCAT(\"T_minESABlindWidth[\",i_idler,\"]\")))","v":1013},1.0130000000000001,7.2770992059869677,"","y",null,null,38]
[null,null,null,1.0231894456832829E-2,2.9975034786468256E-2,{"$error":"#DIV/0!"},{"$f":"IF(P38<>\"\",IF(OR(input_idealSpringRate>_SpringData_L0!E38,input_idealSpringRate<_SpringData_L0!$D$4),\"n\",IF(AND(input_idealSpringRate<_SpringData_L0!E38,input_idealSpringRate>_SpringData_L0!D38*$B$12),\"y\",\"n\")),\"\")","v":{"$error":"#DIV/0!"}},70,"Heavy",1.8,20.8,27,325,37,1.1012644970414203,2.976390532544379E-2,1923.4204483484443,{"$f":"_xlfn.XLOOKUP(I38,T_minESABlindWidth[Description],INDIRECT(_xlfn.CONCAT(\"T_minESABlindWidth[\",i_idler,\"]\")))","v":1013},1.0130000000000001,5.8165480768879183,"","y"]
[null,null,null,1.049126217526389E-2,3.0545588882163667E-2,{"$error":"#DIV/0!"},{"$f":"IF(P39<>\"\",IF(OR(input_idealSpringRate>_SpringData_L0!E39,input_idealSpringRate<_SpringData_L0!$D$4),\"n\",IF(AND(input_idealSpringRate<_SpringData_L0!E39,input_idealSpringRate>_SpringData_L0!D39*$B$12),\"y\",\"n\")),\"\")","v":{"$error":"#DIV/0!"}},32,"Medium",1.6,20.6,14,202,40,1.2074465698997088,3.0186164247492719E-2,3002.6732831076929,{"$f":"_xlfn.XLOOKUP(I39,T_minESABlindWidth[Description],INDIRECT(_xlfn.CONCAT(\"T_minESABlindWidth[\",i_idler,\"]\")))","v":913},0.91300000000000003,6.3773698716003473,"","y"]
[null,null,null,1.0690956108757282E-2,3.1521060297901082E-2,{"$error":"#DIV/0!"},{"$f":"IF(P40<>\"\",IF(OR(input_idealSpringRate>_SpringData_L0!E40,input_idealSpringRate<_SpringData_L0!$D$4),\"n\",IF(AND(input_idealSpringRate<_SpringData_L0!E40,input_idealSpringRate>_SpringData_L0!D40*$B$12),\"y\",\"n\")),\"\")","v":{"$error":"#DIV/0!"}},69,"Heavy",1.8,20.8,26,313,38,1.1743905136397152,3.0905013516834612E-2,2051.1391535362482,{"$f":"_xlfn.XLOOKUP(I40,T_minESABlindWidth[Description],INDIRECT(_xlfn.CONCAT(\"T_minESABlindWidth[\",i_idler,\"]\")))","v":1013},1.0130000000000001,6.2027777177761676,"","y"]
[null,null,null,1.1032371104265378E-2,3.2285588587338904E-2,{"$error":"#DIV/0!"},{"$f":"IF(P41<>\"\",IF(OR(input_idealSpringRate>_SpringData_L0!E41,input_idealSpringRate<_SpringData_L0!$D$4),\"n\",IF(AND(input_idealSpringRate<_SpringData_L0!E41,input_idealSpringRate>_SpringData_L0!D41*$B$12),\"y\",\"n\")),\"\")","v":{"$error":"#DIV/0!"}},68,"Heavy",1.8,20.8,25,301,36,1.1569358548428319,3.2137107078967553E-2,2020.6536092014728,{"$f":"_xlfn.XLOOKUP(I41,T_minESABlindWidth[Description],INDIRECT(_xlfn.CONCAT(\"T_minESABlindWidth[\",i_idler,\"]\")))","v":1013},1.0130000000000001,6.1105874561900562,"","y"]
[null,null,null,1.1299956005568615E-2,3.2895085445733122E-2,{"$error":"#DIV/0!"},{"$f":"IF(P42<>\"\",IF(OR(input_idealSpringRate>_SpringData_L0!E42,input_idealSpringRate<_SpringData_L0!$D$4),\"n\",IF(AND(input_idealSpringRate<_SpringData_L0!E42,input_idealSpringRate>_SpringData_L0!D42*$B$12),\"y\",\"n\")),\"\")","v":{"$error":"#DIV/0!"}},31,"Medium",1.6,20.6,13,188,36,1.1676265234455694,3.2434070095710262E-2,2903.6489514307368,{"$f":"_xlfn.XLOOKUP(I42,T_minESABlindWidth[Description],INDIRECT(_xlfn.CONCAT(\"T_minESABlindWidth[\",i_idler,\"]\")))","v":913},0.91300000000000003,6.1670523545582085,"","y"]
[null,null,null,1.1513279906006592E-2,3.4076016640268693E-2,{"$error":"#DIV/0!"},{"$f":"IF(P43<>\"\",IF(OR(input_idealSpringRate>_SpringData_L0!E43,input_idealSpringRate<_SpringData_L0!$D$4),\"n\",IF(AND(input_idealSpringRate<_SpringData_L0!E43,input_idealSpringRate>_SpringData_L0!D43*$B$12),\"y\",\"n\")),\"\")","v":{"$error":"#DIV/0!"}},67,"Heavy",1.8,20.8,24,290,37,1.2341757294429709,3.3356100795755975E-2,2155.5573990111875,{"$f":"_xlfn.XLOOKUP(I43,T_minESABlindWidth[Description],INDIRECT(_xlfn.CONCAT(\"T_minESABlindWidth[\",i_idler,\"]\")))","v":1013},1.0130000000000001,6.5185452585812875,"","y"]
[null,null,null,1.1926605824094041E-2,3.4919820202142224E-2,{"$error":"#DIV/0!"},{"$f":"IF(P44<>\"\",IF(OR(input_idealSpringRate>_SpringData_L0!E44,input_idealSpringRate<_SpringData_L0!$D$4),\"n\",IF(AND(input_idealSpringRate<_SpringData_L0!E44,input_idealSpringRate>_SpringData_L0!D44*$B$12),\"y\",\"n\")),\"\")","v":{"$error":"#DIV/0!"}},66,"Heavy",1.8,20.8,23,278,34,1.183061704482568,3.4795932484781411E-2,2066.2838765555425,{"$f":"_xlfn.XLOOKUP(I44,T_minESABlindWidth[Description],INDIRECT(_xlfn.CONCAT(\"T_minESABlindWidth[\",i_idler,\"]\")))","v":1013},1.0130000000000001,6.2485763415916287,"","y"]
[null,null,null,1.2221937070749778E-2,3.5704690859693688E-2,{"$error":"#DIV/0!"},{"$f":"IF(P45<>\"\",IF(OR(input_idealSpringRate>_SpringData_L0!E45,input_idealSpringRate<_SpringData_L0!$D$4),\"n\",IF(AND(input_idealSpringRate<_SpringData_L0!E45,input_idealSpringRate>_SpringData_L0!D45*$B$12),\"y\",\"n\")),\"\")","v":{"$error":"#DIV/0!"}},30,"Medium",1.6,20.6,12,174,34,1.1914860692631033,3.5043707919503037E-2,2962.9827741930503,{"$f":"_xlfn.XLOOKUP(I45,T_minESABlindWidth[Description],INDIRECT(_xlfn.CONCAT(\"T_minESABlindWidth[\",i_idler,\"]\")))","v":913},0.91300000000000003,6.2930713043320665,"","y"]
[null,null,null,1.2496641800892791E-2,3.7224705464448532E-2,{"$f":"IF(G46<>\"\",IF(islandFilter_option=\"yes\",IF(AND(MATCH(I46,list_boosterDescription,0)>=MATCH(islandfilter_colMax,list_boosterIndex,0),MATCH(I46,list_boosterDescription,0)>=MATCH(islandfilter_rowMax,list_boosterIndex,0)),\"y\",\"\"),\"y\"),\"\")","v":{"$error":"#DIV/0!"}},{"$f":"IF(P46<>\"\",IF(OR(input_idealSpringRate>_SpringData_L0!E46,input_idealSpringRate<_SpringData_L0!$D$4),\"n\",IF(AND(input_idealSpringRate<_SpringData_L0!E46,input_idealSpringRate>_SpringData_L0!D46*$B$12),\"y\",\"n\")),\"\")","v":{"$error":"#DIV/0!"}},65,"Heavy",1.8,20.8,22,266,39,1.4182612781954891,3.6365673799884334E-2,2477.0731744377699,{"$f":"_xlfn.XLOOKUP(I46,T_minESABlindWidth[Description],INDIRECT(_xlfn.CONCAT(\"T_minESABlindWidth[\",i_idler,\"]\")))","v":1013},1.0130000000000001,7.4908297982680718,"","y"]
[null,null,null,1.3028646912556986E-2,3.8096884745736151E-2,{"$error":"#DIV/0!"},{"$f":"IF(P47<>\"\",IF(OR(input_idealSpringRate>_SpringData_L0!E47,input_idealSpringRate<_SpringData_L0!$D$4),\"n\",IF(AND(input_idealSpringRate<_SpringData_L0!E47,input_idealSpringRate>_SpringData_L0!D47*$B$12),\"y\",\"n\")),\"\")","v":{"$error":"#DIV/0!"}},64,"Heavy",1.8,20.8,21,254,39,1.4852657480314964,3.8083737129012731E-2,2594.1002535450662,{"$f":"_xlfn.XLOOKUP(I47,T_minESABlindWidth[Description],INDIRECT(_xlfn.CONCAT(\"T_minESABlindWidth[\",i_idler,\"]\")))","v":1013},1.0130000000000001,7.8447272690523908,"","y"]
[null,null,null,1.3333909661007653E-2,3.9041109633232332E-2,{"$error":"#DIV/0!"},{"$f":"IF(P48<>\"\",IF(OR(input_idealSpringRate>_SpringData_L0!E48,input_idealSpringRate<_SpringData_L0!$D$4),\"n\",IF(AND(input_idealSpringRate<_SpringData_L0!E48,input_idealSpringRate>_SpringData_L0!D48*$B$12),\"y\",\"n\")),\"\")","v":{"$error":"#DIV/0!"}},29,"Medium",1.6,20.6,11,160,30,1.1433009708737871,3.8110032362459571E-2,2843.1562649425973,{"$f":"_xlfn.XLOOKUP(I48,T_minESABlindWidth[Description],INDIRECT(_xlfn.CONCAT(\"T_minESABlindWidth[\",i_idler,\"]\")))","v":913},0.91300000000000003,6.0385720971715813,"","y"]
[null,null,null,1.3664388371631316E-2,4.0868302965679018E-2,{"$error":"#DIV/0!"},{"$f":"IF(P49<>\"\",IF(OR(input_idealSpringRate>_SpringData_L0!E49,input_idealSpringRate<_SpringData_L0!$D$4),\"n\",IF(AND(input_idealSpringRate<_SpringData_L0!E49,input_idealSpringRate>_SpringData_L0!D49*$B$12),\"y\",\"n\")),\"\")","v":{"$error":"#DIV/0!"}},63,"Heavy",1.8,20.8,20,242,36,1.438998728544183,3.9972186904005086E-2,2513.292299048112,{"$f":"_xlfn.XLOOKUP(I49,T_minESABlindWidth[Description],INDIRECT(_xlfn.CONCAT(\"T_minESABlindWidth[\",i_idler,\"]\")))","v":1013},1.0130000000000001,7.6003587781537449,"","y"]
[null,null,null,1.4303906037987655E-2,4.1820021701488672E-2,{"$error":"#DIV/0!"},{"$f":"IF(P50<>\"\",IF(OR(input_idealSpringRate>_SpringData_L0!E50,input_idealSpringRate<_SpringData_L0!$D$4),\"n\",IF(AND(input_idealSpringRate<_SpringData_L0!E50,input_idealSpringRate>_SpringData_L0!D50*$B$12),\"y\",\"n\")),\"\")","v":{"$error":"#DIV/0!"}},28,"Medium",1.6,20.6,10,146,27,1.1276393137385297,4.176441902735295E-2,2804.2089188474934,{"$f":"_xlfn.XLOOKUP(I50,T_minESABlindWidth[Description],INDIRECT(_xlfn.CONCAT(\"T_minESABlindWidth[\",i_idler,\"]\")))","v":913},0.91300000000000003,5.9558519314569018,"","y"]
[null,null,null,1.4637007595521034E-2,4.3022901755778477E-2,{"$error":"#DIV/0!"},{"$f":"IF(P51<>\"\",IF(OR(input_idealSpringRate>_SpringData_L0!E51,input_idealSpringRate<_SpringData_L0!$D$4),\"n\",IF(AND(input_idealSpringRate<_SpringData_L0!E51,input_idealSpringRate>_SpringData_L0!D51*$B$12),\"y\",\"n\")),\"\")","v":{"$error":"#DIV/0!"}},62,"Heavy",1.8,20.8,19,231,35,1.4656468531468536,4.1875624375624386E-2,2559.834749030485,{"$f":"_xlfn.XLOOKUP(I51,T_minESABlindWidth[Description],INDIRECT(_xlfn.CONCAT(\"T_minESABlindWidth[\",i_idler,\"]\")))","v":1013},1.0130000000000001,7.7411061629343711,"","y"]
[null,null,null,1.5058015614522465E-2,4.5008417304784068E-2,{"$error":"#DIV/0!"},{"$f":"IF(P52<>\"\",IF(OR(input_idealSpringRate>_SpringData_L0!E52,input_idealSpringRate<_SpringData_L0!$D$4),\"n\",IF(AND(input_idealSpringRate<_SpringData_L0!E52,input_idealSpringRate>_SpringData_L0!D52*$B$12),\"y\",\"n\")),\"\")","v":{"$error":"#DIV/0!"}},61,"Heavy",1.8,20.8,18,219,34,1.5017860906217073,4.4170179135932568E-2,2622.9539620202772,{"$f":"_xlfn.XLOOKUP(I52,T_minESABlindWidth[Description],INDIRECT(_xlfn.CONCAT(\"T_minESABlindWidth[\",i_idler,\"]\")))","v":1013},1.0130000000000001,7.9319827532533003,"","y"]
[null,null,null,1.5752946056674422E-2,4.6288712352202402E-2,{"$error":"#DIV/0!"},{"$f":"IF(P53<>\"\",IF(OR(input_idealSpringRate>_SpringData_L0!E53,input_idealSpringRate<_SpringData_L0!$D$4),\"n\",IF(AND(input_idealSpringRate<_SpringData_L0!E53,input_idealSpringRate>_SpringData_L0!D53*$B$12),\"y\",\"n\")),\"\")","v":{"$error":"#DIV/0!"}},27,"Medium",1.6,20.6,9,133,24,1.1003197313672535,4.5846655473635561E-2,2736.2706910725747,{"$f":"_xlfn.XLOOKUP(I53,T_minESABlindWidth[Description],INDIRECT(_xlfn.CONCAT(\"T_minESABlindWidth[\",i_idler,\"]\")))","v":913},0.91300000000000003,5.811558108556107,"","y"]
[null,null,null,1.6201049323270839E-2,4.8168639053254442E-2,{"$error":"#DIV/0!"},{"$f":"IF(P54<>\"\",IF(OR(input_idealSpringRate>_SpringData_L0!E54,input_idealSpringRate<_SpringData_L0!$D$4),\"n\",IF(AND(input_idealSpringRate<_SpringData_L0!E54,input_idealSpringRate>_SpringData_L0!D54*$B$12),\"y\",\"n\")),\"\")","v":{"$error":"#DIV/0!"}},60,"Heavy",1.8,20.8,17,207,33,1.5421153846153848,4.6730769230769235E-2,2693.3913446320753,{"$f":"_xlfn.XLOOKUP(I54,T_minESABlindWidth[Description],INDIRECT(_xlfn.CONCAT(\"T_minESABlindWidth[\",i_idler,\"]\")))","v":1013},1.0130000000000001,8.1449899627396416,"","y"]
[null,null,null,1.6859023668639055E-2,5.0423444261372054E-2,{"$error":"#DIV/0!"},{"$f":"IF(P55<>\"\",IF(OR(input_idealSpringRate>_SpringData_L0!E55,input_idealSpringRate<_SpringData_L0!$D$4),\"n\",IF(AND(input_idealSpringRate<_SpringData_L0!E55,input_idealSpringRate>_SpringData_L0!D55*$B$12),\"y\",\"n\")),\"\")","v":{"$error":"#DIV/0!"}},59,"Heavy",1.8,20.8,16,195,31,1.5378017751479294,4.9606508875739655E-2,2685.8573828289091,{"$f":"_xlfn.XLOOKUP(I55,T_minESABlindWidth[Description],INDIRECT(_xlfn.CONCAT(\"T_minESABlindWidth[\",i_idler,\"]\")))","v":1013},1.0130000000000001,8.1222067740326782,"","y"]
[null,null,null,1.7648205491480218E-2,5.1906247515809925E-2,{"$error":"#DIV/0!"},{"$f":"IF(P56<>\"\",IF(OR(input_idealSpringRate>_SpringData_L0!E56,input_idealSpringRate<_SpringData_L0!$D$4),\"n\",IF(AND(input_idealSpringRate<_SpringData_L0!E56,input_idealSpringRate>_SpringData_L0!D56*$B$12),\"y\",\"n\")),\"\")","v":{"$error":"#DIV/0!"}},26,"Medium",1.6,20.6,8,119,22,1.127288352234098,5.1240379647004453E-2,2803.3361491870987,{"$f":"_xlfn.XLOOKUP(I56,T_minESABlindWidth[Description],INDIRECT(_xlfn.CONCAT(\"T_minESABlindWidth[\",i_idler,\"]\")))","v":913},0.91300000000000003,5.9539982582756199,"","y"]
[null,null,null,1.8167186630533471E-2,5.4406026386404314E-2,{"$error":"#DIV/0!"},{"$f":"IF(P57<>\"\",IF(OR(input_idealSpringRate>_SpringData_L0!E57,input_idealSpringRate<_SpringData_L0!$D$4),\"n\",IF(AND(input_idealSpringRate<_SpringData_L0!E57,input_idealSpringRate>_SpringData_L0!D57*$B$12),\"y\",\"n\")),\"\")","v":{"$error":"#DIV/0!"}},58,"Heavy",1.8,20.8,15,184,29,1.5245913461538467,5.2572115384615405E-2,2662.7846248067112,{"$f":"_xlfn.XLOOKUP(I57,T_minESABlindWidth[Description],INDIRECT(_xlfn.CONCAT(\"T_minESABlindWidth[\",i_idler,\"]\")))","v":1013},1.0130000000000001,8.0524332586176026,"","y"]
[null,null,null,1.9042109235241508E-2,5.7156183827399142E-2,{"$error":"#DIV/0!"},{"$f":"IF(P58<>\"\",IF(OR(input_idealSpringRate>_SpringData_L0!E58,input_idealSpringRate<_SpringData_L0!$D$4),\"n\",IF(AND(input_idealSpringRate<_SpringData_L0!E58,input_idealSpringRate>_SpringData_L0!D58*$B$12),\"y\",\"n\")),\"\")","v":{"$error":"#DIV/0!"}},57,"Heavy",1.8,20.8,14,172,27,1.5184783094812171,5.6239937388193224E-2,2652.1078620769331,{"$f":"_xlfn.XLOOKUP(I58,T_minESABlindWidth[Description],INDIRECT(_xlfn.CONCAT(\"T_minESABlindWidth[\",i_idler,\"]\")))","v":1013},1.0130000000000001,8.0201460362494483,"","y"]
[null,null,null,2.0004664339589699E-2,5.9265181479456384E-2,{"$error":"#DIV/0!"},{"$f":"IF(P59<>\"\",IF(OR(input_idealSpringRate>_SpringData_L0!E59,input_idealSpringRate<_SpringData_L0!$D$4),\"n\",IF(AND(input_idealSpringRate<_SpringData_L0!E59,input_idealSpringRate>_SpringData_L0!D59*$B$12),\"y\",\"n\")),\"\")","v":{"$error":"#DIV/0!"}},25,"Medium",1.6,20.6,7,105,20,1.1614486053321011,5.8072430266605059E-2,2888.2857294654959,{"$f":"_xlfn.XLOOKUP(I59,T_minESABlindWidth[Description],INDIRECT(_xlfn.CONCAT(\"T_minESABlindWidth[\",i_idler,\"]\")))","v":913},0.91300000000000003,6.1344224479203362,"","y"]
[null,null,null,2.0742813517809735E-2,6.290892996361748E-2,{"$error":"#DIV/0!"},{"$f":"IF(P60<>\"\",IF(OR(input_idealSpringRate>_SpringData_L0!E60,input_idealSpringRate<_SpringData_L0!$D$4),\"n\",IF(AND(input_idealSpringRate<_SpringData_L0!E60,input_idealSpringRate>_SpringData_L0!D60*$B$12),\"y\",\"n\")),\"\")","v":{"$error":"#DIV/0!"}},56,"Heavy",1.8,20.8,13,160,26,1.5719062500000005,6.045793269230771E-2,2745.4227683351955,{"$f":"_xlfn.XLOOKUP(I60,T_minESABlindWidth[Description],INDIRECT(_xlfn.CONCAT(\"T_minESABlindWidth[\",i_idler,\"]\")))","v":1013},1.0130000000000001,8.3023363597471143,"","y"]
[null,null,null,2.2018125487266116E-2,6.6183288771274218E-2,{"$error":"#DIV/0!"},{"$f":"IF(P61<>\"\",IF(OR(input_idealSpringRate>_SpringData_L0!E61,input_idealSpringRate<_SpringData_L0!$D$4),\"n\",IF(AND(input_idealSpringRate<_SpringData_L0!E61,input_idealSpringRate>_SpringData_L0!D61*$B$12),\"y\",\"n\")),\"\")","v":{"$error":"#DIV/0!"}},55,"Heavy",1.8,20.8,12,148,23,1.5032783264033269,6.5359927234927256E-2,2625.5602358299166,{"$f":"_xlfn.XLOOKUP(I61,T_minESABlindWidth[Description],INDIRECT(_xlfn.CONCAT(\"T_minESABlindWidth[\",i_idler,\"]\")))","v":1013},1.0130000000000001,7.9398642941448498,"","y"]
[null,null,null,2.3164151069945974E-2,6.9066814972815124E-2,{"$error":"#DIV/0!"},{"$f":"IF(P62<>\"\",IF(OR(input_idealSpringRate>_SpringData_L0!E62,input_idealSpringRate<_SpringData_L0!$D$4),\"n\",IF(AND(input_idealSpringRate<_SpringData_L0!E62,input_idealSpringRate>_SpringData_L0!D62*$B$12),\"y\",\"n\")),\"\")","v":{"$error":"#DIV/0!"}},24,"Medium",1.6,20.6,6,91,19,1.2731263558448027,6.7006650307621193E-2,3166.0055111448692,{"$f":"_xlfn.XLOOKUP(I62,T_minESABlindWidth[Description],INDIRECT(_xlfn.CONCAT(\"T_minESABlindWidth[\",i_idler,\"]\")))","v":913},0.91300000000000003,6.7242707602203655,"","y"]
[null,null,null,2.4173385240485293E-2,7.4256566742081462E-2,{"$error":"#DIV/0!"},{"$f":"IF(P63<>\"\",IF(OR(input_idealSpringRate>_SpringData_L0!E63,input_idealSpringRate<_SpringData_L0!$D$4),\"n\",IF(AND(input_idealSpringRate<_SpringData_L0!E63,input_idealSpringRate>_SpringData_L0!D63*$B$12),\"y\",\"n\")),\"\")","v":{"$error":"#DIV/0!"}},54,"Heavy",1.8,20.8,11,136,21,1.4936665723981901,7.1126979638009055E-2,2608.7727662913612,{"$f":"_xlfn.XLOOKUP(I63,T_minESABlindWidth[Description],INDIRECT(_xlfn.CONCAT(\"T_minESABlindWidth[\",i_idler,\"]\")))","v":1013},1.0130000000000001,7.8890978984022331,"","y"]
[null,null,null,2.5989798359728509E-2,7.7386153846153868E-2,{"$error":"#DIV/0!"},{"$f":"IF(P64<>\"\",IF(OR(input_idealSpringRate>_SpringData_L0!E64,input_idealSpringRate<_SpringData_L0!$D$4),\"n\",IF(AND(input_idealSpringRate<_SpringData_L0!E64,input_idealSpringRate>_SpringData_L0!D64*$B$12),\"y\",\"n\")),\"\")","v":{"$error":"#DIV/0!"}},53,"Heavy",1.8,20.8,10,125,19,1.4703369230769234,7.7386153846153868E-2,2568.026220227383,{"$f":"_xlfn.XLOOKUP(I64,T_minESABlindWidth[Description],INDIRECT(_xlfn.CONCAT(\"T_minESABlindWidth[\",i_idler,\"]\")))","v":1013},1.0130000000000001,7.7658777026557617,"","y"]
[null,null,null,2.7085153846153853E-2,"","",{"$f":"IF(P65<>\"\",IF(OR(input_idealSpringRate>_SpringData_L0!E65,input_idealSpringRate<_SpringData_L0!$D$4),\"n\",IF(AND(input_idealSpringRate<_SpringData_L0!E65,input_idealSpringRate>_SpringData_L0!D65*$B$12),\"y\",\"n\")),\"\")","v":""},1,"Mini",1,20,1,29,null,0,"",0,{"$f":"_xlfn.XLOOKUP(I65,T_minESABlindWidth[Description],INDIRECT(_xlfn.CONCAT(\"T_minESABlindWidth[\",i_idler,\"]\")))","v":400},0.4,null,""]
[null,null,null,"","","",{"$f":"IF(P66<>\"\",IF(OR(input_idealSpringRate>_SpringData_L0!E66,input_idealSpringRate<_SpringData_L0!$D$4),\"n\",IF(AND(input_idealSpringRate<_SpringData_L0!E66,input_idealSpringRate>_SpringData_L0!D66*$B$12),\"y\",\"n\")),\"\")","v":""},2,"Mini",1,20,2,47,null,0,"",0,{"$f":"_xlfn.XLOOKUP(I66,T_minESABlindWidth[Description],INDIRECT(_xlfn.CONCAT(\"T_minESABlindWidth[\",i_idler,\"]\")))","v":400},0.4,null,""]
[null,null,null,"","","",{"$f":"IF(P67<>\"\",IF(OR(input_idealSpringRate>_SpringData_L0!E67,input_idealSpringRate<_SpringData_L0!$D$4),\"n\",IF(AND(input_idealSpringRate<_SpringData_L0!E67,input_idealSpringRate>_SpringData_L0!D67*$B$12),\"y\",\"n\")),\"\")","v":""},6,"Light",1.2,20.2,1,28,null,0,"",0,{"$f":"_xlfn.XLOOKUP(I67,T_minESABlindWidth[Description],INDIRECT(_xlfn.CONCAT(\"T_minESABlindWidth[\",i_idler,\"]\")))","v":600},0.6,null,""]
[null,null,null,"","","",{"$f":"IF(P68<>\"\",IF(OR(input_idealSpringRate>_SpringData_L0!E68,input_idealSpringRate<_SpringData_L0!$D$4),\"n\",IF(AND(input_idealSpringRate<_SpringData_L0!E68,input_idealSpringRate>_SpringData_L0!D68*$B$12),\"y\",\"n\")),\"\")","v":""},7,"Light",1.2,20.2,2,45,null,0,"",0,{"$f":"_xlfn.XLOOKUP(I68,T_minESABlindWidth[Description],INDIRECT(_xlfn.CONCAT(\"T_minESABlindWidth[\",i_idler,\"]\")))","v":600},0.6,null,""]
[null,null,null,"","","",{"$f":"IF(P69<>\"\",IF(OR(input_idealSpringRate>_SpringData_L0!E69,input_idealSpringRate<_SpringData_L0!$D$4),\"n\",IF(AND(input_idealSpringRate<_SpringData_L0!E69,input_idealSpringRate>_SpringData_L0!D69*$B$12),\"y\",\"n\")),\"\")","v":""},8,"Light",1.2,20.2,3,63,null,0,"",0,{"$f":"_xlfn.XLOOKUP(I69,T_minESABlindWidth[Description],INDIRECT(_xlfn.CONCAT(\"T_minESABlindWidth[\",i_idler,\"]\")))","v":600},0.6,null,""]
[null,null,null,"","","",{"$f":"IF(P70<>\"\",IF(OR(input_idealSpringRate>_SpringData_L0!E70,input_idealSpringRate<_SpringData_L0!$D$4),\"n\",IF(AND(input_idealSpringRate<_SpringData_L0!E70,input_idealSpringRate>_SpringData_L0!D70*$B$12),\"y\",\"n\")),\"\")","v":""},9,"Light",1.2,20.2,4,81,null,0,"",0,{"$f":"_xlfn.XLOOKUP(I70,T_minESABlindWidth[Description],INDIRECT(_xlfn.CONCAT(\"T_minESABlindWidth[\",i_idler,\"]\")))","v":600},0.6,null,""]
[null,null,null,"","","",{"$f":"IF(P71<>\"\",IF(OR(input_idealSpringRate>_SpringData_L0!E71,input_idealSpringRate<_SpringData_L0!$D$4),\"n\",IF(AND(input_idealSpringRate<_SpringData_L0!E71,input_idealSpringRate>_SpringData_L0!D71*$B$12),\"y\",\"n\")),\"\")","v":""},10,"Light",1.2,20.2,5,98,null,0,"",0,{"$f":"_xlfn.XLOOKUP(I71,T_minESABlindWidth[Description],INDIRECT(_xlfn.CONCAT(\"T_minESABlindWidth[\",i_idler,\"]\")))","v":600},0.6,null,""]
[null,null,null,"","","",{"$f":"IF(P72<>\"\",IF(OR(input_idealSpringRate>_SpringData_L0!E72,input_idealSpringRate<_SpringData_L0!$D$4),\"n\",IF(AND(input_idealSpringRate<_SpringData_L0!E72,input_idealSpringRate>_SpringData_L0!D72*$B$12),\"y\",\"n\")),\"\")","v":""},19,"Medium",1.6,20.6,1,22,null,0,"",0,{"$f":"_xlfn.XLOOKUP(I72,T_minESABlindWidth[Description],INDIRECT(_xlfn.CONCAT(\"T_minESABlindWidth[\",i_idler,\"]\")))","v":913},0.91300000000000003,null,""]
[null,null,null,"","","",{"$f":"IF(P73<>\"\",IF(OR(input_idealSpringRate>_SpringData_L0!E73,input_idealSpringRate<_SpringData_L0!$D$4),\"n\",IF(AND(input_idealSpringRate<_SpringData_L0!E73,input_idealSpringRate>_SpringData_L0!D73*$B$12),\"y\",\"n\")),\"\")","v":""},20,"Medium",1.6,20.6,2,36,null,0,"",0,{"$f":"_xlfn.XLOOKUP(I73,T_minESABlindWidth[Description],INDIRECT(_xlfn.CONCAT(\"T_minESABlindWidth[\",i_idler,\"]\")))","v":913},0.91300000000000003,null,""]
[null,null,null,"","","",{"$f":"IF(P74<>\"\",IF(OR(input_idealSpringRate>_SpringData_L0!E74,input_idealSpringRate<_SpringData_L0!$D$4),\"n\",IF(AND(input_idealSpringRate<_SpringData_L0!E74,input_idealSpringRate>_SpringData_L0!D74*$B$12),\"y\",\"n\")),\"\")","v":""},21,"Medium",1.6,20.6,3,50,null,0,"",0,{"$f":"_xlfn.XLOOKUP(I74,T_minESABlindWidth[Description],INDIRECT(_xlfn.CONCAT(\"T_minESABlindWidth[\",i_idler,\"]\")))","v":913},0.91300000000000003,null,""]
[null,null,null,"","","",{"$f":"IF(P75<>\"\",IF(OR(input_idealSpringRate>_SpringData_L0!E75,input_idealSpringRate<_SpringData_L0!$D$4),\"n\",IF(AND(input_idealSpringRate<_SpringData_L0!E75,input_idealSpringRate>_SpringData_L0!D75*$B$12),\"y\",\"n\")),\"\")","v":""},22,"Medium",1.6,20.6,4,63,null,0,"",0,{"$f":"_xlfn.XLOOKUP(I75,T_minESABlindWidth[Description],INDIRECT(_xlfn.CONCAT(\"T_minESABlindWidth[\",i_idler,\"]\")))","v":913},0.91300000000000003,null,""]
[null,null,null,"","","",{"$f":"IF(P76<>\"\",IF(OR(input_idealSpringRate>_SpringData_L0!E76,input_idealSpringRate<_SpringData_L0!$D$4),\"n\",IF(AND(input_idealSpringRate<_SpringData_L0!E76,input_idealSpringRate>_SpringData_L0!D76*$B$12),\"y\",\"n\")),\"\")","v":""},23,"Medium",1.6,20.6,5,77,null,0,"",0,{"$f":"_xlfn.XLOOKUP(I76,T_minESABlindWidth[Description],INDIRECT(_xlfn.CONCAT(\"T_minESABlindWidth[\",i_idler,\"]\")))","v":913},0.91300000000000003,null,""]
[null,null,null,"","","",{"$f":"IF(P77<>\"\",IF(OR(input_idealSpringRate>_SpringData_L0!E77,input_idealSpringRate<_SpringData_L0!$D$4),\"n\",IF(AND(input_idealSpringRate<_SpringData_L0!E77,input_idealSpringRate>_SpringData_L0!D77*$B$12),\"y\",\"n\")),\"\")","v":""},44,"Heavy",1.8,20.8,1,19,null,0,"",0,{"$f":"_xlfn.XLOOKUP(I77,T_minESABlindWidth[Description],INDIRECT(_xlfn.CONCAT(\"T_minESABlindWidth[\",i_idler,\"]\")))","v":1013},1.0130000000000001,null,""]
[null,null,null,"",{"$f":"IF(P78<>\"\",IF(AND(P78<>\"\",P78=\"\"),P79*2,AVERAGE(P78:P79)),\"\")","v":""},{"$f":"IF(G78<>\"\",IF(islandFilter_option=\"yes\",IF(AND(MATCH(I78,list_boosterDescription,0)>=MATCH(islandfilter_colMax,list_boosterIndex,0),MATCH(I78,list_boosterDescription,0)>=MATCH(islandfilter_rowMax,list_boosterIndex,0)),\"y\",\"\"),\"y\"),\"\")","v":""},{"$f":"IF(P78<>\"\",IF(OR(input_idealSpringRate>_SpringData_L0!E78,input_idealSpringRate<_SpringData_L0!$D$4),\"n\",IF(AND(input_idealSpringRate<_SpringData_L0!E78,input_idealSpringRate>_SpringData_L0!D78*$B$12),\"y\",\"n\")),\"\")","v":""},45,"Heavy",1.8,20.8,2,30,null,0,"",0,{"$f":"_xlfn.XLOOKUP(I78,T_minESABlindWidth[Description],INDIRECT(_xlfn.CONCAT(\"T_minESABlindWidth[\",i_idler,\"]\")))","v":1013},1.0130000000000001,null,{"$f":"IFERROR(ABS((P78-$E$1)/$E$1),\"\")","v":""}]
[null,null,null,{"$f":"IF(LEN(E78)>0,E78*$B$11,\"\")","v":""},"","",{"$f":"IF(P79<>\"\",IF(OR(input_idealSpringRate>_SpringData_L0!E79,input_idealSpringRate<_SpringData_L0!$D$4),\"n\",IF(AND(input_idealSpringRate<_SpringData_L0!E79,input_idealSpringRate>_SpringData_L0!D79*$B$12),\"y\",\"n\")),\"\")","v":""},46,"Heavy",1.8,{"$f":"J79+$AA$3","v":20.8},3,42,null,{"$f":"IFERROR(($X$3*$J79^4*$N79)/(10.8*$M79*$K79*1000),\"\")","v":0},{"$f":"IFERROR(O79/N79,\"\")","v":""},{"$f":"32000*$O79/(PI()*$J79^3)","v":0},{"$f":"_xlfn.XLOOKUP(I79,T_minESABlindWidth[Description],INDIRECT(_xlfn.CONCAT(\"T_minESABlindWidth[\",i_idler,\"]\")))","v":1013},{"$f":"R79*0.001","v":1.0130000000000001},null,""]
[null,null,null,"","","",{"$f":"IF(P80<>\"\",IF(OR(input_idealSpringRate>_SpringData_L0!E80,input_idealSpringRate<_SpringData_L0!$D$4),\"n\",IF(AND(input_idealSpringRate<_SpringData_L0!E80,input_idealSpringRate>_SpringData_L0!D80*$B$12),\"y\",\"n\")),\"\")","v":""},47,"Heavy",1.8,20.8,4,54,null,0,"",0,{"$f":"_xlfn.XLOOKUP(I80,T_minESABlindWidth[Description],INDIRECT(_xlfn.CONCAT(\"T_minESABlindWidth[\",i_idler,\"]\")))","v":1013},1.0130000000000001,null,""]
[null,null,null,"","","",{"$f":"IF(P81<>\"\",IF(OR(input_idealSpringRate>_SpringData_L0!E81,input_idealSpringRate<_SpringData_L0!$D$4),\"n\",IF(AND(input_idealSpringRate<_SpringData_L0!E81,input_idealSpringRate>_SpringData_L0!D81*$B$12),\"y\",\"n\")),\"\")","v":""},48,"Heavy",1.8,20.8,5,66,null,0,"",0,{"$f":"_xlfn.XLOOKUP(I81,T_minESABlindWidth[Description],INDIRECT(_xlfn.CONCAT(\"T_minESABlindWidth[\",i_idler,\"]\")))","v":1013},1.0130000000000001,null,""]
[null,null,null,"","","",{"$f":"IF(P82<>\"\",IF(OR(input_idealSpringRate>_SpringData_L0!E82,input_idealSpringRate<_SpringData_L0!$D$4),\"n\",IF(AND(input_idealSpringRate<_SpringData_L0!E82,input_idealSpringRate>_SpringData_L0!D82*$B$12),\"y\",\"n\")),\"\")","v":""},49,"Heavy",1.8,20.8,6,77,null,0,"",0,{"$f":"_xlfn.XLOOKUP(I82,T_minESABlindWidth[Description],INDIRECT(_xlfn.CONCAT(\"T_minESABlindWidth[\",i_idler,\"]\")))","v":1013},1.0130000000000001,null,""]
[null,null,null,"","","",{"$f":"IF(P83<>\"\",IF(OR(input_idealSpringRate>_SpringData_L0!E83,input_idealSpringRate<_SpringData_L0!$D$4),\"n\",IF(AND(input_idealSpringRate<_SpringData_L0!E83,input_idealSpringRate>_SpringData_L0!D83*$B$12),\"y\",\"n\")),\"\")","v":""},50,"Heavy",1.8,20.8,7,89,null,0,"",0,{"$f":"_xlfn.XLOOKUP(I83,T_minESABlindWidth[Description],INDIRECT(_xlfn.CONCAT(\"T_minESABlindWidth[\",i_idler,\"]\")))","v":1013},1.0130000000000001,null,""]
[null,null,null,"","","",{"$f":"IF(P84<>\"\",IF(OR(input_idealSpringRate>_SpringData_L0!E84,input_idealSpringRate<_SpringData_L0!$D$4),\"n\",IF(AND(input_idealSpringRate<_SpringData_L0!E84,input_idealSpringRate>_SpringData_L0!D84*$B$12),\"y\",\"n\")),\"\")","v":""},51,"Heavy",1.8,20.8,8,101,null,0,"",0,{"$f":"_xlfn.XLOOKUP(I84,T_minESABlindWidth[Description],INDIRECT(_xlfn.CONCAT(\"T_minESABlindWidth[\",i_idler,\"]\")))","v":1013},1.0130000000000001,null,""]
[null,null,null,"","","",{"$f":"IF(P85<>\"\",IF(OR(input_idealSpringRate>_SpringData_L0!E85,input_idealSpringRate<_SpringData_L0!$D$4),\"n\",IF(AND(input_idealSpringRate<_SpringData_L0!E85,input_idealSpringRate>_SpringData_L0!D85*$B$12),\"y\",\"n\")),\"\")","v":""},52,"Heavy",1.8,20.8,9,113,null,0,"",0,{"$f":"_xlfn.XLOOKUP(I85,T_minESABlindWidth[Description],INDIRECT(_xlfn.CONCAT(\"T_minESABlindWidth[\",i_idler,\"]\")))","v":1013},1.0130000000000001,null,""]
[null,null,null,"","","",{"$f":"IF(P86<>\"\",IF(OR(input_idealSpringRate>_SpringData_L0!E86,input_idealSpringRate<_SpringData_L0!$D$4),\"n\",IF(AND(input_idealSpringRate<_SpringData_L0!E86,input_idealSpringRate>_SpringData_L0!D86*$B$12),\"y\",\"n\")),\"\")","v":""},null,null,null,19,null,null,null,"","",{"$error":"#VALUE!"},null,0,null,""]
[null,null,null,"","","",{"$f":"IF(P87<>\"\",IF(OR(input_idealSpringRate>_SpringData_L0!E87,input_idealSpringRate<_SpringData_L0!$D$4),\"n\",IF(AND(input_idealSpringRate<_SpringData_L0!E87,input_idealSpringRate>_SpringData_L0!D87*$B$12),\"y\",\"n\")),\"\")","v":""},null,null,null,19,null,null,null,"","",{"$error":"#VALUE!"},null,0,null,""]
[null,null,null,"","","",{"$f":"IF(P88<>\"\",IF(OR(input_idealSpringRate>_SpringData_L0!E88,input_idealSpringRate<_SpringData_L0!$D$4),\"n\",IF(AND(input_idealSpringRate<_SpringData_L0!E88,input_idealSpringRate>_SpringData_L0!D88*$B$12),\"y\",\"n\")),\"\")","v":""},null,null,null,19,null,null,null,"","",{"$error":"#VALUE!"},null,0,null,""]
[null,null,null,"","","",{"$f":"IF(P89<>\"\",IF(OR(input_idealSpringRate>_SpringData_L0!E89,input_idealSpringRate<_SpringData_L0!$D$4),\"n\",IF(AND(input_idealSpringRate<_SpringData_L0!E89,input_idealSpringRate>_SpringData_L0!D89*$B$12),\"y\",\"n\")),\"\")","v":""},null,null,null,19,null,null,null,"","",{"$error":"#VALUE!"},null,0,null,""]
[null,null,null,"","","",{"$f":"IF(P90<>\"\",IF(OR(input_idealSpringRate>_SpringData_L0!E90,input_idealSpringRate<_SpringData_L0!$D$4),\"n\",IF(AND(input_idealSpringRate<_SpringData_L0!E90,input_idealSpringRate>_SpringData_L0!D90*$B$12),\"y\",\"n\")),\"\")","v":""},null,null,null,19,null,null,null,"","",{"$error":"#VALUE!"},null,0,null,""]
[null,null,null,"","","",{"$f":"IF(P91<>\"\",IF(OR(input_idealSpringRate>_SpringData_L0!E91,input_idealSpringRate<_SpringData_L0!$D$4),\"n\",IF(AND(input_idealSpringRate<_SpringData_L0!E91,input_idealSpringRate>_SpringData_L0!D91*$B$12),\"y\",\"n\")),\"\")","v":""},null,null,null,19,null,null,null,"","",{"$error":"#VALUE!"},null,0,null,""]
[null,null,null,"","","",{"$f":"IF(P92<>\"\",IF(OR(input_idealSpringRate>_SpringData_L0!E92,input_idealSpringRate<_SpringData_L0!$D$4),\"n\",IF(AND(input_idealSpringRate<_SpringData_L0!E92,input_idealSpringRate>_SpringData_L0!D92*$B$12),\"y\",\"n\")),\"\")","v":""},null,null,null,19,null,null,null,"","",{"$error":"#VALUE!"},null,0,null,""]
[null,null,null,"","","",{"$f":"IF(P93<>\"\",IF(OR(input_idealSpringRate>_SpringData_L0!E93,input_idealSpringRate<_SpringData_L0!$D$4),\"n\",IF(AND(input_idealSpringRate<_SpringData_L0!E93,input_idealSpringRate>_SpringData_L0!D93*$B$12),\"y\",\"n\")),\"\")","v":""},null,null,null,19,null,null,null,"","",{"$error":"#VALUE!"},null,0,null,""]
[null,null,null,"","","",{"$f":"IF(P94<>\"\",IF(OR(input_idealSpringRate>_SpringData_L0!E94,input_idealSpringRate<_SpringData_L0!$D$4),\"n\",IF(AND(input_idealSpringRate<_SpringData_L0!E94,input_idealSpringRate>_SpringData_L0!D94*$B$12),\"y\",\"n\")),\"\")","v":""},null,null,null,19,null,null,null,"","",{"$error":"#VALUE!"},null,0,null,""]
[null,null,null,"","","",{"$f":"IF(P95<>\"\",IF(OR(input_idealSpringRate>_SpringData_L0!E95,input_idealSpringRate<_SpringData_L0!$D$4),\"n\",IF(AND(input_idealSpringRate<_SpringData_L0!E95,input_idealSpringRate>_SpringData_L0!D95*$B$12),\"y\",\"n\")),\"\")","v":""},null,null,null,19,null,null,null,"","",{"$error":"#VALUE!"},null,0,null,""]
[null,null,null,"","","",{"$f":"IF(P96<>\"\",IF(OR(input_idealSpringRate>_SpringData_L0!E96,input_idealSpringRate<_SpringData_L0!$D$4),\"n\",IF(AND(input_idealSpringRate<_SpringData_L0!E96,input_idealSpringRate>_SpringData_L0!D96*$B$12),\"y\",\"n\")),\"\")","v":""},null,null,null,19,null,null,null,"","",{"$error":"#VALUE!"},null,0,null,""]
[null,null,null,"","","",{"$f":"IF(P97<>\"\",IF(OR(input_idealSpringRate>_SpringData_L0!E97,input_idealSpringRate<_SpringData_L0!$D$4),\"n\",IF(AND(input_idealSpringRate<_SpringData_L0!E97,input_idealSpringRate>_SpringData_L0!D97*$B$12),\"y\",\"n\")),\"\")","v":""},null,null,null,19,null,null,null,"","",{"$error":"#VALUE!"},null,0,null,""]
[null,null,null,"","","",{"$f":"IF(P98<>\"\",IF(OR(input_idealSpringRate>_SpringData_L0!E98,input_idealSpringRate<_SpringData_L0!$D$4),\"n\",IF(AND(input_idealSpringRate<_SpringData_L0!E98,input_idealSpringRate>_SpringData_L0!D98*$B$12),\"y\",\"n\")),\"\")","v":""},null,null,null,19,null,null,null,"","",{"$error":"#VALUE!"},null,0,null,""]
[null,null,null,"","","",{"$f":"IF(P99<>\"\",IF(OR(input_idealSpringRate>_SpringData_L0!E99,input_idealSpringRate<_SpringData_L0!$D$4),\"n\",IF(AND(input_idealSpringRate<_SpringData_L0!E99,input_idealSpringRate>_SpringData_L0!D99*$B$12),\"y\",\"n\")),\"\")","v":""},null,null,null,19,null,null,null,"","",{"$error":"#VALUE!"},null,0,null,""]
[null,null,null,"","","",{"$f":"IF(P100<>\"\",IF(OR(input_idealSpringRate>_SpringData_L0!E100,input_idealSpringRate<_SpringData_L0!$D$4),\"n\",IF(AND(input_idealSpringRate<_SpringData_L0!E100,input_idealSpringRate>_SpringData_L0!D100*$B$12),\"y\",\"n\")),\"\")","v":""},null,null,null,19,null,null,null,"","",{"$error":"#VALUE!"},null,0,null,""]
[null,null,null,"","","",{"$f":"IF(P101<>\"\",IF(OR(input_idealSpringRate>_SpringData_L0!E101,input_idealSpringRate<_SpringData_L0!$D$4),\"n\",IF(AND(input_idealSpringRate<_SpringData_L0!E101,input_idealSpringRate>_SpringData_L0!D101*$B$12),\"y\",\"n\")),\"\")","v":""},null,null,null,19,null,null,null,"","",{"$error":"#VALUE!"},null,0,null,""]
[null,null,null,"","","",{"$f":"IF(P102<>\"\",IF(OR(input_idealSpringRate>_SpringData_L0!E102,input_idealSpringRate<_SpringData_L0!$D$4),\"n\",IF(AND(input_idealSpringRate<_SpringData_L0!E102,input_idealSpringRate>_SpringData_L0!D102*$B$12),\"y\",\"n\")),\"\")","v":""},null,null,null,19,null,null,null,"","",{"$error":"#VALUE!"},null,0,null,""]
[null,null,null,"","","",{"$f":"IF(P103<>\"\",IF(OR(input_idealSpringRate>_SpringData_L0!E103,input_idealSpringRate<_SpringData_L0!$D$4),\"n\",IF(AND(input_idealSpringRate<_SpringData_L0!E103,input_idealSpringRate>_SpringData_L0!D103*$B$12),\"y\",\"n\")),\"\")","v":""},null,null,null,19,null,null,null,"","",{"$error":"#VALUE!"},null,0,null,""]
[null,null,null,"","","",{"$f":"IF(P104<>\"\",IF(OR(input_idealSpringRate>_SpringData_L0!E104,input_idealSpringRate<_SpringData_L0!$D$4),\"n\",IF(AND(input_idealSpringRate<_SpringData_L0!E104,input_idealSpringRate>_SpringData_L0!D104*$B$12),\"y\",\"n\")),\"\")","v":""},null,null,null,19,null,null,null,"","",{"$error":"#VALUE!"},null,0,null,""]
[null,null,null,"","","",{"$f":"IF(P105<>\"\",IF(OR(input_idealSpringRate>_SpringData_L0!E105,input_idealSpringRate<_SpringData_L0!$D$4),\"n\",IF(AND(input_idealSpringRate<_SpringData_L0!E105,input_idealSpringRate>_SpringData_L0!D105*$B$12),\"y\",\"n\")),\"\")","v":""},null,null,null,19,null,null,null,"","",{"$error":"#VALUE!"},null,0,null,""]
[null,null,null,"","","",{"$f":"IF(P106<>\"\",IF(OR(input_idealSpringRate>_SpringData_L0!E106,input_idealSpringRate<_SpringData_L0!$D$4),\"n\",IF(AND(input_idealSpringRate<_SpringData_L0!E106,input_idealSpringRate>_SpringData_L0!D106*$B$12),\"y\",\"n\")),\"\")","v":""},null,null,null,19,null,null,null,"","",{"$error":"#VALUE!"},null,0,null,""]
[null,null,null,"","","",{"$f":"IF(P107<>\"\",IF(OR(input_idealSpringRate>_SpringData_L0!E107,input_idealSpringRate<_SpringData_L0!$D$4),\"n\",IF(AND(input_idealSpringRate<_SpringData_L0!E107,input_idealSpringRate>_SpringData_L0!D107*$B$12),\"y\",\"n\")),\"\")","v":""},null,null,null,19,null,null,null,"","",{"$error":"#VALUE!"},null,0,null,""]
[null,null,null,"","","",{"$f":"IF(P108<>\"\",IF(OR(input_idealSpringRate>_SpringData_L0!E108,input_idealSpringRate<_SpringData_L0!$D$4),\"n\",IF(AND(input_idealSpringRate<_SpringData_L0!E108,input_idealSpringRate>_SpringData_L0!D108*$B$12),\"y\",\"n\")),\"\")","v":""},null,null,null,19,null,null,null,"","",{"$error":"#VALUE!"},null,0,null,""]
[null,null,null,"","","",{"$f":"IF(P109<>\"\",IF(OR(input_idealSpringRate>_SpringData_L0!E109,input_idealSpringRate<_SpringData_L0!$D$4),\"n\",IF(AND(input_idealSpringRate<_SpringData_L0!E109,input_idealSpringRate>_SpringData_L0!D109*$B$12),\"y\",\"n\")),\"\")","v":""},null,null,null,19,null,null,null,"","",{"$error":"#VALUE!"},null,0,null,""]
[null,null,null,"","",{"$f":"IF(G110<>\"\",IF(islandFilter_option=\"yes\",IF(AND(MATCH(I110,list_boosterDescription,0)>=MATCH(islandfilter_colMax,list_boosterIndex,0),MATCH(I110,list_boosterDescription,0)>=MATCH(islandfilter_rowMax,list_boosterIndex,0)),\"y\",\"\"),\"y\"),\"\")","v":""},{"$f":"IF(P110<>\"\",IF(OR(input_idealSpringRate>_SpringData_L0!E110,input_idealSpringRate<_SpringData_L0!$D$4),\"n\",IF(AND(input_idealSpringRate<_SpringData_L0!E110,input_idealSpringRate>_SpringData_L0!D110*$B$12),\"y\",\"n\")),\"\")","v":""},null,null,null,19,null,null,null,"","",{"$error":"#VALUE!"},null,0,null,""]

{"sheet":"_SpringData_L1","index":8,"n_rows":108,"n_cols":30,"rows_kept":108,"cut":false,"hidden":true,"merged":[[3,3,3,5]]}
[null,null,null,"FIRST LEVEL FILTER"]
[]
["LOGIC 1"]
["Fudged Turns",5,null,"Logic 1: midBlindTorque (with Fudged Turns)",null,null,"↓"]
["Selection",null,null,"Turns @ Mid Blind (With Fudged Turns)","Max Turns Required (Logic 1)","Pre-Turns Required (Logic 1)","Turns check",{"$f":"locHeader_modSpringData_L0","v":"LL Spring Rate"},"UL Spring Rate","Local Switch","Booster Rate Check","Options","Booster","Wire ø (mm)","mean coil ID","Position","Number of coils","Max Turns","T_Max","Nom. Spring Rate","Bending stress (Mpa)","Min blind width w idler(TBC) mm","Min. Width (m)",38.6,"Rate Var %","Spring Flag","mod of Elast",207000,0,"internal coil ID"]
["Input Blind Width",{"$f":"input_BlindWidth","v":1},null,{"$f":"IF(AND(OFFSET(H6,0,$B$27-1)>0,OFFSET(H6,0,$B$27-1)<>\"\"),logic1_FudgedTurns+$B$60/OFFSET(H6,0,$B$27-1),\"\")","v":""},{"$f":"IF(D6<>\"\",D6+0.5*$B$61,\"\")","v":""},{"$f":"IF(D6<>\"\",D6-0.5*input_totalBlindTurns,\"\")","v":""},{"$f":"IF(E6<>\"\",IF(AND(E6<OFFSET(H6,0,$B$28-1),F6>0),\"y\",\"n\"),\"\")","v":""},{"$f":"_xlfn._xlws.FILTER(locTable_modSpringData_L0,(INDEX(locTable_modSpringData_L0,,B25)<loc_BlindWidth)*(INDEX(locTable_modSpringData_L0,,B26)=\"y\")*(INDEX(locTable_modSpringData_L0,,B29)=\"y\")*(INDEX(locTable_modSpringData_L0,,B30)=\"y\")*(INDEX(locTable_modSpringData_L0,,B31)<=B20),\"\")","v":{"$error":"#DIV/0!"}}]
["Input Blind Drop",{"$f":"input_BlindDrop","v":2},null,"","","",""]
["Blind Width (mm)",{"$f":"Design_Width","v":0},null,"","","",""]
["Blind Drop (mm)",{"$f":"Design_Drop","v":0},null,"","","",""]
[null,null,null,"","","",""]
[null,null,null,"","","",""]
["Calculator Use",null,null,"","","",""]
["Tube Turns =",{"$f":"(-Tube_OD+SQRT(Tube_OD^2-4*Fabric_Thickness*-loc_BlindDrop*1000/PI()))/(2*Fabric_Thickness)","v":{"$error":"#N/A"}},null,"","","",""]
["Mid Blind Torque (Nm) =",{"$f":"(((g*(wb_Ballast_UnitMass*loc_BlindWidth+Fabric_Density*loc_BlindWidth*(_SpringData_L1!$B16))*((((_SpringData_L1!$B15*0.5)-Fabric_Thickness*($B13/2)))/1000)/1))/(1+SF_Lifting))","v":{"$error":"#VALUE!"}},null,"","","",""]
["Max Fabric Diameter (mm) =",{"$f":"((-Tube_OD+SQRT(Tube_OD^2-4*Fabric_Thickness*-loc_BlindDrop*1000/PI()))/(2*Fabric_Thickness)+i_pwa)*Fabric_Thickness*2+Tube_OD","v":{"$error":"#N/A"}},null,"","","",""]
["Drop (m) @ Half Turns =",{"$f":"loc_BlindDrop-((PI()/1000)*((_SpringData_L1!B13/2)*Tube_OD+Fabric_Thickness*(_SpringData_L1!B13/2)^2))","v":{"$error":"#N/A"}},null,"","","",""]
["Ideal Spring Rate",{"$f":"ESA_IdealSpringRate","v":{"$error":"#DIV/0!"}},null,"","","",""]
[null,null,null,"","","",""]
["Chart Use",null,null,"","","",""]
["Acceptable Rate Variation %",1.7,null,"","","",""]
[null,null,null,"","","",""]
[null,null,null,"","","",""]
["Filter Header Location","Col",null,"","","",""]
["LL Spring Rate",{"$f":"MATCH(A24,locHeader_modSpringData_L0,0)","v":1},null,"","","",""]
["Min. Width (m)",16,null,"","","",""]
["Booster Rate Check",4,null,"","","",""]
["Nom. Spring Rate",13,null,"","","",""]
["Max Turns",{"$f":"MATCH(A28,locHeader_modSpringData_L0,0)","v":11},null,"","","",""]
["Local Switch",3,null,"","","",""]
["Spring Flag",{"$f":"MATCH(A30,locHeader_modSpringData_L0,0)","v":19},null,"","","",""]
["Rate Var %",{"$f":"MATCH(A31,locHeader_modSpringData_L0,0)","v":18},null,"","","",""]
[null,null,null,"","","",""]
[null,null,null,"","","",""]
["LocTable1 Table Size",null,null,"","","",""]
["Column Count",{"$f":"COUNTA(D5:AC5)","v":26},null,"","","",""]
["Row Count",103,null,"","","",""]
[null,null,null,"","","",""]
[null,null,null,{"$f":"IF(AND(OFFSET(H38,0,$B$27-1)>0,OFFSET(H38,0,$B$27-1)<>\"\"),logic1_FudgedTurns+$B$60/OFFSET(H38,0,$B$27-1),\"\")","v":""},{"$f":"IF(D38<>\"\",D38+0.5*$B$61,\"\")","v":""},{"$f":"IF(D38<>\"\",D38-0.5*input_totalBlindTurns,\"\")","v":""},{"$f":"IF(E38<>\"\",IF(AND(E38<OFFSET(H38,0,$B$28-1),F38>0),\"y\",\"n\"),\"\")","v":""}]
["Analysis - Torque Difference",null,null,"","","",""]
["Selected Spring Rate, k",{"$f":"_SpringData_L2!E3","v":0},null,"","","",""]
["Recommended Pre Turn, t",{"$f":"o_BoosterPreTurn","v":0},null,"","","",""]
[null,null,null,"","","",""]
["Blind Torque Coefficients",null,null,"","","",""]
["a",{"$f":"blindtorque_a","v":{"$error":"#VALUE!"}},null,"","","",""]
["b",{"$f":"OFFSET(blindtorque_a,,1)","v":0},null,"","","",""]
["c",{"$f":"OFFSET(blindtorque_a,,2)","v":0},null,"","","",""]
[null,null,null,"","","",""]
["Find Max Torque difference, Dmax",null,null,"","","",""]
["D, Turning Point",{"$f":"(B40-B45)/(2*B44)","v":{"$error":"#VALUE!"}},null,"","","",""]
["x","D",null,"","","",""]
[0,{"$f":"B46-(B41*B40)","v":0},null,"","","",""]
[{"$f":"B49","v":{"$error":"#VALUE!"}},{"$f":"$B$44*A52^2+($B$45-$B$40)*A52+($B$46-$B$41*B40)","v":{"$error":"#VALUE!"}},null,"","","",""]
[{"$f":"B61","v":{"$error":"#N/A"}},{"$f":"$B$44*A53^2+($B$45-$B$40)*A53+($B$46-$B$41*B40)","v":{"$error":"#VALUE!"}},null,"","","",""]
["Max Torque diff, Dmax",{"$f":"MAX(ABS(B51:B53))","v":{"$error":"#VALUE!"}},null,"","","",""]
[null,null,null,"","","",""]
[null,null,null,"","","",""]
["Booster Selection Criteria",null,null,"","","",""]
[null,null,null,"","","",""]
["Current",null,null,"","","",""]
["Mid Blind Torque",{"$f":"o_midBlindTorque","v":{"$error":"#VALUE!"}},null,"","","",""]
["Total Blind Turns Required",{"$f":"o_tubeTurns","v":{"$error":"#N/A"}},null,"","","",""]
[null,null,null,"","","",""]
["Dev Purpose",null,null,"","","",""]
["Mid Blind Torque",null,null,"","","",""]
["Total Blind Turns Required",{"$f":"Rotations_Top_Max","v":{"$error":"#NAME?"}},null,"","","",""]
[null,null,null,"","","",""]
[null,null,null,"","","",""]
[null,null,null,"","","",""]
[null,null,null,"","","",""]
[null,null,null,{"$f":"IF(AND(OFFSET(H70,0,$B$27-1)>0,OFFSET(H70,0,$B$27-1)<>\"\"),logic1_FudgedTurns+$B$60/OFFSET(H70,0,$B$27-1),\"\")","v":""},{"$f":"IF(D70<>\"\",D70+0.5*$B$61,\"\")","v":""},{"$f":"IF(D70<>\"\",D70-0.5*input_totalBlindTurns,\"\")","v":""},{"$f":"IF(E70<>\"\",IF(AND(E70<OFFSET(H70,0,$B$28-1),F70>0),\"y\",\"n\"),\"\")","v":""}]
[null,null,null,"","","",""]
[null,null,null,"","","",""]
[null,null,null,"","","",""]
[null,null,null,"","","",""]
[null,null,null,"","","",""]
[null,null,null,"","","",""]
[null,null,null,"","","",""]
[null,null,null,"","","",""]
[null,null,null,"","","",""]
[null,null,null,"","","",""]
[null,null,null,"","","",""]
[null,null,null,"","","",""]
[null,null,null,"","","",""]
[null,null,null,"","","",""]
[null,null,null,"","","",""]
[null,null,null,"","","",""]
[null,null,null,"","","",""]
[null,null,null,"","","",""]
[null,null,null,"","","",""]
[null,null,null,"","","",""]
[null,null,null,"","","",""]
[null,null,null,"","","",""]
[null,null,null,"","","",""]
[null,null,null,"","","",""]
[null,null,null,"","","",""]
[null,null,null,"","","",""]
[null,null,null,"","","",""]
[null,null,null,"","","",""]
[null,null,null,"","","",""]
[null,null,null,"","","",""]
[null,null,null,"","","",""]
[null,null,null,{"$f":"IF(AND(OFFSET(H102,0,$B$27-1)>0,OFFSET(H102,0,$B$27-1)<>\"\"),logic1_FudgedTurns+$B$60/OFFSET(H102,0,$B$27-1),\"\")","v":""},{"$f":"IF(D102<>\"\",D102+0.5*$B$61,\"\")","v":""},{"$f":"IF(D102<>\"\",D102-0.5*input_totalBlindTurns,\"\")","v":""},{"$f":"IF(E102<>\"\",IF(AND(E102<OFFSET(H102,0,$B$28-1),F102>0),\"y\",\"n\"),\"\")","v":""}]
[null,null,null,"","","",""]
[null,null,null,"","","",""]
[null,null,null,"","","",""]
[null,null,null,"","","",""]
[null,null,null,"","","",""]
[null,null,null,"","","",""]

{"sheet":"_SpringData_L2","index":9,"n_rows":66,"n_cols":32,"rows_kept":66,"cut":false,"hidden":true,"merged":[]}
[null,null,null,"SPRING SELECTION"]
["Current Mode","Calculator",null,null,null,"Header","Location"]
[null,null,null,"Spring rate",{"$f":"INDEX(locTable_modSpringData_L2,,G3)","v":0},"Nom. Spring Rate",{"$f":"MATCH(F3,locHeader_modSpringData_L1,0)","v":17}]
[null,null,null,"Spring #",{"$f":"INDEX(locTable_modSpringData_L2,,G4)","v":0},"Options",{"$f":"MATCH(F4,locHeader_modSpringData_L1,0)","v":9}]
[null,null,null,"Booster Type",{"$f":"IF(INDEX(locTable_modSpringData_L2,,G5)=0,\"No suitable options.\",INDEX(locTable_modSpringData_L2,,G5))","v":"No suitable options."},"Booster",{"$f":"MATCH(F5,locHeader_modSpringData_L1,0)","v":10}]
[null,null,null,"Position ",{"$f":"INDEX(locTable_modSpringData_L2,,G6)","v":0},"Position",{"$f":"MATCH(F6,locHeader_modSpringData_L1,0)","v":13}]
[null,null,null,"Preturn required",{"$f":"INDEX(locTable_modSpringData_L2,,G7)","v":0},"Pre-Turns Required (Logic 1)",{"$f":"MATCH(F7,locHeader_modSpringData_L1,0)","v":3}]
["FOR LOGIC 2/3 (WIP)"]
["Populate Blind Torque Profile",false,null,{"$f":"locHeader_modSpringData_L1","v":"Turns @ Mid Blind (With Fudged Turns)"},"Max Turns Required (Logic 1)","Pre-Turns Required (Logic 1)","Turns check","LL Spring Rate","UL Spring Rate","Local Switch","Booster Rate Check","Options","Booster","Wire ø (mm)","mean coil ID","Position","Number of coils","Max Turns","T_Max","Nom. Spring Rate","Bending stress (Mpa)","Min blind width w idler(TBC) mm","Min. Width (m)",38.6,"Rate Var %","Spring Flag","mod of Elast",207000,0]
[null,null,null,{"$f":"IF(i_Units=\"Metric\",IF(i_Drop>dropLimitmm,\"\",D15),IF(i_Drop>dropLimitin,\"\",D15))","v":""},{"$f":"E15","v":0},0,0,0,0,0,0,0,0,0,0,0,0,0,0,0,0,0,0,0,0,0,0,0,0,0,0,0]
["FOR ISLAND FILTER"]
["Island Filter","No"]
[]
[null,"user input",null,{"$f":"locHeader_modSpringData_L1","v":"Turns @ Mid Blind (With Fudged Turns)"},"Max Turns Required (Logic 1)","Pre-Turns Required (Logic 1)","Turns check","LL Spring Rate","UL Spring Rate","Local Switch","Booster Rate Check","Options","Booster","Wire ø (mm)","mean coil ID","Position","Number of coils","Max Turns","T_Max","Nom. Spring Rate","Bending stress (Mpa)","Min blind width w idler(TBC) mm","Min. Width (m)",38.6,"Rate Var %","Spring Flag","mod of Elast",207000,0]
[null,"calculator use",null,{"$f":"IF(OR(AND(i_Drop>dropLimitin,i_Units=\"Imperial\"),AND(i_Drop>dropLimitmm,i_Units=\"Metric\")),\"\",_xlfn._xlws.FILTER(locTable_modSpringData_L1,INDEX(locTable_modSpringData_L1,,B39)=\"y\",\"\"))","v":""}]
[null,"development use"]
[]
["CALCULATOR/FILTER INPUTS"]
["Ideal Spring Rate",{"$f":"ESA_IdealSpringRate","v":{"$error":"#DIV/0!"}}]
["Blind Width (m)",1]
["Blind Drop (m)",2]
[]
["Blind Width (m)",{"$f":"calc_inputWidth","v":1}]
["Blind Drop (m)",{"$f":"calc_inputDrop","v":2}]
[]
["Dev Purpose"]
["Ideal Spring Rate",{"$f":"input_idealSpringRate","v":{"$error":"#DIV/0!"}}]
["Blind Torque @ Max Turns(Nm)",{"$f":"blindTorque_maxTurns","v":0}]
[]
[]
["DASHBOARD ONLY (Not used as Input)"]
["Mid Blind Torque",{"$f":"o_midBlindTorque","v":{"$error":"#VALUE!"}}]
["Total Blind Turns Required",{"$f":"o_tubeTurns","v":{"$error":"#N/A"}}]
["Ideal Spring Rate",{"$f":"_SpringData_L2!B19","v":{"$error":"#DIV/0!"}}]
[]
[]
[]
["Filter Header Location","Col"]
["Turns check",{"$f":"MATCH(A39,locHeader_modSpringData_L1,0)","v":4}]
[]
[]
["a","b","c"]
[{"$f":"OFFSET(blindtorque_a,0,0,1,3)","v":{"$error":"#VALUE!"}},0,0]
[]
["Drop Limit (mm)",3000]
["Drop Limit (in)",{"$f":"B45/25.4","v":118.11023622047244}]
[]
["Added 22-Mar-2024"]
["Compatible Booster List",{"$f":"COUNTIF(_xlfn.ANCHORARRAY(A50),\"<>\"&0)","v":0}]
[{"$f":"_xlfn.UNIQUE(M15:M119)","v":0},{"$f":"_xlfn.XLOOKUP(A50,$M$15:$M$119,$T$15:$T$119,\"\")","v":""}]
[null,0]
[null,0]
[null,0]
[null,0]
[null,0]
[null,0]
[null,0]
[]
["Selected Booster Type","Spring Rate"]
[{"$f":"i_ESA_Booster","v":0},{"$f":"_xlfn.XLOOKUP(A60,A50:A57,B50:B57,\"\")","v":""}]
[]
[null,"Location","Value"]
["Position",{"$f":"MATCH(A63,locHeader_modSpringData_L1,0)","v":13},{"$f":"_xlfn.XLOOKUP($B$60,OFFSET(locTable_modSpringData_L2_all,0,$B$65-1,,1),OFFSET(locTable_modSpringData_L2_all,0,B63-1,,1),\"\")","v":""},"o_BoosterPosition2"]
["Pre-Turns Required (Logic 1)",{"$f":"MATCH(A64,locHeader_modSpringData_L1,0)","v":3},{"$f":"_xlfn.XLOOKUP($B$60,OFFSET(locTable_modSpringData_L2_all,0,$B$65-1,,1),OFFSET(locTable_modSpringData_L2_all,0,B64-1,,1),\"\")","v":""},"o_BoosterPreTurn2"]
["Nom. Spring Rate",{"$f":"MATCH(A65,locHeader_modSpringData_L1,0)","v":17},{"$f":"_xlfn.XLOOKUP(B62,OFFSET(locTable_modSpringData_L2_all,0,B67-1,,1),OFFSET(locTable_modSpringData_L2_all,0,B65-1,,1),\"\")","v":""}]
[{"$f":"L_CompatibleESABooster","v":{"$error":"#REF!"}}]

{"sheet":"_FabricList","index":10,"n_rows":100,"n_cols":16,"rows_kept":100,"cut":false,"hidden":true,"merged":[]}
[null,null,null,null,null,null,null,null,null,null,null,null,null,"HIDE"]
[null,"Description","Thickness (mm)","Density (gsm)","Thickness (in)","Density (oz/yd²)","Roll Width (in)","Roll Width (mm)",null,"Railroad","Region",null,null,{"$f":"COUNTA(_xlfn.ANCHORARRAY(P4))","v":82}]
[null,"Description","Thickness_Metric","Density_Metric","Thickness_Imperial","Density_Imperial","RollWidth_Imperial","RollWidth_Metric","RRYesNo","RR","Region","SearchReturn","RegionReturn",null,null,"L_FabricSearchList"]
[null,{"$f":"z_AvgFabric","v":"_Average Fabric"},0.65,400,{"$f":"T_Fabric[[#This Row],[Thickness_Metric]]/25.4","v":2.5590551181102365E-2},{"$f":"T_Fabric[[#This Row],[Density_Metric]]/33.90574744","v":11.797409884794448},"-","-","-","-","Global",{"$f":"IF(AND(i_Fabric<>\"\",i_Fabric=T_Fabric[[#This Row],[Description]]),1,0)","v":0},{"$f":"IF(i_Region=\"Global\",1,IF(OR(i_Region=T_Fabric[[#This Row],[Region]],T_Fabric[[#This Row],[Region]]=\"Global\"),1,0))","v":1},null,{"$f":"_xlfn._xlws.SORT(_xlfn._xlws.FILTER(T_Fabric[Description],T_Fabric[RegionReturn],\"Not Found\"))","v":""},{"$f":"IF(o_FabricMatch=\"Yes\",_xlfn._xlws.SORT(_xlfn._xlws.FILTER($O$4:$O$100,LEN($O$4:$O$100)>1)),_xlfn._xlws.SORT(_xlfn._xlws.FILTER($O$4:$O$100,ISNUMBER(SEARCH(i_Fabric,$O$4:$O$100)),\"Not Found\")))","v":"_Average Fabric"}]
[null,{"$f":"z_CustomFData","v":"_Custom Fabric Data"},{"$f":"IF(i_Units=\"Imperial\",i_FThickness_Custom*25.4,i_FThickness_Custom)","v":0},{"$f":"IF(i_Units=\"imperial\",i_Fdensity_Custom*33.90574744,i_Fdensity_Custom)","v":0},{"$f":"IF(i_Units=\"Metric\",i_FThickness_Custom/25.4,i_FThickness_Custom)","v":0},{"$f":"IF(i_Units=\"Metric\",T_Fabric[[#This Row],[Density_Metric]]/33.90574744,i_Fdensity_Custom)","v":0},"-","-","-","-","Global",{"$f":"IF(AND(i_Fabric<>\"\",i_Fabric=T_Fabric[[#This Row],[Description]]),1,0)","v":0},{"$f":"IF(i_Region=\"Global\",1,IF(OR(i_Region=T_Fabric[[#This Row],[Region]],T_Fabric[[#This Row],[Region]]=\"Global\"),1,0))","v":1},null,"","_Custom Fabric Data"]
[null,"Kleenscreen 1%",0.6,483,{"$f":"T_Fabric[[#This Row],[Thickness_Metric]]/25.4","v":2.3622047244094488E-2},{"$f":"T_Fabric[[#This Row],[Density_Metric]]/33.90574744","v":14.245372435889294},118,{"$f":"ROUND((T_Fabric[[#This Row],[RollWidth_Imperial]]*25.4)/1000,2)*1000","v":3000},"No",{"$f":"z_Fabric_RR_No","v":"Fabric cannot be railroaded."},"US",{"$f":"IF(AND(i_Fabric<>\"\",i_Fabric=T_Fabric[[#This Row],[Description]]),1,0)","v":0},{"$f":"IF(i_Region=\"Global\",1,IF(OR(i_Region=T_Fabric[[#This Row],[Region]],T_Fabric[[#This Row],[Region]]=\"Global\"),1,0))","v":1},null,"","3000 HT 3%"]
[null,"Kleenscreen 3%",0.56000000000000005,475,{"$f":"T_Fabric[[#This Row],[Thickness_Metric]]/25.4","v":2.2047244094488192E-2},{"$f":"T_Fabric[[#This Row],[Density_Metric]]/33.90574744","v":14.009424238193406},118,{"$f":"ROUND((T_Fabric[[#This Row],[RollWidth_Imperial]]*25.4)/1000,2)*1000","v":3000},"No",{"$f":"z_Fabric_RR_No","v":"Fabric cannot be railroaded."},"US",{"$f":"IF(AND(i_Fabric<>\"\",i_Fabric=T_Fabric[[#This Row],[Description]]),1,0)","v":0},{"$f":"IF(i_Region=\"Global\",1,IF(OR(i_Region=T_Fabric[[#This Row],[Region]],T_Fabric[[#This Row],[Region]]=\"Global\"),1,0))","v":1},null,"","3000 HT 5%"]
[null,"Kleenscreen 5%",0.56000000000000005,445,{"$f":"T_Fabric[[#This Row],[Thickness_Metric]]/25.4","v":2.2047244094488192E-2},{"$f":"T_Fabric[[#This Row],[Density_Metric]]/33.90574744","v":13.124618496833822},118,{"$f":"ROUND((T_Fabric[[#This Row],[RollWidth_Imperial]]*25.4)/1000,2)*1000","v":3000},"No",{"$f":"z_Fabric_RR_Yes","v":"Fabric can be railroaded."},"Global",{"$f":"IF(AND(i_Fabric<>\"\",i_Fabric=T_Fabric[[#This Row],[Description]]),1,0)","v":0},{"$f":"IF(i_Region=\"Global\",1,IF(OR(i_Region=T_Fabric[[#This Row],[Region]],T_Fabric[[#This Row],[Region]]=\"Global\"),1,0))","v":1},null,"","3000 NET 1%"]
[null,"3000 NET Privacy",0.68,518,{"$f":"T_Fabric[[#This Row],[Thickness_Metric]]/25.4","v":2.677165354330709E-2},{"$f":"T_Fabric[[#This Row],[Density_Metric]]/33.90574744","v":15.277645800808809},118,{"$f":"ROUND((T_Fabric[[#This Row],[RollWidth_Imperial]]*25.4)/1000,2)*1000","v":3000},"Yes",{"$f":"z_Fabric_RR_Yes","v":"Fabric can be railroaded."},"US",{"$f":"IF(AND(i_Fabric<>\"\",i_Fabric=T_Fabric[[#This Row],[Description]]),1,0)","v":0},{"$f":"IF(i_Region=\"Global\",1,IF(OR(i_Region=T_Fabric[[#This Row],[Region]],T_Fabric[[#This Row],[Region]]=\"Global\"),1,0))","v":1},null,"","3000 NET 10%"]
[null,"3000 NET 1%",0.68,518,{"$f":"T_Fabric[[#This Row],[Thickness_Metric]]/25.4","v":2.677165354330709E-2},{"$f":"T_Fabric[[#This Row],[Density_Metric]]/33.90574744","v":15.277645800808809},118,{"$f":"ROUND((T_Fabric[[#This Row],[RollWidth_Imperial]]*25.4)/1000,2)*1000","v":3000},"Yes",{"$f":"z_Fabric_RR_Yes","v":"Fabric can be railroaded."},"US",{"$f":"IF(AND(i_Fabric<>\"\",i_Fabric=T_Fabric[[#This Row],[Description]]),1,0)","v":0},{"$f":"IF(i_Region=\"Global\",1,IF(OR(i_Region=T_Fabric[[#This Row],[Region]],T_Fabric[[#This Row],[Region]]=\"Global\"),1,0))","v":1},null,"","3000 NET 3%"]
[null,"3000 NET 3%",0.56999999999999995,445,{"$f":"T_Fabric[[#This Row],[Thickness_Metric]]/25.4","v":2.2440944881889763E-2},{"$f":"T_Fabric[[#This Row],[Density_Metric]]/33.90574744","v":13.124618496833822},118,{"$f":"ROUND((T_Fabric[[#This Row],[RollWidth_Imperial]]*25.4)/1000,2)*1000","v":3000},"Yes",{"$f":"z_Fabric_RR_Yes","v":"Fabric can be railroaded."},"US",{"$f":"IF(AND(i_Fabric<>\"\",i_Fabric=T_Fabric[[#This Row],[Description]]),1,0)","v":0},{"$f":"IF(i_Region=\"Global\",1,IF(OR(i_Region=T_Fabric[[#This Row],[Region]],T_Fabric[[#This Row],[Region]]=\"Global\"),1,0))","v":1},null,"","3000 NET 5%"]
[null,"3000 NET 5%",0.55000000000000004,420,{"$f":"T_Fabric[[#This Row],[Thickness_Metric]]/25.4","v":2.1653543307086617E-2},{"$f":"T_Fabric[[#This Row],[Density_Metric]]/33.90574744","v":12.38728037903417},118,{"$f":"ROUND((T_Fabric[[#This Row],[RollWidth_Imperial]]*25.4)/1000,2)*1000","v":3000},"Yes",{"$f":"z_Fabric_RR_Yes","v":"Fabric can be railroaded."},"US",{"$f":"IF(AND(i_Fabric<>\"\",i_Fabric=T_Fabric[[#This Row],[Description]]),1,0)","v":0},{"$f":"IF(i_Region=\"Global\",1,IF(OR(i_Region=T_Fabric[[#This Row],[Region]],T_Fabric[[#This Row],[Region]]=\"Global\"),1,0))","v":1},null,"","3000 NET Privacy"]
[null,"3000 NET 10%",0.52,385,{"$f":"T_Fabric[[#This Row],[Thickness_Metric]]/25.4","v":2.0472440944881893E-2},{"$f":"T_Fabric[[#This Row],[Density_Metric]]/33.90574744","v":11.355007014114655},118,{"$f":"ROUND((T_Fabric[[#This Row],[RollWidth_Imperial]]*25.4)/1000,2)*1000","v":3000},"Yes",{"$f":"z_Fabric_RR_No","v":"Fabric cannot be railroaded."},"US",{"$f":"IF(AND(i_Fabric<>\"\",i_Fabric=T_Fabric[[#This Row],[Description]]),1,0)","v":0},{"$f":"IF(i_Region=\"Global\",1,IF(OR(i_Region=T_Fabric[[#This Row],[Region]],T_Fabric[[#This Row],[Region]]=\"Global\"),1,0))","v":1},null,"","3000 RR"]
[null,"4000 NET 3%",0.75,545,{"$f":"T_Fabric[[#This Row],[Thickness_Metric]]/25.4","v":2.9527559055118113E-2},{"$f":"T_Fabric[[#This Row],[Density_Metric]]/33.90574744","v":16.073970968032434},118,{"$f":"ROUND((T_Fabric[[#This Row],[RollWidth_Imperial]]*25.4)/1000,2)*1000","v":3000},"Yes",{"$f":"z_Fabric_RR_No","v":"Fabric cannot be railroaded."},"US",{"$f":"IF(AND(i_Fabric<>\"\",i_Fabric=T_Fabric[[#This Row],[Description]]),1,0)","v":0},{"$f":"IF(i_Region=\"Global\",1,IF(OR(i_Region=T_Fabric[[#This Row],[Region]],T_Fabric[[#This Row],[Region]]=\"Global\"),1,0))","v":1},null,"","4000 L"]
[null,"4000 NET 5%",0.7,520,{"$f":"T_Fabric[[#This Row],[Thickness_Metric]]/25.4","v":2.7559055118110236E-2},{"$f":"T_Fabric[[#This Row],[Density_Metric]]/33.90574744","v":15.336632850232782},118,{"$f":"ROUND((T_Fabric[[#This Row],[RollWidth_Imperial]]*25.4)/1000,2)*1000","v":3000},"Yes",{"$f":"z_Fabric_RR_Yes","v":"Fabric can be railroaded."},"US",{"$f":"IF(AND(i_Fabric<>\"\",i_Fabric=T_Fabric[[#This Row],[Description]]),1,0)","v":0},{"$f":"IF(i_Region=\"Global\",1,IF(OR(i_Region=T_Fabric[[#This Row],[Region]],T_Fabric[[#This Row],[Region]]=\"Global\"),1,0))","v":1},null,"","4000 NET 3%"]
[null,"3000 HT 3%",0.6,415,{"$f":"T_Fabric[[#This Row],[Thickness_Metric]]/25.4","v":2.3622047244094488E-2},{"$f":"T_Fabric[[#This Row],[Density_Metric]]/33.90574744","v":12.239812755474238},98.4,{"$f":"ROUND((T_Fabric[[#This Row],[RollWidth_Imperial]]*25.4)/1000,2)*1000","v":2500},"No",{"$f":"z_Fabric_RR_Yes","v":"Fabric can be railroaded."},"US",{"$f":"IF(AND(i_Fabric<>\"\",i_Fabric=T_Fabric[[#This Row],[Description]]),1,0)","v":0},{"$f":"IF(i_Region=\"Global\",1,IF(OR(i_Region=T_Fabric[[#This Row],[Region]],T_Fabric[[#This Row],[Region]]=\"Global\"),1,0))","v":1},null,"","4000 NET 5%"]
[null,"3000 HT 5%",0.5,395,{"$f":"T_Fabric[[#This Row],[Thickness_Metric]]/25.4","v":1.968503937007874E-2},{"$f":"T_Fabric[[#This Row],[Density_Metric]]/33.90574744","v":11.649942261234516},98.4,{"$f":"ROUND((T_Fabric[[#This Row],[RollWidth_Imperial]]*25.4)/1000,2)*1000","v":2500},"No",{"$f":"z_Fabric_RR_No","v":"Fabric cannot be railroaded."},"US",{"$f":"IF(AND(i_Fabric<>\"\",i_Fabric=T_Fabric[[#This Row],[Description]]),1,0)","v":0},{"$f":"IF(i_Region=\"Global\",1,IF(OR(i_Region=T_Fabric[[#This Row],[Region]],T_Fabric[[#This Row],[Region]]=\"Global\"),1,0))","v":1},null,"","4700 P"]
[null,"3000 RR",0.56999999999999995,425,{"$f":"T_Fabric[[#This Row],[Thickness_Metric]]/25.4","v":2.2440944881889763E-2},{"$f":"T_Fabric[[#This Row],[Density_Metric]]/33.90574744","v":12.5347480025941},98.4,{"$f":"ROUND((T_Fabric[[#This Row],[RollWidth_Imperial]]*25.4)/1000,2)*1000","v":2500},"No",{"$f":"z_Fabric_RR_Yes","v":"Fabric can be railroaded."},"US",{"$f":"IF(AND(i_Fabric<>\"\",i_Fabric=T_Fabric[[#This Row],[Description]]),1,0)","v":0},{"$f":"IF(i_Region=\"Global\",1,IF(OR(i_Region=T_Fabric[[#This Row],[Region]],T_Fabric[[#This Row],[Region]]=\"Global\"),1,0))","v":1},null,"","Ambient"]
[null,"4700 P",0.9,630,{"$f":"T_Fabric[[#This Row],[Thickness_Metric]]/25.4","v":3.5433070866141732E-2},{"$f":"T_Fabric[[#This Row],[Density_Metric]]/33.90574744","v":18.580920568551253},98.4,{"$f":"ROUND((T_Fabric[[#This Row],[RollWidth_Imperial]]*25.4)/1000,2)*1000","v":2500},"No","Fabric can be railroaded.","US",{"$f":"IF(AND(i_Fabric<>\"\",i_Fabric=T_Fabric[[#This Row],[Description]]),1,0)","v":0},{"$f":"IF(i_Region=\"Global\",1,IF(OR(i_Region=T_Fabric[[#This Row],[Region]],T_Fabric[[#This Row],[Region]]=\"Global\"),1,0))","v":1},null,"_Average Fabric","Ambient Renew 1%"]
[null,"View R",0.83,455,{"$f":"T_Fabric[[#This Row],[Thickness_Metric]]/25.4","v":3.2677165354330712E-2},{"$f":"T_Fabric[[#This Row],[Density_Metric]]/33.90574744","v":13.419553743953683},98.4,{"$f":"ROUND((T_Fabric[[#This Row],[RollWidth_Imperial]]*25.4)/1000,2)*1000","v":2500},"No","Fabric can be railroaded.","US",{"$f":"IF(AND(i_Fabric<>\"\",i_Fabric=T_Fabric[[#This Row],[Description]]),1,0)","v":0},{"$f":"IF(i_Region=\"Global\",1,IF(OR(i_Region=T_Fabric[[#This Row],[Region]],T_Fabric[[#This Row],[Region]]=\"Global\"),1,0))","v":1},null,"_Custom Fabric Data","Ambient Renew 5%"]
[null,"4000 L",0.65,445,{"$f":"T_Fabric[[#This Row],[Thickness_Metric]]/25.4","v":2.5590551181102365E-2},{"$f":"T_Fabric[[#This Row],[Density_Metric]]/33.90574744","v":13.124618496833822},98.4,{"$f":"ROUND((T_Fabric[[#This Row],[RollWidth_Imperial]]*25.4)/1000,2)*1000","v":2500},"No","Fabric can be railroaded.","US",{"$f":"IF(AND(i_Fabric<>\"\",i_Fabric=T_Fabric[[#This Row],[Description]]),1,0)","v":0},{"$f":"IF(i_Region=\"Global\",1,IF(OR(i_Region=T_Fabric[[#This Row],[Region]],T_Fabric[[#This Row],[Region]]=\"Global\"),1,0))","v":1},null,"3000 HT 3%","Anzio"]
[null,"SilverScreen 2%",0.5,400,{"$f":"T_Fabric[[#This Row],[Thickness_Metric]]/25.4","v":1.968503937007874E-2},{"$f":"T_Fabric[[#This Row],[Density_Metric]]/33.90574744","v":11.797409884794448},94,{"$f":"ROUND((T_Fabric[[#This Row],[RollWidth_Imperial]]*25.4)/1000,2)*1000","v":2390},"No","Fabric can be railroaded.","US",{"$f":"IF(AND(i_Fabric<>\"\",i_Fabric=T_Fabric[[#This Row],[Description]]),1,0)","v":0},{"$f":"IF(i_Region=\"Global\",1,IF(OR(i_Region=T_Fabric[[#This Row],[Region]],T_Fabric[[#This Row],[Region]]=\"Global\"),1,0))","v":1},null,"3000 HT 5%","Avesta"]
[null,"SilverScreen 4%",0.5,400,{"$f":"T_Fabric[[#This Row],[Thickness_Metric]]/25.4","v":1.968503937007874E-2},{"$f":"T_Fabric[[#This Row],[Density_Metric]]/33.90574744","v":11.797409884794448},110,{"$f":"ROUND((T_Fabric[[#This Row],[RollWidth_Imperial]]*25.4)/1000,2)*1000","v":2790},"No","Fabric can be railroaded.","US",{"$f":"IF(AND(i_Fabric<>\"\",i_Fabric=T_Fabric[[#This Row],[Description]]),1,0)","v":0},{"$f":"IF(i_Region=\"Global\",1,IF(OR(i_Region=T_Fabric[[#This Row],[Region]],T_Fabric[[#This Row],[Region]]=\"Global\"),1,0))","v":1},null,"3000 NET 1%","Avesta Blackout"]
[null,"OmniaScreen",0.55000000000000004,440,{"$f":"T_Fabric[[#This Row],[Thickness_Metric]]/25.4","v":2.1653543307086617E-2},{"$f":"T_Fabric[[#This Row],[Density_Metric]]/33.90574744","v":12.977150873273892},110,{"$f":"ROUND((T_Fabric[[#This Row],[RollWidth_Imperial]]*25.4)/1000,2)*1000","v":2790},"Yes",{"$f":"z_Fabric_RR_No","v":"Fabric cannot be railroaded."},"US",{"$f":"IF(AND(i_Fabric<>\"\",i_Fabric=T_Fabric[[#This Row],[Description]]),1,0)","v":0},{"$f":"IF(i_Region=\"Global\",1,IF(OR(i_Region=T_Fabric[[#This Row],[Region]],T_Fabric[[#This Row],[Region]]=\"Global\"),1,0))","v":1},null,"3000 NET 10%","Balmoral Blackout"]
[null,"EnviroScreen",0.5,250,{"$f":"T_Fabric[[#This Row],[Thickness_Metric]]/25.4","v":1.968503937007874E-2},{"$f":"T_Fabric[[#This Row],[Density_Metric]]/33.90574744","v":7.3733811779965297},94,{"$f":"ROUND((T_Fabric[[#This Row],[RollWidth_Imperial]]*25.4)/1000,2)*1000","v":2390},"No",{"$f":"z_Fabric_RR_No","v":"Fabric cannot be railroaded."},"Global",{"$f":"IF(AND(i_Fabric<>\"\",i_Fabric=T_Fabric[[#This Row],[Description]]),1,0)","v":0},{"$f":"IF(i_Region=\"Global\",1,IF(OR(i_Region=T_Fabric[[#This Row],[Region]],T_Fabric[[#This Row],[Region]]=\"Global\"),1,0))","v":1},null,"3000 NET 3%","Balmoral Light Filtering"]
[null,"Ambient Renew 1%",0.54,400,{"$f":"T_Fabric[[#This Row],[Thickness_Metric]]/25.4","v":2.1259842519685043E-2},{"$f":"T_Fabric[[#This Row],[Density_Metric]]/33.90574744","v":11.797409884794448},118,{"$f":"ROUND((T_Fabric[[#This Row],[RollWidth_Imperial]]*25.4)/1000,2)*1000","v":3000},"Yes",{"$f":"z_Fabric_RR_Yes","v":"Fabric can be railroaded."},"US",{"$f":"IF(AND(i_Fabric<>\"\",i_Fabric=T_Fabric[[#This Row],[Description]]),1,0)","v":0},{"$f":"IF(i_Region=\"Global\",1,IF(OR(i_Region=T_Fabric[[#This Row],[Region]],T_Fabric[[#This Row],[Region]]=\"Global\"),1,0))","v":1},null,"3000 NET 5%","Barbados"]
[null,"Ambient Renew 5%",0.48,305,{"$f":"T_Fabric[[#This Row],[Thickness_Metric]]/25.4","v":1.889763779527559E-2},{"$f":"T_Fabric[[#This Row],[Density_Metric]]/33.90574744","v":8.9955250371557653},118,{"$f":"ROUND((T_Fabric[[#This Row],[RollWidth_Imperial]]*25.4)/1000,2)*1000","v":3000},"Yes",{"$f":"z_Fabric_RR_Yes","v":"Fabric can be railroaded."},"US",{"$f":"IF(AND(i_Fabric<>\"\",i_Fabric=T_Fabric[[#This Row],[Description]]),1,0)","v":0},{"$f":"IF(i_Region=\"Global\",1,IF(OR(i_Region=T_Fabric[[#This Row],[Region]],T_Fabric[[#This Row],[Region]]=\"Global\"),1,0))","v":1},null,"3000 NET Privacy","Chambray"]
[null,"Ambient",0.53,318,{"$f":"T_Fabric[[#This Row],[Thickness_Metric]]/25.4","v":2.0866141732283468E-2},{"$f":"T_Fabric[[#This Row],[Density_Metric]]/33.90574744","v":9.3789408584115854},118,{"$f":"ROUND((T_Fabric[[#This Row],[RollWidth_Imperial]]*25.4)/1000,2)*1000","v":3000},"Yes",{"$f":"z_Fabric_RR_No","v":"Fabric cannot be railroaded."},"US",{"$f":"IF(AND(i_Fabric<>\"\",i_Fabric=T_Fabric[[#This Row],[Description]]),1,0)","v":0},{"$f":"IF(i_Region=\"Global\",1,IF(OR(i_Region=T_Fabric[[#This Row],[Region]],T_Fabric[[#This Row],[Region]]=\"Global\"),1,0))","v":1},null,"3000 RR","Chenille"]
[null,"Anzio",0.4,220,{"$f":"T_Fabric[[#This Row],[Thickness_Metric]]/25.4","v":1.5748031496062995E-2},{"$f":"T_Fabric[[#This Row],[Density_Metric]]/33.90574744","v":6.4885754366369461},92.5,{"$f":"ROUND((T_Fabric[[#This Row],[RollWidth_Imperial]]*25.4)/1000,2)*1000","v":2350},"Yes",{"$f":"z_Fabric_RR_Yes","v":"Fabric can be railroaded."},"US",{"$f":"IF(AND(i_Fabric<>\"\",i_Fabric=T_Fabric[[#This Row],[Description]]),1,0)","v":0},{"$f":"IF(i_Region=\"Global\",1,IF(OR(i_Region=T_Fabric[[#This Row],[Region]],T_Fabric[[#This Row],[Region]]=\"Global\"),1,0))","v":1},null,"4000 L","Dakota"]
[null,"Mesa Light Filtering",0.48,235,{"$f":"T_Fabric[[#This Row],[Thickness_Metric]]/25.4","v":1.889763779527559E-2},{"$f":"T_Fabric[[#This Row],[Density_Metric]]/33.90574744","v":6.9309783073167379},118,{"$f":"ROUND((T_Fabric[[#This Row],[RollWidth_Imperial]]*25.4)/1000,2)*1000","v":3000},"No",{"$f":"z_Fabric_RR_No","v":"Fabric cannot be railroaded."},"US",{"$f":"IF(AND(i_Fabric<>\"\",i_Fabric=T_Fabric[[#This Row],[Description]]),1,0)","v":0},{"$f":"IF(i_Region=\"Global\",1,IF(OR(i_Region=T_Fabric[[#This Row],[Region]],T_Fabric[[#This Row],[Region]]=\"Global\"),1,0))","v":1},null,"4000 NET 3%","EnviroScreen"]
[null,"Mesa Blackout",0.47,410,{"$f":"T_Fabric[[#This Row],[Thickness_Metric]]/25.4","v":1.8503937007874015E-2},{"$f":"T_Fabric[[#This Row],[Density_Metric]]/33.90574744","v":12.092345131914309},118,{"$f":"ROUND((T_Fabric[[#This Row],[RollWidth_Imperial]]*25.4)/1000,2)*1000","v":3000},"No",{"$f":"z_Fabric_RR_No","v":"Fabric cannot be railroaded."},"US",{"$f":"IF(AND(i_Fabric<>\"\",i_Fabric=T_Fabric[[#This Row],[Description]]),1,0)","v":0},{"$f":"IF(i_Region=\"Global\",1,IF(OR(i_Region=T_Fabric[[#This Row],[Region]],T_Fabric[[#This Row],[Region]]=\"Global\"),1,0))","v":1},null,"4000 NET 5%","Falun"]
[null,"Mesa Façade Blackout",0.47,410,{"$f":"T_Fabric[[#This Row],[Thickness_Metric]]/25.4","v":1.8503937007874015E-2},{"$f":"T_Fabric[[#This Row],[Density_Metric]]/33.90574744","v":12.092345131914309},118,{"$f":"ROUND((T_Fabric[[#This Row],[RollWidth_Imperial]]*25.4)/1000,2)*1000","v":3000},"No",{"$f":"z_Fabric_RR_No","v":"Fabric cannot be railroaded."},"US",{"$f":"IF(AND(i_Fabric<>\"\",i_Fabric=T_Fabric[[#This Row],[Description]]),1,0)","v":0},{"$f":"IF(i_Region=\"Global\",1,IF(OR(i_Region=T_Fabric[[#This Row],[Region]],T_Fabric[[#This Row],[Region]]=\"Global\"),1,0))","v":1},null,"4700 P","Focus"]
[null,"Tempe",0.4,400,{"$f":"T_Fabric[[#This Row],[Thickness_Metric]]/25.4","v":1.5748031496062995E-2},{"$f":"T_Fabric[[#This Row],[Density_Metric]]/33.90574744","v":11.797409884794448},118,{"$f":"ROUND((T_Fabric[[#This Row],[RollWidth_Imperial]]*25.4)/1000,2)*1000","v":3000},"No",{"$f":"z_Fabric_RR_Yes","v":"Fabric can be railroaded."},"US",{"$f":"IF(AND(i_Fabric<>\"\",i_Fabric=T_Fabric[[#This Row],[Description]]),1,0)","v":0},{"$f":"IF(i_Region=\"Global\",1,IF(OR(i_Region=T_Fabric[[#This Row],[Region]],T_Fabric[[#This Row],[Region]]=\"Global\"),1,0))","v":1},null,"Ambient","Gala"]
[null,"Verona",0.4,180,{"$f":"T_Fabric[[#This Row],[Thickness_Metric]]/25.4","v":1.5748031496062995E-2},{"$f":"T_Fabric[[#This Row],[Density_Metric]]/33.90574744","v":5.3088344481575014},92.5,{"$f":"ROUND((T_Fabric[[#This Row],[RollWidth_Imperial]]*25.4)/1000,2)*1000","v":2350},"Yes",{"$f":"z_Fabric_RR_No","v":"Fabric cannot be railroaded."},"US",{"$f":"IF(AND(i_Fabric<>\"\",i_Fabric=T_Fabric[[#This Row],[Description]]),1,0)","v":0},{"$f":"IF(i_Region=\"Global\",1,IF(OR(i_Region=T_Fabric[[#This Row],[Region]],T_Fabric[[#This Row],[Region]]=\"Global\"),1,0))","v":1},null,"Ambient Renew 1%","Jersey Blackout"]
[null,"Milano",0.4,170,{"$f":"T_Fabric[[#This Row],[Thickness_Metric]]/25.4","v":1.5748031496062995E-2},{"$f":"T_Fabric[[#This Row],[Density_Metric]]/33.90574744","v":5.0138992010376402},92.5,{"$f":"ROUND((T_Fabric[[#This Row],[RollWidth_Imperial]]*25.4)/1000,2)*1000","v":2350},"Yes",{"$f":"z_Fabric_RR_No","v":"Fabric cannot be railroaded."},"US",{"$f":"IF(AND(i_Fabric<>\"\",i_Fabric=T_Fabric[[#This Row],[Description]]),1,0)","v":0},{"$f":"IF(i_Region=\"Global\",1,IF(OR(i_Region=T_Fabric[[#This Row],[Region]],T_Fabric[[#This Row],[Region]]=\"Global\"),1,0))","v":1},null,"Ambient Renew 5%","Jersey Light Filtering"]
[null,"Torino",0.5,350,{"$f":"T_Fabric[[#This Row],[Thickness_Metric]]/25.4","v":1.968503937007874E-2},{"$f":"T_Fabric[[#This Row],[Density_Metric]]/33.90574744","v":10.322733649195142},92.5,{"$f":"ROUND((T_Fabric[[#This Row],[RollWidth_Imperial]]*25.4)/1000,2)*1000","v":2350},"Yes",{"$f":"z_Fabric_RR_No","v":"Fabric cannot be railroaded."},"US",{"$f":"IF(AND(i_Fabric<>\"\",i_Fabric=T_Fabric[[#This Row],[Description]]),1,0)","v":0},{"$f":"IF(i_Region=\"Global\",1,IF(OR(i_Region=T_Fabric[[#This Row],[Region]],T_Fabric[[#This Row],[Region]]=\"Global\"),1,0))","v":1},null,"Anzio","Karuna"]
[null,"Panama",0.4,280,{"$f":"T_Fabric[[#This Row],[Thickness_Metric]]/25.4","v":1.5748031496062995E-2},{"$f":"T_Fabric[[#This Row],[Density_Metric]]/33.90574744","v":8.2581869193561133},92.5,{"$f":"ROUND((T_Fabric[[#This Row],[RollWidth_Imperial]]*25.4)/1000,2)*1000","v":2350},"Yes",{"$f":"z_Fabric_RR_Yes","v":"Fabric can be railroaded."},"US",{"$f":"IF(AND(i_Fabric<>\"\",i_Fabric=T_Fabric[[#This Row],[Description]]),1,0)","v":0},{"$f":"IF(i_Region=\"Global\",1,IF(OR(i_Region=T_Fabric[[#This Row],[Region]],T_Fabric[[#This Row],[Region]]=\"Global\"),1,0))","v":1},null,"Avesta","Kew"]
[null,"Chambray",0.4,180,{"$f":"T_Fabric[[#This Row],[Thickness_Metric]]/25.4","v":1.5748031496062995E-2},{"$f":"T_Fabric[[#This Row],[Density_Metric]]/33.90574744","v":5.3088344481575014},78.7,{"$f":"ROUND((T_Fabric[[#This Row],[RollWidth_Imperial]]*25.4)/1000,2)*1000","v":2000},"Yes",{"$f":"z_Fabric_RR_Yes","v":"Fabric can be railroaded."},"US",{"$f":"IF(AND(i_Fabric<>\"\",i_Fabric=T_Fabric[[#This Row],[Description]]),1,0)","v":0},{"$f":"IF(i_Region=\"Global\",1,IF(OR(i_Region=T_Fabric[[#This Row],[Region]],T_Fabric[[#This Row],[Region]]=\"Global\"),1,0))","v":1},null,"Avesta Blackout","Kleenscreen 1%"]
[null,"Stickan",0.4,180,{"$f":"T_Fabric[[#This Row],[Thickness_Metric]]/25.4","v":1.5748031496062995E-2},{"$f":"T_Fabric[[#This Row],[Density_Metric]]/33.90574744","v":5.3088344481575014},78.7,{"$f":"ROUND((T_Fabric[[#This Row],[RollWidth_Imperial]]*25.4)/1000,2)*1000","v":2000},"Yes",{"$f":"z_Fabric_RR_No","v":"Fabric cannot be railroaded."},"US",{"$f":"IF(AND(i_Fabric<>\"\",i_Fabric=T_Fabric[[#This Row],[Description]]),1,0)","v":0},{"$f":"IF(i_Region=\"Global\",1,IF(OR(i_Region=T_Fabric[[#This Row],[Region]],T_Fabric[[#This Row],[Region]]=\"Global\"),1,0))","v":1},null,"Balmoral Blackout","Kleenscreen 3%"]
[null,"Chenille",0.65,150,{"$f":"T_Fabric[[#This Row],[Thickness_Metric]]/25.4","v":2.5590551181102365E-2},{"$f":"T_Fabric[[#This Row],[Density_Metric]]/33.90574744","v":4.4240287067979178},78.7,{"$f":"ROUND((T_Fabric[[#This Row],[RollWidth_Imperial]]*25.4)/1000,2)*1000","v":2000},"Yes",{"$f":"z_Fabric_RR_No","v":"Fabric cannot be railroaded."},"US",{"$f":"IF(AND(i_Fabric<>\"\",i_Fabric=T_Fabric[[#This Row],[Description]]),1,0)","v":0},{"$f":"IF(i_Region=\"Global\",1,IF(OR(i_Region=T_Fabric[[#This Row],[Region]],T_Fabric[[#This Row],[Region]]=\"Global\"),1,0))","v":1},null,"Balmoral Light Filtering","Kleenscreen 5%"]
[null,"Trento",0.6,310,{"$f":"T_Fabric[[#This Row],[Thickness_Metric]]/25.4","v":2.3622047244094488E-2},{"$f":"T_Fabric[[#This Row],[Density_Metric]]/33.90574744","v":9.1429926607156968},78.7,{"$f":"ROUND((T_Fabric[[#This Row],[RollWidth_Imperial]]*25.4)/1000,2)*1000","v":2000},"Yes",{"$f":"z_Fabric_RR_Yes","v":"Fabric can be railroaded."},"US",{"$f":"IF(AND(i_Fabric<>\"\",i_Fabric=T_Fabric[[#This Row],[Description]]),1,0)","v":0},{"$f":"IF(i_Region=\"Global\",1,IF(OR(i_Region=T_Fabric[[#This Row],[Region]],T_Fabric[[#This Row],[Region]]=\"Global\"),1,0))","v":1},null,"Barbados","Kleenscreen Blackout"]
[null,"Vigo",0.65,430,{"$f":"T_Fabric[[#This Row],[Thickness_Metric]]/25.4","v":2.5590551181102365E-2},{"$f":"T_Fabric[[#This Row],[Density_Metric]]/33.90574744","v":12.682215626154031},78.7,{"$f":"ROUND((T_Fabric[[#This Row],[RollWidth_Imperial]]*25.4)/1000,2)*1000","v":2000},"Yes",{"$f":"z_Fabric_RR_No","v":"Fabric cannot be railroaded."},"US",{"$f":"IF(AND(i_Fabric<>\"\",i_Fabric=T_Fabric[[#This Row],[Description]]),1,0)","v":0},{"$f":"IF(i_Region=\"Global\",1,IF(OR(i_Region=T_Fabric[[#This Row],[Region]],T_Fabric[[#This Row],[Region]]=\"Global\"),1,0))","v":1},null,"Chambray","Largo Blackout"]
[null,"Romana",0.5,270,{"$f":"T_Fabric[[#This Row],[Thickness_Metric]]/25.4","v":1.968503937007874E-2},{"$f":"T_Fabric[[#This Row],[Density_Metric]]/33.90574744","v":7.9632516722362521},78.7,{"$f":"ROUND((T_Fabric[[#This Row],[RollWidth_Imperial]]*25.4)/1000,2)*1000","v":2000},"Yes",{"$f":"z_Fabric_RR_Yes","v":"Fabric can be railroaded."},"US",{"$f":"IF(AND(i_Fabric<>\"\",i_Fabric=T_Fabric[[#This Row],[Description]]),1,0)","v":0},{"$f":"IF(i_Region=\"Global\",1,IF(OR(i_Region=T_Fabric[[#This Row],[Region]],T_Fabric[[#This Row],[Region]]=\"Global\"),1,0))","v":1},null,"Chenille","Largo Translucent"]
[null,"Tarifa",0.5,270,{"$f":"T_Fabric[[#This Row],[Thickness_Metric]]/25.4","v":1.968503937007874E-2},{"$f":"T_Fabric[[#This Row],[Density_Metric]]/33.90574744","v":7.9632516722362521},78.7,{"$f":"ROUND((T_Fabric[[#This Row],[RollWidth_Imperial]]*25.4)/1000,2)*1000","v":2000},"Yes",{"$f":"z_Fabric_RR_Yes","v":"Fabric can be railroaded."},"US",{"$f":"IF(AND(i_Fabric<>\"\",i_Fabric=T_Fabric[[#This Row],[Description]]),1,0)","v":0},{"$f":"IF(i_Region=\"Global\",1,IF(OR(i_Region=T_Fabric[[#This Row],[Region]],T_Fabric[[#This Row],[Region]]=\"Global\"),1,0))","v":1},null,"Dakota","Largo Transparent"]
[null,"Villach",0.45,225,{"$f":"T_Fabric[[#This Row],[Thickness_Metric]]/25.4","v":1.7716535433070866E-2},{"$f":"T_Fabric[[#This Row],[Density_Metric]]/33.90574744","v":6.6360430601968767},78.7,{"$f":"ROUND((T_Fabric[[#This Row],[RollWidth_Imperial]]*25.4)/1000,2)*1000","v":2000},"Yes",{"$f":"z_Fabric_RR_No","v":"Fabric cannot be railroaded."},"US",{"$f":"IF(AND(i_Fabric<>\"\",i_Fabric=T_Fabric[[#This Row],[Description]]),1,0)","v":0},{"$f":"IF(i_Region=\"Global\",1,IF(OR(i_Region=T_Fabric[[#This Row],[Region]],T_Fabric[[#This Row],[Region]]=\"Global\"),1,0))","v":1},null,"EnviroScreen","Lugo"]
[null,"Soria Blackout",0.6,400,{"$f":"T_Fabric[[#This Row],[Thickness_Metric]]/25.4","v":2.3622047244094488E-2},{"$f":"T_Fabric[[#This Row],[Density_Metric]]/33.90574744","v":11.797409884794448},78.7,{"$f":"ROUND((T_Fabric[[#This Row],[RollWidth_Imperial]]*25.4)/1000,2)*1000","v":2000},"Yes",{"$f":"z_Fabric_RR_Yes","v":"Fabric can be railroaded."},"US",{"$f":"IF(AND(i_Fabric<>\"\",i_Fabric=T_Fabric[[#This Row],[Description]]),1,0)","v":0},{"$f":"IF(i_Region=\"Global\",1,IF(OR(i_Region=T_Fabric[[#This Row],[Region]],T_Fabric[[#This Row],[Region]]=\"Global\"),1,0))","v":1},null,"Falun","Mandal"]
[null,"Santiago",0.45,210,{"$f":"T_Fabric[[#This Row],[Thickness_Metric]]/25.4","v":1.7716535433070866E-2},{"$f":"T_Fabric[[#This Row],[Density_Metric]]/33.90574744","v":6.1936401895170849},78.7,{"$f":"ROUND((T_Fabric[[#This Row],[RollWidth_Imperial]]*25.4)/1000,2)*1000","v":2000},"Yes",{"$f":"z_Fabric_RR_No","v":"Fabric cannot be railroaded."},"US",{"$f":"IF(AND(i_Fabric<>\"\",i_Fabric=T_Fabric[[#This Row],[Description]]),1,0)","v":0},{"$f":"IF(i_Region=\"Global\",1,IF(OR(i_Region=T_Fabric[[#This Row],[Region]],T_Fabric[[#This Row],[Region]]=\"Global\"),1,0))","v":1},null,"Focus","Mesa Blackout"]
[null,"Avesta",0.75,370,{"$f":"T_Fabric[[#This Row],[Thickness_Metric]]/25.4","v":2.9527559055118113E-2},{"$f":"T_Fabric[[#This Row],[Density_Metric]]/33.90574744","v":10.912604143434864},80.7,{"$f":"ROUND((T_Fabric[[#This Row],[RollWidth_Imperial]]*25.4)/1000,2)*1000","v":2050},"Yes",{"$f":"z_Fabric_RR_Yes","v":"Fabric can be railroaded."},"US",{"$f":"IF(AND(i_Fabric<>\"\",i_Fabric=T_Fabric[[#This Row],[Description]]),1,0)","v":0},{"$f":"IF(i_Region=\"Global\",1,IF(OR(i_Region=T_Fabric[[#This Row],[Region]],T_Fabric[[#This Row],[Region]]=\"Global\"),1,0))","v":1},null,"Gala","Mesa Façade Blackout"]
[null,"Avesta Blackout",0.9,500,{"$f":"T_Fabric[[#This Row],[Thickness_Metric]]/25.4","v":3.5433070866141732E-2},{"$f":"T_Fabric[[#This Row],[Density_Metric]]/33.90574744","v":14.746762355993059},80.7,{"$f":"ROUND((T_Fabric[[#This Row],[RollWidth_Imperial]]*25.4)/1000,2)*1000","v":2050},"Yes",{"$f":"z_Fabric_RR_Yes","v":"Fabric can be railroaded."},"US",{"$f":"IF(AND(i_Fabric<>\"\",i_Fabric=T_Fabric[[#This Row],[Description]]),1,0)","v":0},{"$f":"IF(i_Region=\"Global\",1,IF(OR(i_Region=T_Fabric[[#This Row],[Region]],T_Fabric[[#This Row],[Region]]=\"Global\"),1,0))","v":1},null,"Jersey Blackout","Mesa Light Filtering"]
[null,"Vista Blackout",0.53,378,{"$f":"T_Fabric[[#This Row],[Thickness_Metric]]/25.4","v":2.0866141732283468E-2},{"$f":"T_Fabric[[#This Row],[Density_Metric]]/33.90574744","v":11.148552341130753},110,{"$f":"ROUND((T_Fabric[[#This Row],[RollWidth_Imperial]]*25.4)/1000,2)*1000","v":2790},"No",{"$f":"z_Fabric_RR_Yes","v":"Fabric can be railroaded."},"US",{"$f":"IF(AND(i_Fabric<>\"\",i_Fabric=T_Fabric[[#This Row],[Description]]),1,0)","v":0},{"$f":"IF(i_Region=\"Global\",1,IF(OR(i_Region=T_Fabric[[#This Row],[Region]],T_Fabric[[#This Row],[Region]]=\"Global\"),1,0))","v":1},null,"Jersey Light Filtering","Metroshade Blackout"]
[null,"Mandal",0.3,130,{"$f":"T_Fabric[[#This Row],[Thickness_Metric]]/25.4","v":1.1811023622047244E-2},{"$f":"T_Fabric[[#This Row],[Density_Metric]]/33.90574744","v":3.8341582125581954},78.7,{"$f":"ROUND((T_Fabric[[#This Row],[RollWidth_Imperial]]*25.4)/1000,2)*1000","v":2000},"Yes",{"$f":"z_Fabric_RR_Yes","v":"Fabric can be railroaded."},"US",{"$f":"IF(AND(i_Fabric<>\"\",i_Fabric=T_Fabric[[#This Row],[Description]]),1,0)","v":0},{"$f":"IF(i_Region=\"Global\",1,IF(OR(i_Region=T_Fabric[[#This Row],[Region]],T_Fabric[[#This Row],[Region]]=\"Global\"),1,0))","v":1},null,"Karuna","Metroshade Light Filtering"]
[null,"Karuna",0.55000000000000004,190,{"$f":"T_Fabric[[#This Row],[Thickness_Metric]]/25.4","v":2.1653543307086617E-2},{"$f":"T_Fabric[[#This Row],[Density_Metric]]/33.90574744","v":5.6037696952773626},78.7,{"$f":"ROUND((T_Fabric[[#This Row],[RollWidth_Imperial]]*25.4)/1000,2)*1000","v":2000},"Yes",{"$f":"z_Fabric_RR_No","v":"Fabric cannot be railroaded."},"US",{"$f":"IF(AND(i_Fabric<>\"\",i_Fabric=T_Fabric[[#This Row],[Description]]),1,0)","v":0},{"$f":"IF(i_Region=\"Global\",1,IF(OR(i_Region=T_Fabric[[#This Row],[Region]],T_Fabric[[#This Row],[Region]]=\"Global\"),1,0))","v":1},null,"Kew","Milano"]
[null,"Lugo",0.3,140,{"$f":"T_Fabric[[#This Row],[Thickness_Metric]]/25.4","v":1.1811023622047244E-2},{"$f":"T_Fabric[[#This Row],[Density_Metric]]/33.90574744","v":4.1290934596780566},78.7,{"$f":"ROUND((T_Fabric[[#This Row],[RollWidth_Imperial]]*25.4)/1000,2)*1000","v":2000},"Yes",{"$f":"z_Fabric_RR_Yes","v":"Fabric can be railroaded."},"US",{"$f":"IF(AND(i_Fabric<>\"\",i_Fabric=T_Fabric[[#This Row],[Description]]),1,0)","v":0},{"$f":"IF(i_Region=\"Global\",1,IF(OR(i_Region=T_Fabric[[#This Row],[Region]],T_Fabric[[#This Row],[Region]]=\"Global\"),1,0))","v":1},null,"Kleenscreen 1%","OmniaScreen"]
[null,"Falun",0.3,160,{"$f":"T_Fabric[[#This Row],[Thickness_Metric]]/25.4","v":1.1811023622047244E-2},{"$f":"T_Fabric[[#This Row],[Density_Metric]]/33.90574744","v":4.718963953917779},78.7,{"$f":"ROUND((T_Fabric[[#This Row],[RollWidth_Imperial]]*25.4)/1000,2)*1000","v":2000},"Yes",{"$f":"z_Fabric_RR_Yes","v":"Fabric can be railroaded."},"US",{"$f":"IF(AND(i_Fabric<>\"\",i_Fabric=T_Fabric[[#This Row],[Description]]),1,0)","v":0},{"$f":"IF(i_Region=\"Global\",1,IF(OR(i_Region=T_Fabric[[#This Row],[Region]],T_Fabric[[#This Row],[Region]]=\"Global\"),1,0))","v":1},null,"Kleenscreen 3%","One Block"]
[null,"Largo Transparent",0.35,125,{"$f":"T_Fabric[[#This Row],[Thickness_Metric]]/25.4","v":1.3779527559055118E-2},{"$f":"T_Fabric[[#This Row],[Density_Metric]]/33.90574744","v":3.6866905889982649},114,{"$f":"ROUND((T_Fabric[[#This Row],[RollWidth_Imperial]]*25.4)/1000,2)*1000","v":2900},"No",{"$f":"z_Fabric_RR_Yes","v":"Fabric can be railroaded."},"US",{"$f":"IF(AND(i_Fabric<>\"\",i_Fabric=T_Fabric[[#This Row],[Description]]),1,0)","v":0},{"$f":"IF(i_Region=\"Global\",1,IF(OR(i_Region=T_Fabric[[#This Row],[Region]],T_Fabric[[#This Row],[Region]]=\"Global\"),1,0))","v":1},null,"Kleenscreen 5%","One Screen"]
[null,"Largo Translucent",0.4,191,{"$f":"T_Fabric[[#This Row],[Thickness_Metric]]/25.4","v":1.5748031496062995E-2},{"$f":"T_Fabric[[#This Row],[Density_Metric]]/33.90574744","v":5.633263219989348},114,{"$f":"ROUND((T_Fabric[[#This Row],[RollWidth_Imperial]]*25.4)/1000,2)*1000","v":2900},"No",{"$f":"z_Fabric_RR_No","v":"Fabric cannot be railroaded."},"US",{"$f":"IF(AND(i_Fabric<>\"\",i_Fabric=T_Fabric[[#This Row],[Description]]),1,0)","v":0},{"$f":"IF(i_Region=\"Global\",1,IF(OR(i_Region=T_Fabric[[#This Row],[Region]],T_Fabric[[#This Row],[Region]]=\"Global\"),1,0))","v":1},null,"Kleenscreen Blackout","Panama"]
[null,"Largo Blackout",0.6,395,{"$f":"T_Fabric[[#This Row],[Thickness_Metric]]/25.4","v":2.3622047244094488E-2},{"$f":"T_Fabric[[#This Row],[Density_Metric]]/33.90574744","v":11.649942261234516},114,{"$f":"ROUND((T_Fabric[[#This Row],[RollWidth_Imperial]]*25.4)/1000,2)*1000","v":2900},"No",{"$f":"z_Fabric_RR_Yes","v":"Fabric can be railroaded."},"US",{"$f":"IF(AND(i_Fabric<>\"\",i_Fabric=T_Fabric[[#This Row],[Description]]),1,0)","v":0},{"$f":"IF(i_Region=\"Global\",1,IF(OR(i_Region=T_Fabric[[#This Row],[Region]],T_Fabric[[#This Row],[Region]]=\"Global\"),1,0))","v":1},null,"Largo Blackout","Positano"]
[null,"Balmoral Light Filtering",0.55000000000000004,220,{"$f":"T_Fabric[[#This Row],[Thickness_Metric]]/25.4","v":2.1653543307086617E-2},{"$f":"T_Fabric[[#This Row],[Density_Metric]]/33.90574744","v":6.4885754366369461},118,{"$f":"ROUND((T_Fabric[[#This Row],[RollWidth_Imperial]]*25.4)/1000,2)*1000","v":3000},"No",{"$f":"z_Fabric_RR_Yes","v":"Fabric can be railroaded."},"Global",{"$f":"IF(AND(i_Fabric<>\"\",i_Fabric=T_Fabric[[#This Row],[Description]]),1,0)","v":0},{"$f":"IF(i_Region=\"Global\",1,IF(OR(i_Region=T_Fabric[[#This Row],[Region]],T_Fabric[[#This Row],[Region]]=\"Global\"),1,0))","v":1},null,"Largo Translucent","Riviera Blockout"]
[null,"Balmoral Blackout",0.6,390,{"$f":"T_Fabric[[#This Row],[Thickness_Metric]]/25.4","v":2.3622047244094488E-2},{"$f":"T_Fabric[[#This Row],[Density_Metric]]/33.90574744","v":11.502474637674586},118,{"$f":"ROUND((T_Fabric[[#This Row],[RollWidth_Imperial]]*25.4)/1000,2)*1000","v":3000},"No",{"$f":"z_Fabric_RR_No","v":"Fabric cannot be railroaded."},"Global",{"$f":"IF(AND(i_Fabric<>\"\",i_Fabric=T_Fabric[[#This Row],[Description]]),1,0)","v":0},{"$f":"IF(i_Region=\"Global\",1,IF(OR(i_Region=T_Fabric[[#This Row],[Region]],T_Fabric[[#This Row],[Region]]=\"Global\"),1,0))","v":1},null,"Largo Transparent","Riviera Light Filtering"]
[null,"Jersey Light Filtering",0.63,260,{"$f":"T_Fabric[[#This Row],[Thickness_Metric]]/25.4","v":2.4803149606299216E-2},{"$f":"T_Fabric[[#This Row],[Density_Metric]]/33.90574744","v":7.6683164251163909},118,{"$f":"ROUND((T_Fabric[[#This Row],[RollWidth_Imperial]]*25.4)/1000,2)*1000","v":3000},"No",{"$f":"z_Fabric_RR_No","v":"Fabric cannot be railroaded."},"Global",{"$f":"IF(AND(i_Fabric<>\"\",i_Fabric=T_Fabric[[#This Row],[Description]]),1,0)","v":0},{"$f":"IF(i_Region=\"Global\",1,IF(OR(i_Region=T_Fabric[[#This Row],[Region]],T_Fabric[[#This Row],[Region]]=\"Global\"),1,0))","v":1},null,"Lugo","Romana"]
[null,"Jersey Blackout",0.72,450,{"$f":"T_Fabric[[#This Row],[Thickness_Metric]]/25.4","v":2.8346456692913385E-2},{"$f":"T_Fabric[[#This Row],[Density_Metric]]/33.90574744","v":13.272086120393753},118,{"$f":"ROUND((T_Fabric[[#This Row],[RollWidth_Imperial]]*25.4)/1000,2)*1000","v":3000},"No",{"$f":"z_Fabric_RR_No","v":"Fabric cannot be railroaded."},"Global",{"$f":"IF(AND(i_Fabric<>\"\",i_Fabric=T_Fabric[[#This Row],[Description]]),1,0)","v":0},{"$f":"IF(i_Region=\"Global\",1,IF(OR(i_Region=T_Fabric[[#This Row],[Region]],T_Fabric[[#This Row],[Region]]=\"Global\"),1,0))","v":1},null,"Mandal","Sanctuary"]
[null,"Sanctuary",0.6,430,{"$f":"T_Fabric[[#This Row],[Thickness_Metric]]/25.4","v":2.3622047244094488E-2},{"$f":"T_Fabric[[#This Row],[Density_Metric]]/33.90574744","v":12.682215626154031},118,{"$f":"ROUND((T_Fabric[[#This Row],[RollWidth_Imperial]]*25.4)/1000,2)*1000","v":3000},"No",{"$f":"z_Fabric_RR_No","v":"Fabric cannot be railroaded."},"Global",{"$f":"IF(AND(i_Fabric<>\"\",i_Fabric=T_Fabric[[#This Row],[Description]]),1,0)","v":0},{"$f":"IF(i_Region=\"Global\",1,IF(OR(i_Region=T_Fabric[[#This Row],[Region]],T_Fabric[[#This Row],[Region]]=\"Global\"),1,0))","v":1},null,"Mesa Blackout","Santiago"]
[null,"X-Weave 5%",0.82,530,{"$f":"T_Fabric[[#This Row],[Thickness_Metric]]/25.4","v":3.2283464566929133E-2},{"$f":"T_Fabric[[#This Row],[Density_Metric]]/33.90574744","v":15.631568097352643},126,{"$f":"ROUND((T_Fabric[[#This Row],[RollWidth_Imperial]]*25.4)/1000,2)*1000","v":3200},"Yes",{"$f":"z_Fabric_RR_Yes","v":"Fabric can be railroaded."},"US",{"$f":"IF(AND(i_Fabric<>\"\",i_Fabric=T_Fabric[[#This Row],[Description]]),1,0)","v":0},{"$f":"IF(i_Region=\"Global\",1,IF(OR(i_Region=T_Fabric[[#This Row],[Region]],T_Fabric[[#This Row],[Region]]=\"Global\"),1,0))","v":1},null,"Mesa Façade Blackout","Serengetti Blackout"]
[null,"X-Weave 10%",0.68,470,{"$f":"T_Fabric[[#This Row],[Thickness_Metric]]/25.4","v":2.677165354330709E-2},{"$f":"T_Fabric[[#This Row],[Density_Metric]]/33.90574744","v":13.861956614633476},126,{"$f":"ROUND((T_Fabric[[#This Row],[RollWidth_Imperial]]*25.4)/1000,2)*1000","v":3200},"Yes",{"$f":"z_Fabric_RR_Yes","v":"Fabric can be railroaded."},"US",{"$f":"IF(AND(i_Fabric<>\"\",i_Fabric=T_Fabric[[#This Row],[Description]]),1,0)","v":0},{"$f":"IF(i_Region=\"Global\",1,IF(OR(i_Region=T_Fabric[[#This Row],[Region]],T_Fabric[[#This Row],[Region]]=\"Global\"),1,0))","v":1},null,"Mesa Light Filtering","Serengetti Light Filtering"]
[null,"Dakota",0.72,413,{"$f":"T_Fabric[[#This Row],[Thickness_Metric]]/25.4","v":2.8346456692913385E-2},{"$f":"T_Fabric[[#This Row],[Density_Metric]]/33.90574744","v":12.180825706050266},118,{"$f":"ROUND((T_Fabric[[#This Row],[RollWidth_Imperial]]*25.4)/1000,2)*1000","v":3000},"No",{"$f":"z_Fabric_RR_No","v":"Fabric cannot be railroaded."},"AU",{"$f":"IF(AND(i_Fabric<>\"\",i_Fabric=T_Fabric[[#This Row],[Description]]),1,0)","v":0},{"$f":"IF(i_Region=\"Global\",1,IF(OR(i_Region=T_Fabric[[#This Row],[Region]],T_Fabric[[#This Row],[Region]]=\"Global\"),1,0))","v":1},null,"Metroshade Blackout","SilverScreen 2%"]
[null,"Focus",0.4,400,{"$f":"T_Fabric[[#This Row],[Thickness_Metric]]/25.4","v":1.5748031496062995E-2},{"$f":"T_Fabric[[#This Row],[Density_Metric]]/33.90574744","v":11.797409884794448},118,{"$f":"ROUND((T_Fabric[[#This Row],[RollWidth_Imperial]]*25.4)/1000,2)*1000","v":3000},"No","Fabric cannot be railroaded.","AU",{"$f":"IF(AND(i_Fabric<>\"\",i_Fabric=T_Fabric[[#This Row],[Description]]),1,0)","v":0},{"$f":"IF(i_Region=\"Global\",1,IF(OR(i_Region=T_Fabric[[#This Row],[Region]],T_Fabric[[#This Row],[Region]]=\"Global\"),1,0))","v":1},null,"Metroshade Light Filtering","SilverScreen 4%"]
[null,"Gala",0.69,460,{"$f":"T_Fabric[[#This Row],[Thickness_Metric]]/25.4","v":2.7165354330708661E-2},{"$f":"T_Fabric[[#This Row],[Density_Metric]]/33.90574744","v":13.567021367513615},118,{"$f":"ROUND((T_Fabric[[#This Row],[RollWidth_Imperial]]*25.4)/1000,2)*1000","v":3000},"No","Fabric cannot be railroaded.","AU",{"$f":"IF(AND(i_Fabric<>\"\",i_Fabric=T_Fabric[[#This Row],[Description]]),1,0)","v":0},{"$f":"IF(i_Region=\"Global\",1,IF(OR(i_Region=T_Fabric[[#This Row],[Region]],T_Fabric[[#This Row],[Region]]=\"Global\"),1,0))","v":1},null,"Milano","Solar View"]
[null,"Barbados",0.53,378,{"$f":"T_Fabric[[#This Row],[Thickness_Metric]]/25.4","v":2.0866141732283468E-2},{"$f":"T_Fabric[[#This Row],[Density_Metric]]/33.90574744","v":11.148552341130753},110,{"$f":"ROUND((T_Fabric[[#This Row],[RollWidth_Imperial]]*25.4)/1000,2)*1000","v":2790},"No","Fabric cannot be railroaded.","AU",{"$f":"IF(AND(i_Fabric<>\"\",i_Fabric=T_Fabric[[#This Row],[Description]]),1,0)","v":0},{"$f":"IF(i_Region=\"Global\",1,IF(OR(i_Region=T_Fabric[[#This Row],[Region]],T_Fabric[[#This Row],[Region]]=\"Global\"),1,0))","v":1},null,"OmniaScreen","Solitaire"]
[null,"Kew",0.47,433,{"$f":"T_Fabric[[#This Row],[Thickness_Metric]]/25.4","v":1.8503937007874015E-2},{"$f":"T_Fabric[[#This Row],[Density_Metric]]/33.90574744","v":12.770696200289988},118,{"$f":"ROUND((T_Fabric[[#This Row],[RollWidth_Imperial]]*25.4)/1000,2)*1000","v":3000},"No","Fabric cannot be railroaded.","AU",{"$f":"IF(AND(i_Fabric<>\"\",i_Fabric=T_Fabric[[#This Row],[Description]]),1,0)","v":0},{"$f":"IF(i_Region=\"Global\",1,IF(OR(i_Region=T_Fabric[[#This Row],[Region]],T_Fabric[[#This Row],[Region]]=\"Global\"),1,0))","v":1},null,"One Block","Soria Blackout"]
[null,"Metroshade Blackout",0.55000000000000004,400,{"$f":"T_Fabric[[#This Row],[Thickness_Metric]]/25.4","v":2.1653543307086617E-2},{"$f":"T_Fabric[[#This Row],[Density_Metric]]/33.90574744","v":11.797409884794448},118,{"$f":"ROUND((T_Fabric[[#This Row],[RollWidth_Imperial]]*25.4)/1000,2)*1000","v":3000},"No","Fabric cannot be railroaded.","AU",{"$f":"IF(AND(i_Fabric<>\"\",i_Fabric=T_Fabric[[#This Row],[Description]]),1,0)","v":0},{"$f":"IF(i_Region=\"Global\",1,IF(OR(i_Region=T_Fabric[[#This Row],[Region]],T_Fabric[[#This Row],[Region]]=\"Global\"),1,0))","v":1},null,"One Screen","Stickan"]
[null,"Metroshade Light Filtering",0.5,260,{"$f":"T_Fabric[[#This Row],[Thickness_Metric]]/25.4","v":1.968503937007874E-2},{"$f":"T_Fabric[[#This Row],[Density_Metric]]/33.90574744","v":7.6683164251163909},118,{"$f":"ROUND((T_Fabric[[#This Row],[RollWidth_Imperial]]*25.4)/1000,2)*1000","v":3000},"No","Fabric cannot be railroaded.","AU",{"$f":"IF(AND(i_Fabric<>\"\",i_Fabric=T_Fabric[[#This Row],[Description]]),1,0)","v":0},{"$f":"IF(i_Region=\"Global\",1,IF(OR(i_Region=T_Fabric[[#This Row],[Region]],T_Fabric[[#This Row],[Region]]=\"Global\"),1,0))","v":1},null,"Panama","Tarifa"]
[null,"One Block",0.28999999999999998,290,{"$f":"T_Fabric[[#This Row],[Thickness_Metric]]/25.4","v":1.1417322834645669E-2},{"$f":"T_Fabric[[#This Row],[Density_Metric]]/33.90574744","v":8.5531221664759745},118,{"$f":"ROUND((T_Fabric[[#This Row],[RollWidth_Imperial]]*25.4)/1000,2)*1000","v":3000},"No","Fabric cannot be railroaded.","AU",{"$f":"IF(AND(i_Fabric<>\"\",i_Fabric=T_Fabric[[#This Row],[Description]]),1,0)","v":0},{"$f":"IF(i_Region=\"Global\",1,IF(OR(i_Region=T_Fabric[[#This Row],[Region]],T_Fabric[[#This Row],[Region]]=\"Global\"),1,0))","v":1},null,"Positano","Tempe"]
[null,"One Screen",0.56999999999999995,400,{"$f":"T_Fabric[[#This Row],[Thickness_Metric]]/25.4","v":2.2440944881889763E-2},{"$f":"T_Fabric[[#This Row],[Density_Metric]]/33.90574744","v":11.797409884794448},118,{"$f":"ROUND((T_Fabric[[#This Row],[RollWidth_Imperial]]*25.4)/1000,2)*1000","v":3000},"No","Fabric cannot be railroaded.","AU",{"$f":"IF(AND(i_Fabric<>\"\",i_Fabric=T_Fabric[[#This Row],[Description]]),1,0)","v":0},{"$f":"IF(i_Region=\"Global\",1,IF(OR(i_Region=T_Fabric[[#This Row],[Region]],T_Fabric[[#This Row],[Region]]=\"Global\"),1,0))","v":1},null,"Riviera Blockout","Torino"]
[null,"Positano",0.64,411,{"$f":"T_Fabric[[#This Row],[Thickness_Metric]]/25.4","v":2.5196850393700791E-2},{"$f":"T_Fabric[[#This Row],[Density_Metric]]/33.90574744","v":12.121838656626295},118,{"$f":"ROUND((T_Fabric[[#This Row],[RollWidth_Imperial]]*25.4)/1000,2)*1000","v":3000},"No","Fabric cannot be railroaded.","AU",{"$f":"IF(AND(i_Fabric<>\"\",i_Fabric=T_Fabric[[#This Row],[Description]]),1,0)","v":0},{"$f":"IF(i_Region=\"Global\",1,IF(OR(i_Region=T_Fabric[[#This Row],[Region]],T_Fabric[[#This Row],[Region]]=\"Global\"),1,0))","v":1},null,"Riviera Light Filtering","Trento"]
[null,"Serengetti Blackout",0.7,430,{"$f":"T_Fabric[[#This Row],[Thickness_Metric]]/25.4","v":2.7559055118110236E-2},{"$f":"T_Fabric[[#This Row],[Density_Metric]]/33.90574744","v":12.682215626154031},118,{"$f":"ROUND((T_Fabric[[#This Row],[RollWidth_Imperial]]*25.4)/1000,2)*1000","v":3000},"No","Fabric cannot be railroaded.","AU",{"$f":"IF(AND(i_Fabric<>\"\",i_Fabric=T_Fabric[[#This Row],[Description]]),1,0)","v":0},{"$f":"IF(i_Region=\"Global\",1,IF(OR(i_Region=T_Fabric[[#This Row],[Region]],T_Fabric[[#This Row],[Region]]=\"Global\"),1,0))","v":1},null,"Romana","Tusk Block Out"]
[null,"Serengetti Light Filtering",0.6,260,{"$f":"T_Fabric[[#This Row],[Thickness_Metric]]/25.4","v":2.3622047244094488E-2},{"$f":"T_Fabric[[#This Row],[Density_Metric]]/33.90574744","v":7.6683164251163909},118,{"$f":"ROUND((T_Fabric[[#This Row],[RollWidth_Imperial]]*25.4)/1000,2)*1000","v":3000},"No","Fabric cannot be railroaded.","AU",{"$f":"IF(AND(i_Fabric<>\"\",i_Fabric=T_Fabric[[#This Row],[Description]]),1,0)","v":0},{"$f":"IF(i_Region=\"Global\",1,IF(OR(i_Region=T_Fabric[[#This Row],[Region]],T_Fabric[[#This Row],[Region]]=\"Global\"),1,0))","v":1},null,"Sanctuary","Tusk Light Filtering"]
[null,"Solar View",0.75,530,{"$f":"T_Fabric[[#This Row],[Thickness_Metric]]/25.4","v":2.9527559055118113E-2},{"$f":"T_Fabric[[#This Row],[Density_Metric]]/33.90574744","v":15.631568097352643},118,{"$f":"ROUND((T_Fabric[[#This Row],[RollWidth_Imperial]]*25.4)/1000,2)*1000","v":3000},"No","Fabric cannot be railroaded.","AU",{"$f":"IF(AND(i_Fabric<>\"\",i_Fabric=T_Fabric[[#This Row],[Description]]),1,0)","v":0},{"$f":"IF(i_Region=\"Global\",1,IF(OR(i_Region=T_Fabric[[#This Row],[Region]],T_Fabric[[#This Row],[Region]]=\"Global\"),1,0))","v":1},null,"Santiago","Verona"]
[null,"Solitaire",0.3,280,{"$f":"T_Fabric[[#This Row],[Thickness_Metric]]/25.4","v":1.1811023622047244E-2},{"$f":"T_Fabric[[#This Row],[Density_Metric]]/33.90574744","v":8.2581869193561133},118,{"$f":"ROUND((T_Fabric[[#This Row],[RollWidth_Imperial]]*25.4)/1000,2)*1000","v":3000},"No","Fabric cannot be railroaded.","AU",{"$f":"IF(AND(i_Fabric<>\"\",i_Fabric=T_Fabric[[#This Row],[Description]]),1,0)","v":0},{"$f":"IF(i_Region=\"Global\",1,IF(OR(i_Region=T_Fabric[[#This Row],[Region]],T_Fabric[[#This Row],[Region]]=\"Global\"),1,0))","v":1},null,"Serengetti Blackout","View R"]
[null,"Tusk Block Out",0.43,360,{"$f":"T_Fabric[[#This Row],[Thickness_Metric]]/25.4","v":1.6929133858267716E-2},{"$f":"T_Fabric[[#This Row],[Density_Metric]]/33.90574744","v":10.617668896315003},118,{"$f":"ROUND((T_Fabric[[#This Row],[RollWidth_Imperial]]*25.4)/1000,2)*1000","v":3000},"No","Fabric cannot be railroaded.","US",{"$f":"IF(AND(i_Fabric<>\"\",i_Fabric=T_Fabric[[#This Row],[Description]]),1,0)","v":0},{"$f":"IF(i_Region=\"Global\",1,IF(OR(i_Region=T_Fabric[[#This Row],[Region]],T_Fabric[[#This Row],[Region]]=\"Global\"),1,0))","v":1},null,"Serengetti Light Filtering","Vigo"]
[null,"Tusk Light Filtering",0.3,170,{"$f":"T_Fabric[[#This Row],[Thickness_Metric]]/25.4","v":1.1811023622047244E-2},{"$f":"T_Fabric[[#This Row],[Density_Metric]]/33.90574744","v":5.0138992010376402},118,{"$f":"ROUND((T_Fabric[[#This Row],[RollWidth_Imperial]]*25.4)/1000,2)*1000","v":3000},"No","Fabric cannot be railroaded.","US",{"$f":"IF(AND(i_Fabric<>\"\",i_Fabric=T_Fabric[[#This Row],[Description]]),1,0)","v":0},{"$f":"IF(i_Region=\"Global\",1,IF(OR(i_Region=T_Fabric[[#This Row],[Region]],T_Fabric[[#This Row],[Region]]=\"Global\"),1,0))","v":1},null,"SilverScreen 2%","Villach"]
[null,"Vivid Block",0.38,350,{"$f":"T_Fabric[[#This Row],[Thickness_Metric]]/25.4","v":1.4960629921259844E-2},{"$f":"T_Fabric[[#This Row],[Density_Metric]]/33.90574744","v":10.322733649195142},118,{"$f":"ROUND((T_Fabric[[#This Row],[RollWidth_Imperial]]*25.4)/1000,2)*1000","v":3000},"No","Fabric cannot be railroaded.","AU",{"$f":"IF(AND(i_Fabric<>\"\",i_Fabric=T_Fabric[[#This Row],[Description]]),1,0)","v":0},{"$f":"IF(i_Region=\"Global\",1,IF(OR(i_Region=T_Fabric[[#This Row],[Region]],T_Fabric[[#This Row],[Region]]=\"Global\"),1,0))","v":1},null,"SilverScreen 4%","Vista Blackout"]
[null,"Vivid Shade",0.63,425,{"$f":"T_Fabric[[#This Row],[Thickness_Metric]]/25.4","v":2.4803149606299216E-2},{"$f":"T_Fabric[[#This Row],[Density_Metric]]/33.90574744","v":12.5347480025941},118,{"$f":"ROUND((T_Fabric[[#This Row],[RollWidth_Imperial]]*25.4)/1000,2)*1000","v":3000},"No","Fabric cannot be railroaded.","AU",{"$f":"IF(AND(i_Fabric<>\"\",i_Fabric=T_Fabric[[#This Row],[Description]]),1,0)","v":0},{"$f":"IF(i_Region=\"Global\",1,IF(OR(i_Region=T_Fabric[[#This Row],[Region]],T_Fabric[[#This Row],[Region]]=\"Global\"),1,0))","v":1},null,"Solar View","Vivid Block"]
[null,"Riviera Blockout",0.65,360,{"$f":"T_Fabric[[#This Row],[Thickness_Metric]]/25.4","v":2.5590551181102365E-2},{"$f":"T_Fabric[[#This Row],[Density_Metric]]/33.90574744","v":10.617668896315003},118,{"$f":"ROUND((T_Fabric[[#This Row],[RollWidth_Imperial]]*25.4)/1000,2)*1000","v":3000},"No","Fabric cannot be railroaded.","AU",{"$f":"IF(AND(i_Fabric<>\"\",i_Fabric=T_Fabric[[#This Row],[Description]]),1,0)","v":0},{"$f":"IF(i_Region=\"Global\",1,IF(OR(i_Region=T_Fabric[[#This Row],[Region]],T_Fabric[[#This Row],[Region]]=\"Global\"),1,0))","v":1},null,"Solitaire","Vivid Shade"]
[null,"Riviera Light Filtering",0.45,210,{"$f":"T_Fabric[[#This Row],[Thickness_Metric]]/25.4","v":1.7716535433070866E-2},{"$f":"T_Fabric[[#This Row],[Density_Metric]]/33.90574744","v":6.1936401895170849},118,{"$f":"ROUND((T_Fabric[[#This Row],[RollWidth_Imperial]]*25.4)/1000,2)*1000","v":3000},"No","Fabric cannot be railroaded.","AU",{"$f":"IF(AND(i_Fabric<>\"\",i_Fabric=T_Fabric[[#This Row],[Description]]),1,0)","v":0},{"$f":"IF(i_Region=\"Global\",1,IF(OR(i_Region=T_Fabric[[#This Row],[Region]],T_Fabric[[#This Row],[Region]]=\"Global\"),1,0))","v":1},null,"Soria Blackout","X-Weave 10%"]
[null,"Kleenscreen Blackout",0.69,575,{"$f":"T_Fabric[[#This Row],[Thickness_Metric]]/25.4","v":2.7165354330708661E-2},{"$f":"T_Fabric[[#This Row],[Density_Metric]]/33.90574744","v":16.958776709392016},118,3000,"No","Fabric cannot be railroaded.","Global",{"$f":"IF(AND(i_Fabric<>\"\",i_Fabric=T_Fabric[[#This Row],[Description]]),1,0)","v":0},{"$f":"IF(i_Region=\"Global\",1,IF(OR(i_Region=T_Fabric[[#This Row],[Region]],T_Fabric[[#This Row],[Region]]=\"Global\"),1,0))","v":1},null,"Stickan","X-Weave 5%"]
[null,{"$f":"IF('4. Custom Fabric'!C4=\"\",\"\",'4. Custom Fabric'!C4)","v":""},{"$f":"'4. Custom Fabric'!D4","v":0},{"$f":"'4. Custom Fabric'!E4","v":0},{"$f":"'4. Custom Fabric'!F4","v":0},{"$f":"'4. Custom Fabric'!G4","v":0},"-","-","-","-","Global",{"$f":"IF(AND(i_Fabric<>\"\",i_Fabric=T_Fabric[[#This Row],[Description]]),1,0)","v":0},{"$f":"IF(i_Region=\"Global\",1,IF(OR(i_Region=T_Fabric[[#This Row],[Region]],T_Fabric[[#This Row],[Region]]=\"Global\"),1,0))","v":1},null,"Tarifa"]
[null,{"$f":"IF('4. Custom Fabric'!C5=\"\",\"\",'4. Custom Fabric'!C5)","v":""},{"$f":"'4. Custom Fabric'!D5","v":0},{"$f":"'4. Custom Fabric'!E5","v":0},{"$f":"'4. Custom Fabric'!F5","v":0},{"$f":"'4. Custom Fabric'!G5","v":0},"-","-","-","-","Global",{"$f":"IF(AND(i_Fabric<>\"\",i_Fabric=T_Fabric[[#This Row],[Description]]),1,0)","v":0},{"$f":"IF(i_Region=\"Global\",1,IF(OR(i_Region=T_Fabric[[#This Row],[Region]],T_Fabric[[#This Row],[Region]]=\"Global\"),1,0))","v":1},null,"Tempe"]
[null,{"$f":"IF('4. Custom Fabric'!C6=\"\",\"\",'4. Custom Fabric'!C6)","v":""},{"$f":"'4. Custom Fabric'!D6","v":0},{"$f":"'4. Custom Fabric'!E6","v":0},{"$f":"'4. Custom Fabric'!F6","v":0},{"$f":"'4. Custom Fabric'!G6","v":0},"-","-","-","-","Global",{"$f":"IF(AND(i_Fabric<>\"\",i_Fabric=T_Fabric[[#This Row],[Description]]),1,0)","v":0},{"$f":"IF(i_Region=\"Global\",1,IF(OR(i_Region=T_Fabric[[#This Row],[Region]],T_Fabric[[#This Row],[Region]]=\"Global\"),1,0))","v":1},null,"Torino"]
[null,{"$f":"IF('4. Custom Fabric'!C7=\"\",\"\",'4. Custom Fabric'!C7)","v":""},{"$f":"'4. Custom Fabric'!D7","v":0},{"$f":"'4. Custom Fabric'!E7","v":0},{"$f":"'4. Custom Fabric'!F7","v":0},{"$f":"'4. Custom Fabric'!G7","v":0},"-","-","-","-","Global",{"$f":"IF(AND(i_Fabric<>\"\",i_Fabric=T_Fabric[[#This Row],[Description]]),1,0)","v":0},{"$f":"IF(i_Region=\"Global\",1,IF(OR(i_Region=T_Fabric[[#This Row],[Region]],T_Fabric[[#This Row],[Region]]=\"Global\"),1,0))","v":1},null,"Trento"]
[null,{"$f":"IF('4. Custom Fabric'!C8=\"\",\"\",'4. Custom Fabric'!C8)","v":""},{"$f":"'4. Custom Fabric'!D8","v":0},{"$f":"'4. Custom Fabric'!E8","v":0},{"$f":"'4. Custom Fabric'!F8","v":0},{"$f":"'4. Custom Fabric'!G8","v":0},"-","-","-","-","Global",{"$f":"IF(AND(i_Fabric<>\"\",i_Fabric=T_Fabric[[#This Row],[Description]]),1,0)","v":0},{"$f":"IF(i_Region=\"Global\",1,IF(OR(i_Region=T_Fabric[[#This Row],[Region]],T_Fabric[[#This Row],[Region]]=\"Global\"),1,0))","v":1},null,"Tusk Block Out"]
[null,{"$f":"IF('4. Custom Fabric'!C9=\"\",\"\",'4. Custom Fabric'!C9)","v":""},{"$f":"'4. Custom Fabric'!D9","v":0},{"$f":"'4. Custom Fabric'!E9","v":0},{"$f":"'4. Custom Fabric'!F9","v":0},{"$f":"'4. Custom Fabric'!G9","v":0},"-","-","-","-","Global",{"$f":"IF(AND(i_Fabric<>\"\",i_Fabric=T_Fabric[[#This Row],[Description]]),1,0)","v":0},{"$f":"IF(i_Region=\"Global\",1,IF(OR(i_Region=T_Fabric[[#This Row],[Region]],T_Fabric[[#This Row],[Region]]=\"Global\"),1,0))","v":1},null,"Tusk Light Filtering"]
[null,{"$f":"IF('4. Custom Fabric'!C10=\"\",\"\",'4. Custom Fabric'!C10)","v":""},{"$f":"'4. Custom Fabric'!D10","v":0},{"$f":"'4. Custom Fabric'!E10","v":0},{"$f":"'4. Custom Fabric'!F10","v":0},{"$f":"'4. Custom Fabric'!G10","v":0},"-","-","-","-","Global",{"$f":"IF(AND(i_Fabric<>\"\",i_Fabric=T_Fabric[[#This Row],[Description]]),1,0)","v":0},{"$f":"IF(i_Region=\"Global\",1,IF(OR(i_Region=T_Fabric[[#This Row],[Region]],T_Fabric[[#This Row],[Region]]=\"Global\"),1,0))","v":1},null,"Verona"]
[null,{"$f":"IF('4. Custom Fabric'!C11=\"\",\"\",'4. Custom Fabric'!C11)","v":""},{"$f":"'4. Custom Fabric'!D11","v":0},{"$f":"'4. Custom Fabric'!E11","v":0},{"$f":"'4. Custom Fabric'!F11","v":0},{"$f":"'4. Custom Fabric'!G11","v":0},"-","-","-","-","Global",{"$f":"IF(AND(i_Fabric<>\"\",i_Fabric=T_Fabric[[#This Row],[Description]]),1,0)","v":0},{"$f":"IF(i_Region=\"Global\",1,IF(OR(i_Region=T_Fabric[[#This Row],[Region]],T_Fabric[[#This Row],[Region]]=\"Global\"),1,0))","v":1},null,"View R"]
[null,{"$f":"IF('4. Custom Fabric'!C12=\"\",\"\",'4. Custom Fabric'!C12)","v":""},{"$f":"'4. Custom Fabric'!D12","v":0},{"$f":"'4. Custom Fabric'!E12","v":0},{"$f":"'4. Custom Fabric'!F12","v":0},{"$f":"'4. Custom Fabric'!G12","v":0},"-","-","-","-","Global",{"$f":"IF(AND(i_Fabric<>\"\",i_Fabric=T_Fabric[[#This Row],[Description]]),1,0)","v":0},{"$f":"IF(i_Region=\"Global\",1,IF(OR(i_Region=T_Fabric[[#This Row],[Region]],T_Fabric[[#This Row],[Region]]=\"Global\"),1,0))","v":1},null,"Vigo"]
[null,{"$f":"IF('4. Custom Fabric'!C13=\"\",\"\",'4. Custom Fabric'!C13)","v":""},{"$f":"'4. Custom Fabric'!D13","v":0},{"$f":"'4. Custom Fabric'!E13","v":0},{"$f":"'4. Custom Fabric'!F13","v":0},{"$f":"'4. Custom Fabric'!G13","v":0},"-","-","-","-","Global",{"$f":"IF(AND(i_Fabric<>\"\",i_Fabric=T_Fabric[[#This Row],[Description]]),1,0)","v":0},{"$f":"IF(i_Region=\"Global\",1,IF(OR(i_Region=T_Fabric[[#This Row],[Region]],T_Fabric[[#This Row],[Region]]=\"Global\"),1,0))","v":1},null,"Villach"]
[null,{"$f":"IF('4. Custom Fabric'!C14=\"\",\"\",'4. Custom Fabric'!C14)","v":""},{"$f":"'4. Custom Fabric'!D14","v":0},{"$f":"'4. Custom Fabric'!E14","v":0},{"$f":"'4. Custom Fabric'!F14","v":0},{"$f":"'4. Custom Fabric'!G14","v":0},"-","-","-","-","Global",{"$f":"IF(AND(i_Fabric<>\"\",i_Fabric=T_Fabric[[#This Row],[Description]]),1,0)","v":0},{"$f":"IF(i_Region=\"Global\",1,IF(OR(i_Region=T_Fabric[[#This Row],[Region]],T_Fabric[[#This Row],[Region]]=\"Global\"),1,0))","v":1},null,"Vista Blackout"]
[null,{"$f":"IF('4. Custom Fabric'!C15=\"\",\"\",'4. Custom Fabric'!C15)","v":""},{"$f":"'4. Custom Fabric'!D15","v":0},{"$f":"'4. Custom Fabric'!E15","v":0},{"$f":"'4. Custom Fabric'!F15","v":0},{"$f":"'4. Custom Fabric'!G15","v":0},"-","-","-","-","Global",{"$f":"IF(AND(i_Fabric<>\"\",i_Fabric=T_Fabric[[#This Row],[Description]]),1,0)","v":0},{"$f":"IF(i_Region=\"Global\",1,IF(OR(i_Region=T_Fabric[[#This Row],[Region]],T_Fabric[[#This Row],[Region]]=\"Global\"),1,0))","v":1},null,"Vivid Block"]
[null,{"$f":"IF('4. Custom Fabric'!C16=\"\",\"\",'4. Custom Fabric'!C16)","v":""},{"$f":"'4. Custom Fabric'!D16","v":0},{"$f":"'4. Custom Fabric'!E16","v":0},{"$f":"'4. Custom Fabric'!F16","v":0},{"$f":"'4. Custom Fabric'!G16","v":0},"-","-","-","-","Global",{"$f":"IF(AND(i_Fabric<>\"\",i_Fabric=T_Fabric[[#This Row],[Description]]),1,0)","v":0},{"$f":"IF(i_Region=\"Global\",1,IF(OR(i_Region=T_Fabric[[#This Row],[Region]],T_Fabric[[#This Row],[Region]]=\"Global\"),1,0))","v":1},null,"Vivid Shade"]
[null,{"$f":"IF('4. Custom Fabric'!C17=\"\",\"\",'4. Custom Fabric'!C17)","v":""},{"$f":"'4. Custom Fabric'!D17","v":0},{"$f":"'4. Custom Fabric'!E17","v":0},{"$f":"'4. Custom Fabric'!F17","v":0},{"$f":"'4. Custom Fabric'!G17","v":0},"-","-","-","-","Global",{"$f":"IF(AND(i_Fabric<>\"\",i_Fabric=T_Fabric[[#This Row],[Description]]),1,0)","v":0},{"$f":"IF(i_Region=\"Global\",1,IF(OR(i_Region=T_Fabric[[#This Row],[Region]],T_Fabric[[#This Row],[Region]]=\"Global\"),1,0))","v":1},null,"X-Weave 10%"]
[null,{"$f":"IF('4. Custom Fabric'!C18=\"\",\"\",'4. Custom Fabric'!C18)","v":""},{"$f":"'4. Custom Fabric'!D18","v":0},{"$f":"'4. Custom Fabric'!E18","v":0},{"$f":"'4. Custom Fabric'!F18","v":0},{"$f":"'4. Custom Fabric'!G18","v":0},"-","-","-","-","Global",{"$f":"IF(AND(i_Fabric<>\"\",i_Fabric=T_Fabric[[#This Row],[Description]]),1,0)","v":0},{"$f":"IF(i_Region=\"Global\",1,IF(OR(i_Region=T_Fabric[[#This Row],[Region]],T_Fabric[[#This Row],[Region]]=\"Global\"),1,0))","v":1},null,"X-Weave 5%"]

{"sheet":"_Dictionary","index":11,"n_rows":107,"n_cols":11,"rows_kept":107,"cut":false,"hidden":true,"merged":[]}
[null,null,null,null,"AU ENGLISH","US ENGLISH (Setup tbc) - base it off region selection"]
[null,"NamedRange","Output",null,"English","Column2","Español","Français"]
[null,"z_Title",{"$f":"INDEX(T_Dictionary[#This Row],,MATCH(i_Language,T_Dictionary[#Headers],0))","v":"Roller Shade Calculator"},null,"Roller Shade Calculator"]
[null,"z_FabricSearch",{"$f":"INDEX(T_Dictionary[#This Row],,MATCH(i_Language,T_Dictionary[#Headers],0))","v":"Fabric Search"},null,"Fabric Search",null,"Búsqueda de telas"]
[null,"z_SelectFabric",{"$f":"INDEX(T_Dictionary[#This Row],,MATCH(i_Language,T_Dictionary[#Headers],0))","v":"Select Fabric"},null,"Select Fabric",null,"Seleccionar tela"]
[null,"z_FabricDensity",{"$f":"INDEX(T_Dictionary[#This Row],,MATCH(i_Language,T_Dictionary[#Headers],0))","v":"Fabric Density"},null,"Fabric Density",null,"Densidad de la tela"]
[null,"z_FabricThickness",{"$f":"INDEX(T_Dictionary[#This Row],,MATCH(i_Language,T_Dictionary[#Headers],0))","v":"Fabric Thickness"},null,"Fabric Thickness",null,"Espesor de la tela"]
[null,"z_Drop",{"$f":"INDEX(T_Dictionary[#This Row],,MATCH(i_Language,T_Dictionary[#Headers],0))","v":"DROP"},null,"DROP"]
[null,"z_Width",{"$f":"INDEX(T_Dictionary[#This Row],,MATCH(i_Language,T_Dictionary[#Headers],0))","v":"WIDTH"},null,"WIDTH"]
[null,"z_Fabric",{"$f":"INDEX(T_Dictionary[#This Row],,MATCH(i_Language,T_Dictionary[#Headers],0))","v":"Fabric"},null,"Fabric"]
[null,"z_Density",{"$f":"INDEX(T_Dictionary[#This Row],,MATCH(i_Language,T_Dictionary[#Headers],0))","v":"Density"},null,"Density"]
[null,"z_Thickness",{"$f":"INDEX(T_Dictionary[#This Row],,MATCH(i_Language,T_Dictionary[#Headers],0))","v":"Thickness"},null,"Thickness"]
[null,"z_inputWidth",{"$f":"INDEX(T_Dictionary[#This Row],,MATCH(i_Language,T_Dictionary[#Headers],0))","v":"Input Width"},null,"Input Width"]
[null,"z_inputDrop",{"$f":"INDEX(T_Dictionary[#This Row],,MATCH(i_Language,T_Dictionary[#Headers],0))","v":"Input Drop"},null,"Input Drop"]
[null,"z_selectwb",{"$f":"INDEX(T_Dictionary[#This Row],,MATCH(i_Language,T_Dictionary[#Headers],0))","v":"Select Weight Bar"},null,"Select Weight Bar"]
[null,"z_selectBallast",{"$f":"INDEX(T_Dictionary[#This Row],,MATCH(i_Language,T_Dictionary[#Headers],0))","v":"Select Ballast"},null,"Select Ballast"]
[null,"z_wbBallastWeight",{"$f":"INDEX(T_Dictionary[#This Row],,MATCH(i_Language,T_Dictionary[#Headers],0))","v":"Weight Bar + Ballast Total Weight"},null,"Weight Bar + Ballast Total Weight"]
[null,"z_selectTube",{"$f":"INDEX(T_Dictionary[#This Row],,MATCH(i_Language,T_Dictionary[#Headers],0))","v":"Select Tube"},null,"Select Tube"]
[null,"z_RecTube",{"$f":"INDEX(T_Dictionary[#This Row],,MATCH(i_Language,T_Dictionary[#Headers],0))","v":"Suggested Tube"},null,"Suggested Tube"]
[null,"z_SelectControlType",{"$f":"INDEX(T_Dictionary[#This Row],,MATCH(i_Language,T_Dictionary[#Headers],0))","v":"Select Control Type"},null,"Select Control Type"]
[null,"z_selectControl",{"$f":"INDEX(T_Dictionary[#This Row],,MATCH(i_Language,T_Dictionary[#Headers],0))","v":"Select Control"},null,"Select Control"]
[null,"z_selectBracket",{"$f":"INDEX(T_Dictionary[#This Row],,MATCH(i_Language,T_Dictionary[#Headers],0))","v":"Select Top Hardware System"},null,"Select Top Hardware System"]
[null,"z_TubeAdaptor",{"$f":"INDEX(T_Dictionary[#This Row],,MATCH(i_Language,T_Dictionary[#Headers],0))","v":"Tube Adaptor"},null,"Tube Adaptor"]
[null,"z_MotorRPM",{"$f":"INDEX(T_Dictionary[#This Row],,MATCH(i_Language,T_Dictionary[#Headers],0))","v":"Enter Custom Motor rpm"},null,"Enter Custom Motor rpm"]
[null,"z_SelectBooster",{"$f":"INDEX(T_Dictionary[#This Row],,MATCH(i_Language,T_Dictionary[#Headers],0))","v":"Select Booster"},null,"Select Booster"]
[null,"z_boosterPreturns",{"$f":"INDEX(T_Dictionary[#This Row],,MATCH(i_Language,T_Dictionary[#Headers],0))","v":"Booster Pre-turns"},null,"Booster Pre-turns"]
[null,"z_MaxBoosterPreturns",{"$f":"INDEX(T_Dictionary[#This Row],,MATCH(i_Language,T_Dictionary[#Headers],0))","v":"Max Booster Pre-turns"},null,"Max Booster Pre-turns"]
[null,"z_ReferCatalogue",{"$f":"INDEX(T_Dictionary[#This Row],,MATCH(i_Language,T_Dictionary[#Headers],0))","v":"Refer Catalogue"},null,"Refer Catalogue"]
[null,"z_ShadeTorque",{"$f":"INDEX(T_Dictionary[#This Row],,MATCH(i_Language,T_Dictionary[#Headers],0))","v":"Shade Torque"},null,"Shade Torque"]
[null,null,{"$f":"INDEX(T_Dictionary[#This Row],,MATCH(i_Language,T_Dictionary[#Headers],0))","v":0}]
[null,null,{"$f":"INDEX(T_Dictionary[#This Row],,MATCH(i_Language,T_Dictionary[#Headers],0))","v":0}]
[null,null,{"$f":"INDEX(T_Dictionary[#This Row],,MATCH(i_Language,T_Dictionary[#Headers],0))","v":0}]
[null,"z_wbunitmass",{"$f":"INDEX(T_Dictionary[#This Row],,MATCH(i_Language,T_Dictionary[#Headers],0))","v":"Weight Bar Unit Mass"},null,"Weight Bar Unit Mass"]
[null,"z_fabricwbmass",{"$f":"INDEX(T_Dictionary[#This Row],,MATCH(i_Language,T_Dictionary[#Headers],0))","v":"Fabric + Weight Bar Mass"},null,"Fabric + Weight Bar Mass",null,null,null,null,null,"=\"Fabric+Weight Bar Mass\"&IF(o_LinkActive=\"Yes\",\" For All Shades\",\"\")"]
[null,"z_fabricwbtubemass",{"$f":"INDEX(T_Dictionary[#This Row],,MATCH(i_Language,T_Dictionary[#Headers],0))","v":"Fabric + Weight Bar + Tube Mass"},null,"Fabric + Weight Bar + Tube Mass"]
[null,"z_TubeRotations",{"$f":"INDEX(T_Dictionary[#This Row],,MATCH(i_Language,T_Dictionary[#Headers],0))","v":"# Tube Rotations"},null,"# Tube Rotations"]
[null,"z_rollDiameter",{"$f":"INDEX(T_Dictionary[#This Row],,MATCH(i_Language,T_Dictionary[#Headers],0))","v":"Fabric Roll Diameter"},null,"Fabric Roll Diameter"]
[null,"z_CassetteRollDia",{"$f":"INDEX(T_Dictionary[#This Row],,MATCH(i_Language,T_Dictionary[#Headers],0))","v":"Roll Diameter required of top hardware"},null,"Roll Diameter required of top hardware"]
[null,"z_TubeDeflection",{"$f":"INDEX(T_Dictionary[#This Row],,MATCH(i_Language,T_Dictionary[#Headers],0))","v":"Tube Deflection"},null,{"$f":"\"Tube Deflection\"&IF(o_LinkActive=\"Yes\",\" For Shade 1\",\"\")","v":"Tube Deflection"}]
[null,"z_MotorDropS",{"$f":"INDEX(T_Dictionary[#This Row],,MATCH(i_Language,T_Dictionary[#Headers],0))","v":"Motor Run Time for Drop"},null,"Motor Run Time for Drop"]
[null,"z_ControlCapacity",{"$f":"INDEX(T_Dictionary[#This Row],,MATCH(i_Language,T_Dictionary[#Headers],0))","v":"Control Holding Capacity"},null,"Control Holding Capacity"]
[null,"z_UserEffortLift",{"$f":"INDEX(T_Dictionary[#This Row],,MATCH(i_Language,T_Dictionary[#Headers],0))","v":"User Effort (Lifting)"},null,"User Effort (Lifting)"]
[null,"z_UserEffortLowering",{"$f":"INDEX(T_Dictionary[#This Row],,MATCH(i_Language,T_Dictionary[#Headers],0))","v":"User Effort (Lowering)"},null,"User Effort (Lowering)"]
[null,"z_ChainLength",{"$f":"INDEX(T_Dictionary[#This Row],,MATCH(i_Language,T_Dictionary[#Headers],0))","v":"Min. Chain Length for Ball stop"},null,"Min. Chain Length for Ball stop"]
[null,"z_ChainLoopLength",{"$f":"INDEX(T_Dictionary[#This Row],,MATCH(i_Language,T_Dictionary[#Headers],0))","v":"Loop Length"},null,"Loop Length"]
[null,null,{"$f":"INDEX(T_Dictionary[#This Row],,MATCH(i_Language,T_Dictionary[#Headers],0))","v":0}]
[null,null,{"$f":"INDEX(T_Dictionary[#This Row],,MATCH(i_Language,T_Dictionary[#Headers],0))","v":0}]
[null,"z_Units",{"$f":"INDEX(T_Dictionary[#This Row],,MATCH(i_Language,T_Dictionary[#Headers],0))","v":"Units"},null,"Units"]
[null,"z_Language",{"$f":"INDEX(T_Dictionary[#This Row],,MATCH(i_Language,T_Dictionary[#Headers],0))","v":"Language"},null,"Language"]
[null,"z_Region",{"$f":"INDEX(T_Dictionary[#This Row],,MATCH(i_Language,T_Dictionary[#Headers],0))","v":"Region"},null,"Region"]
[null,"z_lastUpdate",{"$f":"INDEX(T_Dictionary[#This Row],,MATCH(i_Language,T_Dictionary[#Headers],0))","v":"Release"},null,"Release"]
[null,"z_Outputs",{"$f":"INDEX(T_Dictionary[#This Row],,MATCH(i_Language,T_Dictionary[#Headers],0))","v":"OUTPUTS"},null,"OUTPUTS"]
[null,"z_Inputs",{"$f":"INDEX(T_Dictionary[#This Row],,MATCH(i_Language,T_Dictionary[#Headers],0))","v":"INPUTS"},null,"INPUTS"]
[null,"z_FabricNotes",{"$f":"INDEX(T_Dictionary[#This Row],,MATCH(i_Language,T_Dictionary[#Headers],0))","v":"FABRIC NOTES"},null,"FABRIC NOTES"]
[null,"z_seconds",{"$f":"INDEX(T_Dictionary[#This Row],,MATCH(i_Language,T_Dictionary[#Headers],0))","v":"seconds"},null,"seconds",null,"segundos"]
[null,"z_Turns",{"$f":"INDEX(T_Dictionary[#This Row],,MATCH(i_Language,T_Dictionary[#Headers],0))","v":"turns"},null,"turns"]
[]
[null,"z_SelectaControl",{"$f":"INDEX(T_Dictionary[#This Row],,MATCH(i_Language,T_Dictionary[#Headers],0))","v":"Select a Control."},null,"Select a Control."]
[null,"z_CustomEntry",{"$f":"INDEX(T_Dictionary[#This Row],,MATCH(i_Language,T_Dictionary[#Headers],0))","v":"#Custom Entry"},null,"#Custom Entry",null,"spanish custom entry"]
[null,"z_EnterValue",{"$f":"INDEX(T_Dictionary[#This Row],,MATCH(i_Language,T_Dictionary[#Headers],0))","v":"Enter value"},null,"Enter value"]
[null,"z_AvgFabric",{"$f":"INDEX(T_Dictionary[#This Row],,MATCH(i_Language,T_Dictionary[#Headers],0))","v":"_Average Fabric"},null,"_Average Fabric"]
[null,"z_ESA_BoosterType",{"$f":"INDEX(T_Dictionary[#This Row],,MATCH(i_Language,T_Dictionary[#Headers],0))","v":"Booster Type"},null,"Booster Type","Booster Type","spanish Booster Type"]
[null,"z_ESA_Position",{"$f":"INDEX(T_Dictionary[#This Row],,MATCH(i_Language,T_Dictionary[#Headers],0))","v":"Booster Position"},null,"Booster Position","Booster Position","spanish Booster Position"]
[null,"z_ESA_preTurn",{"$f":"INDEX(T_Dictionary[#This Row],,MATCH(i_Language,T_Dictionary[#Headers],0))","v":"Booster Pre-turns"},null,"Booster Pre-turns","Booster Pre-turns","spanish Booster Pre-turns"]
[null,"z_ESA","Easy Spring Air",null,"Easy Spring Air","Easy Spring Air","spanishESA"]
[null,"z_Clutch",{"$f":"INDEX(T_Dictionary[#This Row],,MATCH(i_Language,T_Dictionary[#Headers],0))","v":"Clutch"},null,"Clutch",null,"SpanishClutch"]
[null,"z_Motor",{"$f":"INDEX(T_Dictionary[#This Row],,MATCH(i_Language,T_Dictionary[#Headers],0))","v":"Motor"},null,"Motor",null,"SpanishMotor"]
[null,"z_TopHardware",{"$f":"INDEX(T_Dictionary[#This Row],,MATCH(i_Language,T_Dictionary[#Headers],0))","v":"Top Hardware"},null,"Top Hardware"]
[null,"z_Tube",{"$f":"INDEX(T_Dictionary[#This Row],,MATCH(i_Language,T_Dictionary[#Headers],0))","v":"Tube"},null,"Tube"]
[null,"z_WeightBar",{"$f":"INDEX(T_Dictionary[#This Row],,MATCH(i_Language,T_Dictionary[#Headers],0))","v":"Weight Bar"},null,"Weight Bar"]
[null,"z_Ballast",{"$f":"INDEX(T_Dictionary[#This Row],,MATCH(i_Language,T_Dictionary[#Headers],0))","v":"Ballast"},null,"Ballast"]
[null,"z_Control",{"$f":"INDEX(T_Dictionary[#This Row],,MATCH(i_Language,T_Dictionary[#Headers],0))","v":"Control"},null,"Control"]
[null,"z_CustomWeight",{"$f":"INDEX(T_Dictionary[#This Row],,MATCH(i_Language,T_Dictionary[#Headers],0))","v":"Custom Weight"},null,"Custom Weight"]
[null,"z_CustomFabDensity",{"$f":"INDEX(T_Dictionary[#This Row],,MATCH(i_Language,T_Dictionary[#Headers],0))","v":"Custom Fabric Density"},null,"Custom Fabric Density"]
[null,"z_CustomFabThickness",{"$f":"INDEX(T_Dictionary[#This Row],,MATCH(i_Language,T_Dictionary[#Headers],0))","v":"Custom Fabric Thickness"},null,"Custom Fabric Thickness"]
[null,"z_Metric",{"$f":"INDEX(T_Dictionary[#This Row],,MATCH(i_Language,T_Dictionary[#Headers],0))","v":"Metric"},null,"Metric",null,"Métrico"]
[null,"z_Imperial",{"$f":"INDEX(T_Dictionary[#This Row],,MATCH(i_Language,T_Dictionary[#Headers],0))","v":"Imperial"},null,"Imperial",null,"Imperial"]
[null,"z_None",{"$f":"INDEX(T_Dictionary[#This Row],,MATCH(i_Language,T_Dictionary[#Headers],0))","v":"None"},null,"None"]
[null,"z_Yes",{"$f":"INDEX(T_Dictionary[#This Row],,MATCH(i_Language,T_Dictionary[#Headers],0))","v":"Yes"},null,"Yes"]
[null,"z_No",{"$f":"INDEX(T_Dictionary[#This Row],,MATCH(i_Language,T_Dictionary[#Headers],0))","v":"No"},null,"No"]
[null,"z_Show",{"$f":"INDEX(T_Dictionary[#This Row],,MATCH(i_Language,T_Dictionary[#Headers],0))","v":"Show"},null,"Show",null,"spanishshow"]
[null,"z_Hide",{"$f":"INDEX(T_Dictionary[#This Row],,MATCH(i_Language,T_Dictionary[#Headers],0))","v":"Hide"},null,"Hide",null,"spanishhide"]
[null,"z_Global",{"$f":"INDEX(T_Dictionary[#This Row],,MATCH(i_Language,T_Dictionary[#Headers],0))","v":"Global"},null,"Global"]
[null,"z_NoteFabric",{"$f":"INDEX(T_Dictionary[#This Row],,MATCH(i_Language,T_Dictionary[#Headers],0))","v":"Type text here to filter fabric dropdown list."},null,"Type text here to filter fabric dropdown list."]
[null,"z_NoteSelect",{"$f":"INDEX(T_Dictionary[#This Row],,MATCH(i_Language,T_Dictionary[#Headers],0))","v":"Select from dropdown list."},null,"Select from dropdown list."]
[null,"z_ProductOptionsText1",{"$f":"INDEX(T_Dictionary[#This Row],,MATCH(i_Language,T_Dictionary[#Headers],0))","v":"Put an 'X' in the hide column to remove from dropdown options."},null,"Put an 'X' in the hide column to remove from dropdown options."]
[null,"z_NoOptions",{"$f":"INDEX(T_Dictionary[#This Row],,MATCH(i_Language,T_Dictionary[#Headers],0))","v":"No suitable options."},null,"No suitable options.",null,null,"no options french"]
[null,"z_Fabric_RR_Yes",{"$f":"INDEX(T_Dictionary[#This Row],,MATCH(i_Language,T_Dictionary[#Headers],0))","v":"Fabric can be railroaded."},null,"Fabric can be railroaded."]
[null,"z_Fabric_RR_No",{"$f":"INDEX(T_Dictionary[#This Row],,MATCH(i_Language,T_Dictionary[#Headers],0))","v":"Fabric cannot be railroaded."},null,"Fabric cannot be railroaded."]
[null,"z_FabricWidth",{"$f":"INDEX(T_Dictionary[#This Row],,MATCH(i_Language,T_Dictionary[#Headers],0))","v":"Fabric roll width"},null,"Fabric roll width"]
[null,"z_NoData",{"$f":"INDEX(T_Dictionary[#This Row],,MATCH(i_Language,T_Dictionary[#Headers],0))","v":"No Data."},null,"No Data."]
[null,"z_motorRunTimes",{"$f":"INDEX(T_Dictionary[#This Row],,MATCH(i_Language,T_Dictionary[#Headers],0))","v":"Motor Run Time (s)"},null,"Motor Run Time (s)"]
[null,"z_TableSetup",{"$f":"INDEX(T_Dictionary[#This Row],,MATCH(i_Language,T_Dictionary[#Headers],0))","v":"TABLE SETUP"},null,"TABLE SETUP"]
[null,"z_WidthStart",{"$f":"INDEX(T_Dictionary[#This Row],,MATCH(i_Language,T_Dictionary[#Headers],0))","v":"Width Start"},null,"Width Start"]
[null,"z_WidthIncrement",{"$f":"INDEX(T_Dictionary[#This Row],,MATCH(i_Language,T_Dictionary[#Headers],0))","v":"Width Increment"},null,"Width Increment"]
[null,"z_DropStart",{"$f":"INDEX(T_Dictionary[#This Row],,MATCH(i_Language,T_Dictionary[#Headers],0))","v":"Drop Start"},null,"Drop Start"]
[null,"z_DropIncrement",{"$f":"INDEX(T_Dictionary[#This Row],,MATCH(i_Language,T_Dictionary[#Headers],0))","v":"Drop Increment"},null,"Drop Increment"]
[null,"z_ChartNote1",{"$f":"INDEX(T_Dictionary[#This Row],,MATCH(i_Language,T_Dictionary[#Headers],0))","v":"Allowable tube deflection & within control capacity"},null,"Allowable tube deflection & within control capacity"]
[null,"z_ChartNote2",{"$f":"INDEX(T_Dictionary[#This Row],,MATCH(i_Language,T_Dictionary[#Headers],0))","v":"Allowable tube deflection outside of control capacity"},null,"Allowable tube deflection outside of control capacity"]
[null,"z_ChartNote3",{"$f":"INDEX(T_Dictionary[#This Row],,MATCH(i_Language,T_Dictionary[#Headers],0))","v":"Control Capacity Only (excluding tube deflection, user effort & other factors)"},null,"Control Capacity Only (excluding tube deflection, user effort & other factors)"]
[null,"z_ChartNote4",{"$f":"INDEX(T_Dictionary[#This Row],,MATCH(i_Language,T_Dictionary[#Headers],0))","v":"Control Capacity with spring assist (if selected)"},null,"Control Capacity with spring assist (if selected)"]
[null,"z_BktRollDiameter",{"$f":"INDEX(T_Dictionary[#This Row],,MATCH(i_Language,T_Dictionary[#Headers],0))","v":"Bracket Max Roll Diameter"},null,"Bracket Max Roll Diameter"]
[null,"z_CustomFData",{"$f":"INDEX(T_Dictionary[#This Row],,MATCH(i_Language,T_Dictionary[#Headers],0))","v":"_Custom Fabric Data"},null,"_Custom Fabric Data",null,"spanishcustomfdata"]
[null,"z_CustomWBData",{"$f":"INDEX(T_Dictionary[#This Row],,MATCH(i_Language,T_Dictionary[#Headers],0))","v":"_Custom Weight Bar Data"},null,"_Custom Weight Bar Data"]
[null,"z_FinishInputs",{"$f":"INDEX(T_Dictionary[#This Row],,MATCH(i_Language,T_Dictionary[#Headers],0))","v":"Complete inputs for recommendation."},null,"Complete inputs for recommendation."]
[null,"z_NoteSelectTube","Select Tube"]
[null,"z_minSystemWidth","Refer to Product Spec for minimum System widths"]

{"sheet":"_Parameters","index":12,"n_rows":89,"n_cols":44,"rows_kept":89,"cut":false,"hidden":true,"merged":[[56,17,56,19],[57,17,57,19],[96,18,96,19],[77,17,77,19],[76,17,76,19],[71,17,71,19],[70,17,70,19],[64,17,64,19],[65,17,65,19],[85,17,85,19],[86,17,86,19],[25,17,25,19],[26,17,26,19],[43,17,43,19],[44,17,44,19],[35,17,35,18],[36,17,36,19],[16,17,16,19],[2,1,2,3],[4,17,4,19],[5,17,5,19],[6,17,6,19],[15,17,15,19],[11,1,11,3],[11,8,11,9],[11,11,11,12],[11,5,11,6]]}
[]
[null,null,null,null,null,null,null,null,null,null,null,null,null,null,null,null,null,null,null,null,null,null,null,null,null,null,null,null,null,null,null,null,"L_Units","L_Language","YesNo","Region","L_SheetStatus","ShowHide",null,null,null,null,"DocumentName","CurrentVersion"]
[null,"GENERAL LIMITS",null,null,null,null,null,null,null,null,null,null,null,null,null,null,null,"&\" (\"&ROUND((C29-(Booster_k*(@Tube_Rotations/2)))/Booster_k,2)&\")\"",null,null,null,"Index","Metric","Imperial","Factor",null,"Conversion factors:",null,null,null,null,null,{"$f":"z_Metric","v":"Metric"},"English","Yes","Global","Development",{"$f":"z_Show","v":"Show"},null,null,null,null,"RollerShadeCalculator","1.19"]
[null,"User Effort",{"$f":"5*IF(i_Units=\"Metric\",1,INDEX(T_Units[Factor],MATCH(\"kg\",T_Units[Metric],0)))","v":5},{"$f":"INDEX(INDIRECT(\"T_Units[\"&i_Units&\"]\"),MATCH(\"kg\",T_Units[Metric],0))","v":"kg"},null,null,null,null,null,null,null,null,null,null,null,null,null,null,null,null,null,1,"mm","in",{"$f":"1/25.4","v":3.937007874015748E-2},null,"1 lb =",0.45359237000000002,"kg",null,null,null,{"$f":"z_Imperial","v":"Imperial"},"Español","No","AU","Release",{"$f":"z_Hide","v":"Hide"}]
[null,"User Effort2",null,null,null,null,null,null,null,null,null,null,null,null,null,null,null,"REFERENCE DATA",null,null,null,2,"kg","lb",2.2046226199999999,null,"1 kg=",2.2046226199999999,"lb",null,null,null,null,"Français",null,"US","Release - FFA"]
[null,"Tube Deflection Limit",{"$f":"i_TubeDeflectionLimit*10","v":1.05},"mm/m",null,null,null,{"$f":"i_Fdensity_Custom","v":0},null,null,null,null,null,null,null,null,null,"Tube 1",null,null,null,3,"Nm","lb·ft",0.74,null,"1 m=",1.0936132999999999,"yd"]
[null,"Tube Deflection Limit 2",{"$f":"Deflection_limit","v":1.05},"mm/m",null,null,null,null,null,null,null,null,null,null,null,null,null,{"$f":"i_Tube","v":0},null,null,null,4,"g/m²","oz/yd²",{"$f":"1/33.90574744","v":2.9493524711986116E-2},null,"1 yd=",0.91439999999999999,"m"]
[null,"Tube Deflection Limit 3",{"$f":"Deflection_Limit2","v":1.05},"mm/m",null,null,null,null,null,null,null,null,null,null,null,null,null,"Tube OD",{"$f":"INDEX(Tube_Lookup,MATCH(i_Tube,Tube_Description,0),MATCH(\"Tube OD\",Tube_Headers,0))","v":{"$error":"#N/A"}},"mm",null,5,"g/m","lb/ft",6.7196900000000002E-4,null,"1 inch",25.4,"mm"]
[null,"Booster Charts Safety Factor",0,"Turns",null,null,null,null,null,null,null,null,null,null,null,null,null,"I_Min",{"$f":"INDEX(Tube_Lookup,MATCH(i_Tube,Tube_Description,0),MATCH(\"I_Min\",Tube_Headers,0))","v":{"$error":"#N/A"}},"mm⁴",null,6,"kg/m","lb/ft",0.67196900000000004,null,"1mm",3.9370079000000002E-2,"inch"]
[null,"Zipscreen Deflection Allowance",4,"mm/m",null,null,null,null,null,null,null,null,null,null,null,null,null,"IE",{"$f":"INDEX(Tube_Lookup,MATCH(i_Tube,Tube_Description,0),MATCH(\"EI\",Tube_Headers,0))","v":{"$error":"#N/A"}},"Nm²",null,7,"m","ft",3.28084,null,"1 yd=",36,"inches"]
[null,null,null,null,null,null,null,null,null,null,null,null,null,null,null,null,null,"Unit Mass",{"$f":"INDEX(Tube_Lookup,MATCH(i_Tube,Tube_Description,0),MATCH(\"Mass/m\",Tube_Headers,0))","v":{"$error":"#N/A"}},"kg/m",null,8,null,null,null,null,"1 oz, ounce=",28.349523099999999,"g"]
[null,"SHADE 1 / ALL SHADES",null,null,null,"SHADE 1 ONLY",null,null,"SHADE 2",null,null,"SHADE 3",null,{"$f":"Design_Width+Design_Width2+Design_Width3","v":0},"m","Design_Width_Total",null,"Max Area",{"$f":"INDEX(Tube_Lookup,MATCH(i_Tube,Tube_Description,0),MATCH(\"Max Area\",Tube_Headers,0))","v":{"$error":"#N/A"}},"m²",null,9,null,null,null,null,"1 g",3.5273961999999999E-2,"oz",null,null,null,null,null,null,"2023-04-21"]
[null,"Design Width (Converted)",{"$f":"IF(i_Units=\"Metric\",i_width/1000,CONVERT(i_width,\"in\",\"m\"))","v":0},"m",null,null,null,null,{"$f":"IF(i_Units=\"Metric\",i_width2/1000,CONVERT(i_width2,\"in\",\"m\"))","v":0},"m",null,{"$f":"IF(i_Units=\"Metric\",i_width3/1000,CONVERT(i_width3,\"in\",\"m\"))","v":0},"m",{"$f":"MAX(Design_Width,Design_Width2,Design_Width3)","v":0},"m","Design_width_max",null,"Total Mass",{"$f":"INDEX(Tube_Lookup,MATCH(i_Tube,Tube_Description,0),MATCH(\"Mass/m\",Tube_Headers,0))*Design_Width","v":{"$error":"#N/A"}},"kg",null,null,null,null,null,null,"lb/yd -> kg/m =",0.49605464799999999,null,null,null,null,"Category","Internal",null,"L_ControlType moved to dynamic list driven by region"]
[null,"Design Drop (Converted)",{"$f":"IF(i_Units=\"Metric\",i_Drop/1000,CONVERT(i_Drop,\"in\",\"m\"))","v":0},"m",null,null,null,null,null,null,null,null,null,null,null,null,null,"Max Length",{"$f":"IFERROR(INDEX(Tube_Lookup,MATCH(i_Tube,Tube_Description,0),MATCH(\"MaxLength\",Tube_Headers,0)),\"\")","v":""},"m",null,null,null,null,null,null,"oz/yd² -> g/m²=",33.905747439999999]
[{"$f":"IFERROR(INDEX(T_Fabric[Density_Metric],MATCH(i_Fabric,T_Fabric[Description],0))/1000,\"\")","v":""},"Fabric Density",{"$f":"IFERROR(IF(i_Fdensity_Custom<>\"\",i_Fdensity_Custom/1000*IF(i_units_Out=\"Metric\",1,1/INDEX(T_Units[Factor],MATCH(\"g/m²\",T_Units[Metric],0))),INDEX(T_Fabric[Density_Metric],MATCH(i_Fabric,T_Fabric[Description],0))/1000),\"\")","v":""},"kg/m²",null,null,null,null,null,null,null,null,null,null,null,null,null,null,null,null,null,null,null,null,null,null,"1 lb/ft",1488.1639399999999,"g/m"]
[{"$f":"IFERROR(INDEX(T_Fabric[Thickness_Metric],MATCH(i_Fabric,T_Fabric[Description],0)),\"\")","v":""},"Fabric Thickness",{"$f":"IFERROR(IF(i_FThickness_Custom<>\"\",i_FThickness_Custom/IF(i_units_Out=\"Metric\",1,INDEX(T_Units[Factor],MATCH(\"mm\",T_Units[Metric],0))),INDEX(T_Fabric[Thickness_Metric],MATCH(i_Fabric,T_Fabric[Description],0))),\"\")","v":""},"mm",null,null,null,null,null,null,null,null,null,null,null,null,null,"Tube 2",null,null,null,null,null,null,null,null,"1 g/m",6.7196897500000001E-4,"lb/ft"]
[null,"o_FabricCustom",{"$f":"IF(OR(i_Fdensity_Custom<>\"\",i_FThickness_Custom<>\"\"),\"True\",\"False\")","v":"False"},null,null,null,null,null,null,null,null,null,null,null,null,null,null,{"$f":"i_tube2","v":{"$error":"#NAME?"}},null,null,null,null,null,null,null,null,"1 GPa",145037.73772999999,"psi",null,null,null,"English Outputs for formulas"]
[null,null,null,null,null,null,null,null,null,null,null,null,null,null,null,null,null,"Tube OD",{"$f":"INDEX(Tube_Lookup,MATCH(i_tube2,Tube_Description,0),MATCH(\"Tube OD\",Tube_Headers,0))","v":{"$error":"#NAME?"}},"mm",null,null,null,null,null,null,"inch ⁴",{"$f":"41.62314256","v":41.623142559999998},"cm⁴",null,null,"i_units_Out",{"$f":"INDEX(T_Dictionary[English],MATCH(i_Units,_Dictionary!$C$3:$C$90,0))","v":"Metric"}]
[null,"Fabric Length",{"$f":"Design_Drop+(PI()*Tube_OD/1000)*i_pwa","v":{"$error":"#N/A"}},"m",null,null,null,null,null,null,null,null,null,null,null,null,null,"I_Min",{"$f":"INDEX(Tube_Lookup,MATCH(i_tube2,Tube_Description,0),MATCH(\"I_Min\",Tube_Headers,0))","v":{"$error":"#NAME?"}},"mm⁴",null,null,null,null,null,null,"1 lbf·ft=",1.355,"Nm"]
[null,"o_Fabric mass per metre of drop",{"$f":"Design_Width*(Fabric_Density)","v":{"$error":"#VALUE!"}},"kg/m",null,null,null,null,{"$f":"Design_Width2*(Fabric_Density)","v":{"$error":"#VALUE!"}},"kg/m",null,{"$f":"Design_Width3*(Fabric_Density)","v":{"$error":"#VALUE!"}},"kg/m",{"$f":"Fabric_UnitMass+Fabric_UnitMass2+Fabric_UnitMass3","v":{"$error":"#VALUE!"}},null,"Fabric_UnitMass_Total",null,"IE",{"$f":"INDEX(Tube_Lookup,MATCH(i_tube2,Tube_Description,0),MATCH(\"EI\",Tube_Headers,0))","v":{"$error":"#NAME?"}},"Nm²",null,null,null,null,null,null,"1 in·lbf=",0.11298482899999999,"Nm"]
[null,"o_weight bar mass per metre of width",{"$f":"(Ballast_UnitMass+wb_UnitMass)","v":0.30599999999999999},"kg/m",null,null,null,null,null,null,null,null,null,null,null,null,null,"Unit Mass",{"$f":"INDEX(Tube_Lookup,MATCH(i_tube2,Tube_Description,0),MATCH(\"Mass/m\",Tube_Headers,0))","v":{"$error":"#NAME?"}},"kg/m"]
[null,null,null,null,null,null,null,null,null,null,null,null,null,null,null,null,null,"Max Area",{"$f":"INDEX(Tube_Lookup,MATCH(i_tube2,Tube_Description,0),MATCH(\"Max Area\",Tube_Headers,0))","v":{"$error":"#NAME?"}},"m²"]
[null,"Weight Bar Unit Mass",{"$f":"wb_UnitMass+Ballast_TotalMass","v":0.30599999999999999},"kg/m",null,null,null,null,null,null,null,null,null,null,null,null,null,"Total Mass",{"$f":"INDEX(Tube_Lookup,MATCH(i_tube2,Tube_Description,0),MATCH(\"Mass/m\",Tube_Headers,0))*Design_Width","v":{"$error":"#NAME?"}},"kg"]
[null,"o_Fabric + Weight Bar Mass",{"$f":"((Fabric_Density*Fabric_Length)+wb_UnitMass+Ballast_UnitMass)*Design_Width+o_fabric_wb_mass2+o_fabric_wb_mass3","v":{"$error":"#VALUE!"}},"kg",null,null,null,null,{"$f":"((Fabric_Density*Fabric_Length)+wb_UnitMass+Ballast_UnitMass)*Design_Width2","v":{"$error":"#VALUE!"}},"kg",null,{"$f":"((Fabric_Density*Fabric_Length)+wb_UnitMass+Ballast_UnitMass)*Design_Width3","v":{"$error":"#VALUE!"}},"kg",null,null,null,null,"Max Length",{"$f":"IFERROR(INDEX(Tube_Lookup,MATCH(i_tube2,Tube_Description,0),MATCH(\"MaxLength\",Tube_Headers,0)),\"\")","v":""},"m"]
[null,"o_Fabric + Weight Bar + Tube Mass",{"$f":"((Fabric_Density*Fabric_Length)+wb_UnitMass+Ballast_UnitMass+Tube_UnitMass)*Design_Width","v":{"$error":"#VALUE!"}},"kg",null,null,null,null,{"$f":"((Fabric_Density*Fabric_Length)+wb_UnitMass+Ballast_UnitMass+Tube_UnitMass)*Design_Width2","v":{"$error":"#VALUE!"}},"kg",null,{"$f":"((Fabric_Density*Fabric_Length)+wb_UnitMass+Ballast_UnitMass+Tube_UnitMass)*Design_Width3","v":{"$error":"#VALUE!"}},"kg"]
[null,null,null,null,null,null,null,null,null,null,null,null,null,null,null,null,null,"Tube 3"]
[null,"T_Max  (biggest booster)",{"$f":"INDEX(T_Controls[Holding Capacity MAX],MATCH(i_Control,T_Controls[Description],0))","v":{"$error":"#N/A"}},"Nm",null,null,null,null,null,null,null,null,null,null,null,null,null,{"$f":"i_tube3","v":{"$error":"#NAME?"}}]
[null,"T_Max (no booster)",{"$f":"IF(i_Tube<>\"\",MAX(_LiveData!O11:O100),\"\")","v":""},"Nm (ALL SHADES)",null,{"$f":"(9.81*(wb_Ballast_UnitMass*Design_Width+Fabric_UnitMass*Design_Drop))*Tube_OD/2/1000","v":{"$error":"#VALUE!"}},"Nm",null,{"$f":"(9.81*(wb_Ballast_UnitMass*Design_Width2+Fabric_UnitMass2*Design_Drop))*Tube_OD/2/1000","v":{"$error":"#VALUE!"}},"Nm",null,{"$f":"(9.81*(wb_Ballast_UnitMass*Design_Width3+Fabric_UnitMass3*Design_Drop))*Tube_OD/2/1000","v":{"$error":"#VALUE!"}},"Nm",null,null,null,null,"Tube OD",{"$f":"INDEX(Tube_Lookup,MATCH(i_tube3,Tube_Description,0),MATCH(\"Tube OD\",Tube_Headers,0))","v":{"$error":"#NAME?"}},"mm"]
[null,{"$f":"\"T_Midpoint @ \" &ROUND(_xlfn.SINGLE(Tube_Rotations)/2,1)&\" turns\"","v":{"$error":"#N/A"}},{"$f":"(((((g*(wb_Ballast_UnitMass*Design_Width_Total+(Fabric_Density)*Design_Width_Total*((Design_Drop-((PI()/1000)*((Tube_Rotations/2)*Tube_OD+Fabric_Thickness*(Tube_Rotations/2)^2)))))*((((o_RollDiameter*0.5)-Fabric_Thickness*(Tube_Rotations/2)))/1000)/Control_Ratio)))))","v":{"$error":"#VALUE!"}},"Nm",null,null,null,null,null,null,null,null,null,null,null,null,null,"I_Min",{"$f":"INDEX(Tube_Lookup,MATCH(i_tube3,Tube_Description,0),MATCH(\"I_Min\",Tube_Headers,0))","v":{"$error":"#NAME?"}},"mm⁴",null,{"$f":"OR(CurrentRevision=VALUE(V31),CurrentRevision>=VALUE(V31))","v":true}]
[null,"T_min (0 drop)",{"$f":"MIN(_LiveData!O11:O100)","v":0},"Nm",null,null,null,null,null,null,null,null,null,null,null,null,null,"IE",{"$f":"INDEX(Tube_Lookup,MATCH(i_tube3,Tube_Description,0),MATCH(\"EI\",Tube_Headers,0))","v":{"$error":"#NAME?"}},"Nm²",null,1.2,"CurrentRevision"]
[null,"Target Spring Rate (AG Calc)",{"$f":"(C28-C30)/_xlfn.SINGLE(Tube_Rotations)","v":{"$error":"#VALUE!"}},"Nm/Turn",null,null,null,null,null,null,null,null,null,null,null,null,null,"Unit Mass",{"$f":"INDEX(Tube_Lookup,MATCH(i_tube3,Tube_Description,0),MATCH(\"Mass/m\",Tube_Headers,0))","v":{"$error":"#NAME?"}},"kg/m",null,{"$f":"LookupRevision","v":"1.19"},"LookupRevision"]
[null,"# Preturns Recommended (AS)",{"$f":"ROUNDUP((C29-(Booster_k*(_xlfn.SINGLE(Tube_Rotations)/2)))/Booster_k,0)","v":{"$error":"#VALUE!"}},"Turns",null,null,null,null,null,null,null,null,null,null,null,null,null,"Max Area",{"$f":"INDEX(Tube_Lookup,MATCH(i_tube3,Tube_Description,0),MATCH(\"Max Area\",Tube_Headers,0))","v":{"$error":"#NAME?"}},"m²"]
[null,"# Preturns Recommended (AG)",{"$f":"C30/Booster_k","v":0},"Turns",null,null,null,null,null,null,null,null,null,null,null,null,null,"Total Mass",{"$f":"INDEX(Tube_Lookup,MATCH(i_tube3,Tube_Description,0),MATCH(\"Mass/m\",Tube_Headers,0))*Design_Width","v":{"$error":"#NAME?"}},"kg"]
[null,null,null,null,null,null,null,null,null,null,null,null,null,null,null,null,null,"Max Length",{"$f":"IFERROR(INDEX(Tube_Lookup,MATCH(i_tube3,Tube_Description,0),MATCH(\"MaxLength\",Tube_Headers,0)),\"\")","v":""},"m",null,{"$f":"'1. Start'!G5:I5","v":"Current Version."},0,0]
[null,"estimated pre-turns, avg 2 methods",{"$f":"IF(AVERAGE(C32:C33)<0,\"Select smaller booster.\",AVERAGE(C32:C33))","v":{"$error":"#VALUE!"}}]
[null,null,null,null,null,null,null,null,null,null,null,null,null,null,null,null,null,"Weight Bar"]
[null,"Booster help MAX kg",{"$f":"(Booster_TMax/((Tube_OD/2/1000)))/g","v":{"$error":"#N/A"}},"kg",null,null,null,null,null,null,null,null,null,null,null,null,null,{"$f":"i_wb","v":"D30 Medium Bottom Rail"}]
[null,null,null,null,null,null,null,null,null,null,null,null,null,null,null,null,null,"Length",{"$f":"Design_Width","v":0},"m"]
[null,"user effort difference",{"$f":"ABS('1. Start'!L17-'1. Start'!L16)","v":{"$error":"#VALUE!"}},"kg"]
[]
[null,"o_RollDiameter",{"$f":"(_xlfn.SINGLE(Tube_Rotations)+i_pwa)*Fabric_Thickness*2+Tube_OD","v":{"$error":"#N/A"}},"mm",null,null,null,null,null,null,null,null,null,null,null,null,null,"Unit Mass",{"$f":"INDEX(T_WeightBars[Mass/m],MATCH(i_wb,T_WeightBars[Description],0))/1000","v":0.30599999999999999},"kg/m"]
[null,null,null,null,null,null,null,null,null,null,null,null,null,null,null,null,null,"Total Mass",{"$f":"wb_UnitMass*Design_Width","v":0},"kg"]
[]
[null,null,"CHECK FULL FORMULA MATCHES TUBE_DEFLECTION NAME",null,null,null,null,null,null,null,null,null,null,null,null,null,null,"Control"]
[null,"TUBE DEFLECTION",{"$f":"(5/384)*((g*(Fabric_Density*Design_Drop+Tube_UnitMass+wb_UnitMass+Ballast_UnitMass)*Design_Width^4)/Tube_IE)*1000","v":{"$error":"#VALUE!"}},"mm",null,{"$f":"(5/384)*((g*(Fabric_Density*Design_Drop+Tube_UnitMass+wb_UnitMass+Ballast_UnitMass)*Design_Width2^4)/Tube_IE)*1000","v":{"$error":"#VALUE!"}},"mm",null,{"$f":"(5/384)*((g*(Fabric_Density*Design_Drop+Tube_UnitMass+wb_UnitMass+Ballast_UnitMass)*Design_Width2^4)/Tube_IE)*1000","v":{"$error":"#VALUE!"}},"mm",null,{"$f":"(5/384)*((g*(Fabric_Density*Design_Drop+Tube_UnitMass+wb_UnitMass+Ballast_UnitMass)*Design_Width3^4)/Tube_IE)*1000","v":{"$error":"#VALUE!"}},"mm",null,null,null,null,{"$f":"i_Control","v":0}]
[null,"TUBE ROTATIONS",{"$f":"(-Tube_OD+SQRT(Tube_OD^2+4*Fabric_Thickness*Design_Drop*1000/PI()))/(2*Fabric_Thickness)","v":{"$error":"#N/A"}},"Turns",null,null,null,null,null,null,null,null,null,null,null,null,null,"Diameter ",{"$f":"INDEX(Control_Lookup,MATCH(i_Control,Control_Description,0),MATCH(\"Diameter\",Control_Headers,0))","v":{"$error":"#N/A"}},"mm"]
[null,null,{"$f":"(5/384)*((g*(Fabric_Density*Design_Drop+Tube_UnitMass+wb_UnitMass+Ballast_UnitMass)*Design_Width^4)/Tube_IE)*1000","v":{"$error":"#VALUE!"}},"mm",null,null,null,null,null,null,null,null,null,null,null,null,null,"Capacity",{"$f":"INDEX(Control_Lookup,MATCH(i_Control,Control_Description,0),MATCH(\"Holding Capacity\",Control_Headers,0))","v":{"$error":"#N/A"}},"Nm"]
[null,null,{"$f":"IFERROR(Tube_Deflection,\"ERROR\")","v":"ERROR"},"mm",null,null,null,null,null,null,null,null,null,null,null,null,null,"Capacity (units)",{"$f":"(((Control_Capacity+Booster_TMax)/((Tube_OD/2/1000)))/g)*IF(i_Units=\"Metric\",1,INDEX(T_Units[Factor],MATCH(\"kg\",T_Units[Metric],0)))","v":{"$error":"#N/A"}},{"$f":"INDEX(INDIRECT(\"T_Units[\"&i_Units&\"]\"),MATCH(\"kg\",T_Units[Metric],0))","v":"kg"}]
[null,"o_TubeDeflectionLimit_Units",{"$f":"Design_Width*Deflection_limit*IF(i_Units=\"Metric\",1,INDEX(T_Units[Factor],MATCH(\"mm\",T_Units[Metric],0)))","v":0},{"$f":"INDEX(INDIRECT(\"T_Units[\"&i_Units&\"]\"),MATCH(\"mm\",T_Units[Metric],0))","v":"mm"},null,{"$f":"Design_Width2*Deflection_limit*IF(i_Units=\"Metric\",1,INDEX(T_Units[Factor],MATCH(\"mm\",T_Units[Metric],0)))","v":0},{"$f":"INDEX(INDIRECT(\"T_Units[\"&i_Units&\"]\"),MATCH(\"mm\",T_Units[Metric],0))","v":"mm"},null,{"$f":"Design_Width2*Deflection_limit*IF(i_Units=\"Metric\",1,INDEX(T_Units[Factor],MATCH(\"mm\",T_Units[Metric],0)))","v":0},{"$f":"INDEX(INDIRECT(\"T_Units[\"&i_Units&\"]\"),MATCH(\"mm\",T_Units[Metric],0))","v":"mm"},null,{"$f":"Design_Width3*Deflection_limit*IF(i_Units=\"Metric\",1,INDEX(T_Units[Factor],MATCH(\"mm\",T_Units[Metric],0)))","v":0},{"$f":"INDEX(INDIRECT(\"T_Units[\"&i_Units&\"]\"),MATCH(\"mm\",T_Units[Metric],0))","v":"mm"},null,null,null,null,"Capacity (kg)",{"$f":"((Control_Capacity)/((Tube_OD/2/1000)))/g","v":{"$error":"#N/A"}},"kg","Control_Capacity_kg",null,null,"for system charts only"]
[null,"o_TubeDeflectionLimitZS_Units",{"$f":"Design_Width*Deflection_Limit_ZS*IF(i_Units=\"Metric\",1,INDEX(T_Units[Factor],MATCH(\"mm\",T_Units[Metric],0)))","v":0},{"$f":"INDEX(INDIRECT(\"T_Units[\"&i_Units&\"]\"),MATCH(\"mm\",T_Units[Metric],0))","v":"mm"},null,null,null,null,null,null,null,null,null,null,null,null,null,"Capacity w/ Booster",{"$f":"((Control_Capacity+Booster_TMax)/((Tube_OD/2/1000)))/g","v":{"$error":"#N/A"}},"kg","Control_BoosterCapacity_kg"]
[null,"o_TubeDeflectionPct",{"$f":"IFERROR(ROUND(Tube_Deflection_units,2)/i_width,\"\")","v":""},null,null,{"$f":"IFERROR(ROUND(Tube_Deflection2_Units,2)/i_width2,\"\")","v":""},null,null,{"$f":"IFERROR(ROUND(Tube_Deflection2_Units,2)/i_width2,\"\")","v":""},null,null,{"$f":"IFERROR(ROUND(Tube_Deflection3_Units,2)/i_width3,\"\")","v":""},null,null,null,null,null,"Gear Ratio",{"$f":"INDEX(Control_Lookup,MATCH(i_Control,Control_Description,0),MATCH(\"Gear Ratio\",Control_Headers,0))","v":{"$error":"#N/A"}}]
[null,null,null,null,null,null,null,null,null,null,null,null,null,null,null,null,null,"Friction due to clutch",{"$f":"INDEX(Control_Lookup,MATCH(i_Control,Control_Description,0),MATCH(\"Friction\",Control_Headers,0))","v":{"$error":"#N/A"}},"Nm"]
[null,"o_BracketActualRoll_mm",{"$f":"((_xlfn.SINGLE(Tube_Rotations)+i_pwa)*Fabric_Thickness*2+Tube_OD)","v":{"$error":"#N/A"}},"mm",null,null,null,null,null,null,null,null,null,null,null,null,null,"Control Type",{"$f":"INDEX(Control_Lookup,MATCH(i_Control,Control_Description,0),MATCH(\"Control Type\",Control_Headers,0))","v":{"$error":"#N/A"}}]
[null,"o_CassetteActualRoll_mm",{"$f":"o_RollDiameter+Tube_Deflection*2","v":{"$error":"#N/A"}},"mm",null,null,null,null,null,null,null,null,null,null,null,null,null,"Motor RPM_Default",{"$f":"IFERROR(INDEX(T_Controls[rpm],MATCH(i_Control,T_Controls[Description],0)),\"\")","v":""},"RPM"]
[null,null,null,null,null,null,null,null,null,null,null,null,null,null,null,null,null,"Motor RPM",{"$f":"IFERROR(IF(i_MotorRPM<>\"\",i_MotorRPM,Control_RPM_Default),\"\")","v":""},"RPM"]
[]
[null,"o_fabricWidth",{"$f":"IFERROR(IF(i_Fabric<>\"\",INDEX(T_Fabric[RollWidth_Metric],MATCH(i_Fabric,T_Fabric[Description],0))/1000,\"-\"),\"\")","v":"-"},"m",null,null,null,null,null,null,null,null,null,null,null,null,null,"Control 2"]
[null,null,null,null,null,null,null,null,null,null,null,null,null,null,null,null,null,{"$f":"i_Control2","v":{"$error":"#NAME?"}}]
[null,null,"o_tMax_Sum",null,null,null,null,null,null,null,null,null,null,null,null,null,null,"Diameter ",{"$f":"INDEX(Control_Lookup,MATCH(i_Control2,Control_Description,0),MATCH(\"Diameter\",Control_Headers,0))","v":{"$error":"#NAME?"}},"mm"]
[null,"Total Shade Torque",{"$f":"IFERROR(o_tMax1+(o_tMax2+o_tMax3*(1+Link_FF))*(1+Link_FF),\"\")","v":""},"Nm","INLCUDES FRICTION FOR MULTIPLE SHADES",null,null,null,null,null,null,null,null,null,null,null,null,"Capacity",{"$f":"INDEX(Control_Lookup,MATCH(i_Control2,Control_Description,0),MATCH(\"Holding Capacity\",Control_Headers,0))","v":{"$error":"#NAME?"}},"Nm"]
[null,"Link Torque Required",{"$f":"IFERROR((o_tMax2+o_tMax3*(1+Link_FF)),\"\")","v":""},"Nm",null,null,null,null,null,null,null,null,null,null,null,null,null,"Gear Ratio",{"$f":"INDEX(Control_Lookup,MATCH(i_Control2,Control_Description,0),MATCH(\"Gear Ratio\",Control_Headers,0))","v":{"$error":"#NAME?"}}]
[null,null,null,null,null,null,null,null,null,null,null,null,null,null,null,null,null,"Friction due to clutch",{"$f":"INDEX(Control_Lookup,MATCH(i_Control2,Control_Description,0),MATCH(\"Friction\",Control_Headers,0))","v":{"$error":"#NAME?"}},"Nm"]
[null,"Link Friction Factor",0.1]
[]
[null,"o_Fabric + Weight Bar + Tube Mass TOTAL",{"$f":"IFERROR(o_fabric_wb_T_Mass+o_fabric_wb_T_Mass2+o_fabric_wb_T_Mass3,\"\")","v":""},"kg",null,null,null,null,null,null,null,null,null,null,null,null,null,"Booster"]
[null,null,null,null,null,null,null,null,null,null,null,null,null,null,null,null,null,{"$f":"IF(i_Booster=0,\"No Booster Selected\",i_Booster)","v":"No Booster Selected"}]
[null,null,null,null,null,null,null,null,null,null,null,null,null,null,null,null,null,"Spring Rate",{"$f":"IFERROR(INDEX(Booster_Lookup,MATCH(i_Booster,Booster_Description,0),MATCH(\"Spring Rate\",Booster_Headers,0)),\"0.00001\")","v":"0.00001"},"Nm"]
[null,null,null,null,null,null,null,null,null,null,null,null,null,null,null,null,null,"Max Turns",{"$f":"IFERROR(INDEX(Booster_Lookup,MATCH(i_Booster,Booster_Description,0),MATCH(\"Max Turns\",Booster_Headers,0)),\"0.00001\")","v":"0.00001"}]
[null,null,null,null,null,null,null,null,null,null,null,null,null,null,null,null,null,"T_Max",{"$f":"IFERROR(INDEX(Booster_Lookup,MATCH(i_Booster,Booster_Description,0),MATCH(\"T_Max\",Booster_Headers,0)),\"0.00001\")","v":"0.00001"},"Nm"]
[null,"Link Active?:",{"$f":"IF(i_width2+i_width3>0,\"Yes\",\"No\")","v":"No"}]
[null,null,null,null,null,null,null,null,null,null,null,null,null,null,null,null,null,"Ballast"]
[null,"Fabric input match?",{"$f":"IFERROR(IF(MATCH(i_Fabric,T_Fabric[Description],0)>0,\"Yes\",\"No\"),\"No\")","v":"No"},null,null,null,null,null,null,null,null,null,null,null,null,null,null,{"$f":"IF(i_Ballast=0,\"No Ballast Selected\",i_Ballast)","v":"No Ballast Selected"}]
[null,null,null,null,null,null,null,null,null,null,null,null,null,null,null,null,null,"Unit Mass",{"$f":"IFERROR(INDEX(T_Ballast[Mass/m],MATCH(i_Ballast,T_Ballast[Description],0)),0)","v":0},"kg/m"]
[null,"Booster Required for holding capacity",{"$f":"IF(o_tMax1>Control_Capacity,\"Yes\",\"No\")","v":{"$error":"#VALUE!"}},null,null,null,null,null,null,null,null,null,null,null,null,null,null,"Total Mass",{"$f":"IFERROR(S73*Design_Width,\"\")","v":0},"kg"]
[]
[]
[null,null,null,null,null,null,null,null,null,null,null,null,null,null,null,null,null,"Friction - Clutch"]
[]
[null,null,null,null,null,null,null,null,null,null,null,null,null,null,null,null,null,"material coeff",0.3]
[]
[]
[null,null,null,null,null,null,null,null,null,null,null,null,null,null,null,null,null,"Clutch diameter",null,"mm"]
[]
[]
[]
[null,null,null,null,null,null,null,null,null,null,null,null,null,null,null,null,null,"Bracket"]
[null,null,null,null,null,null,null,null,null,null,null,null,null,null,null,null,null,{"$f":"IF(i_bracket=0,\"No Bracket Selected\",i_bracket)","v":"No Bracket Selected"}]
[null,null,null,null,null,null,null,null,null,null,null,null,null,null,null,null,null,"Max Roll Diameter",{"$f":"IFERROR(INDEX(T_Brackets[Max Roll Diameter],MATCH(i_bracket,T_Brackets[Description],0)),\"\")","v":""},"mm"]
[null,null,null,null,null,null,null,null,null,null,null,null,null,null,null,null,null,"Max Roll Diameter Units",{"$f":"(o_MaxRollDia*IF(i_Units=\"Metric\",1,INDEX(T_Units[Factor],MATCH(\"mm\",T_Units[Metric],0))))","v":{"$error":"#VALUE!"}},"`"]

{"sheet":"_LiveData","index":13,"n_rows":100,"n_cols":31,"rows_kept":100,"cut":false,"hidden":true,"merged":[[6,7,6,8],[8,2,8,3],[8,14,8,17],[8,20,8,24],[8,5,8,7],[8,10,8,12]]}
[null,null,null,null,null,null,null,null,null,null,null,null,null,null,null,null,null,null,null,null,null,null,null,null,null,null,null,"ESA"]
[null,null,"increment steps",null,null,"y = blind torque (Nm), x = Top Tube # Rotation (Rev)",null,null,null,null,null,"assume 1x or 2x",null,null,"friction 1 = on, 0 = off",0,null,null,null,null,null,null,{"$f":"((MAX(W11:W69)-MIN(W11:W69))/_xlfn.SINGLE(Tube_Rotations))","v":{"$error":"#N/A"}},null,null,null,null,"Min Blind Torque",{"$f":"MIN(O11:O100)","v":0},null,0.12007922848505737]
[null,null,0.5,null,null,"y = ax²+bx+c","a","b","c",null,null,2,null,null,null,null,null,null,null,null,"0.5 m/s cord movement. ",null,null,null,null,null,null,"Max Blind Torque",{"$f":"MAX(O11:O100)","v":0},null,0.36566644254000003]
[null,null,null,null,null,null,{"$f":"LINEST(OFFSET(O11,0,0,$B$11),OFFSET(C11,0,0,$B$11)^{1,2})","v":{"$error":"#VALUE!"}},null,null,null,null,"2 = control and pin end",null,null,null,"**Clutch friction added here",null,null,null,null,null,null,null,null,null,null,null,"Max Tube Turns",{"$f":"INDEX(C11:C100,B11)","v":0}]
[null,null,null,null,null,null,null,null,null,null,null,null,null,null,null,null,null,"top preturns",null,null,"T = w * friction coeff (nm.s/rad)",null,null,null,null,null,null,"Ideal Rate",{"$f":"(AC3-AC2)/AC4","v":{"$error":"#DIV/0!"}}]
[null,null,null,null,null,null,null,null,null,null,null,null,null,null,"Control_D",{"$f":"Control_D","v":{"$error":"#N/A"}},"mm",{"$f":"Booster_Preturns","v":0},null,null,null,null,null,null,null,null,null,"Input ESA Booster Rate",{"$f":"_SpringData_L2!E3","v":0}]
[null,null,null,null,null,null,null,{"$f":"H11","v":""},null,null,null,null,null,null,null,"Ratio",null,null,null,null,null,null,"Ratio",null,null,null,null,"Input ESA Rec PreTurn",{"$f":"o_BoosterPreTurn","v":0}]
[null,null,null,null,null,{"$f":"o_RollDiameter","v":{"$error":"#N/A"}},null,null,null,null,null,null,null,null,null,{"$f":"Control_Ratio","v":{"$error":"#N/A"}},null,null,null,null,null,null,{"$f":"Control_Ratio","v":{"$error":"#N/A"}}]
[null,null,"Live Data",null,null,null,null,null,null,null,"Friction",null,null,null,"No Booster",null,null,null,null,null,"w/ Booster"]
[null,null,"Top Tube # Rotations","Drop\n(m)",null,"Load \n(N)","Active Diameter\n(mm)","Active Radius\n(mm)",null,null,"F_u (N)","convert to Torque (Nm)",null,null,"Tube/Spool Torque Required \n(Nm)","Control Torque Required\n(Nm)","User Effort\nLIFTING\n(kg)","User Effort\nLOWERING\n(kg)",null,null,"Booster Torque (Nm)","Tube/Spool Torque Required \n(Nm)","Control Torque Required @ Ratio\n(Nm)","User Effort\nLIFTING\n(kg)","User Effort\nLOWERING\n(kg)",null,null,"Booster Torque as recommended (Nm)"]
[null,{"$f":"SUMPRODUCT(--NOT(ISERROR(C11:C100)))","v":1},0,{"$f":"IFERROR(IF($C11=\"\",\"\",(Design_Drop-((PI()/1000)*((_xlfn.SINGLE(Tube_Rotations)-_xlfn.SINGLE(LiveData_TT_Rotations))*Tube_OD+Fabric_Thickness*(_xlfn.SINGLE(Tube_Rotations)-_xlfn.SINGLE(LiveData_TT_Rotations))^2)))),\"\")","v":""},null,{"$f":"IFERROR(IF($C11=\"\",\"\",g*(wb_Ballast_UnitMass*Design_Width_Total+Fabric_UnitMass_Total*LiveData_Lift_Height)),\"\")","v":""},{"$f":"IFERROR(IF($C11=\"\",\"\",H11*2),\"\")","v":""},{"$f":"IFERROR(IF($C11=\"\",\"\",(o_RollDiameter*0.5)-Fabric_Thickness*C11),\"\")","v":""},null,null,{"$f":"IFERROR(Friction_Clutch_Coeff*F11,\"\")","v":""},{"$f":"IFERROR(K11*(Friction_Clutch_Dia/2/1000)*Friction_Multiplier,\"\")","v":""},null,null,{"$f":"IFERROR(IF($C11=\"\",\"\",F11*H11/1000),\"\")","v":""},{"$f":"IFERROR(IF($C11=\"\",\"\",(O11/$P$8)+Control_Friction+IF(Friction=1,L11,0)),\"\")","v":""},{"$f":"IFERROR(IF($C11=\"\",\"\",(P11/((Control_D/1000)/2))/9.81),\"\")","v":""},{"$f":"IFERROR(IF($C11=\"\",\"\",(Control_Friction/(Control_D/2/1000))/9.81),\"\")","v":""},null,null,{"$f":"IFERROR((Booster_k*(Booster_Preturns+LiveData_TT_Rotations)),\"\")","v":0},{"$f":"IFERROR(O11-U11,\"\")","v":""},{"$f":"IFERROR(IF($C11=\"\",\"\",IF(V11<0,Control_Friction+IF(Friction=1,L11,0),(V11/Control_Ratio)+Control_Friction+IF(Friction=1,L11,0))),\"\")","v":""},{"$f":"IFERROR(IF($C11=\"\",\"\",(W11/((Control_D/1000)/2))/9.81),\"\")","v":""},{"$f":"IFERROR((IF(U11-O11<0,Control_Friction,((U11-O11)+Control_Friction))/(Control_D/1000/2))/9.81,\"\")","v":""},null,null,{"$f":"IFERROR($AC$6*($AC$7+C11),\"-\")","v":0}]
[null,null,{"$f":"_xlfn.SINGLE(IF(C11<_xlfn.SINGLE(Tube_Rotations),IF(C11+LiveData_Increment>_xlfn.SINGLE(Tube_Rotations),Tube_Rotations,C11+LiveData_Increment),#N/A))","v":{"$error":"#N/A"}},"",null,"",{"$f":"IFERROR(IF($C12=\"\",\"\",H12*2),\"\")","v":""},{"$f":"IFERROR(IF($C12=\"\",\"\",(o_RollDiameter*0.5)-Fabric_Thickness*C12),\"\")","v":""},null,null,"","",null,null,"","","","",null,null,"","","","","",null,null,{"$f":"IFERROR($AC$6*($AC$7+C12),\"-\")","v":"-"}]
[null,null,{"$error":"#N/A"},{"$f":"IFERROR(IF($C13=\"\",\"\",(Design_Drop-((PI()/1000)*((_xlfn.SINGLE(Tube_Rotations)-_xlfn.SINGLE(LiveData_TT_Rotations))*Tube_OD+Fabric_Thickness*(_xlfn.SINGLE(Tube_Rotations)-_xlfn.SINGLE(LiveData_TT_Rotations))^2)))),\"\")","v":""},null,"","",{"$f":"IFERROR(IF($C13=\"\",\"\",(o_RollDiameter*0.5)-Fabric_Thickness*C13),\"\")","v":""},null,null,"","",null,null,"","","","",null,null,"","","","","",null,null,"-"]
[null,null,{"$error":"#N/A"},"",null,"","",{"$f":"IFERROR(IF($C14=\"\",\"\",(o_RollDiameter*0.5)-Fabric_Thickness*C14),\"\")","v":""},null,null,"","",null,null,"","","","",null,null,"","","","","",null,null,"-"]
[null,null,{"$error":"#N/A"},"",null,"","",{"$f":"IFERROR(IF($C15=\"\",\"\",(o_RollDiameter*0.5)-Fabric_Thickness*C15),\"\")","v":""},null,null,"","",null,null,"","","","",null,null,"","","","","",null,null,"-"]
[null,null,{"$error":"#N/A"},"",null,"","",{"$f":"IFERROR(IF($C16=\"\",\"\",(o_RollDiameter*0.5)-Fabric_Thickness*C16),\"\")","v":""},null,null,"","",null,null,"","","","",null,null,"","","","","",null,null,"-"]
[null,null,{"$error":"#N/A"},"",null,"","",{"$f":"IFERROR(IF($C17=\"\",\"\",(o_RollDiameter*0.5)-Fabric_Thickness*C17),\"\")","v":""},null,null,"","",null,null,"","","","",null,null,"","","","","",null,null,"-"]
[null,null,{"$error":"#N/A"},"",null,"","",{"$f":"IFERROR(IF($C18=\"\",\"\",(o_RollDiameter*0.5)-Fabric_Thickness*C18),\"\")","v":""},null,null,"","",null,null,"","","","",null,null,"","","","","",null,null,"-"]
[null,null,{"$error":"#N/A"},"",null,"","",{"$f":"IFERROR(IF($C19=\"\",\"\",(o_RollDiameter*0.5)-Fabric_Thickness*C19),\"\")","v":""},null,null,"","",null,null,"","","","",null,null,"","","","","",null,null,"-"]
[null,null,{"$error":"#N/A"},"",null,"","",{"$f":"IFERROR(IF($C20=\"\",\"\",(o_RollDiameter*0.5)-Fabric_Thickness*C20),\"\")","v":""},null,null,"","",null,null,"","","","",null,null,"","","","","",null,null,"-"]
[null,null,{"$error":"#N/A"},"",null,"","",{"$f":"IFERROR(IF($C21=\"\",\"\",(o_RollDiameter*0.5)-Fabric_Thickness*C21),\"\")","v":""},null,null,"","",null,null,"","","","",null,null,"","","","","",null,null,"-"]
[null,null,{"$error":"#N/A"},"",null,"","",{"$f":"IFERROR(IF($C22=\"\",\"\",(o_RollDiameter*0.5)-Fabric_Thickness*C22),\"\")","v":""},null,null,"","",null,null,"","","","",null,null,"","","","","",null,null,"-"]
[null,null,{"$error":"#N/A"},"",null,"","",{"$f":"IFERROR(IF($C23=\"\",\"\",(o_RollDiameter*0.5)-Fabric_Thickness*C23),\"\")","v":""},null,null,"","",null,null,"","",{"$f":"IFERROR(IF($C23=\"\",\"\",(P23/((Control_D/1000)/2))/9.81),\"\")","v":""},"",null,null,"","","","","",null,null,"-"]
[null,null,{"$error":"#N/A"},"",null,"","",{"$f":"IFERROR(IF($C24=\"\",\"\",(o_RollDiameter*0.5)-Fabric_Thickness*C24),\"\")","v":""},null,null,"","",null,null,"","","","",null,null,"","","","","",null,null,"-"]
[null,null,{"$error":"#N/A"},"",null,"","",{"$f":"IFERROR(IF($C25=\"\",\"\",(o_RollDiameter*0.5)-Fabric_Thickness*C25),\"\")","v":""},null,null,"","",null,null,"","","","",null,null,"","","","","",null,null,"-"]
[null,null,{"$error":"#N/A"},"",null,"","",{"$f":"IFERROR(IF($C26=\"\",\"\",(o_RollDiameter*0.5)-Fabric_Thickness*C26),\"\")","v":""},null,null,"","",null,null,"","","","",null,null,"","","","","",null,null,"-"]
[null,null,{"$error":"#N/A"},"",null,"","",{"$f":"IFERROR(IF($C27=\"\",\"\",(o_RollDiameter*0.5)-Fabric_Thickness*C27),\"\")","v":""},null,null,"","",null,null,"","","","",null,null,"","","","","",null,null,"-"]
[null,null,{"$error":"#N/A"},"",null,"","",{"$f":"IFERROR(IF($C28=\"\",\"\",(o_RollDiameter*0.5)-Fabric_Thickness*C28),\"\")","v":""},null,null,"","",null,null,"","","","",null,null,"","","","","",null,null,"-"]
[null,null,{"$error":"#N/A"},"",null,"","",{"$f":"IFERROR(IF($C29=\"\",\"\",(o_RollDiameter*0.5)-Fabric_Thickness*C29),\"\")","v":""},null,null,"","",null,null,"","","","",null,null,"","","","","",null,null,"-"]
[null,null,{"$error":"#N/A"},"",null,"",{"$f":"IFERROR(IF($C30=\"\",\"\",H30*2),\"\")","v":""},{"$f":"IFERROR(IF($C30=\"\",\"\",(o_RollDiameter*0.5)-Fabric_Thickness*C30),\"\")","v":""},null,null,"","",null,null,"","","","",null,null,"","","","","",null,null,"-"]
[null,null,{"$error":"#N/A"},"",null,"","",{"$f":"IFERROR(IF($C31=\"\",\"\",(o_RollDiameter*0.5)-Fabric_Thickness*C31),\"\")","v":""},null,null,"","",null,null,"","","","",null,null,"","","","","",null,null,"-"]
[null,null,{"$error":"#N/A"},"",null,"","",{"$f":"IFERROR(IF($C32=\"\",\"\",(o_RollDiameter*0.5)-Fabric_Thickness*C32),\"\")","v":""},null,null,"","",null,null,"","","","",null,null,"","","","","",null,null,"-"]
[null,null,{"$error":"#N/A"},"",null,"","",{"$f":"IFERROR(IF($C33=\"\",\"\",(o_RollDiameter*0.5)-Fabric_Thickness*C33),\"\")","v":""},null,null,"","",null,null,"","","","",null,null,"","","","","",null,null,"-"]
[null,null,{"$error":"#N/A"},"",null,"","",{"$f":"IFERROR(IF($C34=\"\",\"\",(o_RollDiameter*0.5)-Fabric_Thickness*C34),\"\")","v":""},null,null,"","",null,null,"","","","",null,null,"","","","","",null,null,"-"]
[null,null,{"$error":"#N/A"},"",null,"","",{"$f":"IFERROR(IF($C35=\"\",\"\",(o_RollDiameter*0.5)-Fabric_Thickness*C35),\"\")","v":""},null,null,"","",null,null,"","","","",null,null,"","","","","",null,null,"-"]
[null,null,{"$error":"#N/A"},"",null,"","",{"$f":"IFERROR(IF($C36=\"\",\"\",(o_RollDiameter*0.5)-Fabric_Thickness*C36),\"\")","v":""},null,null,"","",null,null,"","","","",null,null,"","","","","",null,null,"-"]
[null,null,{"$error":"#N/A"},"",null,"","",{"$f":"IFERROR(IF($C37=\"\",\"\",(o_RollDiameter*0.5)-Fabric_Thickness*C37),\"\")","v":""},null,null,"","",null,null,"","","","",null,null,"","","","","",null,null,"-"]
[null,null,{"$error":"#N/A"},"",null,"","",{"$f":"IFERROR(IF($C38=\"\",\"\",(o_RollDiameter*0.5)-Fabric_Thickness*C38),\"\")","v":""},null,null,"","",null,null,"","","","",null,null,"","","","","",null,null,"-"]
[null,null,{"$error":"#N/A"},"",null,"","",{"$f":"IFERROR(IF($C39=\"\",\"\",(o_RollDiameter*0.5)-Fabric_Thickness*C39),\"\")","v":""},null,null,"","",null,null,"","","","",null,null,"","","","","",null,null,"-"]
[null,null,{"$error":"#N/A"},"",null,"","",{"$f":"IFERROR(IF($C40=\"\",\"\",(o_RollDiameter*0.5)-Fabric_Thickness*C40),\"\")","v":""},null,null,"","",null,null,"","","","",null,null,"","","","","",null,null,"-"]
[null,null,{"$error":"#N/A"},"",null,"","",{"$f":"IFERROR(IF($C41=\"\",\"\",(o_RollDiameter*0.5)-Fabric_Thickness*C41),\"\")","v":""},null,null,"","",null,null,"","","","",null,null,"","","","","",null,null,"-"]
[null,null,{"$error":"#N/A"},"",null,"","",{"$f":"IFERROR(IF($C42=\"\",\"\",(o_RollDiameter*0.5)-Fabric_Thickness*C42),\"\")","v":""},null,null,"","",null,null,"","","","",null,null,"","","","","",null,null,"-"]
[null,null,{"$error":"#N/A"},{"$f":"IFERROR(IF($C43=\"\",\"\",(Design_Drop-((PI()/1000)*((_xlfn.SINGLE(Tube_Rotations)-_xlfn.SINGLE(LiveData_TT_Rotations))*Tube_OD+Fabric_Thickness*(_xlfn.SINGLE(Tube_Rotations)-_xlfn.SINGLE(LiveData_TT_Rotations))^2)))),\"\")","v":""},null,{"$f":"IFERROR(IF($C43=\"\",\"\",g*(wb_Ballast_UnitMass*Design_Width_Total+Fabric_UnitMass_Total*LiveData_Lift_Height)),\"\")","v":""},"",{"$f":"IFERROR(IF($C43=\"\",\"\",(o_RollDiameter*0.5)-Fabric_Thickness*C43),\"\")","v":""},null,null,{"$f":"IFERROR(Friction_Clutch_Coeff*F43,\"\")","v":""},{"$f":"IFERROR(K43*(Friction_Clutch_Dia/2/1000)*Friction_Multiplier,\"\")","v":""},null,null,{"$f":"IFERROR(IF($C43=\"\",\"\",F43*H43/1000),\"\")","v":""},{"$f":"IFERROR(IF($C43=\"\",\"\",(O43/$P$8)+Control_Friction+IF(Friction=1,L43,0)),\"\")","v":""},{"$f":"IFERROR(IF($C43=\"\",\"\",(P43/((Control_D/1000)/2))/9.81),\"\")","v":""},{"$f":"IFERROR(IF($C43=\"\",\"\",(Control_Friction/(Control_D/2/1000))/9.81),\"\")","v":""},null,null,{"$f":"IFERROR((Booster_k*(Booster_Preturns+LiveData_TT_Rotations)),\"\")","v":""},{"$f":"IFERROR(O43-U43,\"\")","v":""},{"$f":"IFERROR(IF($C43=\"\",\"\",IF(V43<0,Control_Friction+IF(Friction=1,L43,0),(V43/Control_Ratio)+Control_Friction+IF(Friction=1,L43,0))),\"\")","v":""},{"$f":"IFERROR(IF($C43=\"\",\"\",(W43/((Control_D/1000)/2))/9.81),\"\")","v":""},{"$f":"IFERROR((IF(U43-O43<0,Control_Friction,((U43-O43)+Control_Friction))/(Control_D/1000/2))/9.81,\"\")","v":""},null,null,"-"]
[null,null,{"$f":"_xlfn.SINGLE(IF(C43<_xlfn.SINGLE(Tube_Rotations),IF(C43+LiveData_Increment>_xlfn.SINGLE(Tube_Rotations),Tube_Rotations,C43+LiveData_Increment),#N/A))","v":{"$error":"#N/A"}},"",null,"","",{"$f":"IFERROR(IF($C44=\"\",\"\",(o_RollDiameter*0.5)-Fabric_Thickness*C44),\"\")","v":""},null,null,"","",null,null,"","","","",null,null,"","","","","",null,null,"-"]
[null,null,{"$error":"#N/A"},"",null,"","",{"$f":"IFERROR(IF($C45=\"\",\"\",(o_RollDiameter*0.5)-Fabric_Thickness*C45),\"\")","v":""},null,null,"","",null,null,"","","","",null,null,"","","","","",null,null,"-"]
[null,null,{"$error":"#N/A"},"",null,"","",{"$f":"IFERROR(IF($C46=\"\",\"\",(o_RollDiameter*0.5)-Fabric_Thickness*C46),\"\")","v":""},null,null,"","",null,null,"","","","",null,null,"","","","","",null,null,"-"]
[null,null,{"$error":"#N/A"},"",null,"","",{"$f":"IFERROR(IF($C47=\"\",\"\",(o_RollDiameter*0.5)-Fabric_Thickness*C47),\"\")","v":""},null,null,"","",null,null,"","","","",null,null,"","","","","",null,null,"-"]
[null,null,{"$error":"#N/A"},"",null,"","",{"$f":"IFERROR(IF($C48=\"\",\"\",(o_RollDiameter*0.5)-Fabric_Thickness*C48),\"\")","v":""},null,null,"","",null,null,"","","","",null,null,"","","","","",null,null,"-"]
[null,null,{"$error":"#N/A"},"",null,"","",{"$f":"IFERROR(IF($C49=\"\",\"\",(o_RollDiameter*0.5)-Fabric_Thickness*C49),\"\")","v":""},null,null,"","",null,null,"","","","",null,null,"","","","","",null,null,"-"]
[null,null,{"$error":"#N/A"},"",null,"","",{"$f":"IFERROR(IF($C50=\"\",\"\",(o_RollDiameter*0.5)-Fabric_Thickness*C50),\"\")","v":""},null,null,"","",null,null,"","","","",null,null,"","","","","",null,null,"-"]
[null,null,{"$error":"#N/A"},"",null,"","",{"$f":"IFERROR(IF($C51=\"\",\"\",(o_RollDiameter*0.5)-Fabric_Thickness*C51),\"\")","v":""},null,null,"","",null,null,"","","","",null,null,"","","","","",null,null,"-"]
[null,null,{"$error":"#N/A"},"",null,"","",{"$f":"IFERROR(IF($C52=\"\",\"\",(o_RollDiameter*0.5)-Fabric_Thickness*C52),\"\")","v":""},null,null,"","",null,null,"","","","",null,null,"","","","","",null,null,"-"]
[null,null,{"$error":"#N/A"},"",null,"","",{"$f":"IFERROR(IF($C53=\"\",\"\",(o_RollDiameter*0.5)-Fabric_Thickness*C53),\"\")","v":""},null,null,"","",null,null,"","","","",null,null,"","","","","",null,null,"-"]
[null,null,{"$error":"#N/A"},"",null,"","",{"$f":"IFERROR(IF($C54=\"\",\"\",(o_RollDiameter*0.5)-Fabric_Thickness*C54),\"\")","v":""},null,null,"","",null,null,"","","","",null,null,"","","","","",null,null,"-"]
[null,null,{"$error":"#N/A"},"",null,"","",{"$f":"IFERROR(IF($C55=\"\",\"\",(o_RollDiameter*0.5)-Fabric_Thickness*C55),\"\")","v":""},null,null,"","",null,null,"","","","",null,null,"","","","","",null,null,"-"]
[null,null,{"$error":"#N/A"},"",null,"","",{"$f":"IFERROR(IF($C56=\"\",\"\",(o_RollDiameter*0.5)-Fabric_Thickness*C56),\"\")","v":""},null,null,"","",null,null,"","","","",null,null,"","","","","",null,null,"-"]
[null,null,{"$error":"#N/A"},"",null,"","",{"$f":"IFERROR(IF($C57=\"\",\"\",(o_RollDiameter*0.5)-Fabric_Thickness*C57),\"\")","v":""},null,null,"","",null,null,"","","","",null,null,"","","","","",null,null,"-"]
[null,null,{"$error":"#N/A"},"",null,"","",{"$f":"IFERROR(IF($C58=\"\",\"\",(o_RollDiameter*0.5)-Fabric_Thickness*C58),\"\")","v":""},null,null,"","",null,null,"","","","",null,null,"","","","","",null,null,"-"]
[null,null,{"$error":"#N/A"},"",null,"","",{"$f":"IFERROR(IF($C59=\"\",\"\",(o_RollDiameter*0.5)-Fabric_Thickness*C59),\"\")","v":""},null,null,"","",null,null,"","","","",null,null,"","","","","",null,null,"-"]
[null,null,{"$error":"#N/A"},"",null,"","",{"$f":"IFERROR(IF($C60=\"\",\"\",(o_RollDiameter*0.5)-Fabric_Thickness*C60),\"\")","v":""},null,null,"","",null,null,"","","","",null,null,"","","","","",null,null,"-"]
[null,null,{"$error":"#N/A"},"",null,"","",{"$f":"IFERROR(IF($C61=\"\",\"\",(o_RollDiameter*0.5)-Fabric_Thickness*C61),\"\")","v":""},null,null,"","",null,null,"","","","",null,null,"","","","","",null,null,"-"]
[null,null,{"$error":"#N/A"},"",null,"","",{"$f":"IFERROR(IF($C62=\"\",\"\",(o_RollDiameter*0.5)-Fabric_Thickness*C62),\"\")","v":""},null,null,"","",null,null,"","","","",null,null,"","","","","",null,null,"-"]
[null,null,{"$error":"#N/A"},"",null,"","",{"$f":"IFERROR(IF($C63=\"\",\"\",(o_RollDiameter*0.5)-Fabric_Thickness*C63),\"\")","v":""},null,null,"","",null,null,"","","","",null,null,"","","","","",null,null,"-"]
[null,null,{"$error":"#N/A"},"",null,"","",{"$f":"IFERROR(IF($C64=\"\",\"\",(o_RollDiameter*0.5)-Fabric_Thickness*C64),\"\")","v":""},null,null,"","",null,null,"","","","",null,null,"","","","","",null,null,"-"]
[null,null,{"$error":"#N/A"},"",null,"","",{"$f":"IFERROR(IF($C65=\"\",\"\",(o_RollDiameter*0.5)-Fabric_Thickness*C65),\"\")","v":""},null,null,"","",null,null,"","","","",null,null,"","","","","",null,null,"-"]
[null,null,{"$error":"#N/A"},"",null,"","",{"$f":"IFERROR(IF($C66=\"\",\"\",(o_RollDiameter*0.5)-Fabric_Thickness*C66),\"\")","v":""},null,null,"","",null,null,"","","","",null,null,"","","","","",null,null,"-"]
[null,null,{"$error":"#N/A"},"",null,"","",{"$f":"IFERROR(IF($C67=\"\",\"\",(o_RollDiameter*0.5)-Fabric_Thickness*C67),\"\")","v":""},null,null,"","",null,null,"","","","",null,null,"","","","","",null,null,"-"]
[null,null,{"$error":"#N/A"},"",null,"","",{"$f":"IFERROR(IF($C68=\"\",\"\",(o_RollDiameter*0.5)-Fabric_Thickness*C68),\"\")","v":""},null,null,"","",null,null,"","","","",null,null,"","","","","",null,null,"-"]
[null,null,{"$error":"#N/A"},"",null,"","",{"$f":"IFERROR(IF($C69=\"\",\"\",(o_RollDiameter*0.5)-Fabric_Thickness*C69),\"\")","v":""},null,null,"","",null,null,"","","","",null,null,"","","","","",null,null,"-"]
[null,null,{"$error":"#N/A"},"",null,"","",{"$f":"IFERROR(IF($C70=\"\",\"\",(o_RollDiameter*0.5)-Fabric_Thickness*C70),\"\")","v":""},null,null,"","",null,null,"","","","",null,null,"","","","","",null,null,"-"]
[null,null,{"$error":"#N/A"},"",null,"","",{"$f":"IFERROR(IF($C71=\"\",\"\",(o_RollDiameter*0.5)-Fabric_Thickness*C71),\"\")","v":""},null,null,"","",null,null,"","","","",null,null,"","","","","",null,null,"-"]
[null,null,{"$error":"#N/A"},"",null,"","",{"$f":"IFERROR(IF($C72=\"\",\"\",(o_RollDiameter*0.5)-Fabric_Thickness*C72),\"\")","v":""},null,null,"","",null,null,"","","","",null,null,"","","","","",null,null,"-"]
[null,null,{"$error":"#N/A"},"",null,"","",{"$f":"IFERROR(IF($C73=\"\",\"\",(o_RollDiameter*0.5)-Fabric_Thickness*C73),\"\")","v":""},null,null,"","",null,null,"","","","",null,null,"","","","","",null,null,"-"]
[null,null,{"$error":"#N/A"},"",null,"","",{"$f":"IFERROR(IF($C74=\"\",\"\",(o_RollDiameter*0.5)-Fabric_Thickness*C74),\"\")","v":""},null,null,"","",null,null,"","","","",null,null,"","","","","",null,null,"-"]
[null,null,{"$error":"#N/A"},{"$f":"IFERROR(IF($C75=\"\",\"\",(Design_Drop-((PI()/1000)*((_xlfn.SINGLE(Tube_Rotations)-_xlfn.SINGLE(LiveData_TT_Rotations))*Tube_OD+Fabric_Thickness*(_xlfn.SINGLE(Tube_Rotations)-_xlfn.SINGLE(LiveData_TT_Rotations))^2)))),\"\")","v":""},null,{"$f":"IFERROR(IF($C75=\"\",\"\",g*(wb_Ballast_UnitMass*Design_Width_Total+Fabric_UnitMass_Total*LiveData_Lift_Height)),\"\")","v":""},"",{"$f":"IFERROR(IF($C75=\"\",\"\",(o_RollDiameter*0.5)-Fabric_Thickness*C75),\"\")","v":""},null,null,{"$f":"IFERROR(Friction_Clutch_Coeff*F75,\"\")","v":""},{"$f":"IFERROR(K75*(Friction_Clutch_Dia/2/1000)*Friction_Multiplier,\"\")","v":""},null,null,{"$f":"IFERROR(IF($C75=\"\",\"\",F75*H75/1000),\"\")","v":""},{"$f":"IFERROR(IF($C75=\"\",\"\",(O75/$P$8)+Control_Friction+IF(Friction=1,L75,0)),\"\")","v":""},{"$f":"IFERROR(IF($C75=\"\",\"\",(P75/((Control_D/1000)/2))/9.81),\"\")","v":""},{"$f":"IFERROR(IF($C75=\"\",\"\",(Control_Friction/(Control_D/2/1000))/9.81),\"\")","v":""},null,null,{"$f":"IFERROR((Booster_k*(Booster_Preturns+LiveData_TT_Rotations)),\"\")","v":""},{"$f":"IFERROR(O75-U75,\"\")","v":""},{"$f":"IFERROR(IF($C75=\"\",\"\",IF(V75<0,Control_Friction+IF(Friction=1,L75,0),(V75/Control_Ratio)+Control_Friction+IF(Friction=1,L75,0))),\"\")","v":""},{"$f":"IFERROR(IF($C75=\"\",\"\",(W75/((Control_D/1000)/2))/9.81),\"\")","v":""},{"$f":"IFERROR((IF(U75-O75<0,Control_Friction,((U75-O75)+Control_Friction))/(Control_D/1000/2))/9.81,\"\")","v":""},null,null,"-"]
[null,null,{"$f":"_xlfn.SINGLE(IF(C75<_xlfn.SINGLE(Tube_Rotations),IF(C75+LiveData_Increment>_xlfn.SINGLE(Tube_Rotations),Tube_Rotations,C75+LiveData_Increment),#N/A))","v":{"$error":"#N/A"}},"",null,"",{"$f":"IFERROR(IF($C76=\"\",\"\",H76*2),\"\")","v":""},{"$f":"IFERROR(IF($C76=\"\",\"\",(o_RollDiameter*0.5)-Fabric_Thickness*C76),\"\")","v":""},null,null,"","",null,null,"","","","",null,null,"","","","","",null,null,{"$f":"IFERROR($AC$6*($AC$7+C76),\"-\")","v":"-"}]
[null,null,{"$error":"#N/A"},"",null,"","",{"$f":"IFERROR(IF($C77=\"\",\"\",(o_RollDiameter*0.5)-Fabric_Thickness*C77),\"\")","v":""},null,null,"","",null,null,"","","","",null,null,"","","","","",null,null,"-"]
[null,null,{"$error":"#N/A"},"",null,"","",{"$f":"IFERROR(IF($C78=\"\",\"\",(o_RollDiameter*0.5)-Fabric_Thickness*C78),\"\")","v":""},null,null,"","",null,null,"","","","",null,null,"","","","","",null,null,"-"]
[null,null,{"$error":"#N/A"},"",null,"","",{"$f":"IFERROR(IF($C79=\"\",\"\",(o_RollDiameter*0.5)-Fabric_Thickness*C79),\"\")","v":""},null,null,"","",null,null,"","","","",null,null,"","","","","",null,null,"-"]
[null,null,{"$error":"#N/A"},"",null,"","",{"$f":"IFERROR(IF($C80=\"\",\"\",(o_RollDiameter*0.5)-Fabric_Thickness*C80),\"\")","v":""},null,null,"","",null,null,"","","","",null,null,"","","","","",null,null,"-"]
[null,null,{"$error":"#N/A"},"",null,"","",{"$f":"IFERROR(IF($C81=\"\",\"\",(o_RollDiameter*0.5)-Fabric_Thickness*C81),\"\")","v":""},null,null,"","",null,null,"","","","",null,null,"","","","","",null,null,"-"]
[null,null,{"$error":"#N/A"},"",null,"","",{"$f":"IFERROR(IF($C82=\"\",\"\",(o_RollDiameter*0.5)-Fabric_Thickness*C82),\"\")","v":""},null,null,"","",null,null,"","","","",null,null,"","","","","",null,null,"-"]
[null,null,{"$error":"#N/A"},"",null,"","",{"$f":"IFERROR(IF($C83=\"\",\"\",(o_RollDiameter*0.5)-Fabric_Thickness*C83),\"\")","v":""},null,null,"","",null,null,"","","","",null,null,"","","","","",null,null,"-"]
[null,null,{"$error":"#N/A"},"",null,"","",{"$f":"IFERROR(IF($C84=\"\",\"\",(o_RollDiameter*0.5)-Fabric_Thickness*C84),\"\")","v":""},null,null,"","",null,null,"","","","",null,null,"","","","","",null,null,"-"]
[null,null,{"$error":"#N/A"},"",null,"","",{"$f":"IFERROR(IF($C85=\"\",\"\",(o_RollDiameter*0.5)-Fabric_Thickness*C85),\"\")","v":""},null,null,"","",null,null,"","","","",null,null,"","","","","",null,null,"-"]
[null,null,{"$error":"#N/A"},"",null,"","",{"$f":"IFERROR(IF($C86=\"\",\"\",(o_RollDiameter*0.5)-Fabric_Thickness*C86),\"\")","v":""},null,null,"","",null,null,"","","","",null,null,"","","","","",null,null,"-"]
[null,null,{"$error":"#N/A"},"",null,"","",{"$f":"IFERROR(IF($C87=\"\",\"\",(o_RollDiameter*0.5)-Fabric_Thickness*C87),\"\")","v":""},null,null,"","",null,null,"","","","",null,null,"","","","","",null,null,"-"]
[null,null,{"$error":"#N/A"},"",null,"","",{"$f":"IFERROR(IF($C88=\"\",\"\",(o_RollDiameter*0.5)-Fabric_Thickness*C88),\"\")","v":""},null,null,"","",null,null,"","","","",null,null,"","","","","",null,null,"-"]
[null,null,{"$error":"#N/A"},"",null,"","",{"$f":"IFERROR(IF($C89=\"\",\"\",(o_RollDiameter*0.5)-Fabric_Thickness*C89),\"\")","v":""},null,null,"","",null,null,"","","","",null,null,"","","","","",null,null,"-"]
[null,null,{"$error":"#N/A"},"",null,"","",{"$f":"IFERROR(IF($C90=\"\",\"\",(o_RollDiameter*0.5)-Fabric_Thickness*C90),\"\")","v":""},null,null,"","",null,null,"","","","",null,null,"","","","","",null,null,"-"]
[null,null,{"$error":"#N/A"},"",null,"","",{"$f":"IFERROR(IF($C91=\"\",\"\",(o_RollDiameter*0.5)-Fabric_Thickness*C91),\"\")","v":""},null,null,"","",null,null,"","","","",null,null,"","","","","",null,null,"-"]
[null,null,{"$error":"#N/A"},"",null,"","",{"$f":"IFERROR(IF($C92=\"\",\"\",(o_RollDiameter*0.5)-Fabric_Thickness*C92),\"\")","v":""},null,null,"","",null,null,"","","","",null,null,"","","","","",null,null,"-"]
[null,null,{"$error":"#N/A"},"",null,"","",{"$f":"IFERROR(IF($C93=\"\",\"\",(o_RollDiameter*0.5)-Fabric_Thickness*C93),\"\")","v":""},null,null,"","",null,null,"","","","",null,null,"","","","","",null,null,"-"]
[null,null,{"$error":"#N/A"},"",null,"","",{"$f":"IFERROR(IF($C94=\"\",\"\",(o_RollDiameter*0.5)-Fabric_Thickness*C94),\"\")","v":""},null,null,"","",null,null,"","","","",null,null,"","","","","",null,null,"-"]
[null,null,{"$error":"#N/A"},"",null,"","",{"$f":"IFERROR(IF($C95=\"\",\"\",(o_RollDiameter*0.5)-Fabric_Thickness*C95),\"\")","v":""},null,null,"","",null,null,"","","","",null,null,"","","","","",null,null,"-"]
[null,null,{"$error":"#N/A"},"",null,"","",{"$f":"IFERROR(IF($C96=\"\",\"\",(o_RollDiameter*0.5)-Fabric_Thickness*C96),\"\")","v":""},null,null,"","",null,null,"","","","",null,null,"","","","","",null,null,"-"]
[null,null,{"$error":"#N/A"},"",null,"","",{"$f":"IFERROR(IF($C97=\"\",\"\",(o_RollDiameter*0.5)-Fabric_Thickness*C97),\"\")","v":""},null,null,"","",null,null,"","","","",null,null,"","","","","",null,null,"-"]
[null,null,{"$error":"#N/A"},"",null,"","",{"$f":"IFERROR(IF($C98=\"\",\"\",(o_RollDiameter*0.5)-Fabric_Thickness*C98),\"\")","v":""},null,null,"","",null,null,"","","","",null,null,"","","","","",null,null,"-"]
[null,null,{"$error":"#N/A"},"",null,"","",{"$f":"IFERROR(IF($C99=\"\",\"\",(o_RollDiameter*0.5)-Fabric_Thickness*C99),\"\")","v":""},null,null,"","",null,null,"","","","",null,null,"","","","","",null,null,"-"]
[null,null,{"$error":"#N/A"},"",null,"","",{"$f":"IFERROR(IF($C100=\"\",\"\",(o_RollDiameter*0.5)-Fabric_Thickness*C100),\"\")","v":""},null,null,"","",null,null,"","","","",null,null,"","","","","",null,null,"-"]

{"sheet":"_Notes","index":14,"n_rows":66,"n_cols":24,"rows_kept":66,"cut":false,"hidden":true,"merged":[[64,4,64,6]]}
[]
[null,null,null,null,"changelog"]
[null,null,1.05,"2022-04-03","updated fabric list with AU & US regional data"]
[null,null,null,null,"updated weight bar list with region specific selections"]
[null,null,null,null,"added 'fabric dropdown search' functionality back"]
[]
[null,null,1.07,null,"Added Link Systems"]
[null,null,1.08,null,"changed wording on fabric input\nAdded 'o_fabricmatch' check to make sure correct cells greyed out for fabric",null,null,null,{"$f":"IFERROR(ROUND(Tube_Deflection_units,2),\"\")","v":""}]
[null,null,null,null,null,null,null,null,null,null,null,null,null,{"$f":"IFERROR(ROUND(Tube_Deflection_units,2),\"\")","v":""},null,null,null,null,null,null,null,"FD42 Extreme Weight Bar",null,0.70840000000000003]
[null,null,1.1000000000000001,null,"fixed S60 booster options"]
[null,null,null,null,"system charts - added booster selection"]
[null,null,null,null,"created pre-turns ESTIMATE data when a booster is selected."]
[null,null,null,null,"fixed fabric changes not updating lists.",null,null,null,null,null,null,null,null,null,null,null,null,null,null,null,null,"FZ47 Z-Lock Bottom Rail",null,1.1825000000000001]
[null,null,null,null,"added in formulas to force a booster selection if the holding capacity of the clutch alone is too low",null,null,null,null,null,null,null,null,null,null,null,null,null,null,null,null,"F52 Std External Weight Bar",null,1.0089999999999999]
[null,null,null,null,"added in ability to type in 'large' sizes for clutch control, without getting 'not available' due to shade torque exceeding clutch holding capacity (as it was not including potential for booster)",null,null,null,null,null,null,null,null,null,null,null,null,null,null,null,null,"F52 HD External Weight Bar",null,1.23]
[null,null,null,null,"was an error in the compatible links formula"]
[null,null,null,null,"tied in shade torques better for link options"]
[null,null,null,null,"changed pre-wraps to be a custom number"]
[]
[null,null,1.1100000000000001,null,"SL10.SL15 1.5\" tube adaptor changed to SLA53. (7)"]
[null,null,null,null,"fixed fabric search bug"]
[]
[null,null,1.1200000000000001,null,"fixed link total shade torque, was double dipping on 1st & 2nd shade torques"]
[]
[null,null,1.1399999999999999,null,"imperial + custom fabric density was under-calculating the fabric mass. (due to error in _Parameters C15"]
[]
[null,null,1.1499999999999999,null,"DC added ESA (no link compatibility), AS added S45/S60 adaptor config"]
[null,null,null,null,"removed FRS80 (AU discontinued, couldn’t find in US catalogue)"]
[]
[null,null,1.1599999999999999,null,"DC added ESA Micro & Small"]
[null,null,null,null,"added fabric wrap hem bar "]
[null,null,1.17,null,"OC added 2\" option for ESA"]
[null,null,1.18,null,"S45 ESA added"]
[null,null,null,null,"ESA popup now doesn't trigger when custom fabric is changed"]
[null,null,null,null,"Tusk fabrics now US only, added eclipse blackout global, changed mesa specs"]
[null,null,null,null,"GEARED WINDER - added in. (AS)"]
[null,null,null,null,"Added more tube output list checks | *SUMPRODUCT(D15,F15,C15) in options show on/off column"]
[null,null,null,null,"TODO Check chain length calcs. "]
[]
[null,null,1.19,null,"changed default deflction limit to .105"]
[null,null,null,null,"Allowed 'no ballast' on ESA, this may be a genuine option for light fabrics."]
[null,null,1.2,"2024-03-22","ESA update: Update minimum width to match chart generator (default idler - short Skyline pin end), update ESA recommendation as a list of compatible booster\n\nAdded iESABooster to iSelectionGrp1 & iListCheckGrp1\nAdded Range(\"i_ESA_Booster\") to Clear Selections\nAdded z_minSystemWidth - show if ESA Booster type selected & design_width < 1.2m\nUpdated currentRevision = 1.20\nChanged Eclipse fabric to Kleenscreen"]
[]
[]
[]
[]
[]
[null,null,null,null,"Future Notes",null,"Spare formulas",null,null,null,null,null,null,null,null,null,null,null,null,null,null,"F56 HD External Weight Bar + 1x 0.8kg/m Ballast",null,{"$f":"_ReferenceData!H87+0.8","v":1295.8}]
[]
[null,null,null,null,null,null,{"$f":"IF(AND(i_Region=\"US\",'1. Start'!L20>25),\"Heavy Duty Pin End recommended for shades over 25 lb.\",\"\")","v":""},null,null,null,null,null,null,null,null,null,null,null,null,null,null,"F72 HD External Weight Bar + 1x 0.8kg/m Ballast",null,{"$f":"_ReferenceData!H88+0.8","v":2012.8}]
[null,null,null,null,null,null,null,null,null,null,null,null,null,null,null,null,null,null,null,null,null,"F72 HD External Weight Bar + 1x 1.6kg/m Ballast",null,{"$f":"_ReferenceData!H88+1.6","v":2013.6}]
[null,null,null,null,"possible to highlight/clarify WHY an option isnt listed / why its removeD?",null,{"$f":"IF(Design_Width<Tube_MaxLength,\"Tube Length OK\", \"Tube is too short, maximum length is \"&ROUND(Tube_MaxLength*IF(i_units_Out=\"Metric\",1,INDEX(T_Units[Factor],MATCH(\"m\",T_Units[Metric],0))),IF(i_units_Out=\"Metric\",3,1))&INDEX(INDIRECT(\"T_Units[\"&i_Units&\"]\"),MATCH(\"m\",T_Units[Metric],0)))","v":"Tube Length OK"},null,null,null,null,null,null,null,null,null,null,null,null,null,null,"F72 HD External Weight Bar + 2x 1.6kg/m Ballast",null,{"$f":"_ReferenceData!H88+(1.6*2)","v":2015.2}]
[null,null,null,null,"show base clutch capacity with & without a selected retrofit booster?",null,null,null,null,null,null,null,null,null,null,null,null,null,null,null,null,"HD HEM Bar",null,1.9890000000000001]
[null,null,null,null,"based on fabric, weight bar, tube (ignore deflection), control selection",null,{"$f":"IFERROR((o_RollDiameter+Tube_Deflection*2)*IF(i_units_Out=\"Metric\",1,INDEX(T_Units[Factor],MATCH(\"mm\",T_Units[Metric],0))),\"\")","v":""}]
[null,null,null,null,"add minimum width? Would require collating ALL clutch info etc\nwould require entries for bracket covers, allow potential for idler selections (or assume) - assuming would require another set of rules)\nMotors would require idler selection anyway\nWould require adaptor deduction data"]
[]
[]
[null,null,null,null,"collate length of all boosters, springs ONLY, for info to output. "]
[]
[]
[]
[]
[]
[null,null,null,null,"Data bar indicates shade weight compared to maximum capacity. "]
[null,null,null,null,"Higher tube rotations will increase likelihood of tracking. \nLess than 20 rotations is recommended."]
[null,null,null,null,"Data bar indicates current deflection compared to maximum allowable. "]